Workbook

Sheet How to Use This Spreadsheet
B1: Sediment Cleanup Users Manual - Appendix K
B2: Instructions for Using this Spreadsheet
B3: Updated April 2025
B4: To run this workbook, MACROS MUST BE ENABLED
B5: Overview
B6: This spreadsheet supports calculation of risk-based tissue and sediment concentrations for human health
B7: and upper trophic ecological levels, as shown in the figure to the right. These calculations are described in Chapter 9
B8: and Appendix E.
B10: Each of the consumption outputs (i.e., human consumption of fish/shellfish and higher trophic level consumption of fish/shellfish)
B11: are intended for use with Option 2 (see Chapter 9 Section 9.1.1.2). If you are choosing Option 1 (Section 9.1.1.1) for calculation of risk-based
B12: sediment concentrations, you do not need to perform these calculations.
B14: The risk-based sediment concentrations based on incidental ingestion and dermal contact (see Section 9.2.2) are used with
B15: both Option 1 and Option 2. These values can be automatically calculated using the recommended exposure assumptions.
B17: Step 1: Toxicity Values (Human Health)
B18: Use the CLARC tables to enter the CAS number. Chemical name, chemical class, toxicity values, and the GI are auto-filled using lookup
B19: equations that key on the CAS.
B21: Several common chemicals have been pre-entered for you.
B22: In the gray-shaded cells, you may add a new Chemical of Concern (CoC) or modify the existing CoCs by manually updating the CAS number.
B24: Based on the GI, the worksheet will automatically calculate dermal RfDs and CPFs for you.
B26: Step 2: Chemical Parameters (Human Health)
B27: On this worksheet, you may enter the site-specific BSAF if you are using Option 2 (see Chapter 9.3). Otherwise, leave it blank.
B28: All other parameters (e.g., AB and ABS) are filled in automatically in the worksheet.
B31: Step 3: Exposure Parameters (Human Health and Ecological Risk)
B32: Recommended values for several scenarios have been provided in the worksheet for all human health exposure parameters.
B33: Recommended values may be revised with Ecology's concurrence by entering a different value into gray-shaded areas.
B35: Table 1a: If using a recommended value, select one of the three default scenarios and copy it into the first two gray columns.
B36: Three alternatives are shown based on different Ecology-approved tribal RME exposure scenarios.
B37: In consultation with the tribes affected by the cleanup site, Ecology site managers may select the one that
B38: most closely represents the affected tribes, or modify the recommended exposure parameters in Step 3 appropriately.
B39: If you are developing a site-specific scenario, revised the gray columns with the name of the scenario
B40: and its associated RME values.
B42: For calculating sediment screening levels for seafood consumption, enter in % lipid of food items and % TOC in sediments in
B43: appropriate location (cells C14 and C15, respectively).
B45: Table 1b: Exposure parameters for seafood ingestions incorporating Early Life Exposure (ELE) for mutagenic chemicals (e.g., cPAHs).
B46: Four alternatives are shown based on different Ecology-approved tribal RME exposure scenarios and EPA recommended general population parameters.
B47: For Tribal values, ages 0-16 are assumed to consume 40% of the adult rate.
B48: In consultation with the tribes affected by the cleanup site, Ecology site managers may select the one that
B49: most closely represents the affected tribes, or modify the recommended exposure parameters in Step 3 appropriately.
B50: If you are developing a site-specific scenario, revised the gray columns with the name of the scenario
B51: and its associated RME values.
B53: Table 2a: Use the default values provided in this table. Or, enter site-specific values where applicable and in coordination with the Ecology site manager.
B55: Table 2b: Used for calculating ELE for mutagenic chemicals (e.g., cPAHs). Use the default values provided in this table.
B56: Or, enter site-specific values where applicable and in coordination with the Ecology site manager.
B58: Table 3: If you are calculating ecological risk-based concentrations under Option 2 (see Chapter 9.3), use Table 3 to enter
B59: ecological risk CoCs, toxicity reference values (TRVs), and exposure parameters for each indicator species chosen.
B60: Enter the CoCs into the first cell of each section (there is room for 8 CoCs); they will be copied to the other cells in that section.
B61: Enter the indicator species into the first section corresponding to the first CoC; they will be copied to all of the other sections.
B62: Recommended values have not been entered into the ecological risk table, because they are species-specific.
B63: If the TRV is for the indicator species, enter the TRVis and leave the other cells blank.
B64: If the TRV is for a different test species, leave the TRV blank and enter the other values in that section.
B65: Enter the values for the eggshell thinning pathway if you are using that exposure pathway for fish-eating birds, otherwise, leave blank.
B66: TRVs and BMFs are both species- and chemical-specific and must be entered individually for each combination of species and chemical.
B67: FIRs and BWs are species-specific and need only be entered in the first section; they will be copied to the other sections.
B69: Calculation Worksheets
B71: Consumption_HH_Tissue
B72: This worksheet calculates risk-based tissue concentrations for consumption of fish/shellfish by humans.
B73: The lowest of the cancer and non-cancer values for the appropriate RME is used as the risk-based concentration.
B75: Consumption_Eco_Tissue
B76: This worksheet calculates risk-based tissue concentrations for consumption of fish/shellfish by higher trophic levels.
B77: The worksheet has enough space for 8 CoCs and 6 indicator species.
B78: The lowest of direct consumption of fish/shellfish and eggshell thinning values (if available) is used.
B80: Consumption_Sediment
B81: This worksheet calculates risk-based concentrations in sediment based on the lowest of the human health and ecological risk-based concentrations in tissue.
B82: The ecological risk-based values must be hand-entered from the Consumption_Eco_Tissue spreadsheet above (if used). The human health values will be automatically entered.
B83: This calculation requires a site-specific BSAF to be entered in Step 2, and also uses the SUF, % lipid, and % TOC from Step 3.
B85: IngestionDermal_Sediment
B86: This worksheet calculates risk-based concentrations in sediment based on incidental ingestion and dermal contact with sediments.
B87: Three exposure pathways/activities are shown, and the lowest result for any that apply to the site is used as the risk-based sediment concentration.

Sheet Chemical Lookup (hidden) (hidden)
B2: GI and ABS values are from the EPA Novemer 2024 Regional Screening Level Table. The GI and ABS presented in the EPA RSL table are consistent with EPA's RAGS Part E (EPA, 2004). | S2: Chemical Update Log
B3: EPA, 2004. Risk Assessment Guidance for Superfund, Vol. I: Human Health Evaluation Manual (Part E, Supplemental Guidance for Dermal Risk Assessment). Final. July 2004. EPA/540/R/99/005. | S3: No. | T3: Made by | U3: Date | V3: Description
S4: 1 | T4: kallus | U4: April 2025 | V4: Replaced the chemical list with the CLARC list.
T5: kallus | U5: April 2025 | V5: Updated GI and ABS based on EPA's November 2024 RSL.
T6: kallus | U6: April 2025 | V6: Added toxicity data from February 2025 CLARC.
T7: kallus | U7: April 2025 | V7: Added chemical class designations using the same class designations used in the workbook (i.e., inorganics, other organic hazards, dioxins/furans, vocs).
B8: CAS | C8: Chemical | D8: GI | E8: ABS | F8: Class | G8: RfDo mg/kg-day | H8: CPFo kg-day/mg | I8: Mutagen | T8: kallus | U8: April 2025 | V8: Added a column identifying chemicals with a mutagenic mode of action ("M")
B9: 83-32-9 | C9: acenaphthene | D9: 1 | E9: 0.13 | F9: Other organic hazards | G9: 0.06 | H9: NTV | S9: 2
B10: 30560-19-1 | C10: acephate | D10: 1 | E10: 0.1 | F10: Other organic hazards | G10: 0.0003 | H10: NTV
B11: 75-07-0 | C11: acetaldehyde | D11: 1 | E11: 0 | F11: VOCs | G11: NTV | H11: NTV
B12: 34256-82-1 | C12: acetochlor | D12: 1 | E12: 0.1 | F12: Other organic hazards | G12: 0.02 | H12: NTV
B13: 67-64-1 | C13: acetone | D13: 1 | E13: 0 | F13: VOCs | G13: 0.9 | H13: NTV
B14: 75-86-5 | C14: acetone cyanohydrin | D14: 1 | E14: 0.1 | F14: Other organic hazards | G14: NTV | H14: NTV
B15: 75-05-8 | C15: acetonitrile | D15: 1 | E15: 0 | F15: VOCs | G15: NTV | H15: NTV
B16: 98-86-2 | C16: acetophenone | D16: 1 | E16: 0 | F16: Other organic hazards | G16: 0.1 | H16: NTV
B17: 62476-59-9 | C17: acifluorfen, sodium | D17: 1 | E17: 0.1 | F17: Other organic hazards | G17: 0.013 | H17: NTV
B18: 107-02-8 | C18: acrolein | D18: 1 | E18: 0 | F18: VOCs | G18: 0.0005 | H18: NTV
B19: 79-06-1 | C19: acrylamide | D19: 1 | E19: 0.1 | F19: Other organic hazards | G19: 0.002 | H19: 0.5 | I19: M
B20: 79-10-7 | C20: acrylic acid | D20: 1 | E20: 0 | F20: VOCs | G20: 0.5 | H20: NTV
B21: 107-13-1 | C21: acrylonitrile | D21: 1 | E21: 0 | F21: VOCs | G21: 0.001 | H21: 0.54
B22: 15972-60-8 | C22: alachlor | D22: 1 | E22: 0.1 | F22: Other organic hazards | G22: 0.01 | H22: 0.056
B23: 1596-84-5 | C23: alar | D23: 1 | E23: 0.1 | F23: Other organic hazards | G23: 0.15 | H23: 0.018
B24: 116-06-3 | C24: aldicarb | D24: 1 | E24: 0.1 | F24: Other organic hazards | G24: 0.001 | H24: NTV
B25: 1646-88-4 | C25: aldicarb sulfone | D25: 1 | E25: 0.1 | F25: Other organic hazards | G25: 0.001 | H25: NTV
B26: 309-00-2 | C26: aldrin | D26: 1 | E26: 0 | F26: Other organic hazards | G26: 3e-05 | H26: 17
B27: 74223-64-6 | C27: ally | D27: 1 | E27: 0.1 | F27: Other organic hazards | G27: 0.25 | H27: NTV
B28: 107-18-6 | C28: allyl alcohol | D28: 1 | E28: 0 | F28: VOCs | G28: 0.005 | H28: NTV
B29: 107-05-1 | C29: allyl chloride | D29: 1 | E29: 0 | F29: VOCs | G29: NTV | H29: 0.021
B30: 7429-90-5 | C30: aluminum | D30: 1 | E30: 0 | F30: Inorganics | G30: 1 | H30: NTV
B31: 20859-73-8 | C31: aluminum phosphide | D31: 1 | E31: 0 | F31: Inorganics | G31: 0.0004 | H31: NTV
B32: 67485-29-4 | C32: amdro | D32: 1 | E32: 0.1 | F32: Other organic hazards | G32: 0.017 | H32: NTV
B33: 834-12-8 | C33: ametryn | D33: 1 | E33: 0.1 | F33: Other organic hazards | G33: 0.009 | H33: NTV
B34: 92-67-1 | C34: aminobiphenyl;4- | D34: 1 | E34: 0.1 | F34: Other organic hazards | G34: NTV | H34: 21
B35: 591-27-5 | C35: aminophenol;m- | D35: 1 | E35: 0.1 | F35: Other organic hazards | G35: 0.08 | H35: NTV
B36: 33089-61-1 | C36: amitraz | D36: 1 | E36: 0.1 | F36: Other organic hazards | G36: 0.0025 | H36: NTV
B37: 7664-41-7 | C37: AMMONIA | D37: 1 | E37: 0 | F37: Inorganics | G37: NTV | H37: NTV
B38: 7790-98-9 | C38: ammonium perchlorate | D38: 1 | E38: 0 | F38: Other organic hazards | G38: 0.0007 | H38: NTV
B39: 7773-06-0 | C39: ammonium sulfamate | D39: 1 | E39: 0 | F39: Inorganics | G39: 0.2 | H39: NTV
B40: 62-53-3 | C40: aniline | D40: 1 | E40: 0.1 | F40: Other organic hazards | G40: 0.007 | H40: 0.0057
B41: 120-12-7 | C41: anthracene | D41: 1 | E41: 0.13 | F41: Other organic hazards | G41: 0.3 | H41: NTV
B42: 7440-36-0 | C42: antimony | D42: 0.15 | E42: 0 | F42: Inorganics | G42: 0.0004 | H42: NTV
B43: 1314-60-9 | C43: antimony pentoxide | D43: 0.15 | E43: 0 | F43: Inorganics | G43: 0.0005 | H43: NTV
B44: 28300-74-5 | C44: antimony potassium tartrate | D44: 0.15 | E44: 0 | F44: Inorganics | G44: 0.0009 | H44: NTV | J44: not in EPA RSL
B45: 1332-81-6 | C45: antimony tetroxide | D45: 0.15 | E45: 0 | F45: Inorganics | G45: 0.0004 | H45: NTV
B46: 1309-64-4 | C46: antimony trioxide | D46: 0.15 | E46: 0 | F46: Inorganics | G46: 0.0004 | H46: NTV
B47: 74115-24-5 | C47: apollo | D47: 1 | E47: 0.1 | F47: Other organic hazards | G47: 0.013 | H47: NTV
B48: 140-57-8 | C48: aramite | D48: 1 | E48: 0.1 | F48: Other organic hazards | G48: 0.05 | H48: 0.025
B49: 12674-11-2 | C49: aroclor 1016 | D49: 1 | E49: 0.14 | F49: Other organic hazards | G49: 7e-05 | H49: 0.07
B50: 11097-69-1 | C50: aroclor 1254 | D50: 1 | E50: 0.14 | F50: Other organic hazards | G50: 2e-05 | H50: 2
B51: 11096-82-5 | C51: aroclor 1260 | D51: 1 | E51: 0.14 | F51: Other organic hazards | G51: NTV | H51: 2
B52: 7440-38-2 | C52: arsenic, inorganic | D52: 1 | E52: 0.03 | F52: Inorganics | G52: 6e-05 | H52: 32
B53: 7784-42-1 | C53: arsine | D53: 1 | E53: 0 | F53: Inorganics | G53: 3.5e-06 | H53: NTV
B54: 76578-14-8 | C54: assure | D54: 1 | E54: 0.1 | F54: Other organic hazards | G54: 0.009 | H54: NTV
B55: 3337-71-1 | C55: asulam | D55: 1 | E55: 0.1 | F55: Other organic hazards | G55: 0.36 | H55: NTV
B56: 1912-24-9 | C56: atrazine | D56: 1 | E56: 0.1 | F56: Other organic hazards | G56: 0.035 | H56: 0.23
B57: 65195-55-3 | C57: avermectin B1 | D57: 1 | E57: 0.1 | F57: Other organic hazards | G57: 0.0004 | H57: NTV
B58: 103-33-3 | C58: azobenzene | D58: 1 | E58: 0 | F58: Other organic hazards | G58: NTV | H58: 0.11
B59: 7440-39-3 | C59: barium and compounds | D59: 0.07 | E59: 0 | F59: Inorganics | G59: 0.2 | H59: NTV
B60: 114-26-1 | C60: baygon | D60: 1 | E60: 0.1 | F60: Other organic hazards | G60: 0.004 | H60: NTV
B61: 43121-43-3 | C61: bayleton | D61: 1 | E61: 0.1 | F61: Other organic hazards | G61: 0.034 | H61: NTV
B62: 68359-37-5 | C62: baythroid | D62: 1 | E62: 0.1 | F62: Other organic hazards | G62: 0.025 | H62: NTV
B63: 1861-40-1 | C63: benefin | D63: 1 | E63: 0 | F63: Other organic hazards | G63: 0.005 | H63: NTV
B64: 17804-35-2 | C64: benomyl | D64: 1 | E64: 0.1 | F64: Other organic hazards | G64: 0.05 | H64: NTV
B65: 25057-89-0 | C65: bentazon | D65: 1 | E65: 0.1 | F65: Other organic hazards | G65: 0.03 | H65: NTV
B66: 100-52-7 | C66: benzaldehyde | D66: 1 | E66: 0 | F66: Other organic hazards | G66: 0.1 | H66: 0.004
B67: 71-43-2 | C67: BENZENE | D67: 1 | E67: 0 | F67: VOCs | G67: 0.004 | H67: 0.055
B68: 108-98-5 | C68: benzenethiol | D68: 1 | E68: 0 | F68: Other organic hazards | G68: 0.001 | H68: NTV
B69: 92-87-5 | C69: benzidine | D69: 1 | E69: 0.1 | F69: Other organic hazards | G69: 0.003 | H69: 230 | I69: M
B70: 192-97-2 | C70: benzo[e]pyrene | D70: 1 | E70: 0.1 | F70: Other organic hazards | G70: 9e-05 | H70: NTV
B71: 56-55-3 | C71: BENZO[a]ANTHRACENE | D71: 1 | E71: 0.13 | F71: Other organic hazards | G71: NTV | H71: NTV
B72: 50-32-8 | C72: BENZO[a]PYRENE | D72: 1 | E72: 0.13 | F72: Other organic hazards | G72: 0.0003 | H72: 1 | I72: M
B73: 205-99-2 | C73: BENZO[b]FLUORANTHENE | D73: 1 | E73: 0.13 | F73: Other organic hazards | G73: NTV | H73: NTV
B74: 207-08-9 | C74: BENZO[k]FLUORANTHENE | D74: 1 | E74: 0.13 | F74: Other organic hazards | G74: NTV | H74: NTV
B75: 65-85-0 | C75: BENZOIC ACID | D75: 1 | E75: 0.1 | F75: Other organic hazards | G75: 4 | H75: NTV
B76: 98-07-7 | C76: benzotrichloride | D76: 1 | E76: 0 | F76: VOCs | G76: NTV | H76: 13
B77: 100-51-6 | C77: benzyl alcohol | D77: 1 | E77: 0.1 | F77: Other organic hazards | G77: 0.1 | H77: NTV
B78: 100-44-7 | C78: benzyl chloride | D78: 1 | E78: 0 | F78: VOCs | G78: 0.002 | H78: 0.17
B79: 7440-41-7 | C79: beryllium | D79: 0.007 | E79: 0 | F79: Inorganics | G79: 0.002 | H79: NTV
B80: 91-58-7 | C80: beta-chloronaphthalene | D80: 1 | E80: 0.13 | F80: Other organic hazards | G80: 0.08 | H80: NTV
B81: 141-66-2 | C81: bidrin | D81: 1 | E81: 0.1 | F81: Other organic hazards | G81: 3e-05 | H81: NTV
B82: 82657-04-3 | C82: biphenthrin | D82: 1 | E82: 0.1 | F82: Other organic hazards | G82: 0.015 | H82: NTV
B83: 92-52-4 | C83: biphenyl;1,1- | D83: 1 | E83: 0 | F83: Other organic hazards | G83: 0.5 | H83: 0.008
B84: 108-60-1 | C84: bis(2-chloro-1-methyl-ethyl)ether | D84: 1 | E84: 0 | F84: VOCs | G84: 0.04 | H84: 0.07
B85: 111-91-1 | C85: bis(2-chloroethoxy)methane | D85: 1 | E85: 0.1 | F85: Other organic hazards | G85: 0.003 | H85: NTV
B86: 111-44-4 | C86: bis(2-chloroethyl)ether | D86: 1 | E86: 0 | F86: Other organic hazards | G86: NTV | H86: 1.1
B87: 117-81-7 | C87: bis(2-ethylhexyl) phthalate (DEHP) | D87: 1 | E87: 0.1 | F87: Other organic hazards | G87: 0.02 | H87: 0.014
B88: 542-88-1 | C88: bis(chloromethyl)ether | D88: 1 | E88: 0 | F88: VOCs | G88: NTV | H88: 220
B89: 80-05-7 | C89: bisphenol a | D89: 1 | E89: 0.1 | F89: Other organic hazards | G89: 0.05 | H89: NTV
B90: 7440-42-8 | C90: boron | D90: 1 | E90: 0 | F90: Inorganics | G90: 0.2 | H90: NTV
B91: 15541-45-4 | C91: bromate | D91: 1 | E91: 0 | F91: Inorganics | G91: 0.004 | H91: 0.7
B92: 79-08-3 | C92: bromoacetic acid | D92: 1 | E92: 0.1 | F92: Other organic hazards | G92: 0.0017 | H92: NTV
B93: 108-86-1 | C93: bromobenzene | D93: 1 | E93: 0 | F93: VOCs | G93: 0.008 | H93: NTV
B94: 74-97-5 | C94: bromochloromethane | D94: 1 | E94: 0 | F94: VOCs | G94: NTV | H94: NTV
B95: 75-27-4 | C95: BROMODICHLOROMETHANE | D95: 1 | E95: 0 | F95: VOCs | G95: 0.02 | H95: 0.062
B96: 593-60-2 | C96: bromoethene | D96: 1 | E96: 0 | F96: VOCs | G96: NTV | H96: NTV
B97: 75-25-2 | C97: BROMOFORM | D97: 1 | E97: 0 | F97: VOCs | G97: 0.02 | H97: 0.0079
B98: 74-83-9 | C98: bromomethane | D98: 1 | E98: 0 | F98: VOCs | G98: 0.0014 | H98: NTV
B99: 2104-96-3 | C99: bromophos | D99: 1 | E99: 0 | F99: Other organic hazards | G99: 0.005 | H99: NTV
B100: 1689-84-5 | C100: bromoxynil | D100: 1 | E100: 0.1 | F100: Other organic hazards | G100: 0.015 | H100: 0.1
B101: 1689-99-2 | C101: bromoxynil octanoate | D101: 1 | E101: 0 | F101: Other organic hazards | G101: 0.015 | H101: 0.1
B102: 106-99-0 | C102: butadiene;1,3- | D102: 1 | E102: 0 | F102: VOCs | G102: NTV | H102: 0.6
B103: 71-36-3 | C103: butanol;n- | D103: 1 | E103: 0 | F103: VOCs | G103: 0.1 | H103: NTV
B104: 75-65-0 | C104: butyl alcohol;tert- | D104: 1 | E104: 0 | F104: VOCs | G104: 0.4 | H104: 0.0005
B105: 85-68-7 | C105: butyl benzyl phthalate (BBP) | D105: 1 | E105: 0.1 | F105: Other organic hazards | G105: 0.2 | H105: 0.0019
B106: 2008-41-5 | C106: butylate | D106: 1 | E106: 0 | F106: Other organic hazards | G106: 0.05 | H106: NTV
B107: 104-51-8 | C107: butylbenzene; n- | D107: 1 | E107: 0 | F107: VOCs | G107: 0.05 | H107: NTV
B108: 135-98-8 | C108: butylbenzene; sec- | D108: 1 | E108: 0 | F108: VOCs | G108: 0.1 | H108: NTV
B109: 98-06-6 | C109: butylbenzene; tert- | D109: 1 | E109: 0 | F109: VOCs | G109: 0.1 | H109: NTV
B110: 85-70-1 | C110: butylphthalyl butylglycolate (BPBG) | D110: 1 | E110: 0.1 | F110: Other organic hazards | G110: 1 | H110: NTV
B111: 94-81-5 | C111: butyric acid;4-(2-methyl-4-chlorophenoxy)- | D111: 1 | E111: 0.1 | F111: Other organic hazards | G111: 0.044 | H111: NTV
B112: 75-60-5 | C112: cacodylic acid | D112: 1 | E112: 0.1 | F112: Other organic hazards | G112: 0.02 | H112: NTV
B113: 7440-43-9 | C113: Cadmium | D113: 0.025 | E113: 0.001 | F113: Inorganics | G113: 0.001 | H113: NTV
B114: 592-01-8 | C114: calcium cyanide | D114: 1 | E114: 0 | F114: Other organic hazards | G114: 0.001 | H114: NTV
B115: 105-60-2 | C115: caprolactam | D115: 1 | E115: 0.1 | F115: Other organic hazards | G115: 0.5 | H115: NTV
B116: 2425-06-1 | C116: captafol | D116: 1 | E116: 0.1 | F116: Other organic hazards | G116: 0.002 | H116: 0.15
B117: 133-06-2 | C117: captan | D117: 1 | E117: 0.1 | F117: Other organic hazards | G117: 0.13 | H117: 0.0023
B118: 63-25-2 | C118: carbaryl | D118: 1 | E118: 0.1 | F118: Other organic hazards | G118: 0.1 | H118: NTV
B119: 1563-66-2 | C119: carbofuran | D119: 1 | E119: 0.1 | F119: Other organic hazards | G119: 0.005 | H119: NTV
B120: 75-15-0 | C120: carbon disulfide | D120: 1 | E120: 0 | F120: VOCs | G120: 0.1 | H120: NTV
B121: 56-23-5 | C121: carbon tetrachloride | D121: 1 | E121: 0 | F121: VOCs | G121: 0.004 | H121: 0.07
B122: 55285-14-8 | C122: carbosulfan | D122: 1 | E122: 0.1 | F122: Other organic hazards | G122: 0.01 | H122: NTV
B123: 5234-68-4 | C123: carboxin | D123: 1 | E123: 0.1 | F123: Other organic hazards | G123: 0.1 | H123: NTV
B124: 1306-38-3 | C124: cerium oxide and cerium compounds | D124: 1 | E124: 0 | F124: Inorganics | G124: NTV | H124: NTV
B125: 302-17-0 | C125: chloral hydrate | D125: 1 | E125: 0 | F125: VOCs | G125: 0.1 | H125: NTV
B126: 133-90-4 | C126: chloramben | D126: 1 | E126: 0.1 | F126: Other organic hazards | G126: 0.015 | H126: NTV
B127: 118-75-2 | C127: chloranil | D127: 1 | E127: 0.1 | F127: Other organic hazards | G127: NTV | H127: 0.4
B128: 12789-03-6 | C128: chlordane | D128: 1 | E128: 0.04 | F128: Other organic hazards | G128: 0.0005 | H128: 0.35
B129: 5103-71-9 | C129: chlordane (alpha) | D129: 1 | E129: 0.04 | F129: Other organic hazards | G129: 0.0005 | H129: NTV
B130: 5103-74-2 | C130: chlordane (gamma) | D130: 1 | E130: 0.04 | F130: Other organic hazards | G130: 0.0005 | H130: NTV
B131: 143-50-0 | C131: chlordecone (kepone) | D131: 1 | E131: 0.1 | F131: Other organic hazards | G131: 0.0003 | H131: 10
B132: 16887-00-6 | C132: chloride | D132: 1 | E132: 0 | F132: Inorganics | G132: NTV | H132: NTV | J132: not in EPA RSL
B133: 90982-32-4 | C133: chlorimuron-ethyl | D133: 1 | E133: 0.1 | F133: Other organic hazards | G133: 0.09 | H133: NTV
B134: 7782-50-5 | C134: CHLORINE | D134: 1 | E134: 0 | F134: Inorganics | G134: 0.1 | H134: NTV
B135: 506-77-4 | C135: chlorine cyanide | D135: 1 | E135: 0 | F135: Other organic hazards | G135: 0.05 | H135: NTV
B136: 10049-04-4 | C136: CHLORINE DIOXIDE | D136: 1 | E136: 0 | F136: VOCs | G136: 0.03 | H136: NTV
B137: 7758-19-2 | C137: chlorite | D137: 1 | E137: 0 | F137: Inorganics | G137: 0.03 | H137: NTV
B138: 75-68-3 | C138: chloro-1,1-difluoroethane;1- | D138: 1 | E138: 0 | F138: VOCs | G138: NTV | H138: NTV
B139: 126-99-8 | C139: chloro-1,3-butadiene;2- | D139: 1 | E139: 0 | F139: VOCs | G139: 0.02 | H139: NTV
B140: 3165-93-3 | C140: chloro-2-methylaniline hydrochloride;4- | D140: 1 | E140: 0.1 | F140: Other organic hazards | G140: NTV | H140: 0.46
B141: 95-69-2 | C141: chloro-2-methylaniline;4- | D141: 1 | E141: 0.1 | F141: Other organic hazards | G141: 0.003 | H141: 0.1
B142: 79-11-8 | C142: chloroacetic acid | D142: 1 | E142: 0.1 | F142: Other organic hazards | G142: 0.002 | H142: NTV
B143: 532-27-4 | C143: chloroacetophenone;2- | D143: 1 | E143: 0.1 | F143: Other organic hazards | G143: NTV | H143: NTV
B144: 106-47-8 | C144: chloroaniline;p- | D144: 1 | E144: 0.1 | F144: Other organic hazards | G144: 0.004 | H144: 0.2
B145: 108-90-7 | C145: chlorobenzene | D145: 1 | E145: 0 | F145: VOCs | G145: 0.02 | H145: NTV
B146: 510-15-6 | C146: chlorobenzilate | D146: 1 | E146: 0.1 | F146: Other organic hazards | G146: 0.02 | H146: 0.11
B147: 74-11-3 | C147: chlorobenzoic acid;p- | D147: 1 | E147: 0.1 | F147: Other organic hazards | G147: 0.03 | H147: NTV
B148: 98-56-6 | C148: chlorobenzotrifluoride;4- | D148: 1 | E148: 0 | F148: VOCs | G148: 0.003 | H148: NTV
B149: 109-69-3 | C149: chlorobutane;1- | D149: 1 | E149: 0 | F149: VOCs | G149: 0.04 | H149: NTV
B150: 59-50-7 | C150: chlorocresol | D150: 1 | E150: 0.1 | F150: Other organic hazards | G150: 0.1 | H150: NTV
B151: 75-45-6 | C151: chlorodifluoromethane | D151: 1 | E151: 0 | F151: VOCs | G151: NTV | H151: NTV
B152: 67-66-3 | C152: CHLOROFORM | D152: 1 | E152: 0 | F152: VOCs | G152: 0.01 | H152: 0.031
B153: 74-87-3 | C153: chloromethane | D153: 1 | E153: 0 | F153: VOCs | G153: NTV | H153: NTV
B154: 107-30-2 | C154: chloromethyl methyl ether | D154: 1 | E154: 0 | F154: VOCs | G154: NTV | H154: 2.4
B155: 88-73-3 | C155: chloronitrobenzene;o- | D155: 1 | E155: 0.1 | F155: Other organic hazards | G155: 0.003 | H155: 0.3
B156: 100-00-5 | C156: chloronitrobenzene;p- | D156: 1 | E156: 0.1 | F156: Other organic hazards | G156: 0.0007 | H156: 0.06
B157: 95-57-8 | C157: CHLOROPHENOL;2- | D157: 1 | E157: 0 | F157: Other organic hazards | G157: 0.005 | H157: NTV
B158: 1897-45-6 | C158: chlorothalonil | D158: 1 | E158: 0.1 | F158: Other organic hazards | G158: 0.015 | H158: 0.017
B159: 95-49-8 | C159: chlorotoluene;o- | D159: 1 | E159: 0 | F159: VOCs | G159: 0.02 | H159: NTV
B160: 106-43-4 | C160: chlorotoluene;p- | D160: 1 | E160: 0 | F160: VOCs | G160: 0.02 | H160: NTV
B161: 101-21-3 | C161: chlorpropham | D161: 1 | E161: 0.1 | F161: Other organic hazards | G161: 0.005 | H161: NTV
B162: 2921-88-2 | C162: chlorpyrifos | D162: 1 | E162: 0.1 | F162: Other organic hazards | G162: 0.001 | H162: NTV
B163: 5598-13-0 | C163: chlorpyrifos-methyl | D163: 1 | E163: 0.1 | F163: Other organic hazards | G163: 0.01 | H163: NTV
B164: 64902-72-3 | C164: chlorsulfuron | D164: 1 | E164: 0.1 | F164: Other organic hazards | G164: 0.05 | H164: NTV
B165: 60238-56-4 | C165: chlorthiophos | D165: 1 | E165: 0.1 | F165: Other organic hazards | G165: 0.0008 | H165: NTV
B166: 7440-47-3 | C166: CHROMIUM (TOTAL) | D166: 0.013 | E166: 0 | F166: Inorganics | G166: NTV | H166: NTV
B167: 16065-83-1 | C167: CHROMIUM (III) | D167: 0.013 | E167: 0 | F167: Inorganics | G167: 1.5 | H167: NTV
B168: 18540-29-9 | C168: CHROMIUM (VI) | D168: 0.025 | E168: 0 | F168: Inorganics | G168: 0.0009 | H168: 0.16 | I168: M
B169: 218-01-9 | C169: CHRYSENE | D169: 1 | E169: 0.13 | F169: Other organic hazards | G169: NTV | H169: NTV
B170: 7440-48-4 | C170: Cobalt | D170: 1 | E170: 0 | F170: Inorganics | G170: 0.0003 | H170: NTV
B171: E649830 | C171: coke oven emissions | D171: 1 | E171: 0 | F171: VOCs | G171: NTV | H171: NTV
B172: 7440-50-8 | C172: COPPER | D172: 1 | E172: 0 | F172: Inorganics | G172: 0.04 | H172: NTV
B173: 544-92-3 | C173: copper cyanide | D173: 1 | E173: 0 | F173: Other organic hazards | G173: 0.005 | H173: NTV
B174: 108-39-4 | C174: cresol;m- | D174: 1 | E174: 0.1 | F174: Other organic hazards | G174: 0.05 | H174: NTV
B175: 95-48-7 | C175: cresol;o- | D175: 1 | E175: 0.1 | F175: Other organic hazards | G175: 0.05 | H175: NTV
B176: 106-44-5 | C176: cresol;p- | D176: 1 | E176: 0.1 | F176: Other organic hazards | G176: 0.1 | H176: NTV
B177: 1319-77-3 | C177: cresols | D177: 1 | E177: 0.1 | F177: Other organic hazards | G177: 0.1 | H177: NTV
B178: 123-73-9 | C178: crotonaldehyde | D178: 1 | E178: 0 | F178: VOCs | G178: 0.001 | H178: 1.9
B179: 98-82-8 | C179: cumene | D179: 1 | E179: 0 | F179: VOCs | G179: 0.1 | H179: NTV
B180: 21725-46-2 | C180: cyanazine | D180: 1 | E180: 0.1 | F180: Other organic hazards | G180: 0.002 | H180: 0.84
B181: 57-12-5 | C181: CYANIDE | D181: 1 | E181: 0 | F181: Other organic hazards | G181: 0.00063 | H181: NTV
B182: 460-19-5 | C182: cyanogen | D182: 1 | E182: 0 | F182: Other organic hazards | G182: 0.001 | H182: NTV
B183: 506-68-3 | C183: cyanogen bromide | D183: 1 | E183: 0 | F183: Other organic hazards | G183: 0.09 | H183: NTV
B184: 110-82-7 | C184: cyclohexane | D184: 1 | E184: 0 | F184: VOCs | G184: NTV | H184: NTV
B185: 108-94-1 | C185: cyclohexanone | D185: 1 | E185: 0 | F185: VOCs | G185: 5 | H185: NTV
B186: 110-83-8 | C186: cyclohexene | D186: 1 | E186: 0 | F186: VOCs | G186: 0.005 | H186: NTV
B187: 108-91-8 | C187: cyclohexylamine | D187: 1 | E187: 0 | F187: VOCs | G187: 0.2 | H187: NTV
B188: 66215-27-8 | C188: cyromazine | D188: 1 | E188: 0.1 | F188: Other organic hazards | G188: 0.5 | H188: NTV
B189: 1861-32-1 | C189: dacthal | D189: 1 | E189: 0.1 | F189: Other organic hazards | G189: 0.01 | H189: NTV
B190: 75-99-0 | C190: dalapon, sodium salt | D190: 1 | E190: 0.1 | F190: Other organic hazards | G190: 0.03 | H190: NTV
B191: 39515-41-8 | C191: danitol | D191: 1 | E191: 0.1 | F191: Other organic hazards | G191: 0.025 | H191: NTV
B192: 72-54-8 | C192: DDD | D192: 1 | E192: 0.1 | F192: Other organic hazards | G192: 0.0005 | H192: 0.24
B193: 72-55-9 | C193: DDE | D193: 1 | E193: 0 | F193: Other organic hazards | G193: 0.0005 | H193: 0.34
B194: 50-29-3 | C194: DDT | D194: 1 | E194: 0.03 | F194: Other organic hazards | G194: 0.0005 | H194: 0.34
B195: 1163-19-5 | C195: decabromodiphenyl ether (PBDE-209) | D195: 1 | E195: 0.1 | F195: Other organic hazards | G195: 0.007 | H195: 0.0007
B196: 8065-48-3 | C196: demeton | D196: 1 | E196: 0.1 | F196: Other organic hazards | G196: 4e-05 | H196: NTV
B197: 103-23-1 | C197: di(2-ethylhexyl)adipate | D197: 1 | E197: 0.1 | F197: Other organic hazards | G197: 0.6 | H197: 0.0012
B198: 2303-16-4 | C198: diallate | D198: 1 | E198: 0.1 | F198: Other organic hazards | G198: NTV | H198: 0.061
B199: 333-41-5 | C199: diazinon | D199: 1 | E199: 0.1 | F199: Other organic hazards | G199: 0.0007 | H199: NTV
B200: 53-70-3 | C200: DIBENZ[a,h]ANTHRACENE | D200: 1 | E200: 0.13 | F200: Other organic hazards | G200: NTV | H200: NTV
B201: 132-64-9 | C201: dibenzofuran | D201: 1 | E201: 0 | F201: Other organic hazards | G201: 0.001 | H201: NTV
... 459 more rows

Sheet Step 1 Toxicity_Values
A1: Reference Data for Calculated Fields
A2: Abbrev | B2: Parameter Name | C2: Units | D2: Source located in: | F2: Notes:
A3: CPFo | B3: Oral Cancer Potency Factor | C3: kg-day/mg | D3: CLARC, EPA IRIS | F3: Chemical-specific. Source data from CLARC and IRIS databases.
A4: RfDo | B4: Oral Reference Dose | C4: mg/kg-day | D4: CLARC | F4: Chemical-specific. Source data from CLARC database.
A5: CPFd | B5: Dermal Cancer Potency Factor | C5: kg-day/mg | D5: =CPFo / GI | F5: Chemical-specific derived by (SFo/GI) where GI = 0.2 for inorganic hazardous substances; 0.8 for VOC and mixtures of dioxins/furans; 0.5 for other organic hazardous substances.
A6: RfDd | B6: Dermal Reference Dose | C6: mg/kg-day | D6: =RfDo * GI | F6: Chemical-specific derived by (RfDo*GI) where GI = 0.2 for inorganic hazardous substances; 0.8 for VOC and mixtures of dioxins/furans; 0.5 for other organic hazardous substances.
F8: hide column | H8: hide column
F9: hide | H9: hide | L9: Abbrev | M9: Parameter Name | N9: Units
B10: Contaminant of Concern | C10: Class | D10: CPFo | E10: RfDo | F10: CPFd | G10: CPFd | H10: RfDd | I10: RfDd | J10: GI | L10: CPFo | M10: Oral Cancer Potency Factor | N10: kg-day/mg
A11: CAS Number | D11: kg-day/mg | E11: mg/kg-day | F11: SFd = (CPFo/GI) | G11: kg-day/mg | H11: RfDd = (RfDo*GI) | I11: mg/kg-day | J11: unitless | L11: RfDo | M11: Oral Reference Dose | N11: mg/kg-day
A12: 7440-38-2 | B12: =IF(A12="","--",IF(A12="Enter CAS","--",VLOOKUP(A12,chemical,2,FALSE))) -> arsenic, inorganic | C12: =IF(A12="Enter CAS","--",IF(A12="","--",VLOOKUP(A12,chemical,5,FALSE))) -> Inorganics | D12: =IF(ISERROR(IF((VLOOKUP(A12,chemical,7,FALSE))="NTV","--",VLOOKUP(A12,chemical,7,FALSE))),"--",IF((VLOOKUP(A12,chemical,7,FALSE))="NTV","--",VLOOKUP(A12,chemical,7,FALSE))) -> 32 | E12: =IF(ISERROR(IF((VLOOKUP(A12,chemical,6,FALSE))="NTV","--",VLOOKUP(A12,chemical,6,FALSE))),"--",IF((VLOOKUP(A12,chemical,6,FALSE))="NTV","--",VLOOKUP(A12,chemical,6,FALSE))) -> 6e-05 | F12: =IF(D12="--","--",D12/J12) -> 32 | G12: =IF(ISNUMBER(F12),(F12),"--") -> 32 | H12: =IF(E12="--","--",E12*J12) -> 6e-05 | I12: =IF(ISNUMBER(H12),(H12),"--") -> 6e-05 | J12: =IF(A12="","--",IF(A12="Enter CAS","--",VLOOKUP(A12,chemical,3,FALSE))) -> 1 | L12: CPFd | M12: Dermal Cancer Potency Factor | N12: kg-day/mg
A13: 7440-43-9 | B13: Cadmium | C13: Inorganics | D13: -- | E13: 0.001 | F13: =IF(D13="--","--",D13/J13) -> -- | G13: =IF(ISNUMBER(F13),(F13),"--") -> -- | H13: =IF(E13="--","--",E13*J13) -> 2.5e-05 | I13: =IF(ISNUMBER(H13),(H13),"--") -> 2.5e-05 | J13: 0.025 | L13: RfDd | M13: Dermal Reference Dose | N13: mg/kg-day
A14: 50-32-8 | B14: BENZO[a]PYRENE | C14: Other organic hazards | D14: 1 | E14: 0.0003 | F14: =IF(D14="--","--",D14/J14) -> 1 | G14: 1 | H14: 0.0003 | I14: 0.0003 | J14: 1 | L14: GI | M14: Gastrointestinal absorption conversion factor | N14: unitless
A15: 1746-01-6 | B15: TCDD;2,3,7,8 (DIOXIN) | C15: Dioxins/Furans | D15: 130000 | E15: 7e-10 | F15: 130000 | G15: 130000 | H15: 7e-10 | I15: 7e-10 | J15: 1
A16: 7439-92-1 | B16: LEAD | C16: Inorganics | D16: -- | E16: -- | F16: -- | G16: -- | H16: -- | I16: -- | J16: 1
A17: 22967-92-6 | B17: METHYL MERCURY | C17: Inorganics | D17: -- | E17: 0.0001 | F17: -- | G17: -- | H17: 0.0001 | I17: 0.0001 | J17: 1
A18: 1336-36-3a | B18: Dioxin-like PCBs | C18: Dioxins/Furans | D18: 130000 | E18: 7e-10 | F18: 130000 | G18: 130000 | H18: 7e-10 | I18: 7e-10 | J18: 1
A19: 56-35-9 | B19: tributyltin oxide | C19: Other organic hazards | D19: -- | E19: 0.0003 | F19: -- | G19: -- | H19: 0.0003 | I19: 0.0003 | J19: 1
A20: 50-29-3 | B20: DDT | C20: Other organic hazards | D20: 0.34 | E20: 0.0005 | F20: 0.34 | G20: 0.34 | H20: 0.0005 | I20: 0.0005 | J20: 1
A21: 71-43-2 | B21: BENZENE | C21: VOCs | D21: 0.055 | E21: 0.004 | F21: 0.055 | G21: 0.055 | H21: 0.004 | I21: 0.004 | J21: 1
A22: Enter CAS | B22: -- | C22: -- | D22: -- | E22: -- | F22: -- | G22: -- | H22: -- | I22: -- | J22: --
A23: Enter CAS | B23: -- | C23: -- | D23: -- | E23: -- | F23: -- | G23: -- | H23: -- | I23: -- | J23: --
A24: Enter CAS | B24: -- | C24: -- | D24: -- | E24: -- | F24: -- | G24: -- | H24: -- | I24: -- | J24: --
A25: Enter CAS | B25: -- | C25: -- | D25: -- | E25: -- | F25: -- | G25: -- | H25: -- | I25: -- | J25: --
A26: Enter CAS | B26: -- | C26: -- | D26: -- | E26: -- | F26: -- | G26: -- | H26: -- | I26: -- | J26: --
A27: Enter CAS | B27: -- | C27: -- | D27: -- | E27: -- | F27: -- | G27: -- | H27: -- | I27: -- | J27: --
A28: Enter CAS | B28: -- | C28: -- | D28: -- | E28: -- | F28: -- | G28: -- | H28: -- | I28: -- | J28: --
A29: Enter CAS | B29: -- | C29: -- | D29: -- | E29: -- | F29: -- | G29: -- | H29: -- | I29: -- | J29: --
A30: Enter CAS | B30: -- | C30: -- | D30: -- | E30: -- | F30: -- | G30: -- | H30: -- | I30: -- | J30: --
A31: Enter CAS | B31: -- | C31: -- | D31: -- | E31: -- | F31: -- | G31: -- | H31: -- | I31: -- | J31: --
A32: Enter CAS | B32: -- | C32: -- | D32: -- | E32: -- | F32: -- | G32: -- | H32: -- | I32: -- | J32: --
A33: Enter CAS | B33: -- | C33: -- | D33: -- | E33: -- | F33: -- | G33: -- | H33: -- | I33: -- | J33: --
A34: Enter CAS | B34: -- | C34: -- | D34: -- | E34: -- | F34: -- | G34: -- | H34: -- | I34: -- | J34: --
A35: Enter CAS | B35: -- | C35: -- | D35: -- | E35: -- | F35: -- | G35: -- | H35: -- | I35: -- | J35: --
A36: Enter CAS | B36: -- | C36: -- | D36: -- | E36: -- | F36: -- | G36: -- | H36: -- | I36: -- | J36: --
A37: Enter CAS | B37: -- | C37: -- | D37: -- | E37: -- | F37: -- | G37: -- | H37: -- | I37: -- | J37: --
A38: Enter CAS | B38: -- | C38: -- | D38: -- | E38: -- | F38: -- | G38: -- | H38: -- | I38: -- | J38: --
A39: Enter CAS | B39: -- | C39: -- | D39: -- | E39: -- | F39: -- | G39: -- | H39: -- | I39: -- | J39: --
A40: Enter CAS | B40: -- | C40: -- | D40: -- | E40: -- | F40: -- | G40: -- | H40: -- | I40: -- | J40: --
A41: Enter CAS | B41: -- | C41: -- | D41: -- | E41: -- | F41: -- | G41: -- | H41: -- | I41: -- | J41: --
A42: Enter CAS | B42: -- | C42: -- | D42: -- | E42: -- | F42: -- | G42: -- | H42: -- | I42: -- | J42: --
A43: Enter CAS | B43: -- | C43: -- | D43: -- | E43: -- | F43: -- | G43: -- | H43: -- | I43: -- | J43: --
A44: Enter CAS | B44: -- | C44: -- | D44: -- | E44: -- | F44: -- | G44: -- | H44: -- | I44: -- | J44: --

Sheet Step 2 Chemical_Parameters
L1: hide row | N1: hide column | O1: hide column | P1: hide column
L2: hide row
A3: Abbrev | B3: Parameter Name | D3: Units | E3: Source located in: | F3: Notes: | L3: hide row
A4: BSAF | B4: Biota-Sediment Accumulation Factor | D4: g/g | E4: Site-specific | F4: Chemical- and site-specific | L4: hide row
A5: AB | B5: Gastrointestinal Absorption Fraction | D5: unitless | E5: MTCA | F5: Values are pulled in automatically based on the chemical class in Column C. The default is 1; D/F is 0.6. | L5: hide row
A6: ABS | B6: Dermal Absorption Fraction | D6: unitless | E6: EPA RAGS Part E | F6: Values are pulled in from the hidden chemical lookup table | L6: hide row
L7: hide row
L8: hide row
D9: Input BSAF | N9: Data from Worksheet Step 1 Toxicity_Values
B10: Contaminant of Concern | C10: Class | D10: BSAF | E10: AB | F10: ABS | I10: Gastrointestinal Absorption | N10: hide | O10: hide | P10: hide
A11: CAS Number | D11: g/g | E11: unitless | F11: unitless | I11: Fraction (AB) | N11: CAS Number | O11: Contaminant of Concern | P11: Class
A12: =IF(N12="Enter CAS","--",N12) -> 7440-38-2 | B12: =IF(O12="Enter CoC","--",O12) -> arsenic, inorganic | C12: =IF(P12="","--",P12) -> Inorganics | E12: =IF(C12="--","--",VLOOKUP(C12,$I$12:$J$15,2,FALSE)) -> 1 | F12: =IF(A12="--","---",VLOOKUP(A12,chemical,4,FALSE)) -> 0.03 | I12: Inorganics | J12: 1 | N12: =IF('Step 1 Toxicity_Values'!A12="Enter CAS","Enter CAS",IF('Step 1 Toxicity_Values'!A12="","Enter CAS",'Step 1 Toxicity_Values'!A12)) -> 7440-38-2 | O12: =IF('Step 1 Toxicity_Values'!B12="--","--",IF('Step 1 Toxicity_Values'!B12="","--",'Step 1 Toxicity_Values'!B12)) -> arsenic, inorganic | P12: ='Step 1 Toxicity_Values'!C12 -> Inorganics
A13: 7440-43-9 | B13: Cadmium | C13: =IF(P13="","--",P13) -> Inorganics | E13: 1 | F13: 0.001 | I13: VOCs | J13: 1 | N13: =IF('Step 1 Toxicity_Values'!A13="Enter CAS","Enter CAS",IF('Step 1 Toxicity_Values'!A13="","Enter CAS",'Step 1 Toxicity_Values'!A13)) -> 7440-43-9 | O13: =IF('Step 1 Toxicity_Values'!B13="--","--",IF('Step 1 Toxicity_Values'!B13="","--",'Step 1 Toxicity_Values'!B13)) -> Cadmium | P13: ='Step 1 Toxicity_Values'!C13 -> Inorganics
A14: 50-32-8 | B14: BENZO[a]PYRENE | C14: Other organic hazards | E14: 1 | F14: 0.13 | I14: Dioxins/Furans | J14: 0.6 | N14: =IF('Step 1 Toxicity_Values'!A14="Enter CAS","Enter CAS",IF('Step 1 Toxicity_Values'!A14="","Enter CAS",'Step 1 Toxicity_Values'!A14)) -> 50-32-8 | O14: =IF('Step 1 Toxicity_Values'!B14="--","--",IF('Step 1 Toxicity_Values'!B14="","--",'Step 1 Toxicity_Values'!B14)) -> BENZO[a]PYRENE | P14: ='Step 1 Toxicity_Values'!C14 -> Other organic hazards
A15: 1746-01-6 | B15: TCDD;2,3,7,8 (DIOXIN) | C15: Dioxins/Furans | E15: 0.6 | F15: 0.03 | I15: Other organic hazards | J15: 1 | N15: =IF('Step 1 Toxicity_Values'!A15="Enter CAS","Enter CAS",IF('Step 1 Toxicity_Values'!A15="","Enter CAS",'Step 1 Toxicity_Values'!A15)) -> 1746-01-6 | O15: =IF('Step 1 Toxicity_Values'!B15="--","--",IF('Step 1 Toxicity_Values'!B15="","--",'Step 1 Toxicity_Values'!B15)) -> TCDD;2,3,7,8 (DIOXIN) | P15: ='Step 1 Toxicity_Values'!C15 -> Dioxins/Furans
A16: 7439-92-1 | B16: LEAD | C16: Inorganics | E16: 1 | F16: 0 | N16: =IF('Step 1 Toxicity_Values'!A16="Enter CAS","Enter CAS",IF('Step 1 Toxicity_Values'!A16="","Enter CAS",'Step 1 Toxicity_Values'!A16)) -> 7439-92-1 | O16: =IF('Step 1 Toxicity_Values'!B16="--","--",IF('Step 1 Toxicity_Values'!B16="","--",'Step 1 Toxicity_Values'!B16)) -> LEAD | P16: ='Step 1 Toxicity_Values'!C16 -> Inorganics
A17: 22967-92-6 | B17: METHYL MERCURY | C17: Inorganics | E17: 1 | F17: 0 | I17: Abbrev | J17: Parameter Name | N17: =IF('Step 1 Toxicity_Values'!A17="Enter CAS","Enter CAS",IF('Step 1 Toxicity_Values'!A17="","Enter CAS",'Step 1 Toxicity_Values'!A17)) -> 22967-92-6 | O17: =IF('Step 1 Toxicity_Values'!B17="--","--",IF('Step 1 Toxicity_Values'!B17="","--",'Step 1 Toxicity_Values'!B17)) -> METHYL MERCURY | P17: ='Step 1 Toxicity_Values'!C17 -> Inorganics
A18: 1336-36-3a | B18: Dioxin-like PCBs | C18: Dioxins/Furans | E18: 0.6 | F18: 0.03 | I18: BSAF | J18: Biota-Sediment Accumulation Factor | N18: =IF('Step 1 Toxicity_Values'!A18="Enter CAS","Enter CAS",IF('Step 1 Toxicity_Values'!A18="","Enter CAS",'Step 1 Toxicity_Values'!A18)) -> 1336-36-3a | O18: =IF('Step 1 Toxicity_Values'!B18="--","--",IF('Step 1 Toxicity_Values'!B18="","--",'Step 1 Toxicity_Values'!B18)) -> Dioxin-like PCBs | P18: ='Step 1 Toxicity_Values'!C18 -> Dioxins/Furans
A19: 56-35-9 | B19: tributyltin oxide | C19: Other organic hazards | E19: 1 | F19: 0.1 | I19: AB | J19: Gastrointestinal Absorption Fraction | N19: =IF('Step 1 Toxicity_Values'!A19="Enter CAS","Enter CAS",IF('Step 1 Toxicity_Values'!A19="","Enter CAS",'Step 1 Toxicity_Values'!A19)) -> 56-35-9 | O19: =IF('Step 1 Toxicity_Values'!B19="--","--",IF('Step 1 Toxicity_Values'!B19="","--",'Step 1 Toxicity_Values'!B19)) -> tributyltin oxide | P19: ='Step 1 Toxicity_Values'!C19 -> Other organic hazards
A20: 50-29-3 | B20: DDT | C20: Other organic hazards | E20: 1 | F20: 0.03 | I20: ABS | J20: Dermal Absorption Fraction | N20: =IF('Step 1 Toxicity_Values'!A20="Enter CAS","Enter CAS",IF('Step 1 Toxicity_Values'!A20="","Enter CAS",'Step 1 Toxicity_Values'!A20)) -> 50-29-3 | O20: =IF('Step 1 Toxicity_Values'!B20="--","--",IF('Step 1 Toxicity_Values'!B20="","--",'Step 1 Toxicity_Values'!B20)) -> DDT | P20: ='Step 1 Toxicity_Values'!C20 -> Other organic hazards
A21: 71-43-2 | B21: BENZENE | C21: VOCs | E21: 1 | F21: 0 | N21: =IF('Step 1 Toxicity_Values'!A21="Enter CAS","Enter CAS",IF('Step 1 Toxicity_Values'!A21="","Enter CAS",'Step 1 Toxicity_Values'!A21)) -> 71-43-2 | O21: =IF('Step 1 Toxicity_Values'!B21="--","--",IF('Step 1 Toxicity_Values'!B21="","--",'Step 1 Toxicity_Values'!B21)) -> BENZENE | P21: ='Step 1 Toxicity_Values'!C21 -> VOCs
A22: =IF(N22="Enter CAS","--",N22) -> -- | B22: =IF(O22="Enter CoC","--",O22) -> -- | C22: -- | E22: =IF(C22="--","--",VLOOKUP(C22,$I$12:$J$15,2,FALSE)) -> -- | F22: =IF(A22="--","--",VLOOKUP(A22,chemical,4,FALSE)) -> -- | N22: =IF('Step 1 Toxicity_Values'!A22="Enter CAS","Enter CAS",IF('Step 1 Toxicity_Values'!A22="","Enter CAS",'Step 1 Toxicity_Values'!A22)) -> Enter CAS | O22: =IF('Step 1 Toxicity_Values'!B22="--","--",IF('Step 1 Toxicity_Values'!B22="","--",'Step 1 Toxicity_Values'!B22)) -> -- | P22: ='Step 1 Toxicity_Values'!C22 -> --
A23: =IF(N23="Enter CAS","--",N23) -> -- | B23: =IF(O23="Enter CoC","--",O23) -> -- | C23: -- | E23: =IF(C23="--","--",VLOOKUP(C23,$I$12:$J$15,2,FALSE)) -> -- | F23: -- | N23: =IF('Step 1 Toxicity_Values'!A23="Enter CAS","Enter CAS",IF('Step 1 Toxicity_Values'!A23="","Enter CAS",'Step 1 Toxicity_Values'!A23)) -> Enter CAS | O23: =IF('Step 1 Toxicity_Values'!B23="--","--",IF('Step 1 Toxicity_Values'!B23="","--",'Step 1 Toxicity_Values'!B23)) -> -- | P23: ='Step 1 Toxicity_Values'!C23 -> --
A24: -- | B24: -- | C24: -- | E24: -- | F24: -- | N24: =IF('Step 1 Toxicity_Values'!A24="Enter CAS","Enter CAS",IF('Step 1 Toxicity_Values'!A24="","Enter CAS",'Step 1 Toxicity_Values'!A24)) -> Enter CAS | O24: =IF('Step 1 Toxicity_Values'!B24="--","--",IF('Step 1 Toxicity_Values'!B24="","--",'Step 1 Toxicity_Values'!B24)) -> -- | P24: ='Step 1 Toxicity_Values'!C24 -> --
A25: -- | B25: -- | C25: -- | E25: -- | F25: -- | N25: =IF('Step 1 Toxicity_Values'!A25="Enter CAS","Enter CAS",IF('Step 1 Toxicity_Values'!A25="","Enter CAS",'Step 1 Toxicity_Values'!A25)) -> Enter CAS | O25: =IF('Step 1 Toxicity_Values'!B25="--","--",IF('Step 1 Toxicity_Values'!B25="","--",'Step 1 Toxicity_Values'!B25)) -> -- | P25: ='Step 1 Toxicity_Values'!C25 -> --
A26: -- | B26: -- | C26: -- | E26: -- | F26: -- | N26: =IF('Step 1 Toxicity_Values'!A26="Enter CAS","Enter CAS",IF('Step 1 Toxicity_Values'!A26="","Enter CAS",'Step 1 Toxicity_Values'!A26)) -> Enter CAS | O26: =IF('Step 1 Toxicity_Values'!B26="--","--",IF('Step 1 Toxicity_Values'!B26="","--",'Step 1 Toxicity_Values'!B26)) -> -- | P26: ='Step 1 Toxicity_Values'!C26 -> --
A27: -- | B27: -- | C27: -- | E27: -- | F27: -- | N27: =IF('Step 1 Toxicity_Values'!A27="Enter CAS","Enter CAS",IF('Step 1 Toxicity_Values'!A27="","Enter CAS",'Step 1 Toxicity_Values'!A27)) -> Enter CAS | O27: =IF('Step 1 Toxicity_Values'!B27="--","--",IF('Step 1 Toxicity_Values'!B27="","--",'Step 1 Toxicity_Values'!B27)) -> -- | P27: ='Step 1 Toxicity_Values'!C27 -> --
A28: -- | B28: -- | C28: -- | E28: -- | F28: -- | N28: =IF('Step 1 Toxicity_Values'!A28="Enter CAS","Enter CAS",IF('Step 1 Toxicity_Values'!A28="","Enter CAS",'Step 1 Toxicity_Values'!A28)) -> Enter CAS | O28: =IF('Step 1 Toxicity_Values'!B28="--","--",IF('Step 1 Toxicity_Values'!B28="","--",'Step 1 Toxicity_Values'!B28)) -> -- | P28: ='Step 1 Toxicity_Values'!C28 -> --
A29: -- | B29: -- | C29: -- | E29: -- | F29: -- | N29: =IF('Step 1 Toxicity_Values'!A29="Enter CAS","Enter CAS",IF('Step 1 Toxicity_Values'!A29="","Enter CAS",'Step 1 Toxicity_Values'!A29)) -> Enter CAS | O29: =IF('Step 1 Toxicity_Values'!B29="--","--",IF('Step 1 Toxicity_Values'!B29="","--",'Step 1 Toxicity_Values'!B29)) -> -- | P29: ='Step 1 Toxicity_Values'!C29 -> --
A30: -- | B30: -- | C30: -- | E30: -- | F30: -- | N30: =IF('Step 1 Toxicity_Values'!A30="Enter CAS","Enter CAS",IF('Step 1 Toxicity_Values'!A30="","Enter CAS",'Step 1 Toxicity_Values'!A30)) -> Enter CAS | O30: =IF('Step 1 Toxicity_Values'!B30="--","--",IF('Step 1 Toxicity_Values'!B30="","--",'Step 1 Toxicity_Values'!B30)) -> -- | P30: ='Step 1 Toxicity_Values'!C30 -> --
A31: -- | B31: -- | C31: -- | E31: -- | F31: -- | N31: =IF('Step 1 Toxicity_Values'!A31="Enter CAS","Enter CAS",IF('Step 1 Toxicity_Values'!A31="","Enter CAS",'Step 1 Toxicity_Values'!A31)) -> Enter CAS | O31: =IF('Step 1 Toxicity_Values'!B31="--","--",IF('Step 1 Toxicity_Values'!B31="","--",'Step 1 Toxicity_Values'!B31)) -> -- | P31: ='Step 1 Toxicity_Values'!C31 -> --
A32: -- | B32: -- | C32: -- | E32: -- | F32: -- | N32: =IF('Step 1 Toxicity_Values'!A32="Enter CAS","Enter CAS",IF('Step 1 Toxicity_Values'!A32="","Enter CAS",'Step 1 Toxicity_Values'!A32)) -> Enter CAS | O32: =IF('Step 1 Toxicity_Values'!B32="--","--",IF('Step 1 Toxicity_Values'!B32="","--",'Step 1 Toxicity_Values'!B32)) -> -- | P32: ='Step 1 Toxicity_Values'!C32 -> --
A33: -- | B33: -- | C33: -- | E33: -- | F33: -- | N33: =IF('Step 1 Toxicity_Values'!A33="Enter CAS","Enter CAS",IF('Step 1 Toxicity_Values'!A33="","Enter CAS",'Step 1 Toxicity_Values'!A33)) -> Enter CAS | O33: =IF('Step 1 Toxicity_Values'!B33="--","--",IF('Step 1 Toxicity_Values'!B33="","--",'Step 1 Toxicity_Values'!B33)) -> -- | P33: ='Step 1 Toxicity_Values'!C33 -> --
A34: -- | B34: -- | C34: -- | E34: -- | F34: -- | N34: =IF('Step 1 Toxicity_Values'!A34="Enter CAS","Enter CAS",IF('Step 1 Toxicity_Values'!A34="","Enter CAS",'Step 1 Toxicity_Values'!A34)) -> Enter CAS | O34: =IF('Step 1 Toxicity_Values'!B34="--","--",IF('Step 1 Toxicity_Values'!B34="","--",'Step 1 Toxicity_Values'!B34)) -> -- | P34: ='Step 1 Toxicity_Values'!C34 -> --
A35: -- | B35: -- | C35: -- | E35: -- | F35: -- | N35: =IF('Step 1 Toxicity_Values'!A35="Enter CAS","Enter CAS",IF('Step 1 Toxicity_Values'!A35="","Enter CAS",'Step 1 Toxicity_Values'!A35)) -> Enter CAS | O35: =IF('Step 1 Toxicity_Values'!B35="--","--",IF('Step 1 Toxicity_Values'!B35="","--",'Step 1 Toxicity_Values'!B35)) -> -- | P35: ='Step 1 Toxicity_Values'!C35 -> --
A36: -- | B36: -- | C36: -- | E36: -- | F36: -- | N36: =IF('Step 1 Toxicity_Values'!A36="Enter CAS","Enter CAS",IF('Step 1 Toxicity_Values'!A36="","Enter CAS",'Step 1 Toxicity_Values'!A36)) -> Enter CAS | O36: =IF('Step 1 Toxicity_Values'!B36="--","--",IF('Step 1 Toxicity_Values'!B36="","--",'Step 1 Toxicity_Values'!B36)) -> -- | P36: ='Step 1 Toxicity_Values'!C36 -> --
A37: -- | B37: -- | C37: -- | E37: -- | F37: -- | N37: =IF('Step 1 Toxicity_Values'!A37="Enter CAS","Enter CAS",IF('Step 1 Toxicity_Values'!A37="","Enter CAS",'Step 1 Toxicity_Values'!A37)) -> Enter CAS | O37: =IF('Step 1 Toxicity_Values'!B37="--","--",IF('Step 1 Toxicity_Values'!B37="","--",'Step 1 Toxicity_Values'!B37)) -> -- | P37: ='Step 1 Toxicity_Values'!C37 -> --
A38: -- | B38: -- | C38: -- | E38: -- | F38: -- | N38: =IF('Step 1 Toxicity_Values'!A38="Enter CAS","Enter CAS",IF('Step 1 Toxicity_Values'!A38="","Enter CAS",'Step 1 Toxicity_Values'!A38)) -> Enter CAS | O38: =IF('Step 1 Toxicity_Values'!B38="--","--",IF('Step 1 Toxicity_Values'!B38="","--",'Step 1 Toxicity_Values'!B38)) -> -- | P38: ='Step 1 Toxicity_Values'!C38 -> --
A39: -- | B39: -- | C39: -- | E39: -- | F39: -- | N39: =IF('Step 1 Toxicity_Values'!A39="Enter CAS","Enter CAS",IF('Step 1 Toxicity_Values'!A39="","Enter CAS",'Step 1 Toxicity_Values'!A39)) -> Enter CAS | O39: =IF('Step 1 Toxicity_Values'!B39="--","--",IF('Step 1 Toxicity_Values'!B39="","--",'Step 1 Toxicity_Values'!B39)) -> -- | P39: ='Step 1 Toxicity_Values'!C39 -> --
A40: -- | B40: -- | C40: -- | E40: -- | F40: -- | N40: =IF('Step 1 Toxicity_Values'!A40="Enter CAS","Enter CAS",IF('Step 1 Toxicity_Values'!A40="","Enter CAS",'Step 1 Toxicity_Values'!A40)) -> Enter CAS | O40: =IF('Step 1 Toxicity_Values'!B40="--","--",IF('Step 1 Toxicity_Values'!B40="","--",'Step 1 Toxicity_Values'!B40)) -> -- | P40: ='Step 1 Toxicity_Values'!C40 -> --
A41: -- | B41: -- | C41: -- | E41: -- | F41: -- | N41: =IF('Step 1 Toxicity_Values'!A41="Enter CAS","Enter CAS",IF('Step 1 Toxicity_Values'!A41="","Enter CAS",'Step 1 Toxicity_Values'!A41)) -> Enter CAS | O41: =IF('Step 1 Toxicity_Values'!B41="--","--",IF('Step 1 Toxicity_Values'!B41="","--",'Step 1 Toxicity_Values'!B41)) -> -- | P41: ='Step 1 Toxicity_Values'!C41 -> --
A42: -- | B42: -- | C42: -- | E42: -- | F42: -- | N42: =IF('Step 1 Toxicity_Values'!A42="Enter CAS","Enter CAS",IF('Step 1 Toxicity_Values'!A42="","Enter CAS",'Step 1 Toxicity_Values'!A42)) -> Enter CAS | O42: =IF('Step 1 Toxicity_Values'!B42="--","--",IF('Step 1 Toxicity_Values'!B42="","--",'Step 1 Toxicity_Values'!B42)) -> -- | P42: ='Step 1 Toxicity_Values'!C42 -> --
A43: -- | B43: -- | C43: -- | E43: -- | F43: -- | N43: =IF('Step 1 Toxicity_Values'!A43="Enter CAS","Enter CAS",IF('Step 1 Toxicity_Values'!A43="","Enter CAS",'Step 1 Toxicity_Values'!A43)) -> Enter CAS | O43: =IF('Step 1 Toxicity_Values'!B43="--","--",IF('Step 1 Toxicity_Values'!B43="","--",'Step 1 Toxicity_Values'!B43)) -> -- | P43: ='Step 1 Toxicity_Values'!C43 -> --
A44: -- | B44: -- | C44: -- | E44: -- | F44: -- | N44: =IF('Step 1 Toxicity_Values'!A44="Enter CAS","Enter CAS",IF('Step 1 Toxicity_Values'!A44="","Enter CAS",'Step 1 Toxicity_Values'!A44)) -> Enter CAS | O44: =IF('Step 1 Toxicity_Values'!B44="--","--",IF('Step 1 Toxicity_Values'!B44="","--",'Step 1 Toxicity_Values'!B44)) -> -- | P44: ='Step 1 Toxicity_Values'!C44 -> --

Sheet Step 3 Exposure Parameters
A1: Table 1a: Human Consumption of Fish/Shellfish | M1: Table 1b: Human Consumption of Fish/Shellfish, Early Life Stage Adjustments for Mutagens (e.g., cPAHs) | AK1: hide | AL1: hide | AM1: hide | AN1: hide | AO1: hide | AP1: hide | AQ1: hide | AR1: hide | AS1: hide | AT1: hide | AU1: hide | AV1: hide | AW1: hide | AX1: hide | AY1: hide | AZ1: hide | BA1: hide | BB1: hide | BC1: hide | BD1: hide | BE1: hide
D2: Input Exposure Parameters | P2: Input Exposure Parameters | T2: Suquamish Tribal | X2: Tulalip Tribal | AB2: Columbia River | AF2: EPA general population (Exposure Factors Handbook)
D3: Selected RME Values | F3: Suquamish Tribal Adult | H3: Tulalip Tribal Adult | J3: Columbia River Tribal Adult | M3: Abbrev | N3: Exposure Parameter | O3: Units | P3: Selected ELS RME Values for mutagens, currently only for cPAHs | T3: Early Life stages (currently cPAH cancer only) | X3: Early Life stages (currently cPAH cancer only) | AB3: Early Life stages (currently cPAH cancer only) | AF3: Early Life stages (currently cPAH cancer only)
A4: Abbrev | B4: Exposure Parameter | C4: Units | D4: Cancer | E4: Noncancer | F4: Cancer | G4: Noncancer | H4: =F4 -> Cancer | I4: Noncancer | J4: Cancer | K4: Noncancer | P4: AGE: 0-<2 | Q4: AGE: 2-<6 | R4: AGE: 6-<16 | S4: AGE: 16-70 | T4: AGE: 0-<2 | U4: AGE: 2-<6 | V4: AGE: 6-<16 | W4: AGE: 16-70 | X4: AGE: 0-<2 | Y4: AGE: 2-<6 | Z4: AGE: 6-<16 | AA4: AGE: 16-70 | AB4: AGE: 0-<2 | AC4: AGE: 2-<6 | AD4: AGE: 6-<16 | AE4: AGE: 16-70 | AF4: AGE: 0-<2 | AG4: AGE: 2-<6 | AH4: AGE: 6-<16 | AI4: AGE: 16-70
A5: CR / HQ | B5: Cancer (CR) / Hazard Quotient (HQ) | C5: unitless | F5: 1e-06 | G5: 1 | H5: 1e-06 | I5: 1 | J5: 1e-06 | K5: 1 | M5: CR / HQ | N5: Cancer (CR) / Hazard Quotient (HQ) | O5: unitless | T5: 1e-06 | U5: 1e-06 | V5: 1e-06 | W5: 1e-06 | X5: 1e-06 | Y5: 1e-06 | Z5: 1e-06 | AA5: 1e-06 | AB5: 1e-06 | AC5: 1e-06 | AD5: 1e-06 | AE5: 1e-06 | AF5: 1e-06 | AG5: 1e-06 | AH5: 1e-06 | AI5: 1e-06
A6: BW | B6: Body Weight | C6: kg | F6: 80 | G6: 80 | H6: 80 | I6: 80 | J6: 80 | K6: 80 | M6: BW | N6: Body Weight | O6: kg | T6: 16 | U6: 16 | V6: 80 | W6: 80 | X6: 16 | Y6: 16 | Z6: 80 | AA6: 80 | AB6: 16 | AC6: 16 | AD6: 80 | AE6: 80 | AF6: 10 | AG6: 17 | AH6: 41 | AI6: 79
A7: AT | B7: Averaging Time | C7: days | F7: =70*365 -> 25550 | G7: 25550 | H7: =70*365 -> 25550 | I7: 25550 | J7: =70*365 -> 25550 | K7: 25550 | M7: AT | N7: Averaging Time | O7: days | T7: =70*365 -> 25550 | U7: =70*365 -> 25550 | V7: 25550 | W7: 25550 | X7: 25550 | Y7: 25550 | Z7: 25550 | AA7: 25550 | AB7: 25550 | AC7: 25550 | AD7: 25550 | AE7: 25550 | AF7: 25550 | AG7: 25550 | AH7: 25550 | AI7: 25550
A8: UCF | B8: Unit Conversion Factor | C8: g/kg | F8: 1000 | G8: 1000 | H8: 1000 | I8: 1000 | J8: 1000 | K8: 1000 | M8: UCF | N8: Unit Conversion Factor | O8: g/kg | T8: 1000 | U8: 1000 | V8: 1000 | W8: 1000 | X8: 1000 | Y8: 1000 | Z8: 1000 | AA8: 1000 | AB8: 1000 | AC8: 1000 | AD8: 1000 | AE8: 1000 | AF8: 1000 | AG8: 1000 | AH8: 1000 | AI8: 1000
A9: FCR | B9: Fish/Shellfish Consumption Rate | C9: g/day | F9: 489 | G9: 489 | H9: 193 | I9: 193 | J9: 130 | K9: 130 | M9: FCR | N9: Fish/Shellfish Consumption Rate | O9: g/day | T9: =$F9*0.4 -> 195.6 | U9: =$F9*0.4 -> 195.6 | V9: =$F9 -> 489 | W9: =$F9 -> 489 | X9: =$H9*0.4 -> 77.2 | Y9: =$H9*0.4 -> 77.2 | Z9: =$H9 -> 193 | AA9: =$H9 -> 193 | AB9: =$J9*0.4 -> 52 | AC9: =$J9*0.4 -> 52 | AD9: =$J9 -> 130 | AE9: =$J9 -> 130 | AF9: 38 | AG9: 68 | AH9: 95 | AI9: 157
A10: FDF | B10: Fish/Shellfish Diet Fraction | C10: unitless | F10: 1 | G10: 1 | H10: 1 | I10: 1 | J10: 1 | K10: 1 | M10: FDF | N10: Fish/Shellfish Diet Fraction | O10: unitless | T10: 1 | U10: 1 | V10: 1 | W10: 1 | X10: 1 | Y10: 1 | Z10: 1 | AA10: 1 | AB10: 1 | AC10: 1 | AD10: 1 | AE10: 1 | AF10: 1 | AG10: 1 | AH10: 1 | AI10: 1
A11: SUF | B11: Site Use Factor | C11: unitless | F11: 1 | G11: 1 | H11: 1 | I11: 1 | J11: 1 | K11: 1 | M11: SUF | N11: Site Use Factor | O11: unitless | T11: 1 | U11: 1 | V11: 1 | W11: 1 | X11: 1 | Y11: 1 | Z11: 1 | AA11: 1 | AB11: 1 | AC11: 1 | AD11: 1 | AE11: 1 | AF11: 1 | AG11: 1 | AH11: 1 | AI11: 1
A12: EF | B12: Exposure Frequency | C12: day/yr | F12: 365 | G12: 365 | H12: 365 | I12: 365 | J12: 365 | K12: 365 | M12: EF | N12: Exposure Frequency | O12: day/yr | T12: 365 | U12: 365 | V12: 365 | W12: 365 | X12: 365 | Y12: 365 | Z12: 365 | AA12: 365 | AB12: 365 | AC12: 365 | AD12: 365 | AE12: 365 | AF12: 365 | AG12: 365 | AH12: 365 | AI12: 365
A13: ED | B13: Exposure Duration | C13: yr | F13: 70 | G13: 70 | H13: 70 | I13: 70 | J13: 70 | K13: 70
A14: % lipid | B14: % lipid in food items | C14: % | M14: ED | N14: Exposure Duration | O14: yr | P14: 2 | Q14: 4 | R14: 10 | S14: 54
A15: % TOC | B15: % TOC in sediment | C15: % | M15: ADAF | N15: Age-Dependent Adjustment Factor | O15: unitless | P15: 10 | Q15: 3 | R15: 3 | S15: 1
AK18: Default Values
M19: Table 2b: Early Life Stage Human Incidental Ingestion of Sediment and Dermal Contact with Sediment for Mutagens (e.g., cPAHs) | AW19: Table 2b: Early Life Stage Human Incidental Ingestion of Sediment and Dermal Contact with Sediment for Mutagens (e.g., cPAHs)
A20: Table 2a: Human Incidental Ingestion of Sediment and Dermal Contact with Sediment | M20: Enter site-specific values where applicable and in coordination with the Ecology site manager. | AK20: Table 2a: Human Incidental Ingestion of Sediment and Dermal Contact with Sediment | AW20: Enter site-specific values where applicable and in coordination with the Ecology site manager.
A21: Enter site-specific values where applicable and in coordination with the Ecology site manager. | P21: Selected ELS RME Values for mutagens, direct ingestion/dermal contact, currently only for cPAHs | AK21: Enter site-specific values where applicable and in coordination with the Ecology site manager. | AZ21: Selected ELS RME Values for mutagens, direct ingestion/dermal contact, currently only for cPAHs
D22: Beach Play Child | F22: Subs. Clam Digging Adult | H22: Subs. Net Fishing Adult | P22: Child Beach Play | R22: Adult Clamming | T22: Adult Net Fishing | AN22: Beach Play Child | AP22: Subs. Clam Digging Adult | AR22: Subs. Net Fishing Adult | AZ22: Child Beach Play | BB22: Adult Clamming | BD22: Adult Net Fishing
A23: Abbrev | B23: Exposure Parameter | C23: Units | D23: Cancer | E23: Noncancer | F23: =D23 -> Cancer | G23: =E23 -> Noncancer | H23: =F23 -> Cancer | I23: =G23 -> Noncancer | M23: Abbrev | N23: Exposure Parameter | O23: Units | P23: AGE: 0-<2 | Q23: AGE: 2-<6 | R23: AGE: 6-<16 | S23: AGE: 16-70 | T23: AGE: 6-<16 | U23: AGE: 16-70 | AK23: Abbrev | AL23: Exposure Parameter | AM23: Units | AN23: Cancer | AO23: Noncancer | AP23: =AN23 -> Cancer | AQ23: =AO23 -> Noncancer | AR23: =AP23 -> Cancer | AS23: =AQ23 -> Noncancer | AW23: Abbrev | AX23: Exposure Parameter | AY23: Units | AZ23: AGE: 0-<2 | BA23: AGE: 2-<6 | BB23: AGE: 6-<16 | BC23: AGE: 16-70 | BD23: AGE: 6-<16 | BE23: AGE: 16-70
A24: CR / HQ | B24: Cancer (CR) / Hazard Quotient (HQ) | C24: unitless | D24: 1e-06 | E24: 1 | F24: 1e-06 | G24: 1 | H24: 1e-06 | I24: 1 | M24: CR / HQ | N24: Cancer (CR) / Hazard Quotient (HQ) | O24: unitless | P24: 1e-06 | Q24: 1e-06 | R24: 1e-06 | S24: 1e-06 | T24: 1e-06 | U24: 1e-06 | AK24: CR / HQ | AL24: Cancer (CR) / Hazard Quotient (HQ) | AM24: unitless | AN24: 1e-06 | AO24: 1 | AP24: 1e-06 | AQ24: 1 | AR24: 1e-06 | AS24: 1 | AW24: CR / HQ | AX24: Cancer (CR) / Hazard Quotient (HQ) | AY24: unitless | AZ24: 1e-06 | BA24: 1e-06 | BB24: 1e-06 | BC24: 1e-06 | BD24: 1e-06 | BE24: 1e-06
A25: BW | B25: Body Weight | C25: kg | D25: 15 | E25: 15 | F25: 75 | G25: 75 | H25: 75 | I25: 75 | M25: BW | N25: Body Weight | O25: kg | P25: 10 | Q25: 17 | R25: 44 | S25: 81 | T25: 44 | U25: 81 | AK25: BW | AL25: Body Weight | AM25: kg | AN25: 15 | AO25: 15 | AP25: 75 | AQ25: 75 | AR25: 75 | AS25: 75 | AW25: BW | AX25: Body Weight | AY25: kg | AZ25: 10 | BA25: 17 | BB25: 44 | BC25: 81 | BD25: 44 | BE25: 81
A26: AT | B26: Averaging Time | C26: days | D26: 25550 | E26: 2190 | F26: 25550 | G26: 25550 | H26: 25550 | I26: 25550 | M26: AT | N26: Averaging Time | O26: days | P26: 25550 | Q26: 25550 | R26: 25550 | S26: 25550 | T26: 25550 | U26: 25550 | AK26: AT | AL26: Averaging Time | AM26: days | AN26: 25550 | AO26: 2190 | AP26: 25550 | AQ26: 25550 | AR26: 25550 | AS26: 25550 | AW26: AT | AX26: Averaging Time | AY26: days | AZ26: 25550 | BA26: 25550 | BB26: 25550 | BC26: 25550 | BD26: 25550 | BE26: 25550
A27: UCF | B27: Unit Conversion Factor | C27: mg/kg | D27: 1000000 | E27: 1000000 | F27: 1000000 | G27: 1000000 | H27: 1000000 | I27: 1000000 | M27: UCF | N27: Unit Conversion Factor | O27: mg/kg | P27: 1000000 | Q27: 1000000 | R27: 1000000 | S27: 1000000 | T27: 1000000 | U27: 1000000 | AK27: UCF | AL27: Unit Conversion Factor | AM27: mg/kg | AN27: 1000000 | AO27: 1000000 | AP27: 1000000 | AQ27: 1000000 | AR27: 1000000 | AS27: 1000000 | AW27: UCF | AX27: Unit Conversion Factor | AY27: mg/kg | AZ27: 1000000 | BA27: 1000000 | BB27: 1000000 | BC27: 1000000 | BD27: 1000000 | BE27: 1000000
A28: EF | B28: Exposure Frequency | C28: day/yr | D28: 41 | E28: 41 | F28: 120 | G28: 120 | H28: 119 | I28: 119 | M28: EF | N28: Exposure Frequency | O28: day/yr | P28: 41 | Q28: 41 | R28: 120 | S28: 120 | T28: 119 | U28: 119 | AK28: EF | AL28: Exposure Frequency | AM28: day/yr | AN28: 41 | AO28: 41 | AP28: 120 | AQ28: 120 | AR28: 119 | AS28: 119 | AW28: EF | AX28: Exposure Frequency | AY28: day/yr | AZ28: 41 | BA28: 41 | BB28: 120 | BC28: 120 | BD28: 119 | BE28: 119
A29: ED | B29: Exposure Duration | C29: yr | D29: 6 | E29: 6 | F29: 70 | G29: 70 | H29: 70 | I29: 70 | M29: ED | N29: Exposure Duration | O29: yr | P29: 2 | Q29: 4 | R29: 10 | S29: 54 | T29: 10 | U29: 54 | AK29: ED | AL29: Exposure Duration | AM29: yr | AN29: 6 | AO29: 6 | AP29: 70 | AQ29: 70 | AR29: 70 | AS29: 70 | AW29: ED | AX29: Exposure Duration | AY29: yr | AZ29: 2 | BA29: 4 | BB29: 10 | BC29: 54 | BD29: 10 | BE29: 54
A30: IR | B30: Ingestion Rate | C30: mg/day | D30: 200 | E30: 200 | F30: 100 | G30: 100 | H30: 50 | I30: 50 | M30: IR | N30: Ingestion Rate | O30: mg/day | P30: 200 | Q30: 200 | R30: 100 | S30: 100 | T30: 50 | U30: 50 | AK30: IR | AL30: Ingestion Rate | AM30: mg/day | AN30: 200 | AO30: 200 | AP30: 100 | AQ30: 100 | AR30: 50 | AS30: 50 | AW30: IR | AX30: Ingestion Rate | AY30: mg/day | AZ30: 200 | BA30: 200 | BB30: 100 | BC30: 100 | BD30: 50 | BE30: 50
A31: SA | B31: Dermal Surface Area | C31: cm2 | D31: 3835 | E31: 3835 | F31: 11813 | G31: 11813 | H31: 5590 | I31: 5590 | M31: SA | N31: Dermal Surface Area | O31: cm2 | P31: 2989 | Q31: 4258 | R31: 8060 | S31: 12508 | T31: 3749 | U31: 5931 | AK31: SA | AL31: Dermal Surface Area | AM31: cm2 | AN31: 3835 | AO31: 3835 | AP31: 11813 | AQ31: 11813 | AR31: 5590 | AS31: 5590 | AW31: SA | AX31: Dermal Surface Area | AY31: cm2 | AZ31: 2989 | BA31: 4258 | BB31: 8060 | BC31: 12508 | BD31: 3749 | BE31: 5931
A32: AF | B32: Sediment to Skin Adherence Factor | C32: mg/cm2-day | D32: 2.6 | E32: 2.6 | F32: 0.24 | G32: 0.24 | H32: 0.19 | I32: 0.19 | M32: AF | N32: Sediment to Skin Adherence Factor | O32: mg/cm2-day | P32: 2.6 | Q32: 2.6 | R32: 0.24 | S32: 0.24 | T32: 0.19 | U32: 0.19 | AK32: AF | AL32: Sediment to Skin Adherence Factor | AM32: mg/cm2-day | AN32: 2.6 | AO32: 2.6 | AP32: 0.24 | AQ32: 0.24 | AR32: 0.19 | AS32: 0.19 | AW32: AF | AX32: Sediment to Skin Adherence Factor | AY32: mg/cm2-day | AZ32: 2.6 | BA32: 2.6 | BB32: 0.24 | BC32: 0.24 | BD32: 0.19 | BE32: 0.19
M33: ADAF | N33: Age-Dependent Adjustment Factor | O33: unitless | P33: 10 | Q33: 3 | R33: 3 | S33: 1 | T33: 3 | U33: 1 | AW33: ADAF | AX33: Age-Dependent Adjustment Factor | AY33: unitless | AZ33: 10 | BA33: 3 | BB33: 3 | BC33: 1 | BD33: 3 | BE33: 1
A35: Table 3: Upper Trophic Level Consumption of Fish/Shellfish
C36: Cells colored grey, green, blue, and pink are for entering information
D37: Space for entering CoC and indicator species. Note that space is provided 8 CoCs and 6 indicator species.
D38: Use this column if you have a TRV for the Indicator Species entered in column C, and leave the blue columns (columns E to I) blank.
D39: Use these columns if you need to calculate a body-weight adjusted TRV for the Indicator species based on another test species, and leave the green Column D blank.
D40: Use these columns for calculating eggshell thinning in birds.
D41: Direct Consumption of Fish/Shellfish | J41: Eggshell Thinning
C42: Indicator Species | D42: TRVis | E42: TRVtest | F42: FIRis | G42: FIRtest | H42: BWis | I42: BWtest | J42: TRVegg | K42: BMFegg | M42: TRVis | N42: Toxicity reference value for the indicator species
B43: Contaminant of Concern (CoC) | D43: mg/kg | E43: mg/kg | F43: kg/day | G43: kg/day | H43: kg | I43: kg | J43: mg/kg | K43: unitless | M43: TRVtest | N43: Toxicity reference value for a test species
A44: 1 | M44: FIRis | N44: Food ingestion rate for the indicator species
B45: =IF(ISBLANK($B$44)," ",$B$44) ->  | M45: FIRtest | N45: Food ingestion rate for the test species
B46: =IF(ISBLANK($B$44)," ",$B$44) ->  | M46: BWis | N46: Body weight of the indicator species
M47: BWtest | N47: Body weight of the text species
M48: TRVegg | N48: Toxicity reference value for eggshells
M49: BMFegg | N49: Biomagnification factor from prey to egg
A50: 2 | C50: =IF(ISBLANK(B50)," ",IF(ISBLANK($C$44)," ",$C$44)) ->  | F50: =IF(ISBLANK($B50)," ",IF(ISBLANK(F$44)," ",F$44)) ->  | G50: =IF(ISBLANK($B50)," ",IF(ISBLANK(G$44)," ",G$44)) -> 
B51: =IF(ISBLANK($B$50)," ",$B$50) ->  | C51: =IF(B51=" "," ",IF(ISBLANK($C$45)," ",$C$45)) ->  | F51: =IF(ISBLANK($B51)," ",IF(ISBLANK(F$45)," ",F$45)) ->  | G51: =IF(ISBLANK($B51)," ",IF(ISBLANK(G$45)," ",G$45)) -> 
B52: =IF(ISBLANK($B$50)," ",$B$50) ->  | C52: =IF(B52=" "," ",IF(ISBLANK($C$46)," ",$C$46)) ->  | F52: =IF(ISBLANK($B52)," ",IF(ISBLANK(F$46)," ",F$46)) ->  | G52: =IF(ISBLANK($B52)," ",IF(ISBLANK(G$46)," ",G$46)) -> 
C53: =IF(B53=" "," ",IF(ISBLANK($C$47)," ",$C$47)) ->  | F53: =IF(ISBLANK($B53)," ",IF(ISBLANK(F$47)," ",F$47)) ->  | G53: =IF(ISBLANK($B53)," ",IF(ISBLANK(G$47)," ",G$47)) -> 
C54: =IF(B54=" "," ",IF(ISBLANK($C$48)," ",$C$48)) ->  | F54: =IF(ISBLANK($B54)," ",IF(ISBLANK(F$48)," ",F$48)) ->  | G54: =IF(ISBLANK($B54)," ",IF(ISBLANK(G$48)," ",G$48)) -> 
C55: =IF(B55=" "," ",IF(ISBLANK($C$49)," ",$C$49)) ->  | F55: =IF(ISBLANK($B55)," ",IF(ISBLANK(F$49)," ",F$49)) ->  | G55: =IF(ISBLANK($B55)," ",IF(ISBLANK(G$49)," ",G$49)) -> 
A56: 3 | C56: =IF(ISBLANK(B56)," ",IF(ISBLANK($C$44)," ",$C$44)) ->  | F56: =IF(ISBLANK($B56)," ",IF(ISBLANK(F$44)," ",F$44)) ->  | G56: =IF(ISBLANK($B56)," ",IF(ISBLANK(G$44)," ",G$44)) -> 
B57: =IF(ISBLANK($B$56)," ",$B$56) ->  | C57: =IF(B57=" "," ",IF(ISBLANK($C$45)," ",$C$45)) ->  | F57: =IF(ISBLANK($B57)," ",IF(ISBLANK(F$45)," ",F$45)) ->  | G57: =IF(ISBLANK($B57)," ",IF(ISBLANK(G$45)," ",G$45)) -> 
B58: =IF(ISBLANK($B$56)," ",$B$56) ->  | C58: =IF(B58=" "," ",IF(ISBLANK($C$46)," ",$C$46)) ->  | F58: =IF(ISBLANK($B58)," ",IF(ISBLANK(F$46)," ",F$46)) ->  | G58: =IF(ISBLANK($B58)," ",IF(ISBLANK(G$46)," ",G$46)) -> 
C59: =IF(B59=" "," ",IF(ISBLANK($C$47)," ",$C$47)) ->  | F59: =IF(ISBLANK($B59)," ",IF(ISBLANK(F$47)," ",F$47)) ->  | G59: =IF(ISBLANK($B59)," ",IF(ISBLANK(G$47)," ",G$47)) -> 
C60: =IF(B60=" "," ",IF(ISBLANK($C$48)," ",$C$48)) ->  | F60: =IF(ISBLANK($B60)," ",IF(ISBLANK(F$48)," ",F$48)) ->  | G60: =IF(ISBLANK($B60)," ",IF(ISBLANK(G$48)," ",G$48)) -> 
C61: =IF(B61=" "," ",IF(ISBLANK($C$49)," ",$C$49)) ->  | F61: =IF(ISBLANK($B61)," ",IF(ISBLANK(F$49)," ",F$49)) ->  | G61: =IF(ISBLANK($B61)," ",IF(ISBLANK(G$49)," ",G$49)) -> 
A62: 4 | F62: =IF(ISBLANK($B62)," ",IF(ISBLANK(F$44)," ",F$44)) -> 
B63: =IF(ISBLANK($B$62)," ",$B$62) ->  | C63: =IF(B63=" "," ",IF(ISBLANK($C$45)," ",$C$45)) ->  | F63: =IF(ISBLANK($B63)," ",IF(ISBLANK(F$45)," ",F$45)) -> 
B64: =IF(ISBLANK($B$62)," ",$B$62) ->  | C64: =IF(B64=" "," ",IF(ISBLANK($C$46)," ",$C$46)) ->  | F64: =IF(ISBLANK($B64)," ",IF(ISBLANK(F$46)," ",F$46)) -> 
C65: =IF(B65=" "," ",IF(ISBLANK($C$47)," ",$C$47)) ->  | F65: =IF(ISBLANK($B65)," ",IF(ISBLANK(F$47)," ",F$47)) -> 
C66: =IF(B66=" "," ",IF(ISBLANK($C$48)," ",$C$48)) ->  | F66: =IF(ISBLANK($B66)," ",IF(ISBLANK(F$48)," ",F$48)) -> 
C67: =IF(B67=" "," ",IF(ISBLANK($C$49)," ",$C$49)) ->  | F67: =IF(ISBLANK($B67)," ",IF(ISBLANK(F$49)," ",F$49)) -> 
A68: 5 | F68: =IF(ISBLANK($B68)," ",IF(ISBLANK(F$44)," ",F$44)) -> 
B69: =IF(ISBLANK($B$68)," ",$B$68) ->  | C69: =IF(B69=" "," ",IF(ISBLANK($C$45)," ",$C$45)) ->  | F69: =IF(ISBLANK($B69)," ",IF(ISBLANK(F$45)," ",F$45)) -> 
B70: =IF(ISBLANK($B$68)," ",$B$68) ->  | C70: =IF(B70=" "," ",IF(ISBLANK($C$46)," ",$C$46)) ->  | F70: =IF(ISBLANK($B70)," ",IF(ISBLANK(F$46)," ",F$46)) -> 
C71: =IF(B71=" "," ",IF(ISBLANK($C$47)," ",$C$47)) ->  | F71: =IF(ISBLANK($B71)," ",IF(ISBLANK(F$47)," ",F$47)) -> 
C72: =IF(B72=" "," ",IF(ISBLANK($C$48)," ",$C$48)) ->  | F72: =IF(ISBLANK($B72)," ",IF(ISBLANK(F$48)," ",F$48)) -> 
C73: =IF(B73=" "," ",IF(ISBLANK($C$49)," ",$C$49)) ->  | F73: =IF(ISBLANK($B73)," ",IF(ISBLANK(F$49)," ",F$49)) -> 
A74: 6 | F74: =IF(ISBLANK($B74)," ",IF(ISBLANK(F$44)," ",F$44)) -> 
B75: =IF(ISBLANK($B$74)," ",$B$74) ->  | C75: =IF(B75=" "," ",IF(ISBLANK($C$45)," ",$C$45)) ->  | F75: =IF(ISBLANK($B75)," ",IF(ISBLANK(F$45)," ",F$45)) -> 
B76: =IF(ISBLANK($B$74)," ",$B$74) ->  | C76: =IF(B76=" "," ",IF(ISBLANK($C$46)," ",$C$46)) ->  | F76: =IF(ISBLANK($B76)," ",IF(ISBLANK(F$46)," ",F$46)) -> 
C77: =IF(B77=" "," ",IF(ISBLANK($C$47)," ",$C$47)) ->  | F77: =IF(ISBLANK($B77)," ",IF(ISBLANK(F$47)," ",F$47)) -> 
C78: =IF(B78=" "," ",IF(ISBLANK($C$48)," ",$C$48)) ->  | F78: =IF(ISBLANK($B78)," ",IF(ISBLANK(F$48)," ",F$48)) -> 
C79: =IF(B79=" "," ",IF(ISBLANK($C$49)," ",$C$49)) ->  | F79: =IF(ISBLANK($B79)," ",IF(ISBLANK(F$49)," ",F$49)) -> 
A80: 7 | F80: =IF(ISBLANK($B80)," ",IF(ISBLANK(F$44)," ",F$44)) -> 
B81: =IF(ISBLANK($B$80)," ",$B$80) ->  | C81: =IF(B81=" "," ",IF(ISBLANK($C$45)," ",$C$45)) ->  | F81: =IF(ISBLANK($B81)," ",IF(ISBLANK(F$45)," ",F$45)) -> 
B82: =IF(ISBLANK($B$80)," ",$B$80) ->  | C82: =IF(B82=" "," ",IF(ISBLANK($C$46)," ",$C$46)) ->  | F82: =IF(ISBLANK($B82)," ",IF(ISBLANK(F$46)," ",F$46)) -> 
C83: =IF(B83=" "," ",IF(ISBLANK($C$47)," ",$C$47)) ->  | F83: =IF(ISBLANK($B83)," ",IF(ISBLANK(F$47)," ",F$47)) -> 
C84: =IF(B84=" "," ",IF(ISBLANK($C$48)," ",$C$48)) ->  | F84: =IF(ISBLANK($B84)," ",IF(ISBLANK(F$48)," ",F$48)) -> 
C85: =IF(B85=" "," ",IF(ISBLANK($C$49)," ",$C$49)) ->  | F85: =IF(ISBLANK($B85)," ",IF(ISBLANK(F$49)," ",F$49)) -> 
A86: 8 | F86: =IF(ISBLANK($B86)," ",IF(ISBLANK(F$44)," ",F$44)) -> 
B87: =IF(ISBLANK($B$86)," ",$B$86) ->  | C87: =IF(B87=" "," ",IF(ISBLANK($C$45)," ",$C$45)) ->  | F87: =IF(ISBLANK($B87)," ",IF(ISBLANK(F$45)," ",F$45)) -> 
B88: =IF(ISBLANK($B$86)," ",$B$86) ->  | C88: =IF(B88=" "," ",IF(ISBLANK($C$46)," ",$C$46)) ->  | F88: =IF(ISBLANK($B88)," ",IF(ISBLANK(F$46)," ",F$46)) -> 
C89: =IF(B89=" "," ",IF(ISBLANK($C$47)," ",$C$47)) ->  | F89: =IF(ISBLANK($B89)," ",IF(ISBLANK(F$47)," ",F$47)) -> 
C90: =IF(B90=" "," ",IF(ISBLANK($C$48)," ",$C$48)) ->  | F90: =IF(ISBLANK($B90)," ",IF(ISBLANK(F$48)," ",F$48)) -> 
C91: =IF(B91=" "," ",IF(ISBLANK($C$49)," ",$C$49)) ->  | F91: =IF(ISBLANK($B91)," ",IF(ISBLANK(F$49)," ",F$49)) -> 

Sheet Consumption_HH_Tissue
A1: Data from Step 3 page | E1: hide row | I1: hide column | J1: hide column | K1: hide column | L1: hide column | M1: hide column | N1: hide column
E2: hide row | H2: Early Life stages (cPAH cancer only)
A3: Parameter Name | B3: Units | C3: Cancer | D3: Noncancer | E3: hide row | F3: Parameter Name | G3: Units | H3: AGE: 0-<2 | I3: AGE: 2-<6 | J3: AGE: 6-<16 | K3: AGE: 16-70
A4: Cancer (CR) / Hazard Quotient (HQ) | B4: unitless | C4: ='Step 3 Exposure Parameters'!D5 -> 0 | D4: ='Step 3 Exposure Parameters'!E5 -> 0 | E4: hide row | F4: Cancer (CR) / Hazard Quotient (HQ) | G4: unitless | H4: ='Step 3 Exposure Parameters'!P5 -> 0 | I4: ='Step 3 Exposure Parameters'!Q5 -> 0 | J4: ='Step 3 Exposure Parameters'!R5 -> 0 | K4: ='Step 3 Exposure Parameters'!S5 -> 0
A5: Body Weight | B5: kg | C5: ='Step 3 Exposure Parameters'!D6 -> 0 | D5: ='Step 3 Exposure Parameters'!E6 -> 0 | E5: hide row | F5: Body Weight | G5: kg | H5: ='Step 3 Exposure Parameters'!P6 -> 0 | I5: ='Step 3 Exposure Parameters'!Q6 -> 0 | J5: ='Step 3 Exposure Parameters'!R6 -> 0 | K5: ='Step 3 Exposure Parameters'!S6 -> 0
A6: Averaging Time | B6: days | C6: ='Step 3 Exposure Parameters'!D7 -> 0 | D6: ='Step 3 Exposure Parameters'!E7 -> 0 | E6: hide row | F6: Averaging Time | G6: days | H6: ='Step 3 Exposure Parameters'!P7 -> 0 | I6: ='Step 3 Exposure Parameters'!Q7 -> 0 | J6: ='Step 3 Exposure Parameters'!R7 -> 0 | K6: ='Step 3 Exposure Parameters'!S7 -> 0
A7: Unit Conversion Factor | B7: g/kg | C7: ='Step 3 Exposure Parameters'!D8 -> 0 | D7: ='Step 3 Exposure Parameters'!E8 -> 0 | E7: hide row | F7: Unit Conversion Factor | G7: g/kg | H7: ='Step 3 Exposure Parameters'!P8 -> 0 | I7: ='Step 3 Exposure Parameters'!Q8 -> 0 | J7: ='Step 3 Exposure Parameters'!R8 -> 0 | K7: ='Step 3 Exposure Parameters'!S8 -> 0
A8: Fish Consumption Rate | B8: grams/day | C8: ='Step 3 Exposure Parameters'!D9 -> 0 | D8: ='Step 3 Exposure Parameters'!E9 -> 0 | E8: hide row | F8: Fish Consumption Rate | G8: grams/day | H8: ='Step 3 Exposure Parameters'!P9 -> 0 | I8: ='Step 3 Exposure Parameters'!Q9 -> 0 | J8: ='Step 3 Exposure Parameters'!R9 -> 0 | K8: ='Step 3 Exposure Parameters'!S9 -> 0
A9: Fish Diet Fraction | B9: proportion | C9: ='Step 3 Exposure Parameters'!D10 -> 0 | D9: ='Step 3 Exposure Parameters'!E10 -> 0 | E9: hide row | F9: Fish Diet Fraction | G9: proportion | H9: ='Step 3 Exposure Parameters'!P10 -> 0 | I9: ='Step 3 Exposure Parameters'!Q10 -> 0 | J9: ='Step 3 Exposure Parameters'!R10 -> 0 | K9: ='Step 3 Exposure Parameters'!S10 -> 0
A10: Site Use Factor | B10: proportion | C10: ='Step 3 Exposure Parameters'!D11 -> 0 | D10: ='Step 3 Exposure Parameters'!E11 -> 0 | E10: hide row | F10: Site Use Factor | G10: proportion | H10: ='Step 3 Exposure Parameters'!P11 -> 0 | I10: ='Step 3 Exposure Parameters'!Q11 -> 0 | J10: ='Step 3 Exposure Parameters'!R11 -> 0 | K10: ='Step 3 Exposure Parameters'!S11 -> 0
A11: Exposure Frequency | B11: days/year | C11: ='Step 3 Exposure Parameters'!D12 -> 0 | D11: ='Step 3 Exposure Parameters'!E12 -> 0 | E11: hide row | F11: Exposure Frequency | G11: days/year | H11: ='Step 3 Exposure Parameters'!P12 -> 0 | I11: ='Step 3 Exposure Parameters'!Q12 -> 0 | J11: ='Step 3 Exposure Parameters'!R12 -> 0 | K11: ='Step 3 Exposure Parameters'!S12 -> 0
A12: Exposure Duration | B12: years | C12: ='Step 3 Exposure Parameters'!D13 -> 0 | D12: ='Step 3 Exposure Parameters'!E13 -> 0 | E12: hide row | F12: Exposure Duration | G12: years | H12: ='Step 3 Exposure Parameters'!P14 -> 2 | I12: ='Step 3 Exposure Parameters'!Q14 -> 4 | J12: ='Step 3 Exposure Parameters'!R14 -> 10 | K12: ='Step 3 Exposure Parameters'!S14 -> 54
E13: hide row | F13: Age-Dependent Adjustment Factor | G13: unitless [cPAHs only] | H13: ='Step 3 Exposure Parameters'!P15 -> 10 | I13: ='Step 3 Exposure Parameters'!Q15 -> 3 | J13: ='Step 3 Exposure Parameters'!R15 -> 3 | K13: ='Step 3 Exposure Parameters'!S15 -> 1
E14: hide row
E15: hide row | G15: ESL FCRF | H15: =IF(ISERROR((H11*H12*H8*H13)/H5),"",(H11*H12*H8*H13)/H5) ->  | I15: =IF(ISERROR((I11*I12*I8*I13)/I5),"",(I11*I12*I8*I13)/I5) ->  | J15: =IF(ISERROR((J11*J12*J8*J13)/J5),"",(J11*J12*J8*J13)/J5) ->  | K15: =IF(ISERROR((K11*K12*K8*K13)/K5),"",(K11*K12*K8*K13)/K5) -> 
E16: hide row
E17: hide row
B18: SCUM Equation 9-6: Human Health Tissue Risk-Based Levels Based on Consumption of Fish/Shellfish (Cancer): | I18: hide | J18: hide | K18: hide | L18: hide | M18: hide | N18: hide
B23: SCUM Equation 9-8: Human Health Tissue Risk-Based Levels Based on Consumption of Fish/Shellfish (Noncancer):
B28: See SCUM Chapter 9 (Equation 9-7) for Early Life Stage (ELS) calculation formulas. Applicable for mutagens (e.g., cPAHS).
B31: Human Health Risk Based Concentrations (RBCs) Based on Fish/Shellfish Consumption (mg/kg)
B32: Contaminant of Concern | C32: Tribal Adult | E32: ELS | I32: Data from Step 1 Worksheet | K32: CPFo | L32: RfDo | N32: ESL calculation
A33: CAS Number | C33: Cancer | D33: Noncancer | E33: cancer (for mutagens) | F33: Tissue Risk-Based Level | G33: Mutagen (M) | I33: CAS Number | J33: Contaminant of Concern | K33: kg-day/mg | L33: mg/kg-day
A34: =I34 -> 7440-38-2 | B34: =J34 -> arsenic, inorganic | C34: =IF(ISERROR(IF($K34="--","--",($C$4*$C$5*$C$6*$C$7)/($K34*$C$8*$C$9*$C$11*$C$12))),"--",IF($K34="--","--",($C$4*$C$5*$C$6*$C$7)/($K34*$C$8*$C$9*$C$11*$C$12))) -> -- | D34: =IF(ISERROR(IF($L34="--","--",($D$4*$D$5*$D$6*$D$7*$L34)/($D$8*$D$9*$D$11*$D$12))),"--",IF($L34="--","--",($D$4*$D$5*$D$6*$D$7*$L34)/($D$8*$D$9*$D$11*$D$12))) -> -- | E34: =IF($N34="--","--",$N34) -> -- | F34: =IF(MIN(C34:E34)>0,MIN(C34:E34),"--") -> -- | G34: =IF(A34="--","--",IF(VLOOKUP(A34,chemical,8,FALSE)="","--",VLOOKUP(A34,chemical,8,FALSE))) -> -- | I34: ='Step 2 Chemical_Parameters'!A12 -> 7440-38-2 | J34: ='Step 2 Chemical_Parameters'!B12 -> arsenic, inorganic | K34: =IF('Step 1 Toxicity_Values'!D12="--","--",'Step 1 Toxicity_Values'!D12) -> 32 | L34: =IF('Step 1 Toxicity_Values'!E12="--","--",'Step 1 Toxicity_Values'!E12) -> 6e-05 | N34: =IF(A34="--","--",IF(VLOOKUP(A34,chemical,8,FALSE)="M",IF(ISERROR(($I$4*$I$7*$I$6)/(($H$15+$I$15+$J$15+$K$15)*K34)),"--",($I$4*$I$7*$I$6)/(($H$15+$I$15+$J$15+$K$15)*K34)),"--")) -> -- | O34: Abbrev | P34: Definition
A35: 7440-43-9 | B35: Cadmium | C35: =IF(ISERROR(IF($K35="--","--",($C$4*$C$5*$C$6*$C$7)/($K35*$C$8*$C$9*$C$11*$C$12))),"--",IF($K35="--","--",($C$4*$C$5*$C$6*$C$7)/($K35*$C$8*$C$9*$C$11*$C$12))) -> -- | D35: =IF(ISERROR(IF($L35="--","--",($D$4*$D$5*$D$6*$D$7*$L35)/($D$8*$D$9*$D$11*$D$12))),"--",IF($L35="--","--",($D$4*$D$5*$D$6*$D$7*$L35)/($D$8*$D$9*$D$11*$D$12))) -> -- | E35: -- | F35: =IF(MIN(C35:E35)>0,MIN(C35:E35),"--") -> -- | G35: -- | I35: ='Step 2 Chemical_Parameters'!A13 -> 7440-43-9 | J35: ='Step 2 Chemical_Parameters'!B13 -> Cadmium | K35: =IF('Step 1 Toxicity_Values'!D13="--","--",'Step 1 Toxicity_Values'!D13) -> -- | L35: =IF('Step 1 Toxicity_Values'!E13="--","--",'Step 1 Toxicity_Values'!E13) -> 0.001 | N35: -- | O35: 2,3,7,8-TCDD | P35: 2,3,7,8-Tetrachlorodibenzo-p-dioxin
A36: 50-32-8 | B36: BENZO[a]PYRENE | C36: -- | D36: -- | E36: =IF($N36="--","--",$N36) -> -- | F36: -- | G36: M | I36: ='Step 2 Chemical_Parameters'!A14 -> 50-32-8 | J36: ='Step 2 Chemical_Parameters'!B14 -> BENZO[a]PYRENE | K36: =IF('Step 1 Toxicity_Values'!D14="--","--",'Step 1 Toxicity_Values'!D14) -> 1 | L36: =IF('Step 1 Toxicity_Values'!E14="--","--",'Step 1 Toxicity_Values'!E14) -> 0.0003 | N36: -- | O36: cPAHs | P36: Carcinogenic PAHs
A37: 1746-01-6 | B37: TCDD;2,3,7,8 (DIOXIN) | C37: -- | D37: -- | E37: =IF($N37="--","--",$N37) -> -- | F37: -- | G37: -- | I37: ='Step 2 Chemical_Parameters'!A15 -> 1746-01-6 | J37: ='Step 2 Chemical_Parameters'!B15 -> TCDD;2,3,7,8 (DIOXIN) | K37: =IF('Step 1 Toxicity_Values'!D15="--","--",'Step 1 Toxicity_Values'!D15) -> 130000 | L37: =IF('Step 1 Toxicity_Values'!E15="--","--",'Step 1 Toxicity_Values'!E15) -> 7e-10 | N37: -- | O37: ELS | P37: Early Life Stage
A38: 7439-92-1 | B38: LEAD | C38: -- | D38: -- | E38: -- | F38: -- | G38: -- | I38: ='Step 2 Chemical_Parameters'!A16 -> 7439-92-1 | J38: ='Step 2 Chemical_Parameters'!B16 -> LEAD | K38: =IF('Step 1 Toxicity_Values'!D16="--","--",'Step 1 Toxicity_Values'!D16) -> -- | L38: =IF('Step 1 Toxicity_Values'!E16="--","--",'Step 1 Toxicity_Values'!E16) -> -- | N38: -- | O38: M | P38: Carcinogen with a mutagenic mode of action
A39: 22967-92-6 | B39: METHYL MERCURY | C39: -- | D39: -- | E39: -- | F39: -- | G39: -- | I39: ='Step 2 Chemical_Parameters'!A17 -> 22967-92-6 | J39: ='Step 2 Chemical_Parameters'!B17 -> METHYL MERCURY | K39: =IF('Step 1 Toxicity_Values'!D17="--","--",'Step 1 Toxicity_Values'!D17) -> -- | L39: =IF('Step 1 Toxicity_Values'!E17="--","--",'Step 1 Toxicity_Values'!E17) -> 0.0001 | N39: -- | O39: PCB | P39: Polychlorinated Biphenyls
A40: 1336-36-3a | B40: Dioxin-like PCBs | C40: -- | D40: -- | E40: -- | F40: -- | G40: -- | I40: ='Step 2 Chemical_Parameters'!A18 -> 1336-36-3a | J40: ='Step 2 Chemical_Parameters'!B18 -> Dioxin-like PCBs | K40: =IF('Step 1 Toxicity_Values'!D18="--","--",'Step 1 Toxicity_Values'!D18) -> 130000 | L40: =IF('Step 1 Toxicity_Values'!E18="--","--",'Step 1 Toxicity_Values'!E18) -> 7e-10 | N40: -- | O40: RBC | P40: Risk-Based Concentration
A41: 56-35-9 | B41: tributyltin oxide | C41: -- | D41: -- | E41: -- | F41: -- | G41: -- | I41: ='Step 2 Chemical_Parameters'!A19 -> 56-35-9 | J41: ='Step 2 Chemical_Parameters'!B19 -> tributyltin oxide | K41: =IF('Step 1 Toxicity_Values'!D19="--","--",'Step 1 Toxicity_Values'!D19) -> -- | L41: =IF('Step 1 Toxicity_Values'!E19="--","--",'Step 1 Toxicity_Values'!E19) -> 0.0003 | N41: -- | O41: RBCcancer | P41: Risk-based tissue concentration - cancer endpoint
A42: 50-29-3 | B42: DDT | C42: -- | D42: -- | E42: -- | F42: -- | G42: -- | I42: ='Step 2 Chemical_Parameters'!A20 -> 50-29-3 | J42: ='Step 2 Chemical_Parameters'!B20 -> DDT | K42: =IF('Step 1 Toxicity_Values'!D20="--","--",'Step 1 Toxicity_Values'!D20) -> 0.34 | L42: =IF('Step 1 Toxicity_Values'!E20="--","--",'Step 1 Toxicity_Values'!E20) -> 0.0005 | N42: -- | O42: RBCnoncancer | P42: Risk-based tissue concentration - noncancer endpoint
A43: 71-43-2 | B43: BENZENE | C43: -- | D43: -- | E43: -- | F43: -- | G43: -- | I43: ='Step 2 Chemical_Parameters'!A21 -> 71-43-2 | J43: ='Step 2 Chemical_Parameters'!B21 -> BENZENE | K43: =IF('Step 1 Toxicity_Values'!D21="--","--",'Step 1 Toxicity_Values'!D21) -> 0.055 | L43: =IF('Step 1 Toxicity_Values'!E21="--","--",'Step 1 Toxicity_Values'!E21) -> 0.004 | N43: --
A44: -- | B44: -- | C44: -- | D44: -- | E44: -- | F44: -- | G44: -- | I44: ='Step 2 Chemical_Parameters'!A22 -> -- | J44: ='Step 2 Chemical_Parameters'!B22 -> -- | K44: =IF('Step 1 Toxicity_Values'!D22="--","--",'Step 1 Toxicity_Values'!D22) -> -- | L44: =IF('Step 1 Toxicity_Values'!E22="--","--",'Step 1 Toxicity_Values'!E22) -> -- | N44: --
A45: -- | B45: -- | C45: -- | D45: -- | E45: -- | F45: -- | G45: -- | I45: ='Step 2 Chemical_Parameters'!A23 -> -- | J45: ='Step 2 Chemical_Parameters'!B23 -> -- | K45: =IF('Step 1 Toxicity_Values'!D23="--","--",'Step 1 Toxicity_Values'!D23) -> -- | L45: =IF('Step 1 Toxicity_Values'!E23="--","--",'Step 1 Toxicity_Values'!E23) -> -- | N45: --
A46: -- | B46: -- | C46: -- | D46: -- | E46: -- | F46: -- | G46: -- | I46: ='Step 2 Chemical_Parameters'!A24 -> -- | J46: ='Step 2 Chemical_Parameters'!B24 -> -- | K46: =IF('Step 1 Toxicity_Values'!D24="--","--",'Step 1 Toxicity_Values'!D24) -> -- | L46: =IF('Step 1 Toxicity_Values'!E24="--","--",'Step 1 Toxicity_Values'!E24) -> -- | N46: --
A47: -- | B47: -- | C47: -- | D47: -- | E47: -- | F47: -- | G47: -- | I47: ='Step 2 Chemical_Parameters'!A25 -> -- | J47: ='Step 2 Chemical_Parameters'!B25 -> -- | K47: =IF('Step 1 Toxicity_Values'!D25="--","--",'Step 1 Toxicity_Values'!D25) -> -- | L47: =IF('Step 1 Toxicity_Values'!E25="--","--",'Step 1 Toxicity_Values'!E25) -> -- | N47: --
A48: -- | B48: -- | C48: -- | D48: -- | E48: -- | F48: -- | G48: -- | I48: ='Step 2 Chemical_Parameters'!A26 -> -- | J48: ='Step 2 Chemical_Parameters'!B26 -> -- | K48: =IF('Step 1 Toxicity_Values'!D26="--","--",'Step 1 Toxicity_Values'!D26) -> -- | L48: =IF('Step 1 Toxicity_Values'!E26="--","--",'Step 1 Toxicity_Values'!E26) -> -- | N48: --
A49: -- | B49: -- | C49: -- | D49: -- | E49: -- | F49: -- | G49: -- | I49: ='Step 2 Chemical_Parameters'!A27 -> -- | J49: ='Step 2 Chemical_Parameters'!B27 -> -- | K49: =IF('Step 1 Toxicity_Values'!D27="--","--",'Step 1 Toxicity_Values'!D27) -> -- | L49: =IF('Step 1 Toxicity_Values'!E27="--","--",'Step 1 Toxicity_Values'!E27) -> -- | N49: --
A50: -- | B50: -- | C50: -- | D50: -- | E50: -- | F50: -- | G50: -- | I50: ='Step 2 Chemical_Parameters'!A28 -> -- | J50: ='Step 2 Chemical_Parameters'!B28 -> -- | K50: =IF('Step 1 Toxicity_Values'!D28="--","--",'Step 1 Toxicity_Values'!D28) -> -- | L50: =IF('Step 1 Toxicity_Values'!E28="--","--",'Step 1 Toxicity_Values'!E28) -> -- | N50: --
A51: -- | B51: -- | C51: -- | D51: -- | E51: -- | F51: -- | G51: -- | I51: ='Step 2 Chemical_Parameters'!A29 -> -- | J51: ='Step 2 Chemical_Parameters'!B29 -> -- | K51: =IF('Step 1 Toxicity_Values'!D29="--","--",'Step 1 Toxicity_Values'!D29) -> -- | L51: =IF('Step 1 Toxicity_Values'!E29="--","--",'Step 1 Toxicity_Values'!E29) -> -- | N51: --
A52: -- | B52: -- | C52: -- | D52: -- | E52: -- | F52: -- | G52: -- | I52: ='Step 2 Chemical_Parameters'!A30 -> -- | J52: ='Step 2 Chemical_Parameters'!B30 -> -- | K52: =IF('Step 1 Toxicity_Values'!D30="--","--",'Step 1 Toxicity_Values'!D30) -> -- | L52: =IF('Step 1 Toxicity_Values'!E30="--","--",'Step 1 Toxicity_Values'!E30) -> -- | N52: --
A53: -- | B53: -- | C53: -- | D53: -- | E53: -- | F53: -- | G53: -- | I53: ='Step 2 Chemical_Parameters'!A31 -> -- | J53: ='Step 2 Chemical_Parameters'!B31 -> -- | K53: =IF('Step 1 Toxicity_Values'!D31="--","--",'Step 1 Toxicity_Values'!D31) -> -- | L53: =IF('Step 1 Toxicity_Values'!E31="--","--",'Step 1 Toxicity_Values'!E31) -> -- | N53: --
A54: -- | B54: -- | C54: -- | D54: -- | E54: -- | F54: -- | G54: -- | I54: ='Step 2 Chemical_Parameters'!A32 -> -- | J54: ='Step 2 Chemical_Parameters'!B32 -> -- | K54: =IF('Step 1 Toxicity_Values'!D32="--","--",'Step 1 Toxicity_Values'!D32) -> -- | L54: =IF('Step 1 Toxicity_Values'!E32="--","--",'Step 1 Toxicity_Values'!E32) -> -- | N54: --
A55: -- | B55: -- | C55: -- | D55: -- | E55: -- | F55: -- | G55: -- | I55: ='Step 2 Chemical_Parameters'!A33 -> -- | J55: ='Step 2 Chemical_Parameters'!B33 -> -- | K55: =IF('Step 1 Toxicity_Values'!D33="--","--",'Step 1 Toxicity_Values'!D33) -> -- | L55: =IF('Step 1 Toxicity_Values'!E33="--","--",'Step 1 Toxicity_Values'!E33) -> -- | N55: --
A56: -- | B56: -- | C56: -- | D56: -- | E56: -- | F56: -- | G56: -- | I56: ='Step 2 Chemical_Parameters'!A34 -> -- | J56: ='Step 2 Chemical_Parameters'!B34 -> -- | K56: =IF('Step 1 Toxicity_Values'!D34="--","--",'Step 1 Toxicity_Values'!D34) -> -- | L56: =IF('Step 1 Toxicity_Values'!E34="--","--",'Step 1 Toxicity_Values'!E34) -> -- | N56: --
A57: -- | B57: -- | C57: -- | D57: -- | E57: -- | F57: -- | G57: -- | I57: ='Step 2 Chemical_Parameters'!A35 -> -- | J57: ='Step 2 Chemical_Parameters'!B35 -> -- | K57: =IF('Step 1 Toxicity_Values'!D35="--","--",'Step 1 Toxicity_Values'!D35) -> -- | L57: =IF('Step 1 Toxicity_Values'!E35="--","--",'Step 1 Toxicity_Values'!E35) -> -- | N57: --
A58: -- | B58: -- | C58: -- | D58: -- | E58: -- | F58: -- | G58: -- | I58: ='Step 2 Chemical_Parameters'!A36 -> -- | J58: ='Step 2 Chemical_Parameters'!B36 -> -- | K58: =IF('Step 1 Toxicity_Values'!D36="--","--",'Step 1 Toxicity_Values'!D36) -> -- | L58: =IF('Step 1 Toxicity_Values'!E36="--","--",'Step 1 Toxicity_Values'!E36) -> -- | N58: --
A59: -- | B59: -- | C59: -- | D59: -- | E59: -- | F59: -- | G59: -- | I59: ='Step 2 Chemical_Parameters'!A37 -> -- | J59: ='Step 2 Chemical_Parameters'!B37 -> -- | K59: =IF('Step 1 Toxicity_Values'!D37="--","--",'Step 1 Toxicity_Values'!D37) -> -- | L59: =IF('Step 1 Toxicity_Values'!E37="--","--",'Step 1 Toxicity_Values'!E37) -> -- | N59: --
A60: -- | B60: -- | C60: -- | D60: -- | E60: -- | F60: -- | G60: -- | I60: ='Step 2 Chemical_Parameters'!A38 -> -- | J60: ='Step 2 Chemical_Parameters'!B38 -> -- | K60: =IF('Step 1 Toxicity_Values'!D38="--","--",'Step 1 Toxicity_Values'!D38) -> -- | L60: =IF('Step 1 Toxicity_Values'!E38="--","--",'Step 1 Toxicity_Values'!E38) -> -- | N60: --
A61: -- | B61: -- | C61: -- | D61: -- | E61: -- | F61: -- | G61: -- | I61: ='Step 2 Chemical_Parameters'!A39 -> -- | J61: ='Step 2 Chemical_Parameters'!B39 -> -- | K61: =IF('Step 1 Toxicity_Values'!D39="--","--",'Step 1 Toxicity_Values'!D39) -> -- | L61: =IF('Step 1 Toxicity_Values'!E39="--","--",'Step 1 Toxicity_Values'!E39) -> -- | N61: --
A62: -- | B62: -- | C62: -- | D62: -- | E62: -- | F62: -- | G62: -- | I62: ='Step 2 Chemical_Parameters'!A40 -> -- | J62: ='Step 2 Chemical_Parameters'!B40 -> -- | K62: =IF('Step 1 Toxicity_Values'!D40="--","--",'Step 1 Toxicity_Values'!D40) -> -- | L62: =IF('Step 1 Toxicity_Values'!E40="--","--",'Step 1 Toxicity_Values'!E40) -> -- | N62: --
A63: -- | B63: -- | C63: -- | D63: -- | E63: -- | F63: -- | G63: -- | I63: ='Step 2 Chemical_Parameters'!A41 -> -- | J63: ='Step 2 Chemical_Parameters'!B41 -> -- | K63: =IF('Step 1 Toxicity_Values'!D41="--","--",'Step 1 Toxicity_Values'!D41) -> -- | L63: =IF('Step 1 Toxicity_Values'!E41="--","--",'Step 1 Toxicity_Values'!E41) -> -- | N63: --
A64: -- | B64: -- | C64: -- | D64: -- | E64: -- | F64: -- | G64: -- | I64: ='Step 2 Chemical_Parameters'!A42 -> -- | J64: ='Step 2 Chemical_Parameters'!B42 -> -- | K64: =IF('Step 1 Toxicity_Values'!D42="--","--",'Step 1 Toxicity_Values'!D42) -> -- | L64: =IF('Step 1 Toxicity_Values'!E42="--","--",'Step 1 Toxicity_Values'!E42) -> -- | N64: --
A65: -- | B65: -- | C65: -- | D65: -- | E65: -- | F65: -- | G65: -- | I65: ='Step 2 Chemical_Parameters'!A43 -> -- | J65: ='Step 2 Chemical_Parameters'!B43 -> -- | K65: =IF('Step 1 Toxicity_Values'!D43="--","--",'Step 1 Toxicity_Values'!D43) -> -- | L65: =IF('Step 1 Toxicity_Values'!E43="--","--",'Step 1 Toxicity_Values'!E43) -> -- | N65: --
A66: -- | B66: -- | C66: -- | D66: -- | E66: -- | F66: -- | G66: -- | I66: ='Step 2 Chemical_Parameters'!A44 -> -- | J66: ='Step 2 Chemical_Parameters'!B44 -> -- | K66: =IF('Step 1 Toxicity_Values'!D44="--","--",'Step 1 Toxicity_Values'!D44) -> -- | L66: =IF('Step 1 Toxicity_Values'!E44="--","--",'Step 1 Toxicity_Values'!E44) -> -- | N66: --

Sheet Consumption_Eco_Tissue
I1: hide column | J1: hide column | K1: hide column | L1: hide column | M1: hide column | N1: hide column | O1: hide column | P1: hide column | Q1: hide column | R1: hide column
B2: SCUM Equation 9-9: Higher Trophic Level Tissue Screening Levels for Mammals and Birds (Consumption of Fish/Shellfish):
F4: or TRVis if available
B7: SCUM Equation 9-10: Higher Trophic Level Tissue Screening Levels Based on Eggshell Thinning:
B11: Tissue Risk-Based Concentrations for Protection of Higher Trophic Levels | I11: Data from Step 3 Worksheet
D12: Consumption TRV | E12: Eggshell TRV | F12: Tissue Screening Level | K12: TRVis | L12: TRVtest | M12: FIRis | N12: FIRtest | O12: BWis | P12: BWtest | Q12: TRVegg | R12: BMFegg
B13: Contaminant of Concern | C13: Indicator Species | D13: mg/kg | E13: mg/kg | F13: mg/kg | I13: Contaminant of Concern | J13: Indicator Species | K13: mg/kg | L13: mg/kg | M13: kg/day | N13: kg/day | O13: kg | P13: kg | Q13: mg/kg | R13: unitless
B14: =I14 ->  | C14: =J14 ->  | D14: =IF(B14=" ","--",IF(C14=" ","--",IF(L14=0,IF(K14=0,"--",K14),((L14*N14*O14)/(P14*M14))))) -> -- | E14: =IF(B14=" ","--",IF(C14=" ","--",IF(Q14=0,"--",Q14/R14))) -> -- | F14: =IF(MIN(D14:E14)>0,MIN(D14:E14),"--") -> -- | I14: =IF(ISBLANK('Step 3 Exposure Parameters'!$B44)," ",'Step 3 Exposure Parameters'!$B44) ->  | J14: =IF(ISBLANK('Step 3 Exposure Parameters'!$C44)," ",'Step 3 Exposure Parameters'!$C44) ->  | K14: =IF(ISBLANK('Step 3 Exposure Parameters'!D44),0,'Step 3 Exposure Parameters'!D44) -> 0 | L14: =IF(ISBLANK('Step 3 Exposure Parameters'!E44),0,'Step 3 Exposure Parameters'!E44) -> 0 | M14: =IF(ISBLANK('Step 3 Exposure Parameters'!F44)," ",'Step 3 Exposure Parameters'!F44) ->  | N14: =IF(ISBLANK('Step 3 Exposure Parameters'!G44)," ",'Step 3 Exposure Parameters'!G44) ->  | O14: =IF(ISBLANK('Step 3 Exposure Parameters'!H44)," ",'Step 3 Exposure Parameters'!H44) ->  | P14: =IF(ISBLANK('Step 3 Exposure Parameters'!I44)," ",'Step 3 Exposure Parameters'!I44) ->  | Q14: =IF(ISBLANK('Step 3 Exposure Parameters'!J44),0,'Step 3 Exposure Parameters'!J44) -> 0 | R14: =IF(ISBLANK('Step 3 Exposure Parameters'!K44),0,'Step 3 Exposure Parameters'!K44) -> 0
B15: =I15 ->  | C15: =J15 ->  | D15: =IF(B15=" ","--",IF(C15=" ","--",IF(L15=0,IF(K15=0,"--",K15),((L15*N15*O15)/(P15*M15))))) -> -- | E15: =IF(B15=" ","--",IF(C15=" ","--",IF(Q15=0,"--",Q15/R15))) -> -- | F15: =IF(MIN(D15:E15)>0,MIN(D15:E15),"--") -> -- | I15: =IF(ISBLANK('Step 3 Exposure Parameters'!$B45)," ",'Step 3 Exposure Parameters'!$B45) ->  | J15: =IF(ISBLANK('Step 3 Exposure Parameters'!$C45)," ",'Step 3 Exposure Parameters'!$C45) ->  | K15: =IF(ISBLANK('Step 3 Exposure Parameters'!D45)," ",'Step 3 Exposure Parameters'!D45) ->  | L15: =IF(ISBLANK('Step 3 Exposure Parameters'!E45)," ",'Step 3 Exposure Parameters'!E45) ->  | M15: =IF(ISBLANK('Step 3 Exposure Parameters'!F45)," ",'Step 3 Exposure Parameters'!F45) ->  | N15: =IF(ISBLANK('Step 3 Exposure Parameters'!G45)," ",'Step 3 Exposure Parameters'!G45) ->  | O15: =IF(ISBLANK('Step 3 Exposure Parameters'!H45)," ",'Step 3 Exposure Parameters'!H45) ->  | P15: =IF(ISBLANK('Step 3 Exposure Parameters'!I45)," ",'Step 3 Exposure Parameters'!I45) ->  | Q15: =IF(ISBLANK('Step 3 Exposure Parameters'!J45)," ",'Step 3 Exposure Parameters'!J45) ->  | R15: =IF(ISBLANK('Step 3 Exposure Parameters'!K45)," ",'Step 3 Exposure Parameters'!K45) -> 
D16: -- | E16: -- | F16: -- | I16: =IF(ISBLANK('Step 3 Exposure Parameters'!$B46)," ",'Step 3 Exposure Parameters'!$B46) ->  | J16: =IF(ISBLANK('Step 3 Exposure Parameters'!$C46)," ",'Step 3 Exposure Parameters'!$C46) ->  | K16: =IF(ISBLANK('Step 3 Exposure Parameters'!D46)," ",'Step 3 Exposure Parameters'!D46) ->  | L16: =IF(ISBLANK('Step 3 Exposure Parameters'!E46)," ",'Step 3 Exposure Parameters'!E46) ->  | M16: =IF(ISBLANK('Step 3 Exposure Parameters'!F46)," ",'Step 3 Exposure Parameters'!F46) ->  | N16: =IF(ISBLANK('Step 3 Exposure Parameters'!G46)," ",'Step 3 Exposure Parameters'!G46) ->  | O16: =IF(ISBLANK('Step 3 Exposure Parameters'!H46)," ",'Step 3 Exposure Parameters'!H46) ->  | P16: =IF(ISBLANK('Step 3 Exposure Parameters'!I46)," ",'Step 3 Exposure Parameters'!I46) ->  | Q16: =IF(ISBLANK('Step 3 Exposure Parameters'!J46)," ",'Step 3 Exposure Parameters'!J46) ->  | R16: =IF(ISBLANK('Step 3 Exposure Parameters'!K46)," ",'Step 3 Exposure Parameters'!K46) -> 
D17: -- | E17: =IF(B17=" ","--",IF(C17=" ","--",IF(Q17=0,"--",Q17/R17))) -> -- | F17: -- | I17: =IF(ISBLANK('Step 3 Exposure Parameters'!$B47)," ",'Step 3 Exposure Parameters'!$B47) ->  | J17: =IF(ISBLANK('Step 3 Exposure Parameters'!$C47)," ",'Step 3 Exposure Parameters'!$C47) ->  | K17: =IF(ISBLANK('Step 3 Exposure Parameters'!D47)," ",'Step 3 Exposure Parameters'!D47) ->  | L17: =IF(ISBLANK('Step 3 Exposure Parameters'!E47)," ",'Step 3 Exposure Parameters'!E47) ->  | M17: =IF(ISBLANK('Step 3 Exposure Parameters'!F47)," ",'Step 3 Exposure Parameters'!F47) ->  | N17: =IF(ISBLANK('Step 3 Exposure Parameters'!G47)," ",'Step 3 Exposure Parameters'!G47) ->  | O17: =IF(ISBLANK('Step 3 Exposure Parameters'!H47)," ",'Step 3 Exposure Parameters'!H47) ->  | P17: =IF(ISBLANK('Step 3 Exposure Parameters'!I47)," ",'Step 3 Exposure Parameters'!I47) ->  | Q17: =IF(ISBLANK('Step 3 Exposure Parameters'!J47)," ",'Step 3 Exposure Parameters'!J47) ->  | R17: =IF(ISBLANK('Step 3 Exposure Parameters'!K47)," ",'Step 3 Exposure Parameters'!K47) -> 
D18: -- | E18: -- | F18: -- | I18: =IF(ISBLANK('Step 3 Exposure Parameters'!$B48)," ",'Step 3 Exposure Parameters'!$B48) ->  | J18: =IF(ISBLANK('Step 3 Exposure Parameters'!$C48)," ",'Step 3 Exposure Parameters'!$C48) ->  | K18: =IF(ISBLANK('Step 3 Exposure Parameters'!D48)," ",'Step 3 Exposure Parameters'!D48) ->  | L18: =IF(ISBLANK('Step 3 Exposure Parameters'!E48)," ",'Step 3 Exposure Parameters'!E48) ->  | M18: =IF(ISBLANK('Step 3 Exposure Parameters'!F48)," ",'Step 3 Exposure Parameters'!F48) ->  | N18: =IF(ISBLANK('Step 3 Exposure Parameters'!G48)," ",'Step 3 Exposure Parameters'!G48) ->  | O18: =IF(ISBLANK('Step 3 Exposure Parameters'!H48)," ",'Step 3 Exposure Parameters'!H48) ->  | P18: =IF(ISBLANK('Step 3 Exposure Parameters'!I48)," ",'Step 3 Exposure Parameters'!I48) ->  | Q18: =IF(ISBLANK('Step 3 Exposure Parameters'!J48)," ",'Step 3 Exposure Parameters'!J48) ->  | R18: =IF(ISBLANK('Step 3 Exposure Parameters'!K48)," ",'Step 3 Exposure Parameters'!K48) -> 
D19: -- | E19: -- | F19: -- | I19: =IF(ISBLANK('Step 3 Exposure Parameters'!$B49)," ",'Step 3 Exposure Parameters'!$B49) ->  | J19: =IF(ISBLANK('Step 3 Exposure Parameters'!$C49)," ",'Step 3 Exposure Parameters'!$C49) ->  | K19: =IF(ISBLANK('Step 3 Exposure Parameters'!D49)," ",'Step 3 Exposure Parameters'!D49) ->  | L19: =IF(ISBLANK('Step 3 Exposure Parameters'!E49)," ",'Step 3 Exposure Parameters'!E49) ->  | M19: =IF(ISBLANK('Step 3 Exposure Parameters'!F49)," ",'Step 3 Exposure Parameters'!F49) ->  | N19: =IF(ISBLANK('Step 3 Exposure Parameters'!G49)," ",'Step 3 Exposure Parameters'!G49) ->  | O19: =IF(ISBLANK('Step 3 Exposure Parameters'!H49)," ",'Step 3 Exposure Parameters'!H49) ->  | P19: =IF(ISBLANK('Step 3 Exposure Parameters'!I49)," ",'Step 3 Exposure Parameters'!I49) ->  | Q19: =IF(ISBLANK('Step 3 Exposure Parameters'!J49)," ",'Step 3 Exposure Parameters'!J49) ->  | R19: =IF(ISBLANK('Step 3 Exposure Parameters'!K49)," ",'Step 3 Exposure Parameters'!K49) -> 
E20: Lowest Tissue Screening Level: | F20: =IF(B14=" ","--",MIN(F14:F19)) -> -- | I20: =IF(ISBLANK(I14)," ",I14) -> 
C21: =J21 ->  | D21: =IF(B21=" ","--",IF(C21=" ","--",IF(L21=0,IF(K21=0,"--",K21),((L21*N21*O21)/(P21*M21))))) -> -- | E21: =IF(B21=" ","--",IF(C21=" ","--",IF(Q21=0,"--",Q21/R21))) -> -- | F21: =IF(MIN(D21:E21)>0,MIN(D21:E21),"--") -> -- | I21: =IF(ISBLANK('Step 3 Exposure Parameters'!$B50)," ",'Step 3 Exposure Parameters'!$B50) ->  | J21: =IF(ISBLANK('Step 3 Exposure Parameters'!$C50)," ",'Step 3 Exposure Parameters'!$C50) ->  | K21: =IF(ISBLANK('Step 3 Exposure Parameters'!D50)," ",'Step 3 Exposure Parameters'!D50) ->  | L21: =IF(ISBLANK('Step 3 Exposure Parameters'!E50)," ",'Step 3 Exposure Parameters'!E50) ->  | M21: =IF(ISBLANK('Step 3 Exposure Parameters'!F50)," ",'Step 3 Exposure Parameters'!F50) ->  | N21: =IF(ISBLANK('Step 3 Exposure Parameters'!G50)," ",'Step 3 Exposure Parameters'!G50) ->  | O21: =IF(ISBLANK('Step 3 Exposure Parameters'!H50)," ",'Step 3 Exposure Parameters'!H50) ->  | P21: =IF(ISBLANK('Step 3 Exposure Parameters'!I50)," ",'Step 3 Exposure Parameters'!I50) ->  | Q21: =IF(ISBLANK('Step 3 Exposure Parameters'!J50)," ",'Step 3 Exposure Parameters'!J50) ->  | R21: =IF(ISBLANK('Step 3 Exposure Parameters'!K50)," ",'Step 3 Exposure Parameters'!K50) -> 
C22: =J22 ->  | D22: =IF(B22=" ","--",IF(C22=" ","--",IF(L22=0,IF(K22=0,"--",K22),((L22*N22*O22)/(P22*M22))))) -> -- | E22: =IF(B22=" ","--",IF(C22=" ","--",IF(Q22=0,"--",Q22/R22))) -> -- | F22: =IF(MIN(D22:E22)>0,MIN(D22:E22),"--") -> -- | I22: =IF(ISBLANK('Step 3 Exposure Parameters'!$B51)," ",'Step 3 Exposure Parameters'!$B51) ->  | J22: =IF(ISBLANK('Step 3 Exposure Parameters'!$C51)," ",'Step 3 Exposure Parameters'!$C51) ->  | K22: =IF(ISBLANK('Step 3 Exposure Parameters'!D51)," ",'Step 3 Exposure Parameters'!D51) ->  | L22: =IF(ISBLANK('Step 3 Exposure Parameters'!E51)," ",'Step 3 Exposure Parameters'!E51) ->  | M22: =IF(ISBLANK('Step 3 Exposure Parameters'!F51)," ",'Step 3 Exposure Parameters'!F51) ->  | N22: =IF(ISBLANK('Step 3 Exposure Parameters'!G51)," ",'Step 3 Exposure Parameters'!G51) ->  | O22: =IF(ISBLANK('Step 3 Exposure Parameters'!H51)," ",'Step 3 Exposure Parameters'!H51) ->  | P22: =IF(ISBLANK('Step 3 Exposure Parameters'!I51)," ",'Step 3 Exposure Parameters'!I51) ->  | Q22: =IF(ISBLANK('Step 3 Exposure Parameters'!J51)," ",'Step 3 Exposure Parameters'!J51) ->  | R22: =IF(ISBLANK('Step 3 Exposure Parameters'!K51)," ",'Step 3 Exposure Parameters'!K51) -> 
D23: -- | E23: -- | F23: -- | I23: =IF(ISBLANK('Step 3 Exposure Parameters'!$B52)," ",'Step 3 Exposure Parameters'!$B52) ->  | J23: =IF(ISBLANK('Step 3 Exposure Parameters'!$C52)," ",'Step 3 Exposure Parameters'!$C52) ->  | K23: =IF(ISBLANK('Step 3 Exposure Parameters'!D52)," ",'Step 3 Exposure Parameters'!D52) ->  | L23: =IF(ISBLANK('Step 3 Exposure Parameters'!E52)," ",'Step 3 Exposure Parameters'!E52) ->  | M23: =IF(ISBLANK('Step 3 Exposure Parameters'!F52)," ",'Step 3 Exposure Parameters'!F52) ->  | N23: =IF(ISBLANK('Step 3 Exposure Parameters'!G52)," ",'Step 3 Exposure Parameters'!G52) ->  | O23: =IF(ISBLANK('Step 3 Exposure Parameters'!H52)," ",'Step 3 Exposure Parameters'!H52) ->  | P23: =IF(ISBLANK('Step 3 Exposure Parameters'!I52)," ",'Step 3 Exposure Parameters'!I52) ->  | Q23: =IF(ISBLANK('Step 3 Exposure Parameters'!J52)," ",'Step 3 Exposure Parameters'!J52) ->  | R23: =IF(ISBLANK('Step 3 Exposure Parameters'!K52)," ",'Step 3 Exposure Parameters'!K52) -> 
D24: -- | E24: -- | F24: -- | I24: =IF(ISBLANK('Step 3 Exposure Parameters'!$B53)," ",'Step 3 Exposure Parameters'!$B53) ->  | J24: =IF(ISBLANK('Step 3 Exposure Parameters'!$C53)," ",'Step 3 Exposure Parameters'!$C53) ->  | K24: =IF(ISBLANK('Step 3 Exposure Parameters'!D53)," ",'Step 3 Exposure Parameters'!D53) ->  | L24: =IF(ISBLANK('Step 3 Exposure Parameters'!E53)," ",'Step 3 Exposure Parameters'!E53) ->  | M24: =IF(ISBLANK('Step 3 Exposure Parameters'!F53)," ",'Step 3 Exposure Parameters'!F53) ->  | N24: =IF(ISBLANK('Step 3 Exposure Parameters'!G53)," ",'Step 3 Exposure Parameters'!G53) ->  | O24: =IF(ISBLANK('Step 3 Exposure Parameters'!H53)," ",'Step 3 Exposure Parameters'!H53) ->  | P24: =IF(ISBLANK('Step 3 Exposure Parameters'!I53)," ",'Step 3 Exposure Parameters'!I53) ->  | Q24: =IF(ISBLANK('Step 3 Exposure Parameters'!J53)," ",'Step 3 Exposure Parameters'!J53) ->  | R24: =IF(ISBLANK('Step 3 Exposure Parameters'!K53)," ",'Step 3 Exposure Parameters'!K53) -> 
D25: -- | E25: -- | F25: -- | I25: =IF(ISBLANK('Step 3 Exposure Parameters'!$B54)," ",'Step 3 Exposure Parameters'!$B54) ->  | J25: =IF(ISBLANK('Step 3 Exposure Parameters'!$C54)," ",'Step 3 Exposure Parameters'!$C54) ->  | K25: =IF(ISBLANK('Step 3 Exposure Parameters'!D54)," ",'Step 3 Exposure Parameters'!D54) ->  | L25: =IF(ISBLANK('Step 3 Exposure Parameters'!E54)," ",'Step 3 Exposure Parameters'!E54) ->  | M25: =IF(ISBLANK('Step 3 Exposure Parameters'!F54)," ",'Step 3 Exposure Parameters'!F54) ->  | N25: =IF(ISBLANK('Step 3 Exposure Parameters'!G54)," ",'Step 3 Exposure Parameters'!G54) ->  | O25: =IF(ISBLANK('Step 3 Exposure Parameters'!H54)," ",'Step 3 Exposure Parameters'!H54) ->  | P25: =IF(ISBLANK('Step 3 Exposure Parameters'!I54)," ",'Step 3 Exposure Parameters'!I54) ->  | Q25: =IF(ISBLANK('Step 3 Exposure Parameters'!J54)," ",'Step 3 Exposure Parameters'!J54) ->  | R25: =IF(ISBLANK('Step 3 Exposure Parameters'!K54)," ",'Step 3 Exposure Parameters'!K54) -> 
D26: -- | E26: -- | F26: -- | I26: =IF(ISBLANK('Step 3 Exposure Parameters'!$B55)," ",'Step 3 Exposure Parameters'!$B55) ->  | J26: =IF(ISBLANK('Step 3 Exposure Parameters'!$C55)," ",'Step 3 Exposure Parameters'!$C55) ->  | K26: =IF(ISBLANK('Step 3 Exposure Parameters'!D55)," ",'Step 3 Exposure Parameters'!D55) ->  | L26: =IF(ISBLANK('Step 3 Exposure Parameters'!E55)," ",'Step 3 Exposure Parameters'!E55) ->  | M26: =IF(ISBLANK('Step 3 Exposure Parameters'!F55)," ",'Step 3 Exposure Parameters'!F55) ->  | N26: =IF(ISBLANK('Step 3 Exposure Parameters'!G55)," ",'Step 3 Exposure Parameters'!G55) ->  | O26: =IF(ISBLANK('Step 3 Exposure Parameters'!H55)," ",'Step 3 Exposure Parameters'!H55) ->  | P26: =IF(ISBLANK('Step 3 Exposure Parameters'!I55)," ",'Step 3 Exposure Parameters'!I55) ->  | Q26: =IF(ISBLANK('Step 3 Exposure Parameters'!J55)," ",'Step 3 Exposure Parameters'!J55) ->  | R26: =IF(ISBLANK('Step 3 Exposure Parameters'!K55)," ",'Step 3 Exposure Parameters'!K55) -> 
E27: Lowest Tissue Screening Level: | F27: =IF(B21=" ","--",MIN(F21:F26)) -> -- | I27: =IF(ISBLANK(I21)," ",I21) -> 
C28: =J28 ->  | D28: =IF(B28=" ","--",IF(C28=" ","--",IF(L28=0,IF(K28=0,"--",K28),((L28*N28*O28)/(P28*M28))))) -> -- | E28: =IF(B28=" ","--",IF(C28=" ","--",IF(Q28=0,"--",Q28/R28))) -> -- | F28: =IF(MIN(D28:E28)>0,MIN(D28:E28),"--") -> -- | I28: =IF(ISBLANK('Step 3 Exposure Parameters'!$B56)," ",'Step 3 Exposure Parameters'!$B56) ->  | J28: =IF(ISBLANK('Step 3 Exposure Parameters'!$C56)," ",'Step 3 Exposure Parameters'!$C56) ->  | K28: =IF(ISBLANK('Step 3 Exposure Parameters'!D56)," ",'Step 3 Exposure Parameters'!D56) ->  | L28: =IF(ISBLANK('Step 3 Exposure Parameters'!E56)," ",'Step 3 Exposure Parameters'!E56) ->  | M28: =IF(ISBLANK('Step 3 Exposure Parameters'!F56)," ",'Step 3 Exposure Parameters'!F56) ->  | N28: =IF(ISBLANK('Step 3 Exposure Parameters'!G56)," ",'Step 3 Exposure Parameters'!G56) ->  | O28: =IF(ISBLANK('Step 3 Exposure Parameters'!H56)," ",'Step 3 Exposure Parameters'!H56) ->  | P28: =IF(ISBLANK('Step 3 Exposure Parameters'!I56)," ",'Step 3 Exposure Parameters'!I56) ->  | Q28: =IF(ISBLANK('Step 3 Exposure Parameters'!J56)," ",'Step 3 Exposure Parameters'!J56) ->  | R28: =IF(ISBLANK('Step 3 Exposure Parameters'!K56)," ",'Step 3 Exposure Parameters'!K56) -> 
C29: =J29 ->  | D29: =IF(B29=" ","--",IF(C29=" ","--",IF(L29=0,IF(K29=0,"--",K29),((L29*N29*O29)/(P29*M29))))) -> -- | E29: =IF(B29=" ","--",IF(C29=" ","--",IF(Q29=0,"--",Q29/R29))) -> -- | F29: =IF(MIN(D29:E29)>0,MIN(D29:E29),"--") -> -- | I29: =IF(ISBLANK('Step 3 Exposure Parameters'!$B57)," ",'Step 3 Exposure Parameters'!$B57) ->  | J29: =IF(ISBLANK('Step 3 Exposure Parameters'!$C57)," ",'Step 3 Exposure Parameters'!$C57) ->  | K29: =IF(ISBLANK('Step 3 Exposure Parameters'!D57)," ",'Step 3 Exposure Parameters'!D57) ->  | L29: =IF(ISBLANK('Step 3 Exposure Parameters'!E57)," ",'Step 3 Exposure Parameters'!E57) ->  | M29: =IF(ISBLANK('Step 3 Exposure Parameters'!F57)," ",'Step 3 Exposure Parameters'!F57) ->  | N29: =IF(ISBLANK('Step 3 Exposure Parameters'!G57)," ",'Step 3 Exposure Parameters'!G57) ->  | O29: =IF(ISBLANK('Step 3 Exposure Parameters'!H57)," ",'Step 3 Exposure Parameters'!H57) ->  | P29: =IF(ISBLANK('Step 3 Exposure Parameters'!I57)," ",'Step 3 Exposure Parameters'!I57) ->  | Q29: =IF(ISBLANK('Step 3 Exposure Parameters'!J57)," ",'Step 3 Exposure Parameters'!J57) ->  | R29: =IF(ISBLANK('Step 3 Exposure Parameters'!K57)," ",'Step 3 Exposure Parameters'!K57) -> 
D30: -- | E30: -- | F30: -- | I30: =IF(ISBLANK('Step 3 Exposure Parameters'!$B58)," ",'Step 3 Exposure Parameters'!$B58) ->  | J30: =IF(ISBLANK('Step 3 Exposure Parameters'!$C58)," ",'Step 3 Exposure Parameters'!$C58) ->  | K30: =IF(ISBLANK('Step 3 Exposure Parameters'!D58)," ",'Step 3 Exposure Parameters'!D58) ->  | L30: =IF(ISBLANK('Step 3 Exposure Parameters'!E58)," ",'Step 3 Exposure Parameters'!E58) ->  | M30: =IF(ISBLANK('Step 3 Exposure Parameters'!F58)," ",'Step 3 Exposure Parameters'!F58) ->  | N30: =IF(ISBLANK('Step 3 Exposure Parameters'!G58)," ",'Step 3 Exposure Parameters'!G58) ->  | O30: =IF(ISBLANK('Step 3 Exposure Parameters'!H58)," ",'Step 3 Exposure Parameters'!H58) ->  | P30: =IF(ISBLANK('Step 3 Exposure Parameters'!I58)," ",'Step 3 Exposure Parameters'!I58) ->  | Q30: =IF(ISBLANK('Step 3 Exposure Parameters'!J58)," ",'Step 3 Exposure Parameters'!J58) ->  | R30: =IF(ISBLANK('Step 3 Exposure Parameters'!K58)," ",'Step 3 Exposure Parameters'!K58) -> 
D31: -- | E31: -- | F31: -- | I31: =IF(ISBLANK('Step 3 Exposure Parameters'!$B59)," ",'Step 3 Exposure Parameters'!$B59) ->  | J31: =IF(ISBLANK('Step 3 Exposure Parameters'!$C59)," ",'Step 3 Exposure Parameters'!$C59) ->  | K31: =IF(ISBLANK('Step 3 Exposure Parameters'!D59)," ",'Step 3 Exposure Parameters'!D59) ->  | L31: =IF(ISBLANK('Step 3 Exposure Parameters'!E59)," ",'Step 3 Exposure Parameters'!E59) ->  | M31: =IF(ISBLANK('Step 3 Exposure Parameters'!F59)," ",'Step 3 Exposure Parameters'!F59) ->  | N31: =IF(ISBLANK('Step 3 Exposure Parameters'!G59)," ",'Step 3 Exposure Parameters'!G59) ->  | O31: =IF(ISBLANK('Step 3 Exposure Parameters'!H59)," ",'Step 3 Exposure Parameters'!H59) ->  | P31: =IF(ISBLANK('Step 3 Exposure Parameters'!I59)," ",'Step 3 Exposure Parameters'!I59) ->  | Q31: =IF(ISBLANK('Step 3 Exposure Parameters'!J59)," ",'Step 3 Exposure Parameters'!J59) ->  | R31: =IF(ISBLANK('Step 3 Exposure Parameters'!K59)," ",'Step 3 Exposure Parameters'!K59) -> 
D32: -- | E32: -- | F32: -- | I32: =IF(ISBLANK('Step 3 Exposure Parameters'!$B60)," ",'Step 3 Exposure Parameters'!$B60) ->  | J32: =IF(ISBLANK('Step 3 Exposure Parameters'!$C60)," ",'Step 3 Exposure Parameters'!$C60) ->  | K32: =IF(ISBLANK('Step 3 Exposure Parameters'!D60)," ",'Step 3 Exposure Parameters'!D60) ->  | L32: =IF(ISBLANK('Step 3 Exposure Parameters'!E60)," ",'Step 3 Exposure Parameters'!E60) ->  | M32: =IF(ISBLANK('Step 3 Exposure Parameters'!F60)," ",'Step 3 Exposure Parameters'!F60) ->  | N32: =IF(ISBLANK('Step 3 Exposure Parameters'!G60)," ",'Step 3 Exposure Parameters'!G60) ->  | O32: =IF(ISBLANK('Step 3 Exposure Parameters'!H60)," ",'Step 3 Exposure Parameters'!H60) ->  | P32: =IF(ISBLANK('Step 3 Exposure Parameters'!I60)," ",'Step 3 Exposure Parameters'!I60) ->  | Q32: =IF(ISBLANK('Step 3 Exposure Parameters'!J60)," ",'Step 3 Exposure Parameters'!J60) ->  | R32: =IF(ISBLANK('Step 3 Exposure Parameters'!K60)," ",'Step 3 Exposure Parameters'!K60) -> 
D33: -- | E33: -- | F33: -- | I33: =IF(ISBLANK('Step 3 Exposure Parameters'!$B61)," ",'Step 3 Exposure Parameters'!$B61) ->  | J33: =IF(ISBLANK('Step 3 Exposure Parameters'!$C61)," ",'Step 3 Exposure Parameters'!$C61) ->  | K33: =IF(ISBLANK('Step 3 Exposure Parameters'!D61)," ",'Step 3 Exposure Parameters'!D61) ->  | L33: =IF(ISBLANK('Step 3 Exposure Parameters'!E61)," ",'Step 3 Exposure Parameters'!E61) ->  | M33: =IF(ISBLANK('Step 3 Exposure Parameters'!F61)," ",'Step 3 Exposure Parameters'!F61) ->  | N33: =IF(ISBLANK('Step 3 Exposure Parameters'!G61)," ",'Step 3 Exposure Parameters'!G61) ->  | O33: =IF(ISBLANK('Step 3 Exposure Parameters'!H61)," ",'Step 3 Exposure Parameters'!H61) ->  | P33: =IF(ISBLANK('Step 3 Exposure Parameters'!I61)," ",'Step 3 Exposure Parameters'!I61) ->  | Q33: =IF(ISBLANK('Step 3 Exposure Parameters'!J61)," ",'Step 3 Exposure Parameters'!J61) ->  | R33: =IF(ISBLANK('Step 3 Exposure Parameters'!K61)," ",'Step 3 Exposure Parameters'!K61) -> 
E34: Lowest Tissue Screening Level: | F34: =IF(B28=" ","--",MIN(F28:F33)) -> -- | I34: =IF(ISBLANK(I28)," ",I28) -> 
C35: =J35 ->  | D35: =IF(B35=" ","--",IF(C35=" ","--",IF(L35=0,IF(K35=0,"--",K35),((L35*N35*O35)/(P35*M35))))) -> -- | E35: =IF(B35=" ","--",IF(C35=" ","--",IF(Q35=0,"--",Q35/R35))) -> -- | F35: =IF(MIN(D35:E35)>0,MIN(D35:E35),"--") -> -- | I35: =IF(ISBLANK('Step 3 Exposure Parameters'!$B62)," ",'Step 3 Exposure Parameters'!$B62) ->  | J35: =IF(ISBLANK('Step 3 Exposure Parameters'!$C62)," ",'Step 3 Exposure Parameters'!$C62) ->  | K35: =IF(ISBLANK('Step 3 Exposure Parameters'!D62)," ",'Step 3 Exposure Parameters'!D62) ->  | L35: =IF(ISBLANK('Step 3 Exposure Parameters'!E62)," ",'Step 3 Exposure Parameters'!E62) ->  | M35: =IF(ISBLANK('Step 3 Exposure Parameters'!F62)," ",'Step 3 Exposure Parameters'!F62) ->  | N35: =IF(ISBLANK('Step 3 Exposure Parameters'!G62)," ",'Step 3 Exposure Parameters'!G62) ->  | O35: =IF(ISBLANK('Step 3 Exposure Parameters'!H62)," ",'Step 3 Exposure Parameters'!H62) ->  | P35: =IF(ISBLANK('Step 3 Exposure Parameters'!I62)," ",'Step 3 Exposure Parameters'!I62) ->  | Q35: =IF(ISBLANK('Step 3 Exposure Parameters'!J62)," ",'Step 3 Exposure Parameters'!J62) ->  | R35: =IF(ISBLANK('Step 3 Exposure Parameters'!K62)," ",'Step 3 Exposure Parameters'!K62) -> 
C36: =J36 ->  | D36: =IF(B36=" ","--",IF(C36=" ","--",IF(L36=0,IF(K36=0,"--",K36),((L36*N36*O36)/(P36*M36))))) -> -- | E36: =IF(B36=" ","--",IF(C36=" ","--",IF(Q36=0,"--",Q36/R36))) -> -- | F36: =IF(MIN(D36:E36)>0,MIN(D36:E36),"--") -> -- | I36: =IF(ISBLANK('Step 3 Exposure Parameters'!$B63)," ",'Step 3 Exposure Parameters'!$B63) ->  | J36: =IF(ISBLANK('Step 3 Exposure Parameters'!$C63)," ",'Step 3 Exposure Parameters'!$C63) ->  | K36: =IF(ISBLANK('Step 3 Exposure Parameters'!D63)," ",'Step 3 Exposure Parameters'!D63) ->  | L36: =IF(ISBLANK('Step 3 Exposure Parameters'!E63)," ",'Step 3 Exposure Parameters'!E63) ->  | M36: =IF(ISBLANK('Step 3 Exposure Parameters'!F63)," ",'Step 3 Exposure Parameters'!F63) ->  | N36: =IF(ISBLANK('Step 3 Exposure Parameters'!G63)," ",'Step 3 Exposure Parameters'!G63) ->  | O36: =IF(ISBLANK('Step 3 Exposure Parameters'!H63)," ",'Step 3 Exposure Parameters'!H63) ->  | P36: =IF(ISBLANK('Step 3 Exposure Parameters'!I63)," ",'Step 3 Exposure Parameters'!I63) ->  | Q36: =IF(ISBLANK('Step 3 Exposure Parameters'!J63)," ",'Step 3 Exposure Parameters'!J63) ->  | R36: =IF(ISBLANK('Step 3 Exposure Parameters'!K63)," ",'Step 3 Exposure Parameters'!K63) -> 
D37: -- | E37: -- | F37: -- | I37: =IF(ISBLANK('Step 3 Exposure Parameters'!$B64)," ",'Step 3 Exposure Parameters'!$B64) ->  | J37: =IF(ISBLANK('Step 3 Exposure Parameters'!$C64)," ",'Step 3 Exposure Parameters'!$C64) ->  | K37: =IF(ISBLANK('Step 3 Exposure Parameters'!D64)," ",'Step 3 Exposure Parameters'!D64) ->  | L37: =IF(ISBLANK('Step 3 Exposure Parameters'!E64)," ",'Step 3 Exposure Parameters'!E64) ->  | M37: =IF(ISBLANK('Step 3 Exposure Parameters'!F64)," ",'Step 3 Exposure Parameters'!F64) ->  | N37: =IF(ISBLANK('Step 3 Exposure Parameters'!G64)," ",'Step 3 Exposure Parameters'!G64) ->  | O37: =IF(ISBLANK('Step 3 Exposure Parameters'!H64)," ",'Step 3 Exposure Parameters'!H64) ->  | P37: =IF(ISBLANK('Step 3 Exposure Parameters'!I64)," ",'Step 3 Exposure Parameters'!I64) ->  | Q37: =IF(ISBLANK('Step 3 Exposure Parameters'!J64)," ",'Step 3 Exposure Parameters'!J64) ->  | R37: =IF(ISBLANK('Step 3 Exposure Parameters'!K64)," ",'Step 3 Exposure Parameters'!K64) -> 
D38: -- | E38: -- | F38: -- | I38: =IF(ISBLANK('Step 3 Exposure Parameters'!$B65)," ",'Step 3 Exposure Parameters'!$B65) ->  | J38: =IF(ISBLANK('Step 3 Exposure Parameters'!$C65)," ",'Step 3 Exposure Parameters'!$C65) ->  | K38: =IF(ISBLANK('Step 3 Exposure Parameters'!D65)," ",'Step 3 Exposure Parameters'!D65) ->  | L38: =IF(ISBLANK('Step 3 Exposure Parameters'!E65)," ",'Step 3 Exposure Parameters'!E65) ->  | M38: =IF(ISBLANK('Step 3 Exposure Parameters'!F65)," ",'Step 3 Exposure Parameters'!F65) ->  | N38: =IF(ISBLANK('Step 3 Exposure Parameters'!G65)," ",'Step 3 Exposure Parameters'!G65) ->  | O38: =IF(ISBLANK('Step 3 Exposure Parameters'!H65)," ",'Step 3 Exposure Parameters'!H65) ->  | P38: =IF(ISBLANK('Step 3 Exposure Parameters'!I65)," ",'Step 3 Exposure Parameters'!I65) ->  | Q38: =IF(ISBLANK('Step 3 Exposure Parameters'!J65)," ",'Step 3 Exposure Parameters'!J65) ->  | R38: =IF(ISBLANK('Step 3 Exposure Parameters'!K65)," ",'Step 3 Exposure Parameters'!K65) -> 
D39: -- | E39: -- | F39: -- | I39: =IF(ISBLANK('Step 3 Exposure Parameters'!$B66)," ",'Step 3 Exposure Parameters'!$B66) ->  | J39: =IF(ISBLANK('Step 3 Exposure Parameters'!$C66)," ",'Step 3 Exposure Parameters'!$C66) ->  | K39: =IF(ISBLANK('Step 3 Exposure Parameters'!D66)," ",'Step 3 Exposure Parameters'!D66) ->  | L39: =IF(ISBLANK('Step 3 Exposure Parameters'!E66)," ",'Step 3 Exposure Parameters'!E66) ->  | M39: =IF(ISBLANK('Step 3 Exposure Parameters'!F66)," ",'Step 3 Exposure Parameters'!F66) ->  | N39: =IF(ISBLANK('Step 3 Exposure Parameters'!G66)," ",'Step 3 Exposure Parameters'!G66) ->  | O39: =IF(ISBLANK('Step 3 Exposure Parameters'!H66)," ",'Step 3 Exposure Parameters'!H66) ->  | P39: =IF(ISBLANK('Step 3 Exposure Parameters'!I66)," ",'Step 3 Exposure Parameters'!I66) ->  | Q39: =IF(ISBLANK('Step 3 Exposure Parameters'!J66)," ",'Step 3 Exposure Parameters'!J66) ->  | R39: =IF(ISBLANK('Step 3 Exposure Parameters'!K66)," ",'Step 3 Exposure Parameters'!K66) -> 
D40: -- | E40: -- | F40: -- | I40: =IF(ISBLANK('Step 3 Exposure Parameters'!$B67)," ",'Step 3 Exposure Parameters'!$B67) ->  | J40: =IF(ISBLANK('Step 3 Exposure Parameters'!$C67)," ",'Step 3 Exposure Parameters'!$C67) ->  | K40: =IF(ISBLANK('Step 3 Exposure Parameters'!D67)," ",'Step 3 Exposure Parameters'!D67) ->  | L40: =IF(ISBLANK('Step 3 Exposure Parameters'!E67)," ",'Step 3 Exposure Parameters'!E67) ->  | M40: =IF(ISBLANK('Step 3 Exposure Parameters'!F67)," ",'Step 3 Exposure Parameters'!F67) ->  | N40: =IF(ISBLANK('Step 3 Exposure Parameters'!G67)," ",'Step 3 Exposure Parameters'!G67) ->  | O40: =IF(ISBLANK('Step 3 Exposure Parameters'!H67)," ",'Step 3 Exposure Parameters'!H67) ->  | P40: =IF(ISBLANK('Step 3 Exposure Parameters'!I67)," ",'Step 3 Exposure Parameters'!I67) ->  | Q40: =IF(ISBLANK('Step 3 Exposure Parameters'!J67)," ",'Step 3 Exposure Parameters'!J67) ->  | R40: =IF(ISBLANK('Step 3 Exposure Parameters'!K67)," ",'Step 3 Exposure Parameters'!K67) -> 
C41: Lowest Tissue Screening Level: | F41: =IF(B35=" ","--",MIN(F35:F40)) -> -- | I41: =IF(ISBLANK(I35)," ",I35) -> 
C42: =J42 ->  | D42: =IF(B42=" ","--",IF(C42=" ","--",IF(L42=0,IF(K42=0,"--",K42),((L42*N42*O42)/(P42*M42))))) -> -- | E42: =IF(B42=" ","--",IF(C42=" ","--",IF(Q42=0,"--",Q42/R42))) -> -- | F42: =IF(MIN(D42:E42)>0,MIN(D42:E42),"--") -> -- | I42: =IF(ISBLANK('Step 3 Exposure Parameters'!$B68)," ",'Step 3 Exposure Parameters'!$B68) ->  | J42: =IF(ISBLANK('Step 3 Exposure Parameters'!$C68)," ",'Step 3 Exposure Parameters'!$C68) ->  | K42: =IF(ISBLANK('Step 3 Exposure Parameters'!D68)," ",'Step 3 Exposure Parameters'!D68) ->  | L42: =IF(ISBLANK('Step 3 Exposure Parameters'!E68)," ",'Step 3 Exposure Parameters'!E68) ->  | M42: =IF(ISBLANK('Step 3 Exposure Parameters'!F68)," ",'Step 3 Exposure Parameters'!F68) ->  | N42: =IF(ISBLANK('Step 3 Exposure Parameters'!G68)," ",'Step 3 Exposure Parameters'!G68) ->  | O42: =IF(ISBLANK('Step 3 Exposure Parameters'!H68)," ",'Step 3 Exposure Parameters'!H68) ->  | P42: =IF(ISBLANK('Step 3 Exposure Parameters'!I68)," ",'Step 3 Exposure Parameters'!I68) ->  | Q42: =IF(ISBLANK('Step 3 Exposure Parameters'!J68)," ",'Step 3 Exposure Parameters'!J68) ->  | R42: =IF(ISBLANK('Step 3 Exposure Parameters'!K68)," ",'Step 3 Exposure Parameters'!K68) -> 
C43: =J43 ->  | D43: =IF(B43=" ","--",IF(C43=" ","--",IF(L43=0,IF(K43=0,"--",K43),((L43*N43*O43)/(P43*M43))))) -> -- | E43: =IF(B43=" ","--",IF(C43=" ","--",IF(Q43=0,"--",Q43/R43))) -> -- | F43: =IF(MIN(D43:E43)>0,MIN(D43:E43),"--") -> -- | I43: =IF(ISBLANK('Step 3 Exposure Parameters'!$B69)," ",'Step 3 Exposure Parameters'!$B69) ->  | J43: =IF(ISBLANK('Step 3 Exposure Parameters'!$C69)," ",'Step 3 Exposure Parameters'!$C69) ->  | K43: =IF(ISBLANK('Step 3 Exposure Parameters'!D69)," ",'Step 3 Exposure Parameters'!D69) ->  | L43: =IF(ISBLANK('Step 3 Exposure Parameters'!E69)," ",'Step 3 Exposure Parameters'!E69) ->  | M43: =IF(ISBLANK('Step 3 Exposure Parameters'!F69)," ",'Step 3 Exposure Parameters'!F69) ->  | N43: =IF(ISBLANK('Step 3 Exposure Parameters'!G69)," ",'Step 3 Exposure Parameters'!G69) ->  | O43: =IF(ISBLANK('Step 3 Exposure Parameters'!H69)," ",'Step 3 Exposure Parameters'!H69) ->  | P43: =IF(ISBLANK('Step 3 Exposure Parameters'!I69)," ",'Step 3 Exposure Parameters'!I69) ->  | Q43: =IF(ISBLANK('Step 3 Exposure Parameters'!J69)," ",'Step 3 Exposure Parameters'!J69) ->  | R43: =IF(ISBLANK('Step 3 Exposure Parameters'!K69)," ",'Step 3 Exposure Parameters'!K69) -> 
D44: -- | E44: -- | F44: -- | I44: =IF(ISBLANK('Step 3 Exposure Parameters'!$B70)," ",'Step 3 Exposure Parameters'!$B70) ->  | J44: =IF(ISBLANK('Step 3 Exposure Parameters'!$C70)," ",'Step 3 Exposure Parameters'!$C70) ->  | K44: =IF(ISBLANK('Step 3 Exposure Parameters'!D70)," ",'Step 3 Exposure Parameters'!D70) ->  | L44: =IF(ISBLANK('Step 3 Exposure Parameters'!E70)," ",'Step 3 Exposure Parameters'!E70) ->  | M44: =IF(ISBLANK('Step 3 Exposure Parameters'!F70)," ",'Step 3 Exposure Parameters'!F70) ->  | N44: =IF(ISBLANK('Step 3 Exposure Parameters'!G70)," ",'Step 3 Exposure Parameters'!G70) ->  | O44: =IF(ISBLANK('Step 3 Exposure Parameters'!H70)," ",'Step 3 Exposure Parameters'!H70) ->  | P44: =IF(ISBLANK('Step 3 Exposure Parameters'!I70)," ",'Step 3 Exposure Parameters'!I70) ->  | Q44: =IF(ISBLANK('Step 3 Exposure Parameters'!J70)," ",'Step 3 Exposure Parameters'!J70) ->  | R44: =IF(ISBLANK('Step 3 Exposure Parameters'!K70)," ",'Step 3 Exposure Parameters'!K70) -> 
D45: -- | E45: -- | F45: -- | I45: =IF(ISBLANK('Step 3 Exposure Parameters'!$B71)," ",'Step 3 Exposure Parameters'!$B71) ->  | J45: =IF(ISBLANK('Step 3 Exposure Parameters'!$C71)," ",'Step 3 Exposure Parameters'!$C71) ->  | K45: =IF(ISBLANK('Step 3 Exposure Parameters'!D71)," ",'Step 3 Exposure Parameters'!D71) ->  | L45: =IF(ISBLANK('Step 3 Exposure Parameters'!E71)," ",'Step 3 Exposure Parameters'!E71) ->  | M45: =IF(ISBLANK('Step 3 Exposure Parameters'!F71)," ",'Step 3 Exposure Parameters'!F71) ->  | N45: =IF(ISBLANK('Step 3 Exposure Parameters'!G71)," ",'Step 3 Exposure Parameters'!G71) ->  | O45: =IF(ISBLANK('Step 3 Exposure Parameters'!H71)," ",'Step 3 Exposure Parameters'!H71) ->  | P45: =IF(ISBLANK('Step 3 Exposure Parameters'!I71)," ",'Step 3 Exposure Parameters'!I71) ->  | Q45: =IF(ISBLANK('Step 3 Exposure Parameters'!J71)," ",'Step 3 Exposure Parameters'!J71) ->  | R45: =IF(ISBLANK('Step 3 Exposure Parameters'!K71)," ",'Step 3 Exposure Parameters'!K71) -> 
D46: -- | E46: -- | F46: -- | I46: =IF(ISBLANK('Step 3 Exposure Parameters'!$B72)," ",'Step 3 Exposure Parameters'!$B72) ->  | J46: =IF(ISBLANK('Step 3 Exposure Parameters'!$C72)," ",'Step 3 Exposure Parameters'!$C72) ->  | K46: =IF(ISBLANK('Step 3 Exposure Parameters'!D72)," ",'Step 3 Exposure Parameters'!D72) ->  | L46: =IF(ISBLANK('Step 3 Exposure Parameters'!E72)," ",'Step 3 Exposure Parameters'!E72) ->  | M46: =IF(ISBLANK('Step 3 Exposure Parameters'!F72)," ",'Step 3 Exposure Parameters'!F72) ->  | N46: =IF(ISBLANK('Step 3 Exposure Parameters'!G72)," ",'Step 3 Exposure Parameters'!G72) ->  | O46: =IF(ISBLANK('Step 3 Exposure Parameters'!H72)," ",'Step 3 Exposure Parameters'!H72) ->  | P46: =IF(ISBLANK('Step 3 Exposure Parameters'!I72)," ",'Step 3 Exposure Parameters'!I72) ->  | Q46: =IF(ISBLANK('Step 3 Exposure Parameters'!J72)," ",'Step 3 Exposure Parameters'!J72) ->  | R46: =IF(ISBLANK('Step 3 Exposure Parameters'!K72)," ",'Step 3 Exposure Parameters'!K72) -> 
D47: -- | E47: -- | F47: -- | I47: =IF(ISBLANK('Step 3 Exposure Parameters'!$B73)," ",'Step 3 Exposure Parameters'!$B73) ->  | J47: =IF(ISBLANK('Step 3 Exposure Parameters'!$C73)," ",'Step 3 Exposure Parameters'!$C73) ->  | K47: =IF(ISBLANK('Step 3 Exposure Parameters'!D73)," ",'Step 3 Exposure Parameters'!D73) ->  | L47: =IF(ISBLANK('Step 3 Exposure Parameters'!E73)," ",'Step 3 Exposure Parameters'!E73) ->  | M47: =IF(ISBLANK('Step 3 Exposure Parameters'!F73)," ",'Step 3 Exposure Parameters'!F73) ->  | N47: =IF(ISBLANK('Step 3 Exposure Parameters'!G73)," ",'Step 3 Exposure Parameters'!G73) ->  | O47: =IF(ISBLANK('Step 3 Exposure Parameters'!H73)," ",'Step 3 Exposure Parameters'!H73) ->  | P47: =IF(ISBLANK('Step 3 Exposure Parameters'!I73)," ",'Step 3 Exposure Parameters'!I73) ->  | Q47: =IF(ISBLANK('Step 3 Exposure Parameters'!J73)," ",'Step 3 Exposure Parameters'!J73) ->  | R47: =IF(ISBLANK('Step 3 Exposure Parameters'!K73)," ",'Step 3 Exposure Parameters'!K73) -> 
C48: Lowest Tissue Screening Level: | F48: =IF(B42=" ","--",MIN(F42:F47)) -> -- | I48: =IF(ISBLANK(I42)," ",I42) -> 
C49: =J49 ->  | D49: =IF(B49=" ","--",IF(C49=" ","--",IF(L49=0,IF(K49=0,"--",K49),((L49*N49*O49)/(P49*M49))))) -> -- | E49: =IF(B49=" ","--",IF(C49=" ","--",IF(Q49=0,"--",Q49/R49))) -> -- | F49: =IF(MIN(D49:E49)>0,MIN(D49:E49),"--") -> -- | I49: =IF(ISBLANK('Step 3 Exposure Parameters'!$B74)," ",'Step 3 Exposure Parameters'!$B74) ->  | J49: =IF(ISBLANK('Step 3 Exposure Parameters'!$C74)," ",'Step 3 Exposure Parameters'!$C74) ->  | K49: =IF(ISBLANK('Step 3 Exposure Parameters'!D74)," ",'Step 3 Exposure Parameters'!D74) ->  | L49: =IF(ISBLANK('Step 3 Exposure Parameters'!E74)," ",'Step 3 Exposure Parameters'!E74) ->  | M49: =IF(ISBLANK('Step 3 Exposure Parameters'!F74)," ",'Step 3 Exposure Parameters'!F74) ->  | N49: =IF(ISBLANK('Step 3 Exposure Parameters'!G74)," ",'Step 3 Exposure Parameters'!G74) ->  | O49: =IF(ISBLANK('Step 3 Exposure Parameters'!H74)," ",'Step 3 Exposure Parameters'!H74) ->  | P49: =IF(ISBLANK('Step 3 Exposure Parameters'!I74)," ",'Step 3 Exposure Parameters'!I74) ->  | Q49: =IF(ISBLANK('Step 3 Exposure Parameters'!J74)," ",'Step 3 Exposure Parameters'!J74) ->  | R49: =IF(ISBLANK('Step 3 Exposure Parameters'!K74)," ",'Step 3 Exposure Parameters'!K74) -> 
C50: =J50 ->  | D50: =IF(B50=" ","--",IF(C50=" ","--",IF(L50=0,IF(K50=0,"--",K50),((L50*N50*O50)/(P50*M50))))) -> -- | E50: =IF(B50=" ","--",IF(C50=" ","--",IF(Q50=0,"--",Q50/R50))) -> -- | F50: =IF(MIN(D50:E50)>0,MIN(D50:E50),"--") -> -- | I50: =IF(ISBLANK('Step 3 Exposure Parameters'!$B75)," ",'Step 3 Exposure Parameters'!$B75) ->  | J50: =IF(ISBLANK('Step 3 Exposure Parameters'!$C75)," ",'Step 3 Exposure Parameters'!$C75) ->  | K50: =IF(ISBLANK('Step 3 Exposure Parameters'!D75)," ",'Step 3 Exposure Parameters'!D75) ->  | L50: =IF(ISBLANK('Step 3 Exposure Parameters'!E75)," ",'Step 3 Exposure Parameters'!E75) ->  | M50: =IF(ISBLANK('Step 3 Exposure Parameters'!F75)," ",'Step 3 Exposure Parameters'!F75) ->  | N50: =IF(ISBLANK('Step 3 Exposure Parameters'!G75)," ",'Step 3 Exposure Parameters'!G75) ->  | O50: =IF(ISBLANK('Step 3 Exposure Parameters'!H75)," ",'Step 3 Exposure Parameters'!H75) ->  | P50: =IF(ISBLANK('Step 3 Exposure Parameters'!I75)," ",'Step 3 Exposure Parameters'!I75) ->  | Q50: =IF(ISBLANK('Step 3 Exposure Parameters'!J75)," ",'Step 3 Exposure Parameters'!J75) ->  | R50: =IF(ISBLANK('Step 3 Exposure Parameters'!K75)," ",'Step 3 Exposure Parameters'!K75) -> 
D51: -- | E51: -- | F51: -- | I51: =IF(ISBLANK('Step 3 Exposure Parameters'!$B76)," ",'Step 3 Exposure Parameters'!$B76) ->  | J51: =IF(ISBLANK('Step 3 Exposure Parameters'!$C76)," ",'Step 3 Exposure Parameters'!$C76) ->  | K51: =IF(ISBLANK('Step 3 Exposure Parameters'!D76)," ",'Step 3 Exposure Parameters'!D76) ->  | L51: =IF(ISBLANK('Step 3 Exposure Parameters'!E76)," ",'Step 3 Exposure Parameters'!E76) ->  | M51: =IF(ISBLANK('Step 3 Exposure Parameters'!F76)," ",'Step 3 Exposure Parameters'!F76) ->  | N51: =IF(ISBLANK('Step 3 Exposure Parameters'!G76)," ",'Step 3 Exposure Parameters'!G76) ->  | O51: =IF(ISBLANK('Step 3 Exposure Parameters'!H76)," ",'Step 3 Exposure Parameters'!H76) ->  | P51: =IF(ISBLANK('Step 3 Exposure Parameters'!I76)," ",'Step 3 Exposure Parameters'!I76) ->  | Q51: =IF(ISBLANK('Step 3 Exposure Parameters'!J76)," ",'Step 3 Exposure Parameters'!J76) ->  | R51: =IF(ISBLANK('Step 3 Exposure Parameters'!K76)," ",'Step 3 Exposure Parameters'!K76) -> 
D52: -- | E52: -- | F52: -- | I52: =IF(ISBLANK('Step 3 Exposure Parameters'!$B77)," ",'Step 3 Exposure Parameters'!$B77) ->  | J52: =IF(ISBLANK('Step 3 Exposure Parameters'!$C77)," ",'Step 3 Exposure Parameters'!$C77) ->  | K52: =IF(ISBLANK('Step 3 Exposure Parameters'!D77)," ",'Step 3 Exposure Parameters'!D77) ->  | L52: =IF(ISBLANK('Step 3 Exposure Parameters'!E77)," ",'Step 3 Exposure Parameters'!E77) ->  | M52: =IF(ISBLANK('Step 3 Exposure Parameters'!F77)," ",'Step 3 Exposure Parameters'!F77) ->  | N52: =IF(ISBLANK('Step 3 Exposure Parameters'!G77)," ",'Step 3 Exposure Parameters'!G77) ->  | O52: =IF(ISBLANK('Step 3 Exposure Parameters'!H77)," ",'Step 3 Exposure Parameters'!H77) ->  | P52: =IF(ISBLANK('Step 3 Exposure Parameters'!I77)," ",'Step 3 Exposure Parameters'!I77) ->  | Q52: =IF(ISBLANK('Step 3 Exposure Parameters'!J77)," ",'Step 3 Exposure Parameters'!J77) ->  | R52: =IF(ISBLANK('Step 3 Exposure Parameters'!K77)," ",'Step 3 Exposure Parameters'!K77) -> 
D53: -- | E53: -- | F53: -- | I53: =IF(ISBLANK('Step 3 Exposure Parameters'!$B78)," ",'Step 3 Exposure Parameters'!$B78) ->  | J53: =IF(ISBLANK('Step 3 Exposure Parameters'!$C78)," ",'Step 3 Exposure Parameters'!$C78) ->  | K53: =IF(ISBLANK('Step 3 Exposure Parameters'!D78)," ",'Step 3 Exposure Parameters'!D78) ->  | L53: =IF(ISBLANK('Step 3 Exposure Parameters'!E78)," ",'Step 3 Exposure Parameters'!E78) ->  | M53: =IF(ISBLANK('Step 3 Exposure Parameters'!F78)," ",'Step 3 Exposure Parameters'!F78) ->  | N53: =IF(ISBLANK('Step 3 Exposure Parameters'!G78)," ",'Step 3 Exposure Parameters'!G78) ->  | O53: =IF(ISBLANK('Step 3 Exposure Parameters'!H78)," ",'Step 3 Exposure Parameters'!H78) ->  | P53: =IF(ISBLANK('Step 3 Exposure Parameters'!I78)," ",'Step 3 Exposure Parameters'!I78) ->  | Q53: =IF(ISBLANK('Step 3 Exposure Parameters'!J78)," ",'Step 3 Exposure Parameters'!J78) ->  | R53: =IF(ISBLANK('Step 3 Exposure Parameters'!K78)," ",'Step 3 Exposure Parameters'!K78) -> 
D54: -- | E54: -- | F54: -- | I54: =IF(ISBLANK('Step 3 Exposure Parameters'!$B79)," ",'Step 3 Exposure Parameters'!$B79) ->  | J54: =IF(ISBLANK('Step 3 Exposure Parameters'!$C79)," ",'Step 3 Exposure Parameters'!$C79) ->  | K54: =IF(ISBLANK('Step 3 Exposure Parameters'!D79)," ",'Step 3 Exposure Parameters'!D79) ->  | L54: =IF(ISBLANK('Step 3 Exposure Parameters'!E79)," ",'Step 3 Exposure Parameters'!E79) ->  | M54: =IF(ISBLANK('Step 3 Exposure Parameters'!F79)," ",'Step 3 Exposure Parameters'!F79) ->  | N54: =IF(ISBLANK('Step 3 Exposure Parameters'!G79)," ",'Step 3 Exposure Parameters'!G79) ->  | O54: =IF(ISBLANK('Step 3 Exposure Parameters'!H79)," ",'Step 3 Exposure Parameters'!H79) ->  | P54: =IF(ISBLANK('Step 3 Exposure Parameters'!I79)," ",'Step 3 Exposure Parameters'!I79) ->  | Q54: =IF(ISBLANK('Step 3 Exposure Parameters'!J79)," ",'Step 3 Exposure Parameters'!J79) ->  | R54: =IF(ISBLANK('Step 3 Exposure Parameters'!K79)," ",'Step 3 Exposure Parameters'!K79) -> 
C55: Lowest Tissue Screening Level: | F55: =IF(B49=" ","--",MIN(F49:F54)) -> -- | I55: =IF(ISBLANK(I49)," ",I49) -> 
C56: =J56 ->  | D56: =IF(B56=" ","--",IF(C56=" ","--",IF(L56=0,IF(K56=0,"--",K56),((L56*N56*O56)/(P56*M56))))) -> -- | E56: =IF(B56=" ","--",IF(C56=" ","--",IF(Q56=0,"--",Q56/R56))) -> -- | F56: =IF(MIN(D56:E56)>0,MIN(D56:E56),"--") -> -- | I56: =IF(ISBLANK('Step 3 Exposure Parameters'!$B80)," ",'Step 3 Exposure Parameters'!$B80) ->  | J56: =IF(ISBLANK('Step 3 Exposure Parameters'!$C80)," ",'Step 3 Exposure Parameters'!$C80) ->  | K56: =IF(ISBLANK('Step 3 Exposure Parameters'!D80)," ",'Step 3 Exposure Parameters'!D80) ->  | L56: =IF(ISBLANK('Step 3 Exposure Parameters'!E80)," ",'Step 3 Exposure Parameters'!E80) ->  | M56: =IF(ISBLANK('Step 3 Exposure Parameters'!F80)," ",'Step 3 Exposure Parameters'!F80) ->  | N56: =IF(ISBLANK('Step 3 Exposure Parameters'!G80)," ",'Step 3 Exposure Parameters'!G80) ->  | O56: =IF(ISBLANK('Step 3 Exposure Parameters'!H80)," ",'Step 3 Exposure Parameters'!H80) ->  | P56: =IF(ISBLANK('Step 3 Exposure Parameters'!I80)," ",'Step 3 Exposure Parameters'!I80) ->  | Q56: =IF(ISBLANK('Step 3 Exposure Parameters'!J80)," ",'Step 3 Exposure Parameters'!J80) ->  | R56: =IF(ISBLANK('Step 3 Exposure Parameters'!K80)," ",'Step 3 Exposure Parameters'!K80) -> 
C57: =J57 ->  | D57: =IF(B57=" ","--",IF(C57=" ","--",IF(L57=0,IF(K57=0,"--",K57),((L57*N57*O57)/(P57*M57))))) -> -- | E57: =IF(B57=" ","--",IF(C57=" ","--",IF(Q57=0,"--",Q57/R57))) -> -- | F57: =IF(MIN(D57:E57)>0,MIN(D57:E57),"--") -> -- | I57: =IF(ISBLANK('Step 3 Exposure Parameters'!$B81)," ",'Step 3 Exposure Parameters'!$B81) ->  | J57: =IF(ISBLANK('Step 3 Exposure Parameters'!$C81)," ",'Step 3 Exposure Parameters'!$C81) ->  | K57: =IF(ISBLANK('Step 3 Exposure Parameters'!D81)," ",'Step 3 Exposure Parameters'!D81) ->  | L57: =IF(ISBLANK('Step 3 Exposure Parameters'!E81)," ",'Step 3 Exposure Parameters'!E81) ->  | M57: =IF(ISBLANK('Step 3 Exposure Parameters'!F81)," ",'Step 3 Exposure Parameters'!F81) ->  | N57: =IF(ISBLANK('Step 3 Exposure Parameters'!G81)," ",'Step 3 Exposure Parameters'!G81) ->  | O57: =IF(ISBLANK('Step 3 Exposure Parameters'!H81)," ",'Step 3 Exposure Parameters'!H81) ->  | P57: =IF(ISBLANK('Step 3 Exposure Parameters'!I81)," ",'Step 3 Exposure Parameters'!I81) ->  | Q57: =IF(ISBLANK('Step 3 Exposure Parameters'!J81)," ",'Step 3 Exposure Parameters'!J81) ->  | R57: =IF(ISBLANK('Step 3 Exposure Parameters'!K81)," ",'Step 3 Exposure Parameters'!K81) -> 
D58: -- | E58: -- | F58: -- | I58: =IF(ISBLANK('Step 3 Exposure Parameters'!$B82)," ",'Step 3 Exposure Parameters'!$B82) ->  | J58: =IF(ISBLANK('Step 3 Exposure Parameters'!$C82)," ",'Step 3 Exposure Parameters'!$C82) ->  | K58: =IF(ISBLANK('Step 3 Exposure Parameters'!D82)," ",'Step 3 Exposure Parameters'!D82) ->  | L58: =IF(ISBLANK('Step 3 Exposure Parameters'!E82)," ",'Step 3 Exposure Parameters'!E82) ->  | M58: =IF(ISBLANK('Step 3 Exposure Parameters'!F82)," ",'Step 3 Exposure Parameters'!F82) ->  | N58: =IF(ISBLANK('Step 3 Exposure Parameters'!G82)," ",'Step 3 Exposure Parameters'!G82) ->  | O58: =IF(ISBLANK('Step 3 Exposure Parameters'!H82)," ",'Step 3 Exposure Parameters'!H82) ->  | P58: =IF(ISBLANK('Step 3 Exposure Parameters'!I82)," ",'Step 3 Exposure Parameters'!I82) ->  | Q58: =IF(ISBLANK('Step 3 Exposure Parameters'!J82)," ",'Step 3 Exposure Parameters'!J82) ->  | R58: =IF(ISBLANK('Step 3 Exposure Parameters'!K82)," ",'Step 3 Exposure Parameters'!K82) -> 
D59: -- | E59: -- | F59: -- | I59: =IF(ISBLANK('Step 3 Exposure Parameters'!$B83)," ",'Step 3 Exposure Parameters'!$B83) ->  | J59: =IF(ISBLANK('Step 3 Exposure Parameters'!$C83)," ",'Step 3 Exposure Parameters'!$C83) ->  | K59: =IF(ISBLANK('Step 3 Exposure Parameters'!D83)," ",'Step 3 Exposure Parameters'!D83) ->  | L59: =IF(ISBLANK('Step 3 Exposure Parameters'!E83)," ",'Step 3 Exposure Parameters'!E83) ->  | M59: =IF(ISBLANK('Step 3 Exposure Parameters'!F83)," ",'Step 3 Exposure Parameters'!F83) ->  | N59: =IF(ISBLANK('Step 3 Exposure Parameters'!G83)," ",'Step 3 Exposure Parameters'!G83) ->  | O59: =IF(ISBLANK('Step 3 Exposure Parameters'!H83)," ",'Step 3 Exposure Parameters'!H83) ->  | P59: =IF(ISBLANK('Step 3 Exposure Parameters'!I83)," ",'Step 3 Exposure Parameters'!I83) ->  | Q59: =IF(ISBLANK('Step 3 Exposure Parameters'!J83)," ",'Step 3 Exposure Parameters'!J83) ->  | R59: =IF(ISBLANK('Step 3 Exposure Parameters'!K83)," ",'Step 3 Exposure Parameters'!K83) -> 
D60: -- | E60: -- | F60: -- | I60: =IF(ISBLANK('Step 3 Exposure Parameters'!$B84)," ",'Step 3 Exposure Parameters'!$B84) ->  | J60: =IF(ISBLANK('Step 3 Exposure Parameters'!$C84)," ",'Step 3 Exposure Parameters'!$C84) ->  | K60: =IF(ISBLANK('Step 3 Exposure Parameters'!D84)," ",'Step 3 Exposure Parameters'!D84) ->  | L60: =IF(ISBLANK('Step 3 Exposure Parameters'!E84)," ",'Step 3 Exposure Parameters'!E84) ->  | M60: =IF(ISBLANK('Step 3 Exposure Parameters'!F84)," ",'Step 3 Exposure Parameters'!F84) ->  | N60: =IF(ISBLANK('Step 3 Exposure Parameters'!G84)," ",'Step 3 Exposure Parameters'!G84) ->  | O60: =IF(ISBLANK('Step 3 Exposure Parameters'!H84)," ",'Step 3 Exposure Parameters'!H84) ->  | P60: =IF(ISBLANK('Step 3 Exposure Parameters'!I84)," ",'Step 3 Exposure Parameters'!I84) ->  | Q60: =IF(ISBLANK('Step 3 Exposure Parameters'!J84)," ",'Step 3 Exposure Parameters'!J84) ->  | R60: =IF(ISBLANK('Step 3 Exposure Parameters'!K84)," ",'Step 3 Exposure Parameters'!K84) -> 
D61: -- | E61: -- | F61: -- | I61: =IF(ISBLANK('Step 3 Exposure Parameters'!$B85)," ",'Step 3 Exposure Parameters'!$B85) ->  | J61: =IF(ISBLANK('Step 3 Exposure Parameters'!$C85)," ",'Step 3 Exposure Parameters'!$C85) ->  | K61: =IF(ISBLANK('Step 3 Exposure Parameters'!D85)," ",'Step 3 Exposure Parameters'!D85) ->  | L61: =IF(ISBLANK('Step 3 Exposure Parameters'!E85)," ",'Step 3 Exposure Parameters'!E85) ->  | M61: =IF(ISBLANK('Step 3 Exposure Parameters'!F85)," ",'Step 3 Exposure Parameters'!F85) ->  | N61: =IF(ISBLANK('Step 3 Exposure Parameters'!G85)," ",'Step 3 Exposure Parameters'!G85) ->  | O61: =IF(ISBLANK('Step 3 Exposure Parameters'!H85)," ",'Step 3 Exposure Parameters'!H85) ->  | P61: =IF(ISBLANK('Step 3 Exposure Parameters'!I85)," ",'Step 3 Exposure Parameters'!I85) ->  | Q61: =IF(ISBLANK('Step 3 Exposure Parameters'!J85)," ",'Step 3 Exposure Parameters'!J85) ->  | R61: =IF(ISBLANK('Step 3 Exposure Parameters'!K85)," ",'Step 3 Exposure Parameters'!K85) -> 
C62: Lowest Tissue Screening Level: | F62: =IF(B56=" ","--",MIN(F56:F61)) -> -- | I62: =IF(ISBLANK(I56)," ",I56) -> 
C63: =J63 ->  | D63: =IF(B63=" ","--",IF(C63=" ","--",IF(L63=0,IF(K63=0,"--",K63),((L63*N63*O63)/(P63*M63))))) -> -- | E63: =IF(B63=" ","--",IF(C63=" ","--",IF(Q63=0,"--",Q63/R63))) -> -- | F63: =IF(MIN(D63:E63)>0,MIN(D63:E63),"--") -> -- | I63: =IF(ISBLANK('Step 3 Exposure Parameters'!$B86)," ",'Step 3 Exposure Parameters'!$B86) ->  | J63: =IF(ISBLANK('Step 3 Exposure Parameters'!$C86)," ",'Step 3 Exposure Parameters'!$C86) ->  | K63: =IF(ISBLANK('Step 3 Exposure Parameters'!D86)," ",'Step 3 Exposure Parameters'!D86) ->  | L63: =IF(ISBLANK('Step 3 Exposure Parameters'!E86)," ",'Step 3 Exposure Parameters'!E86) ->  | M63: =IF(ISBLANK('Step 3 Exposure Parameters'!F86)," ",'Step 3 Exposure Parameters'!F86) ->  | N63: =IF(ISBLANK('Step 3 Exposure Parameters'!G86)," ",'Step 3 Exposure Parameters'!G86) ->  | O63: =IF(ISBLANK('Step 3 Exposure Parameters'!H86)," ",'Step 3 Exposure Parameters'!H86) ->  | P63: =IF(ISBLANK('Step 3 Exposure Parameters'!I86)," ",'Step 3 Exposure Parameters'!I86) ->  | Q63: =IF(ISBLANK('Step 3 Exposure Parameters'!J86)," ",'Step 3 Exposure Parameters'!J86) ->  | R63: =IF(ISBLANK('Step 3 Exposure Parameters'!K86)," ",'Step 3 Exposure Parameters'!K86) -> 
C64: =J64 ->  | D64: =IF(B64=" ","--",IF(C64=" ","--",IF(L64=0,IF(K64=0,"--",K64),((L64*N64*O64)/(P64*M64))))) -> -- | E64: =IF(B64=" ","--",IF(C64=" ","--",IF(Q64=0,"--",Q64/R64))) -> -- | F64: =IF(MIN(D64:E64)>0,MIN(D64:E64),"--") -> -- | I64: =IF(ISBLANK('Step 3 Exposure Parameters'!$B87)," ",'Step 3 Exposure Parameters'!$B87) ->  | J64: =IF(ISBLANK('Step 3 Exposure Parameters'!$C87)," ",'Step 3 Exposure Parameters'!$C87) ->  | K64: =IF(ISBLANK('Step 3 Exposure Parameters'!D87)," ",'Step 3 Exposure Parameters'!D87) ->  | L64: =IF(ISBLANK('Step 3 Exposure Parameters'!E87)," ",'Step 3 Exposure Parameters'!E87) ->  | M64: =IF(ISBLANK('Step 3 Exposure Parameters'!F87)," ",'Step 3 Exposure Parameters'!F87) ->  | N64: =IF(ISBLANK('Step 3 Exposure Parameters'!G87)," ",'Step 3 Exposure Parameters'!G87) ->  | O64: =IF(ISBLANK('Step 3 Exposure Parameters'!H87)," ",'Step 3 Exposure Parameters'!H87) ->  | P64: =IF(ISBLANK('Step 3 Exposure Parameters'!I87)," ",'Step 3 Exposure Parameters'!I87) ->  | Q64: =IF(ISBLANK('Step 3 Exposure Parameters'!J87)," ",'Step 3 Exposure Parameters'!J87) ->  | R64: =IF(ISBLANK('Step 3 Exposure Parameters'!K87)," ",'Step 3 Exposure Parameters'!K87) -> 
D65: -- | E65: -- | F65: -- | I65: =IF(ISBLANK('Step 3 Exposure Parameters'!$B88)," ",'Step 3 Exposure Parameters'!$B88) ->  | J65: =IF(ISBLANK('Step 3 Exposure Parameters'!$C88)," ",'Step 3 Exposure Parameters'!$C88) ->  | K65: =IF(ISBLANK('Step 3 Exposure Parameters'!D88)," ",'Step 3 Exposure Parameters'!D88) ->  | L65: =IF(ISBLANK('Step 3 Exposure Parameters'!E88)," ",'Step 3 Exposure Parameters'!E88) ->  | M65: =IF(ISBLANK('Step 3 Exposure Parameters'!F88)," ",'Step 3 Exposure Parameters'!F88) ->  | N65: =IF(ISBLANK('Step 3 Exposure Parameters'!G88)," ",'Step 3 Exposure Parameters'!G88) ->  | O65: =IF(ISBLANK('Step 3 Exposure Parameters'!H88)," ",'Step 3 Exposure Parameters'!H88) ->  | P65: =IF(ISBLANK('Step 3 Exposure Parameters'!I88)," ",'Step 3 Exposure Parameters'!I88) ->  | Q65: =IF(ISBLANK('Step 3 Exposure Parameters'!J88)," ",'Step 3 Exposure Parameters'!J88) ->  | R65: =IF(ISBLANK('Step 3 Exposure Parameters'!K88)," ",'Step 3 Exposure Parameters'!K88) -> 
D66: -- | E66: -- | F66: -- | I66: =IF(ISBLANK('Step 3 Exposure Parameters'!$B89)," ",'Step 3 Exposure Parameters'!$B89) ->  | J66: =IF(ISBLANK('Step 3 Exposure Parameters'!$C89)," ",'Step 3 Exposure Parameters'!$C89) ->  | K66: =IF(ISBLANK('Step 3 Exposure Parameters'!D89)," ",'Step 3 Exposure Parameters'!D89) ->  | L66: =IF(ISBLANK('Step 3 Exposure Parameters'!E89)," ",'Step 3 Exposure Parameters'!E89) ->  | M66: =IF(ISBLANK('Step 3 Exposure Parameters'!F89)," ",'Step 3 Exposure Parameters'!F89) ->  | N66: =IF(ISBLANK('Step 3 Exposure Parameters'!G89)," ",'Step 3 Exposure Parameters'!G89) ->  | O66: =IF(ISBLANK('Step 3 Exposure Parameters'!H89)," ",'Step 3 Exposure Parameters'!H89) ->  | P66: =IF(ISBLANK('Step 3 Exposure Parameters'!I89)," ",'Step 3 Exposure Parameters'!I89) ->  | Q66: =IF(ISBLANK('Step 3 Exposure Parameters'!J89)," ",'Step 3 Exposure Parameters'!J89) ->  | R66: =IF(ISBLANK('Step 3 Exposure Parameters'!K89)," ",'Step 3 Exposure Parameters'!K89) -> 
D67: -- | E67: -- | F67: -- | I67: =IF(ISBLANK('Step 3 Exposure Parameters'!$B90)," ",'Step 3 Exposure Parameters'!$B90) ->  | J67: =IF(ISBLANK('Step 3 Exposure Parameters'!$C90)," ",'Step 3 Exposure Parameters'!$C90) ->  | K67: =IF(ISBLANK('Step 3 Exposure Parameters'!D90)," ",'Step 3 Exposure Parameters'!D90) ->  | L67: =IF(ISBLANK('Step 3 Exposure Parameters'!E90)," ",'Step 3 Exposure Parameters'!E90) ->  | M67: =IF(ISBLANK('Step 3 Exposure Parameters'!F90)," ",'Step 3 Exposure Parameters'!F90) ->  | N67: =IF(ISBLANK('Step 3 Exposure Parameters'!G90)," ",'Step 3 Exposure Parameters'!G90) ->  | O67: =IF(ISBLANK('Step 3 Exposure Parameters'!H90)," ",'Step 3 Exposure Parameters'!H90) ->  | P67: =IF(ISBLANK('Step 3 Exposure Parameters'!I90)," ",'Step 3 Exposure Parameters'!I90) ->  | Q67: =IF(ISBLANK('Step 3 Exposure Parameters'!J90)," ",'Step 3 Exposure Parameters'!J90) ->  | R67: =IF(ISBLANK('Step 3 Exposure Parameters'!K90)," ",'Step 3 Exposure Parameters'!K90) -> 
D68: -- | E68: -- | F68: -- | I68: =IF(ISBLANK('Step 3 Exposure Parameters'!$B91)," ",'Step 3 Exposure Parameters'!$B91) ->  | J68: =IF(ISBLANK('Step 3 Exposure Parameters'!$C91)," ",'Step 3 Exposure Parameters'!$C91) ->  | K68: =IF(ISBLANK('Step 3 Exposure Parameters'!D91)," ",'Step 3 Exposure Parameters'!D91) ->  | L68: =IF(ISBLANK('Step 3 Exposure Parameters'!E91)," ",'Step 3 Exposure Parameters'!E91) ->  | M68: =IF(ISBLANK('Step 3 Exposure Parameters'!F91)," ",'Step 3 Exposure Parameters'!F91) ->  | N68: =IF(ISBLANK('Step 3 Exposure Parameters'!G91)," ",'Step 3 Exposure Parameters'!G91) ->  | O68: =IF(ISBLANK('Step 3 Exposure Parameters'!H91)," ",'Step 3 Exposure Parameters'!H91) ->  | P68: =IF(ISBLANK('Step 3 Exposure Parameters'!I91)," ",'Step 3 Exposure Parameters'!I91) ->  | Q68: =IF(ISBLANK('Step 3 Exposure Parameters'!J91)," ",'Step 3 Exposure Parameters'!J91) ->  | R68: =IF(ISBLANK('Step 3 Exposure Parameters'!K91)," ",'Step 3 Exposure Parameters'!K91) -> 
C69: Lowest Tissue Screening Level: | F69: =IF(B63=" ","--",MIN(F63:F68)) -> -- | I69: =IF(ISBLANK(I63)," ",I63) -> 

Sheet Consumption_Sediment
B1: SCUM Equation 9-11: Equation for Calculating Risk-Based Sediment Concentrations from Risk-Based Tissue Concentrations: | M1: hide | N1: hide | O1: hide | P1: hide | Q1: hide
B3: For metals and polar organics | C3: For nonpolar organics and organometals
B8: Risk-Based Sediment Concentrations Based on Fish/Shellfish Consumption by Humans and Higher Trophic Levels | M8: Data from Other Worksheets
D9: Lowest Higher Tropic Level | G9: Sediment Risk-Based
A10: CAS Number | B10: Contaminant of Concern | C10: Human Health Tissue Concentration | D10: Tissue Concentration* | E10: Lowest Tissue Concentration | F10: Class** | G10: Concentration | M10: CAS Number | N10: Contaminant of Concern | O10: Human Health Tissue Concentration | P10: BSAF | Q10: SUF
A11: =M11 -> 7440-38-2 | B11: =N11 -> arsenic, inorganic | C11: =IF(ISNUMBER(O11),O11,"--") -> -- | E11: =IF(MIN(C11:D11)>0,MIN(C11:D11),"--") -> -- | F11: Metal | G11: =IF(F11="","--",IF(ISERROR(IF(E11="--","--",IF(F11="Metal",E11/(P11*Q11),IF(F11="Polar Organic",E11/(P11*Q11),IF(F11="Nonpolar Organic",(E11*('Step 3 Exposure Parameters'!$D$15/100))/(P11*('Step 3 Exposure Parameters'!$D$14/100)*Q11),IF(F11="Organometal",(E11*('Step 3 Exposure Parameters'!$D$15/100))/(P11*('Step 3 Exposure Parameters'!$D$14/100)*Q11))))))),"--",IF(E11="--","--",IF(F11="Metal",E11/(P11*Q11),IF(F11="Polar Organic",E11/(P11*Q11),IF(F11="Nonpolar Organic",(E11*('Step 3 Exposure Parameters'!$D$15/100))/(P11*('Step 3 Exposure Parameters'!$D$14/100)*Q11),IF(F11="Organometal",(E11*('Step 3 Exposure Parameters'!$D$15/100))/(P11*('Step 3 Exposure Parameters'!$D$14/100)*Q11)))))))) -> -- | I11: Abbrev | J11: Definition | M11: ='Step 2 Chemical_Parameters'!A12 -> 7440-38-2 | N11: ='Step 2 Chemical_Parameters'!B12 -> arsenic, inorganic | O11: =IF(ISNUMBER(Consumption_HH_Tissue!F34),Consumption_HH_Tissue!F34," --") -> -- | P11: =IF(ISBLANK('Step 2 Chemical_Parameters'!D12)," ",'Step 2 Chemical_Parameters'!D12) ->  | Q11: =IF(M11="--"," ",IF(ISBLANK('Step 3 Exposure Parameters'!$D$11),1,'Step 3 Exposure Parameters'!$D$11)) -> 1
A12: =M12 -> 7440-43-9 | B12: Cadmium | C12: =IF(ISNUMBER(O12),O12,"--") -> -- | E12: =IF(MIN(C12:D12)>0,MIN(C12:D12),"--") -> -- | F12: Metal | G12: =IF(F12="","--",IF(ISERROR(IF(E12="--","--",IF(F12="Metal",E12/(P12*Q12),IF(F12="Polar Organic",E12/(P12*Q12),IF(F12="Nonpolar Organic",(E12*('Step 3 Exposure Parameters'!$D$15/100))/(P12*('Step 3 Exposure Parameters'!$D$14/100)*Q12),IF(F12="Organometal",(E12*('Step 3 Exposure Parameters'!$D$15/100))/(P12*('Step 3 Exposure Parameters'!$D$14/100)*Q12))))))),"--",IF(E12="--","--",IF(F12="Metal",E12/(P12*Q12),IF(F12="Polar Organic",E12/(P12*Q12),IF(F12="Nonpolar Organic",(E12*('Step 3 Exposure Parameters'!$D$15/100))/(P12*('Step 3 Exposure Parameters'!$D$14/100)*Q12),IF(F12="Organometal",(E12*('Step 3 Exposure Parameters'!$D$15/100))/(P12*('Step 3 Exposure Parameters'!$D$14/100)*Q12)))))))) -> -- | I12: 2,3,7,8-TCDD | J12: 2,3,7,8-Tetrachlorodibenzo-p-dioxin | M12: ='Step 2 Chemical_Parameters'!A13 -> 7440-43-9 | N12: ='Step 2 Chemical_Parameters'!B13 -> Cadmium | O12: =IF(ISNUMBER(Consumption_HH_Tissue!F35),Consumption_HH_Tissue!F35," --") -> -- | P12: =IF(ISBLANK('Step 2 Chemical_Parameters'!D13)," ",'Step 2 Chemical_Parameters'!D13) ->  | Q12: =IF(M12="--"," ",IF(ISBLANK('Step 3 Exposure Parameters'!$D$11),1,'Step 3 Exposure Parameters'!$D$11)) -> 1
A13: 50-32-8 | B13: BENZO[a]PYRENE | C13: =IF(ISNUMBER(O13),O13,"--") -> -- | E13: -- | F13: Nonpolar Organic | G13: =IF(F13="","--",IF(ISERROR(IF(E13="--","--",IF(F13="Metal",E13/(P13*Q13),IF(F13="Polar Organic",E13/(P13*Q13),IF(F13="Nonpolar Organic",(E13*('Step 3 Exposure Parameters'!$D$15/100))/(P13*('Step 3 Exposure Parameters'!$D$14/100)*Q13),IF(F13="Organometal",(E13*('Step 3 Exposure Parameters'!$D$15/100))/(P13*('Step 3 Exposure Parameters'!$D$14/100)*Q13))))))),"--",IF(E13="--","--",IF(F13="Metal",E13/(P13*Q13),IF(F13="Polar Organic",E13/(P13*Q13),IF(F13="Nonpolar Organic",(E13*('Step 3 Exposure Parameters'!$D$15/100))/(P13*('Step 3 Exposure Parameters'!$D$14/100)*Q13),IF(F13="Organometal",(E13*('Step 3 Exposure Parameters'!$D$15/100))/(P13*('Step 3 Exposure Parameters'!$D$14/100)*Q13)))))))) -> -- | I13: BSAF | J13: Biota-Sediment Accumulation Factor | M13: ='Step 2 Chemical_Parameters'!A14 -> 50-32-8 | N13: ='Step 2 Chemical_Parameters'!B14 -> BENZO[a]PYRENE | O13: =IF(ISNUMBER(Consumption_HH_Tissue!F36),Consumption_HH_Tissue!F36," --") -> -- | P13: =IF(ISBLANK('Step 2 Chemical_Parameters'!D14)," ",'Step 2 Chemical_Parameters'!D14) ->  | Q13: =IF(M13="--"," ",IF(ISBLANK('Step 3 Exposure Parameters'!$D$11),1,'Step 3 Exposure Parameters'!$D$11)) -> 1
A14: 1746-01-6 | B14: TCDD;2,3,7,8 (DIOXIN) | C14: -- | E14: -- | F14: Nonpolar Organic | G14: =IF(F14="","--",IF(ISERROR(IF(E14="--","--",IF(F14="Metal",E14/(P14*Q14),IF(F14="Polar Organic",E14/(P14*Q14),IF(F14="Nonpolar Organic",(E14*('Step 3 Exposure Parameters'!$D$15/100))/(P14*('Step 3 Exposure Parameters'!$D$14/100)*Q14),IF(F14="Organometal",(E14*('Step 3 Exposure Parameters'!$D$15/100))/(P14*('Step 3 Exposure Parameters'!$D$14/100)*Q14))))))),"--",IF(E14="--","--",IF(F14="Metal",E14/(P14*Q14),IF(F14="Polar Organic",E14/(P14*Q14),IF(F14="Nonpolar Organic",(E14*('Step 3 Exposure Parameters'!$D$15/100))/(P14*('Step 3 Exposure Parameters'!$D$14/100)*Q14),IF(F14="Organometal",(E14*('Step 3 Exposure Parameters'!$D$15/100))/(P14*('Step 3 Exposure Parameters'!$D$14/100)*Q14)))))))) -> -- | I14: cPAHs | J14: Carcinogenic PAHs | M14: ='Step 2 Chemical_Parameters'!A15 -> 1746-01-6 | N14: ='Step 2 Chemical_Parameters'!B15 -> TCDD;2,3,7,8 (DIOXIN) | O14: =IF(ISNUMBER(Consumption_HH_Tissue!F37),Consumption_HH_Tissue!F37," --") -> -- | P14: =IF(ISBLANK('Step 2 Chemical_Parameters'!D15)," ",'Step 2 Chemical_Parameters'!D15) ->  | Q14: =IF(M14="--"," ",IF(ISBLANK('Step 3 Exposure Parameters'!$D$11),1,'Step 3 Exposure Parameters'!$D$11)) -> 1
A15: 7439-92-1 | B15: LEAD | C15: -- | E15: =IF(MIN(C15:D15)>0,MIN(C15:D15),"--") -> -- | F15: Metal | G15: =IF(F15="","--",IF(ISERROR(IF(E15="--","--",IF(F15="Metal",E15/(P15*Q15),IF(F15="Polar Organic",E15/(P15*Q15),IF(F15="Nonpolar Organic",(E15*('Step 3 Exposure Parameters'!$D$15/100))/(P15*('Step 3 Exposure Parameters'!$D$14/100)*Q15),IF(F15="Organometal",(E15*('Step 3 Exposure Parameters'!$D$15/100))/(P15*('Step 3 Exposure Parameters'!$D$14/100)*Q15))))))),"--",IF(E15="--","--",IF(F15="Metal",E15/(P15*Q15),IF(F15="Polar Organic",E15/(P15*Q15),IF(F15="Nonpolar Organic",(E15*('Step 3 Exposure Parameters'!$D$15/100))/(P15*('Step 3 Exposure Parameters'!$D$14/100)*Q15),IF(F15="Organometal",(E15*('Step 3 Exposure Parameters'!$D$15/100))/(P15*('Step 3 Exposure Parameters'!$D$14/100)*Q15)))))))) -> -- | I15: PCB | J15: Polychlorinated Biphenyls | M15: ='Step 2 Chemical_Parameters'!A16 -> 7439-92-1 | N15: ='Step 2 Chemical_Parameters'!B16 -> LEAD | O15: =IF(ISNUMBER(Consumption_HH_Tissue!F38),Consumption_HH_Tissue!F38," --") -> -- | P15: =IF(ISBLANK('Step 2 Chemical_Parameters'!D16)," ",'Step 2 Chemical_Parameters'!D16) ->  | Q15: =IF(M15="--"," ",IF(ISBLANK('Step 3 Exposure Parameters'!$D$11),1,'Step 3 Exposure Parameters'!$D$11)) -> 1
A16: 22967-92-6 | B16: METHYL MERCURY | C16: -- | E16: -- | F16: Organometal | G16: =IF(F16="","--",IF(ISERROR(IF(E16="--","--",IF(F16="Metal",E16/(P16*Q16),IF(F16="Polar Organic",E16/(P16*Q16),IF(F16="Nonpolar Organic",(E16*('Step 3 Exposure Parameters'!$D$15/100))/(P16*('Step 3 Exposure Parameters'!$D$14/100)*Q16),IF(F16="Organometal",(E16*('Step 3 Exposure Parameters'!$D$15/100))/(P16*('Step 3 Exposure Parameters'!$D$14/100)*Q16))))))),"--",IF(E16="--","--",IF(F16="Metal",E16/(P16*Q16),IF(F16="Polar Organic",E16/(P16*Q16),IF(F16="Nonpolar Organic",(E16*('Step 3 Exposure Parameters'!$D$15/100))/(P16*('Step 3 Exposure Parameters'!$D$14/100)*Q16),IF(F16="Organometal",(E16*('Step 3 Exposure Parameters'!$D$15/100))/(P16*('Step 3 Exposure Parameters'!$D$14/100)*Q16)))))))) -> -- | I16: RBC | J16: Risk-Based Concentration | M16: ='Step 2 Chemical_Parameters'!A17 -> 22967-92-6 | N16: ='Step 2 Chemical_Parameters'!B17 -> METHYL MERCURY | O16: =IF(ISNUMBER(Consumption_HH_Tissue!F39),Consumption_HH_Tissue!F39," --") -> -- | P16: =IF(ISBLANK('Step 2 Chemical_Parameters'!D17)," ",'Step 2 Chemical_Parameters'!D17) ->  | Q16: =IF(M16="--"," ",IF(ISBLANK('Step 3 Exposure Parameters'!$D$11),1,'Step 3 Exposure Parameters'!$D$11)) -> 1
A17: 1336-36-3a | B17: Dioxin-like PCBs | C17: -- | E17: -- | F17: Nonpolar Organic | G17: =IF(F17="","--",IF(ISERROR(IF(E17="--","--",IF(F17="Metal",E17/(P17*Q17),IF(F17="Polar Organic",E17/(P17*Q17),IF(F17="Nonpolar Organic",(E17*('Step 3 Exposure Parameters'!$D$15/100))/(P17*('Step 3 Exposure Parameters'!$D$14/100)*Q17),IF(F17="Organometal",(E17*('Step 3 Exposure Parameters'!$D$15/100))/(P17*('Step 3 Exposure Parameters'!$D$14/100)*Q17))))))),"--",IF(E17="--","--",IF(F17="Metal",E17/(P17*Q17),IF(F17="Polar Organic",E17/(P17*Q17),IF(F17="Nonpolar Organic",(E17*('Step 3 Exposure Parameters'!$D$15/100))/(P17*('Step 3 Exposure Parameters'!$D$14/100)*Q17),IF(F17="Organometal",(E17*('Step 3 Exposure Parameters'!$D$15/100))/(P17*('Step 3 Exposure Parameters'!$D$14/100)*Q17)))))))) -> -- | I17: SUF | J17: Site use factor | M17: ='Step 2 Chemical_Parameters'!A18 -> 1336-36-3a | N17: ='Step 2 Chemical_Parameters'!B18 -> Dioxin-like PCBs | O17: =IF(ISNUMBER(Consumption_HH_Tissue!F40),Consumption_HH_Tissue!F40," --") -> -- | P17: =IF(ISBLANK('Step 2 Chemical_Parameters'!D18)," ",'Step 2 Chemical_Parameters'!D18) ->  | Q17: =IF(M17="--"," ",IF(ISBLANK('Step 3 Exposure Parameters'!$D$11),1,'Step 3 Exposure Parameters'!$D$11)) -> 1
A18: 56-35-9 | B18: tributyltin oxide | C18: -- | E18: -- | F18: Nonpolar Organic | G18: =IF(F18="","--",IF(ISERROR(IF(E18="--","--",IF(F18="Metal",E18/(P18*Q18),IF(F18="Polar Organic",E18/(P18*Q18),IF(F18="Nonpolar Organic",(E18*('Step 3 Exposure Parameters'!$D$15/100))/(P18*('Step 3 Exposure Parameters'!$D$14/100)*Q18),IF(F18="Organometal",(E18*('Step 3 Exposure Parameters'!$D$15/100))/(P18*('Step 3 Exposure Parameters'!$D$14/100)*Q18))))))),"--",IF(E18="--","--",IF(F18="Metal",E18/(P18*Q18),IF(F18="Polar Organic",E18/(P18*Q18),IF(F18="Nonpolar Organic",(E18*('Step 3 Exposure Parameters'!$D$15/100))/(P18*('Step 3 Exposure Parameters'!$D$14/100)*Q18),IF(F18="Organometal",(E18*('Step 3 Exposure Parameters'!$D$15/100))/(P18*('Step 3 Exposure Parameters'!$D$14/100)*Q18)))))))) -> -- | I18: Tissue SL | J18: Tissue Screening Level | M18: ='Step 2 Chemical_Parameters'!A19 -> 56-35-9 | N18: ='Step 2 Chemical_Parameters'!B19 -> tributyltin oxide | O18: =IF(ISNUMBER(Consumption_HH_Tissue!F41),Consumption_HH_Tissue!F41," --") -> -- | P18: =IF(ISBLANK('Step 2 Chemical_Parameters'!D19)," ",'Step 2 Chemical_Parameters'!D19) ->  | Q18: =IF(M18="--"," ",IF(ISBLANK('Step 3 Exposure Parameters'!$D$11),1,'Step 3 Exposure Parameters'!$D$11)) -> 1
A19: 50-29-3 | B19: DDT | C19: -- | E19: -- | F19: Nonpolar Organic | G19: =IF(F19="","--",IF(ISERROR(IF(E19="--","--",IF(F19="Metal",E19/(P19*Q19),IF(F19="Polar Organic",E19/(P19*Q19),IF(F19="Nonpolar Organic",(E19*('Step 3 Exposure Parameters'!$D$15/100))/(P19*('Step 3 Exposure Parameters'!$D$14/100)*Q19),IF(F19="Organometal",(E19*('Step 3 Exposure Parameters'!$D$15/100))/(P19*('Step 3 Exposure Parameters'!$D$14/100)*Q19))))))),"--",IF(E19="--","--",IF(F19="Metal",E19/(P19*Q19),IF(F19="Polar Organic",E19/(P19*Q19),IF(F19="Nonpolar Organic",(E19*('Step 3 Exposure Parameters'!$D$15/100))/(P19*('Step 3 Exposure Parameters'!$D$14/100)*Q19),IF(F19="Organometal",(E19*('Step 3 Exposure Parameters'!$D$15/100))/(P19*('Step 3 Exposure Parameters'!$D$14/100)*Q19)))))))) -> -- | I19: TOC | J19: Total organic carbon | M19: ='Step 2 Chemical_Parameters'!A20 -> 50-29-3 | N19: ='Step 2 Chemical_Parameters'!B20 -> DDT | O19: =IF(ISNUMBER(Consumption_HH_Tissue!F42),Consumption_HH_Tissue!F42," --") -> -- | P19: =IF(ISBLANK('Step 2 Chemical_Parameters'!D20)," ",'Step 2 Chemical_Parameters'!D20) ->  | Q19: =IF(M19="--"," ",IF(ISBLANK('Step 3 Exposure Parameters'!$D$11),1,'Step 3 Exposure Parameters'!$D$11)) -> 1
A20: 71-43-2 | B20: BENZENE | C20: -- | E20: -- | F20: Nonpolar Organic | G20: =IF(F20="","--",IF(ISERROR(IF(E20="--","--",IF(F20="Metal",E20/(P20*Q20),IF(F20="Polar Organic",E20/(P20*Q20),IF(F20="Nonpolar Organic",(E20*('Step 3 Exposure Parameters'!$D$15/100))/(P20*('Step 3 Exposure Parameters'!$D$14/100)*Q20),IF(F20="Organometal",(E20*('Step 3 Exposure Parameters'!$D$15/100))/(P20*('Step 3 Exposure Parameters'!$D$14/100)*Q20))))))),"--",IF(E20="--","--",IF(F20="Metal",E20/(P20*Q20),IF(F20="Polar Organic",E20/(P20*Q20),IF(F20="Nonpolar Organic",(E20*('Step 3 Exposure Parameters'!$D$15/100))/(P20*('Step 3 Exposure Parameters'!$D$14/100)*Q20),IF(F20="Organometal",(E20*('Step 3 Exposure Parameters'!$D$15/100))/(P20*('Step 3 Exposure Parameters'!$D$14/100)*Q20)))))))) -> -- | M20: ='Step 2 Chemical_Parameters'!A21 -> 71-43-2 | N20: ='Step 2 Chemical_Parameters'!B21 -> BENZENE | O20: =IF(ISNUMBER(Consumption_HH_Tissue!F43),Consumption_HH_Tissue!F43," --") -> -- | P20: =IF(ISBLANK('Step 2 Chemical_Parameters'!D21)," ",'Step 2 Chemical_Parameters'!D21) ->  | Q20: =IF(M20="--"," ",IF(ISBLANK('Step 3 Exposure Parameters'!$D$11),1,'Step 3 Exposure Parameters'!$D$11)) -> 1
A21: -- | B21: -- | C21: -- | E21: -- | G21: =IF(F21="","--",IF(ISERROR(IF(E21="--","--",IF(F21="Metal",E21/(P21*Q21),IF(F21="Polar Organic",E21/(P21*Q21),IF(F21="Nonpolar Organic",(E21*('Step 3 Exposure Parameters'!$D$15/100))/(P21*('Step 3 Exposure Parameters'!$D$14/100)*Q21),IF(F21="Organometal",(E21*('Step 3 Exposure Parameters'!$D$15/100))/(P21*('Step 3 Exposure Parameters'!$D$14/100)*Q21))))))),"--",IF(E21="--","--",IF(F21="Metal",E21/(P21*Q21),IF(F21="Polar Organic",E21/(P21*Q21),IF(F21="Nonpolar Organic",(E21*('Step 3 Exposure Parameters'!$D$15/100))/(P21*('Step 3 Exposure Parameters'!$D$14/100)*Q21),IF(F21="Organometal",(E21*('Step 3 Exposure Parameters'!$D$15/100))/(P21*('Step 3 Exposure Parameters'!$D$14/100)*Q21)))))))) -> -- | I21: * | J21: Enter higher trophic level concentrations by hand from the previous worksheet. | M21: ='Step 2 Chemical_Parameters'!A22 -> -- | N21: ='Step 2 Chemical_Parameters'!B22 -> -- | O21: =IF(ISNUMBER(Consumption_HH_Tissue!F44),Consumption_HH_Tissue!F44," --") -> -- | P21: =IF(ISBLANK('Step 2 Chemical_Parameters'!D22)," ",'Step 2 Chemical_Parameters'!D22) ->  | Q21: =IF(M21="--"," ",IF(ISBLANK('Step 3 Exposure Parameters'!$D$11),1,'Step 3 Exposure Parameters'!$D$11)) -> 
A22: -- | B22: -- | C22: -- | E22: -- | G22: =IF(F22="","--",IF(ISERROR(IF(E22="--","--",IF(F22="Metal",E22/(P22*Q22),IF(F22="Polar Organic",E22/(P22*Q22),IF(F22="Nonpolar Organic",(E22*('Step 3 Exposure Parameters'!$D$15/100))/(P22*('Step 3 Exposure Parameters'!$D$14/100)*Q22),IF(F22="Organometal",(E22*('Step 3 Exposure Parameters'!$D$15/100))/(P22*('Step 3 Exposure Parameters'!$D$14/100)*Q22))))))),"--",IF(E22="--","--",IF(F22="Metal",E22/(P22*Q22),IF(F22="Polar Organic",E22/(P22*Q22),IF(F22="Nonpolar Organic",(E22*('Step 3 Exposure Parameters'!$D$15/100))/(P22*('Step 3 Exposure Parameters'!$D$14/100)*Q22),IF(F22="Organometal",(E22*('Step 3 Exposure Parameters'!$D$15/100))/(P22*('Step 3 Exposure Parameters'!$D$14/100)*Q22)))))))) -> -- | M22: ='Step 2 Chemical_Parameters'!A23 -> -- | N22: ='Step 2 Chemical_Parameters'!B23 -> -- | O22: =IF(ISNUMBER(Consumption_HH_Tissue!F45),Consumption_HH_Tissue!F45," --") -> -- | P22: =IF(ISBLANK('Step 2 Chemical_Parameters'!D23)," ",'Step 2 Chemical_Parameters'!D23) ->  | Q22: =IF(M22="--"," ",IF(ISBLANK('Step 3 Exposure Parameters'!$D$11),1,'Step 3 Exposure Parameters'!$D$11)) -> 
A23: -- | B23: -- | C23: -- | E23: -- | G23: =IF(F23="","--",IF(ISERROR(IF(E23="--","--",IF(F23="Metal",E23/(P23*Q23),IF(F23="Polar Organic",E23/(P23*Q23),IF(F23="Nonpolar Organic",(E23*('Step 3 Exposure Parameters'!$D$15/100))/(P23*('Step 3 Exposure Parameters'!$D$14/100)*Q23),IF(F23="Organometal",(E23*('Step 3 Exposure Parameters'!$D$15/100))/(P23*('Step 3 Exposure Parameters'!$D$14/100)*Q23))))))),"--",IF(E23="--","--",IF(F23="Metal",E23/(P23*Q23),IF(F23="Polar Organic",E23/(P23*Q23),IF(F23="Nonpolar Organic",(E23*('Step 3 Exposure Parameters'!$D$15/100))/(P23*('Step 3 Exposure Parameters'!$D$14/100)*Q23),IF(F23="Organometal",(E23*('Step 3 Exposure Parameters'!$D$15/100))/(P23*('Step 3 Exposure Parameters'!$D$14/100)*Q23)))))))) -> -- | M23: ='Step 2 Chemical_Parameters'!A24 -> -- | N23: ='Step 2 Chemical_Parameters'!B24 -> -- | O23: =IF(ISNUMBER(Consumption_HH_Tissue!F46),Consumption_HH_Tissue!F46," --") -> -- | P23: =IF(ISBLANK('Step 2 Chemical_Parameters'!D24)," ",'Step 2 Chemical_Parameters'!D24) ->  | Q23: =IF(M23="--"," ",IF(ISBLANK('Step 3 Exposure Parameters'!$D$11),1,'Step 3 Exposure Parameters'!$D$11)) -> 
A24: -- | B24: -- | C24: -- | E24: -- | G24: =IF(F24="","--",IF(ISERROR(IF(E24="--","--",IF(F24="Metal",E24/(P24*Q24),IF(F24="Polar Organic",E24/(P24*Q24),IF(F24="Nonpolar Organic",(E24*('Step 3 Exposure Parameters'!$D$15/100))/(P24*('Step 3 Exposure Parameters'!$D$14/100)*Q24),IF(F24="Organometal",(E24*('Step 3 Exposure Parameters'!$D$15/100))/(P24*('Step 3 Exposure Parameters'!$D$14/100)*Q24))))))),"--",IF(E24="--","--",IF(F24="Metal",E24/(P24*Q24),IF(F24="Polar Organic",E24/(P24*Q24),IF(F24="Nonpolar Organic",(E24*('Step 3 Exposure Parameters'!$D$15/100))/(P24*('Step 3 Exposure Parameters'!$D$14/100)*Q24),IF(F24="Organometal",(E24*('Step 3 Exposure Parameters'!$D$15/100))/(P24*('Step 3 Exposure Parameters'!$D$14/100)*Q24)))))))) -> -- | I24: ** | J24: Enter chemical class from the drop down excel menu. | M24: ='Step 2 Chemical_Parameters'!A25 -> -- | N24: ='Step 2 Chemical_Parameters'!B25 -> -- | O24: =IF(ISNUMBER(Consumption_HH_Tissue!F47),Consumption_HH_Tissue!F47," --") -> -- | P24: =IF(ISBLANK('Step 2 Chemical_Parameters'!D25)," ",'Step 2 Chemical_Parameters'!D25) ->  | Q24: =IF(M24="--"," ",IF(ISBLANK('Step 3 Exposure Parameters'!$D$11),1,'Step 3 Exposure Parameters'!$D$11)) -> 
A25: -- | B25: -- | C25: -- | E25: -- | G25: =IF(F25="","--",IF(ISERROR(IF(E25="--","--",IF(F25="Metal",E25/(P25*Q25),IF(F25="Polar Organic",E25/(P25*Q25),IF(F25="Nonpolar Organic",(E25*('Step 3 Exposure Parameters'!$D$15/100))/(P25*('Step 3 Exposure Parameters'!$D$14/100)*Q25),IF(F25="Organometal",(E25*('Step 3 Exposure Parameters'!$D$15/100))/(P25*('Step 3 Exposure Parameters'!$D$14/100)*Q25))))))),"--",IF(E25="--","--",IF(F25="Metal",E25/(P25*Q25),IF(F25="Polar Organic",E25/(P25*Q25),IF(F25="Nonpolar Organic",(E25*('Step 3 Exposure Parameters'!$D$15/100))/(P25*('Step 3 Exposure Parameters'!$D$14/100)*Q25),IF(F25="Organometal",(E25*('Step 3 Exposure Parameters'!$D$15/100))/(P25*('Step 3 Exposure Parameters'!$D$14/100)*Q25)))))))) -> -- | M25: ='Step 2 Chemical_Parameters'!A26 -> -- | N25: ='Step 2 Chemical_Parameters'!B26 -> -- | O25: =IF(ISNUMBER(Consumption_HH_Tissue!F48),Consumption_HH_Tissue!F48," --") -> -- | P25: =IF(ISBLANK('Step 2 Chemical_Parameters'!D26)," ",'Step 2 Chemical_Parameters'!D26) ->  | Q25: =IF(M25="--"," ",IF(ISBLANK('Step 3 Exposure Parameters'!$D$11),1,'Step 3 Exposure Parameters'!$D$11)) -> 
A26: -- | B26: -- | C26: -- | E26: -- | G26: =IF(F26="","--",IF(ISERROR(IF(E26="--","--",IF(F26="Metal",E26/(P26*Q26),IF(F26="Polar Organic",E26/(P26*Q26),IF(F26="Nonpolar Organic",(E26*('Step 3 Exposure Parameters'!$D$15/100))/(P26*('Step 3 Exposure Parameters'!$D$14/100)*Q26),IF(F26="Organometal",(E26*('Step 3 Exposure Parameters'!$D$15/100))/(P26*('Step 3 Exposure Parameters'!$D$14/100)*Q26))))))),"--",IF(E26="--","--",IF(F26="Metal",E26/(P26*Q26),IF(F26="Polar Organic",E26/(P26*Q26),IF(F26="Nonpolar Organic",(E26*('Step 3 Exposure Parameters'!$D$15/100))/(P26*('Step 3 Exposure Parameters'!$D$14/100)*Q26),IF(F26="Organometal",(E26*('Step 3 Exposure Parameters'!$D$15/100))/(P26*('Step 3 Exposure Parameters'!$D$14/100)*Q26)))))))) -> -- | M26: ='Step 2 Chemical_Parameters'!A27 -> -- | N26: ='Step 2 Chemical_Parameters'!B27 -> -- | O26: =IF(ISNUMBER(Consumption_HH_Tissue!F49),Consumption_HH_Tissue!F49," --") -> -- | P26: =IF(ISBLANK('Step 2 Chemical_Parameters'!D27)," ",'Step 2 Chemical_Parameters'!D27) ->  | Q26: =IF(M26="--"," ",IF(ISBLANK('Step 3 Exposure Parameters'!$D$11),1,'Step 3 Exposure Parameters'!$D$11)) -> 
A27: -- | B27: -- | C27: -- | E27: -- | G27: =IF(F27="","--",IF(ISERROR(IF(E27="--","--",IF(F27="Metal",E27/(P27*Q27),IF(F27="Polar Organic",E27/(P27*Q27),IF(F27="Nonpolar Organic",(E27*('Step 3 Exposure Parameters'!$D$15/100))/(P27*('Step 3 Exposure Parameters'!$D$14/100)*Q27),IF(F27="Organometal",(E27*('Step 3 Exposure Parameters'!$D$15/100))/(P27*('Step 3 Exposure Parameters'!$D$14/100)*Q27))))))),"--",IF(E27="--","--",IF(F27="Metal",E27/(P27*Q27),IF(F27="Polar Organic",E27/(P27*Q27),IF(F27="Nonpolar Organic",(E27*('Step 3 Exposure Parameters'!$D$15/100))/(P27*('Step 3 Exposure Parameters'!$D$14/100)*Q27),IF(F27="Organometal",(E27*('Step 3 Exposure Parameters'!$D$15/100))/(P27*('Step 3 Exposure Parameters'!$D$14/100)*Q27)))))))) -> -- | M27: ='Step 2 Chemical_Parameters'!A28 -> -- | N27: ='Step 2 Chemical_Parameters'!B28 -> -- | O27: =IF(ISNUMBER(Consumption_HH_Tissue!F50),Consumption_HH_Tissue!F50," --") -> -- | P27: =IF(ISBLANK('Step 2 Chemical_Parameters'!D28)," ",'Step 2 Chemical_Parameters'!D28) ->  | Q27: =IF(M27="--"," ",IF(ISBLANK('Step 3 Exposure Parameters'!$D$11),1,'Step 3 Exposure Parameters'!$D$11)) -> 
A28: -- | B28: -- | C28: -- | E28: -- | G28: =IF(F28="","--",IF(ISERROR(IF(E28="--","--",IF(F28="Metal",E28/(P28*Q28),IF(F28="Polar Organic",E28/(P28*Q28),IF(F28="Nonpolar Organic",(E28*('Step 3 Exposure Parameters'!$D$15/100))/(P28*('Step 3 Exposure Parameters'!$D$14/100)*Q28),IF(F28="Organometal",(E28*('Step 3 Exposure Parameters'!$D$15/100))/(P28*('Step 3 Exposure Parameters'!$D$14/100)*Q28))))))),"--",IF(E28="--","--",IF(F28="Metal",E28/(P28*Q28),IF(F28="Polar Organic",E28/(P28*Q28),IF(F28="Nonpolar Organic",(E28*('Step 3 Exposure Parameters'!$D$15/100))/(P28*('Step 3 Exposure Parameters'!$D$14/100)*Q28),IF(F28="Organometal",(E28*('Step 3 Exposure Parameters'!$D$15/100))/(P28*('Step 3 Exposure Parameters'!$D$14/100)*Q28)))))))) -> -- | M28: ='Step 2 Chemical_Parameters'!A29 -> -- | N28: ='Step 2 Chemical_Parameters'!B29 -> -- | O28: =IF(ISNUMBER(Consumption_HH_Tissue!F51),Consumption_HH_Tissue!F51," --") -> -- | P28: =IF(ISBLANK('Step 2 Chemical_Parameters'!D29)," ",'Step 2 Chemical_Parameters'!D29) ->  | Q28: =IF(M28="--"," ",IF(ISBLANK('Step 3 Exposure Parameters'!$D$11),1,'Step 3 Exposure Parameters'!$D$11)) -> 
A29: -- | B29: -- | C29: -- | E29: -- | G29: =IF(F29="","--",IF(ISERROR(IF(E29="--","--",IF(F29="Metal",E29/(P29*Q29),IF(F29="Polar Organic",E29/(P29*Q29),IF(F29="Nonpolar Organic",(E29*('Step 3 Exposure Parameters'!$D$15/100))/(P29*('Step 3 Exposure Parameters'!$D$14/100)*Q29),IF(F29="Organometal",(E29*('Step 3 Exposure Parameters'!$D$15/100))/(P29*('Step 3 Exposure Parameters'!$D$14/100)*Q29))))))),"--",IF(E29="--","--",IF(F29="Metal",E29/(P29*Q29),IF(F29="Polar Organic",E29/(P29*Q29),IF(F29="Nonpolar Organic",(E29*('Step 3 Exposure Parameters'!$D$15/100))/(P29*('Step 3 Exposure Parameters'!$D$14/100)*Q29),IF(F29="Organometal",(E29*('Step 3 Exposure Parameters'!$D$15/100))/(P29*('Step 3 Exposure Parameters'!$D$14/100)*Q29)))))))) -> -- | M29: ='Step 2 Chemical_Parameters'!A30 -> -- | N29: ='Step 2 Chemical_Parameters'!B30 -> -- | O29: =IF(ISNUMBER(Consumption_HH_Tissue!F52),Consumption_HH_Tissue!F52," --") -> -- | P29: =IF(ISBLANK('Step 2 Chemical_Parameters'!D30)," ",'Step 2 Chemical_Parameters'!D30) ->  | Q29: =IF(M29="--"," ",IF(ISBLANK('Step 3 Exposure Parameters'!$D$11),1,'Step 3 Exposure Parameters'!$D$11)) -> 
A30: -- | B30: -- | C30: -- | E30: -- | G30: =IF(F30="","--",IF(ISERROR(IF(E30="--","--",IF(F30="Metal",E30/(P30*Q30),IF(F30="Polar Organic",E30/(P30*Q30),IF(F30="Nonpolar Organic",(E30*('Step 3 Exposure Parameters'!$D$15/100))/(P30*('Step 3 Exposure Parameters'!$D$14/100)*Q30),IF(F30="Organometal",(E30*('Step 3 Exposure Parameters'!$D$15/100))/(P30*('Step 3 Exposure Parameters'!$D$14/100)*Q30))))))),"--",IF(E30="--","--",IF(F30="Metal",E30/(P30*Q30),IF(F30="Polar Organic",E30/(P30*Q30),IF(F30="Nonpolar Organic",(E30*('Step 3 Exposure Parameters'!$D$15/100))/(P30*('Step 3 Exposure Parameters'!$D$14/100)*Q30),IF(F30="Organometal",(E30*('Step 3 Exposure Parameters'!$D$15/100))/(P30*('Step 3 Exposure Parameters'!$D$14/100)*Q30)))))))) -> -- | M30: ='Step 2 Chemical_Parameters'!A31 -> -- | N30: ='Step 2 Chemical_Parameters'!B31 -> -- | O30: =IF(ISNUMBER(Consumption_HH_Tissue!F53),Consumption_HH_Tissue!F53," --") -> -- | P30: =IF(ISBLANK('Step 2 Chemical_Parameters'!D31)," ",'Step 2 Chemical_Parameters'!D31) ->  | Q30: =IF(M30="--"," ",IF(ISBLANK('Step 3 Exposure Parameters'!$D$11),1,'Step 3 Exposure Parameters'!$D$11)) -> 
A31: -- | B31: -- | C31: -- | E31: -- | G31: =IF(F31="","--",IF(ISERROR(IF(E31="--","--",IF(F31="Metal",E31/(P31*Q31),IF(F31="Polar Organic",E31/(P31*Q31),IF(F31="Nonpolar Organic",(E31*('Step 3 Exposure Parameters'!$D$15/100))/(P31*('Step 3 Exposure Parameters'!$D$14/100)*Q31),IF(F31="Organometal",(E31*('Step 3 Exposure Parameters'!$D$15/100))/(P31*('Step 3 Exposure Parameters'!$D$14/100)*Q31))))))),"--",IF(E31="--","--",IF(F31="Metal",E31/(P31*Q31),IF(F31="Polar Organic",E31/(P31*Q31),IF(F31="Nonpolar Organic",(E31*('Step 3 Exposure Parameters'!$D$15/100))/(P31*('Step 3 Exposure Parameters'!$D$14/100)*Q31),IF(F31="Organometal",(E31*('Step 3 Exposure Parameters'!$D$15/100))/(P31*('Step 3 Exposure Parameters'!$D$14/100)*Q31)))))))) -> -- | M31: ='Step 2 Chemical_Parameters'!A32 -> -- | N31: ='Step 2 Chemical_Parameters'!B32 -> -- | O31: =IF(ISNUMBER(Consumption_HH_Tissue!F54),Consumption_HH_Tissue!F54," --") -> -- | P31: =IF(ISBLANK('Step 2 Chemical_Parameters'!D32)," ",'Step 2 Chemical_Parameters'!D32) ->  | Q31: =IF(M31="--"," ",IF(ISBLANK('Step 3 Exposure Parameters'!$D$11),1,'Step 3 Exposure Parameters'!$D$11)) -> 
A32: -- | B32: -- | C32: -- | E32: -- | G32: =IF(F32="","--",IF(ISERROR(IF(E32="--","--",IF(F32="Metal",E32/(P32*Q32),IF(F32="Polar Organic",E32/(P32*Q32),IF(F32="Nonpolar Organic",(E32*('Step 3 Exposure Parameters'!$D$15/100))/(P32*('Step 3 Exposure Parameters'!$D$14/100)*Q32),IF(F32="Organometal",(E32*('Step 3 Exposure Parameters'!$D$15/100))/(P32*('Step 3 Exposure Parameters'!$D$14/100)*Q32))))))),"--",IF(E32="--","--",IF(F32="Metal",E32/(P32*Q32),IF(F32="Polar Organic",E32/(P32*Q32),IF(F32="Nonpolar Organic",(E32*('Step 3 Exposure Parameters'!$D$15/100))/(P32*('Step 3 Exposure Parameters'!$D$14/100)*Q32),IF(F32="Organometal",(E32*('Step 3 Exposure Parameters'!$D$15/100))/(P32*('Step 3 Exposure Parameters'!$D$14/100)*Q32)))))))) -> -- | M32: ='Step 2 Chemical_Parameters'!A33 -> -- | N32: ='Step 2 Chemical_Parameters'!B33 -> -- | O32: =IF(ISNUMBER(Consumption_HH_Tissue!F55),Consumption_HH_Tissue!F55," --") -> -- | P32: =IF(ISBLANK('Step 2 Chemical_Parameters'!D33)," ",'Step 2 Chemical_Parameters'!D33) ->  | Q32: =IF(M32="--"," ",IF(ISBLANK('Step 3 Exposure Parameters'!$D$11),1,'Step 3 Exposure Parameters'!$D$11)) -> 
A33: -- | B33: -- | C33: -- | E33: -- | G33: =IF(F33="","--",IF(ISERROR(IF(E33="--","--",IF(F33="Metal",E33/(P33*Q33),IF(F33="Polar Organic",E33/(P33*Q33),IF(F33="Nonpolar Organic",(E33*('Step 3 Exposure Parameters'!$D$15/100))/(P33*('Step 3 Exposure Parameters'!$D$14/100)*Q33),IF(F33="Organometal",(E33*('Step 3 Exposure Parameters'!$D$15/100))/(P33*('Step 3 Exposure Parameters'!$D$14/100)*Q33))))))),"--",IF(E33="--","--",IF(F33="Metal",E33/(P33*Q33),IF(F33="Polar Organic",E33/(P33*Q33),IF(F33="Nonpolar Organic",(E33*('Step 3 Exposure Parameters'!$D$15/100))/(P33*('Step 3 Exposure Parameters'!$D$14/100)*Q33),IF(F33="Organometal",(E33*('Step 3 Exposure Parameters'!$D$15/100))/(P33*('Step 3 Exposure Parameters'!$D$14/100)*Q33)))))))) -> -- | M33: ='Step 2 Chemical_Parameters'!A34 -> -- | N33: ='Step 2 Chemical_Parameters'!B34 -> -- | O33: =IF(ISNUMBER(Consumption_HH_Tissue!F56),Consumption_HH_Tissue!F56," --") -> -- | P33: =IF(ISBLANK('Step 2 Chemical_Parameters'!D34)," ",'Step 2 Chemical_Parameters'!D34) ->  | Q33: =IF(M33="--"," ",IF(ISBLANK('Step 3 Exposure Parameters'!$D$11),1,'Step 3 Exposure Parameters'!$D$11)) -> 
A34: -- | B34: -- | C34: -- | E34: -- | G34: =IF(F34="","--",IF(ISERROR(IF(E34="--","--",IF(F34="Metal",E34/(P34*Q34),IF(F34="Polar Organic",E34/(P34*Q34),IF(F34="Nonpolar Organic",(E34*('Step 3 Exposure Parameters'!$D$15/100))/(P34*('Step 3 Exposure Parameters'!$D$14/100)*Q34),IF(F34="Organometal",(E34*('Step 3 Exposure Parameters'!$D$15/100))/(P34*('Step 3 Exposure Parameters'!$D$14/100)*Q34))))))),"--",IF(E34="--","--",IF(F34="Metal",E34/(P34*Q34),IF(F34="Polar Organic",E34/(P34*Q34),IF(F34="Nonpolar Organic",(E34*('Step 3 Exposure Parameters'!$D$15/100))/(P34*('Step 3 Exposure Parameters'!$D$14/100)*Q34),IF(F34="Organometal",(E34*('Step 3 Exposure Parameters'!$D$15/100))/(P34*('Step 3 Exposure Parameters'!$D$14/100)*Q34)))))))) -> -- | M34: ='Step 2 Chemical_Parameters'!A35 -> -- | N34: ='Step 2 Chemical_Parameters'!B35 -> -- | O34: =IF(ISNUMBER(Consumption_HH_Tissue!F57),Consumption_HH_Tissue!F57," --") -> -- | P34: =IF(ISBLANK('Step 2 Chemical_Parameters'!D35)," ",'Step 2 Chemical_Parameters'!D35) ->  | Q34: =IF(M34="--"," ",IF(ISBLANK('Step 3 Exposure Parameters'!$D$11),1,'Step 3 Exposure Parameters'!$D$11)) -> 
A35: -- | B35: -- | C35: -- | E35: -- | G35: =IF(F35="","--",IF(ISERROR(IF(E35="--","--",IF(F35="Metal",E35/(P35*Q35),IF(F35="Polar Organic",E35/(P35*Q35),IF(F35="Nonpolar Organic",(E35*('Step 3 Exposure Parameters'!$D$15/100))/(P35*('Step 3 Exposure Parameters'!$D$14/100)*Q35),IF(F35="Organometal",(E35*('Step 3 Exposure Parameters'!$D$15/100))/(P35*('Step 3 Exposure Parameters'!$D$14/100)*Q35))))))),"--",IF(E35="--","--",IF(F35="Metal",E35/(P35*Q35),IF(F35="Polar Organic",E35/(P35*Q35),IF(F35="Nonpolar Organic",(E35*('Step 3 Exposure Parameters'!$D$15/100))/(P35*('Step 3 Exposure Parameters'!$D$14/100)*Q35),IF(F35="Organometal",(E35*('Step 3 Exposure Parameters'!$D$15/100))/(P35*('Step 3 Exposure Parameters'!$D$14/100)*Q35)))))))) -> -- | M35: ='Step 2 Chemical_Parameters'!A36 -> -- | N35: ='Step 2 Chemical_Parameters'!B36 -> -- | O35: =IF(ISNUMBER(Consumption_HH_Tissue!F58),Consumption_HH_Tissue!F58," --") -> -- | P35: =IF(ISBLANK('Step 2 Chemical_Parameters'!D36)," ",'Step 2 Chemical_Parameters'!D36) ->  | Q35: =IF(M35="--"," ",IF(ISBLANK('Step 3 Exposure Parameters'!$D$11),1,'Step 3 Exposure Parameters'!$D$11)) -> 
A36: -- | B36: -- | C36: -- | E36: -- | G36: =IF(F36="","--",IF(ISERROR(IF(E36="--","--",IF(F36="Metal",E36/(P36*Q36),IF(F36="Polar Organic",E36/(P36*Q36),IF(F36="Nonpolar Organic",(E36*('Step 3 Exposure Parameters'!$D$15/100))/(P36*('Step 3 Exposure Parameters'!$D$14/100)*Q36),IF(F36="Organometal",(E36*('Step 3 Exposure Parameters'!$D$15/100))/(P36*('Step 3 Exposure Parameters'!$D$14/100)*Q36))))))),"--",IF(E36="--","--",IF(F36="Metal",E36/(P36*Q36),IF(F36="Polar Organic",E36/(P36*Q36),IF(F36="Nonpolar Organic",(E36*('Step 3 Exposure Parameters'!$D$15/100))/(P36*('Step 3 Exposure Parameters'!$D$14/100)*Q36),IF(F36="Organometal",(E36*('Step 3 Exposure Parameters'!$D$15/100))/(P36*('Step 3 Exposure Parameters'!$D$14/100)*Q36)))))))) -> -- | M36: ='Step 2 Chemical_Parameters'!A37 -> -- | N36: ='Step 2 Chemical_Parameters'!B37 -> -- | O36: =IF(ISNUMBER(Consumption_HH_Tissue!F59),Consumption_HH_Tissue!F59," --") -> -- | P36: =IF(ISBLANK('Step 2 Chemical_Parameters'!D37)," ",'Step 2 Chemical_Parameters'!D37) ->  | Q36: =IF(M36="--"," ",IF(ISBLANK('Step 3 Exposure Parameters'!$D$11),1,'Step 3 Exposure Parameters'!$D$11)) -> 
A37: -- | B37: -- | C37: -- | E37: -- | G37: =IF(F37="","--",IF(ISERROR(IF(E37="--","--",IF(F37="Metal",E37/(P37*Q37),IF(F37="Polar Organic",E37/(P37*Q37),IF(F37="Nonpolar Organic",(E37*('Step 3 Exposure Parameters'!$D$15/100))/(P37*('Step 3 Exposure Parameters'!$D$14/100)*Q37),IF(F37="Organometal",(E37*('Step 3 Exposure Parameters'!$D$15/100))/(P37*('Step 3 Exposure Parameters'!$D$14/100)*Q37))))))),"--",IF(E37="--","--",IF(F37="Metal",E37/(P37*Q37),IF(F37="Polar Organic",E37/(P37*Q37),IF(F37="Nonpolar Organic",(E37*('Step 3 Exposure Parameters'!$D$15/100))/(P37*('Step 3 Exposure Parameters'!$D$14/100)*Q37),IF(F37="Organometal",(E37*('Step 3 Exposure Parameters'!$D$15/100))/(P37*('Step 3 Exposure Parameters'!$D$14/100)*Q37)))))))) -> -- | M37: ='Step 2 Chemical_Parameters'!A38 -> -- | N37: ='Step 2 Chemical_Parameters'!B38 -> -- | O37: =IF(ISNUMBER(Consumption_HH_Tissue!F60),Consumption_HH_Tissue!F60," --") -> -- | P37: =IF(ISBLANK('Step 2 Chemical_Parameters'!D38)," ",'Step 2 Chemical_Parameters'!D38) ->  | Q37: =IF(M37="--"," ",IF(ISBLANK('Step 3 Exposure Parameters'!$D$11),1,'Step 3 Exposure Parameters'!$D$11)) -> 
A38: -- | B38: -- | C38: -- | E38: -- | G38: =IF(F38="","--",IF(ISERROR(IF(E38="--","--",IF(F38="Metal",E38/(P38*Q38),IF(F38="Polar Organic",E38/(P38*Q38),IF(F38="Nonpolar Organic",(E38*('Step 3 Exposure Parameters'!$D$15/100))/(P38*('Step 3 Exposure Parameters'!$D$14/100)*Q38),IF(F38="Organometal",(E38*('Step 3 Exposure Parameters'!$D$15/100))/(P38*('Step 3 Exposure Parameters'!$D$14/100)*Q38))))))),"--",IF(E38="--","--",IF(F38="Metal",E38/(P38*Q38),IF(F38="Polar Organic",E38/(P38*Q38),IF(F38="Nonpolar Organic",(E38*('Step 3 Exposure Parameters'!$D$15/100))/(P38*('Step 3 Exposure Parameters'!$D$14/100)*Q38),IF(F38="Organometal",(E38*('Step 3 Exposure Parameters'!$D$15/100))/(P38*('Step 3 Exposure Parameters'!$D$14/100)*Q38)))))))) -> -- | M38: ='Step 2 Chemical_Parameters'!A39 -> -- | N38: ='Step 2 Chemical_Parameters'!B39 -> -- | O38: =IF(ISNUMBER(Consumption_HH_Tissue!F61),Consumption_HH_Tissue!F61," --") -> -- | P38: =IF(ISBLANK('Step 2 Chemical_Parameters'!D39)," ",'Step 2 Chemical_Parameters'!D39) ->  | Q38: =IF(M38="--"," ",IF(ISBLANK('Step 3 Exposure Parameters'!$D$11),1,'Step 3 Exposure Parameters'!$D$11)) -> 
A39: -- | B39: -- | C39: -- | E39: -- | G39: =IF(F39="","--",IF(ISERROR(IF(E39="--","--",IF(F39="Metal",E39/(P39*Q39),IF(F39="Polar Organic",E39/(P39*Q39),IF(F39="Nonpolar Organic",(E39*('Step 3 Exposure Parameters'!$D$15/100))/(P39*('Step 3 Exposure Parameters'!$D$14/100)*Q39),IF(F39="Organometal",(E39*('Step 3 Exposure Parameters'!$D$15/100))/(P39*('Step 3 Exposure Parameters'!$D$14/100)*Q39))))))),"--",IF(E39="--","--",IF(F39="Metal",E39/(P39*Q39),IF(F39="Polar Organic",E39/(P39*Q39),IF(F39="Nonpolar Organic",(E39*('Step 3 Exposure Parameters'!$D$15/100))/(P39*('Step 3 Exposure Parameters'!$D$14/100)*Q39),IF(F39="Organometal",(E39*('Step 3 Exposure Parameters'!$D$15/100))/(P39*('Step 3 Exposure Parameters'!$D$14/100)*Q39)))))))) -> -- | M39: ='Step 2 Chemical_Parameters'!A40 -> -- | N39: ='Step 2 Chemical_Parameters'!B40 -> -- | O39: =IF(ISNUMBER(Consumption_HH_Tissue!F62),Consumption_HH_Tissue!F62," --") -> -- | P39: =IF(ISBLANK('Step 2 Chemical_Parameters'!D40)," ",'Step 2 Chemical_Parameters'!D40) ->  | Q39: =IF(M39="--"," ",IF(ISBLANK('Step 3 Exposure Parameters'!$D$11),1,'Step 3 Exposure Parameters'!$D$11)) -> 
A40: -- | B40: -- | C40: -- | E40: -- | G40: =IF(F40="","--",IF(ISERROR(IF(E40="--","--",IF(F40="Metal",E40/(P40*Q40),IF(F40="Polar Organic",E40/(P40*Q40),IF(F40="Nonpolar Organic",(E40*('Step 3 Exposure Parameters'!$D$15/100))/(P40*('Step 3 Exposure Parameters'!$D$14/100)*Q40),IF(F40="Organometal",(E40*('Step 3 Exposure Parameters'!$D$15/100))/(P40*('Step 3 Exposure Parameters'!$D$14/100)*Q40))))))),"--",IF(E40="--","--",IF(F40="Metal",E40/(P40*Q40),IF(F40="Polar Organic",E40/(P40*Q40),IF(F40="Nonpolar Organic",(E40*('Step 3 Exposure Parameters'!$D$15/100))/(P40*('Step 3 Exposure Parameters'!$D$14/100)*Q40),IF(F40="Organometal",(E40*('Step 3 Exposure Parameters'!$D$15/100))/(P40*('Step 3 Exposure Parameters'!$D$14/100)*Q40)))))))) -> -- | M40: ='Step 2 Chemical_Parameters'!A41 -> -- | N40: ='Step 2 Chemical_Parameters'!B41 -> -- | O40: =IF(ISNUMBER(Consumption_HH_Tissue!F63),Consumption_HH_Tissue!F63," --") -> -- | P40: =IF(ISBLANK('Step 2 Chemical_Parameters'!D41)," ",'Step 2 Chemical_Parameters'!D41) ->  | Q40: =IF(M40="--"," ",IF(ISBLANK('Step 3 Exposure Parameters'!$D$11),1,'Step 3 Exposure Parameters'!$D$11)) -> 
A41: -- | B41: -- | C41: -- | E41: -- | G41: =IF(F41="","--",IF(ISERROR(IF(E41="--","--",IF(F41="Metal",E41/(P41*Q41),IF(F41="Polar Organic",E41/(P41*Q41),IF(F41="Nonpolar Organic",(E41*('Step 3 Exposure Parameters'!$D$15/100))/(P41*('Step 3 Exposure Parameters'!$D$14/100)*Q41),IF(F41="Organometal",(E41*('Step 3 Exposure Parameters'!$D$15/100))/(P41*('Step 3 Exposure Parameters'!$D$14/100)*Q41))))))),"--",IF(E41="--","--",IF(F41="Metal",E41/(P41*Q41),IF(F41="Polar Organic",E41/(P41*Q41),IF(F41="Nonpolar Organic",(E41*('Step 3 Exposure Parameters'!$D$15/100))/(P41*('Step 3 Exposure Parameters'!$D$14/100)*Q41),IF(F41="Organometal",(E41*('Step 3 Exposure Parameters'!$D$15/100))/(P41*('Step 3 Exposure Parameters'!$D$14/100)*Q41)))))))) -> -- | M41: ='Step 2 Chemical_Parameters'!A42 -> -- | N41: ='Step 2 Chemical_Parameters'!B42 -> -- | O41: =IF(ISNUMBER(Consumption_HH_Tissue!F64),Consumption_HH_Tissue!F64," --") -> -- | P41: =IF(ISBLANK('Step 2 Chemical_Parameters'!D42)," ",'Step 2 Chemical_Parameters'!D42) ->  | Q41: =IF(M41="--"," ",IF(ISBLANK('Step 3 Exposure Parameters'!$D$11),1,'Step 3 Exposure Parameters'!$D$11)) -> 
A42: -- | B42: -- | C42: -- | E42: -- | G42: =IF(F42="","--",IF(ISERROR(IF(E42="--","--",IF(F42="Metal",E42/(P42*Q42),IF(F42="Polar Organic",E42/(P42*Q42),IF(F42="Nonpolar Organic",(E42*('Step 3 Exposure Parameters'!$D$15/100))/(P42*('Step 3 Exposure Parameters'!$D$14/100)*Q42),IF(F42="Organometal",(E42*('Step 3 Exposure Parameters'!$D$15/100))/(P42*('Step 3 Exposure Parameters'!$D$14/100)*Q42))))))),"--",IF(E42="--","--",IF(F42="Metal",E42/(P42*Q42),IF(F42="Polar Organic",E42/(P42*Q42),IF(F42="Nonpolar Organic",(E42*('Step 3 Exposure Parameters'!$D$15/100))/(P42*('Step 3 Exposure Parameters'!$D$14/100)*Q42),IF(F42="Organometal",(E42*('Step 3 Exposure Parameters'!$D$15/100))/(P42*('Step 3 Exposure Parameters'!$D$14/100)*Q42)))))))) -> -- | M42: ='Step 2 Chemical_Parameters'!A43 -> -- | N42: ='Step 2 Chemical_Parameters'!B43 -> -- | O42: =IF(ISNUMBER(Consumption_HH_Tissue!F65),Consumption_HH_Tissue!F65," --") -> -- | P42: =IF(ISBLANK('Step 2 Chemical_Parameters'!D43)," ",'Step 2 Chemical_Parameters'!D43) ->  | Q42: =IF(M42="--"," ",IF(ISBLANK('Step 3 Exposure Parameters'!$D$11),1,'Step 3 Exposure Parameters'!$D$11)) -> 
A43: -- | B43: -- | C43: -- | E43: -- | G43: =IF(F43="","--",IF(ISERROR(IF(E43="--","--",IF(F43="Metal",E43/(P43*Q43),IF(F43="Polar Organic",E43/(P43*Q43),IF(F43="Nonpolar Organic",(E43*('Step 3 Exposure Parameters'!$D$15/100))/(P43*('Step 3 Exposure Parameters'!$D$14/100)*Q43),IF(F43="Organometal",(E43*('Step 3 Exposure Parameters'!$D$15/100))/(P43*('Step 3 Exposure Parameters'!$D$14/100)*Q43))))))),"--",IF(E43="--","--",IF(F43="Metal",E43/(P43*Q43),IF(F43="Polar Organic",E43/(P43*Q43),IF(F43="Nonpolar Organic",(E43*('Step 3 Exposure Parameters'!$D$15/100))/(P43*('Step 3 Exposure Parameters'!$D$14/100)*Q43),IF(F43="Organometal",(E43*('Step 3 Exposure Parameters'!$D$15/100))/(P43*('Step 3 Exposure Parameters'!$D$14/100)*Q43)))))))) -> -- | M43: ='Step 2 Chemical_Parameters'!A44 -> -- | N43: ='Step 2 Chemical_Parameters'!B44 -> -- | O43: =IF(ISNUMBER(Consumption_HH_Tissue!F66),Consumption_HH_Tissue!F66," --") -> -- | P43: =IF(ISBLANK('Step 2 Chemical_Parameters'!D44)," ",'Step 2 Chemical_Parameters'!D44) ->  | Q43: =IF(M43="--"," ",IF(ISBLANK('Step 3 Exposure Parameters'!$D$11),1,'Step 3 Exposure Parameters'!$D$11)) -> 

Sheet IngestionDermal_Sediment
A1: Data from Worksheet Step 3 Exposure_Parameters | P1: Hide Row | V1: Hide Column | W1: Hide Column | X1: Hide Column | Y1: Hide Column | Z1: Hide Column | AA1: Hide Column
A2: Reference Data for Calculated Fields (Equations 2-5 and 2-6) | P2: Hide Row | S2: Selected ELS RME Values (Child Beach Play/Adult Clam Digging) | X2: Selected ELS RME Values (Child Beach Play/Adult Net Fishing)
F3: Beach Play Child (Data) | H3: Subs. Clam Digging Adult (Data) | L3: Subs. Net Fishing Adult (Data) | P3: Hide Row | S3: Early Life stages (cPAH cancer only) | X3: Early Life stages (cPAH cancer only)
A4: Abbrev | B4: Parameter Name | C4: Units | F4: CULcancer | G4: CULnoncancer | H4: =F4 -> CULcancer | K4: =G4 -> CULnoncancer | L4: =H4 -> CULcancer | M4: =K4 -> CULnoncancer | P4: Hide Row | Q4: Exposure Parameter | R4: Units | S4: AGE: 0-<2 | T4: AGE: 2-<6 | U4: AGE: 6-<16 | V4: AGE: 16-70 | X4: AGE: 0-<2 | Y4: AGE: 2-<6 | Z4: AGE: 6-<16 | AA4: AGE: 16-70
A5: CR / HQ | B5: Cancer (CR) / Hazard Quotient (HQ) | C5: unitless | F5: ='Step 3 Exposure Parameters'!D24 -> 1e-06 | G5: ='Step 3 Exposure Parameters'!E24 -> 1 | H5: ='Step 3 Exposure Parameters'!F24 -> 1e-06 | K5: ='Step 3 Exposure Parameters'!G24 -> 1 | L5: ='Step 3 Exposure Parameters'!H24 -> 1e-06 | M5: ='Step 3 Exposure Parameters'!I24 -> 1 | P5: Hide Row | Q5: Cancer (CR) / Hazard Quotient (HQ) | R5: unitless | S5: ='Step 3 Exposure Parameters'!$P24 -> 1e-06 | T5: ='Step 3 Exposure Parameters'!$Q24 -> 1e-06 | U5: ='Step 3 Exposure Parameters'!$R24 -> 1e-06 | V5: ='Step 3 Exposure Parameters'!$S24 -> 1e-06 | X5: ='Step 3 Exposure Parameters'!$P24 -> 1e-06 | Y5: ='Step 3 Exposure Parameters'!$Q24 -> 1e-06 | Z5: ='Step 3 Exposure Parameters'!$T24 -> 1e-06 | AA5: ='Step 3 Exposure Parameters'!$U24 -> 1e-06
A6: BW | B6: Body Weight | C6: kg | F6: ='Step 3 Exposure Parameters'!D25 -> 15 | G6: ='Step 3 Exposure Parameters'!E25 -> 15 | H6: ='Step 3 Exposure Parameters'!F25 -> 75 | K6: ='Step 3 Exposure Parameters'!G25 -> 75 | L6: ='Step 3 Exposure Parameters'!H25 -> 75 | M6: ='Step 3 Exposure Parameters'!I25 -> 75 | P6: Hide Row | Q6: Body Weight | R6: kg | S6: ='Step 3 Exposure Parameters'!$P25 -> 10 | T6: ='Step 3 Exposure Parameters'!$Q25 -> 17 | U6: ='Step 3 Exposure Parameters'!$R25 -> 44 | V6: ='Step 3 Exposure Parameters'!$S25 -> 81 | X6: ='Step 3 Exposure Parameters'!$P25 -> 10 | Y6: ='Step 3 Exposure Parameters'!$Q25 -> 17 | Z6: ='Step 3 Exposure Parameters'!$T25 -> 44 | AA6: ='Step 3 Exposure Parameters'!$U25 -> 81
A7: AT | B7: Averaging Time | C7: days | F7: ='Step 3 Exposure Parameters'!D26 -> 25550 | G7: ='Step 3 Exposure Parameters'!E26 -> 2190 | H7: ='Step 3 Exposure Parameters'!F26 -> 25550 | K7: ='Step 3 Exposure Parameters'!G26 -> 25550 | L7: ='Step 3 Exposure Parameters'!H26 -> 25550 | M7: ='Step 3 Exposure Parameters'!I26 -> 25550 | P7: Hide Row | Q7: Averaging Time | R7: days | S7: ='Step 3 Exposure Parameters'!$P26 -> 25550 | T7: ='Step 3 Exposure Parameters'!$Q26 -> 25550 | U7: ='Step 3 Exposure Parameters'!$R26 -> 25550 | V7: ='Step 3 Exposure Parameters'!$S26 -> 25550 | X7: ='Step 3 Exposure Parameters'!$P26 -> 25550 | Y7: ='Step 3 Exposure Parameters'!$Q26 -> 25550 | Z7: ='Step 3 Exposure Parameters'!$T26 -> 25550 | AA7: ='Step 3 Exposure Parameters'!$U26 -> 25550
A8: UCF | B8: Unit Conversion Factor | C8: mg/kg | F8: ='Step 3 Exposure Parameters'!D27 -> 1000000 | G8: ='Step 3 Exposure Parameters'!E27 -> 1000000 | H8: ='Step 3 Exposure Parameters'!F27 -> 1000000 | K8: ='Step 3 Exposure Parameters'!G27 -> 1000000 | L8: ='Step 3 Exposure Parameters'!H27 -> 1000000 | M8: ='Step 3 Exposure Parameters'!I27 -> 1000000 | P8: Hide Row | Q8: Unit Conversion Factor | R8: mg/kg | S8: ='Step 3 Exposure Parameters'!$P27 -> 1000000 | T8: ='Step 3 Exposure Parameters'!$Q27 -> 1000000 | U8: ='Step 3 Exposure Parameters'!$R27 -> 1000000 | V8: ='Step 3 Exposure Parameters'!$S27 -> 1000000 | X8: ='Step 3 Exposure Parameters'!$P27 -> 1000000 | Y8: ='Step 3 Exposure Parameters'!$Q27 -> 1000000 | Z8: ='Step 3 Exposure Parameters'!$T27 -> 1000000 | AA8: ='Step 3 Exposure Parameters'!$U27 -> 1000000
A9: EF | B9: Exposure Frequency | C9: days/year | F9: ='Step 3 Exposure Parameters'!D28 -> 41 | G9: ='Step 3 Exposure Parameters'!E28 -> 41 | H9: ='Step 3 Exposure Parameters'!F28 -> 120 | K9: ='Step 3 Exposure Parameters'!G28 -> 120 | L9: ='Step 3 Exposure Parameters'!H28 -> 119 | M9: ='Step 3 Exposure Parameters'!I28 -> 119 | P9: Hide Row | Q9: Exposure Frequency | R9: days/year | S9: ='Step 3 Exposure Parameters'!$P28 -> 41 | T9: ='Step 3 Exposure Parameters'!$Q28 -> 41 | U9: ='Step 3 Exposure Parameters'!$R28 -> 120 | V9: ='Step 3 Exposure Parameters'!S28 -> 120 | X9: ='Step 3 Exposure Parameters'!$P28 -> 41 | Y9: ='Step 3 Exposure Parameters'!$Q28 -> 41 | Z9: ='Step 3 Exposure Parameters'!$T28 -> 119 | AA9: ='Step 3 Exposure Parameters'!$U28 -> 119
A10: ED | B10: Exposure Duration | C10: years | F10: ='Step 3 Exposure Parameters'!D29 -> 6 | G10: ='Step 3 Exposure Parameters'!E29 -> 6 | H10: ='Step 3 Exposure Parameters'!F29 -> 70 | K10: ='Step 3 Exposure Parameters'!G29 -> 70 | L10: ='Step 3 Exposure Parameters'!H29 -> 70 | M10: ='Step 3 Exposure Parameters'!I29 -> 70 | P10: Hide Row | Q10: Exposure Duration | R10: years | S10: ='Step 3 Exposure Parameters'!$P29 -> 2 | T10: ='Step 3 Exposure Parameters'!$Q29 -> 4 | U10: ='Step 3 Exposure Parameters'!$R29 -> 10 | V10: ='Step 3 Exposure Parameters'!$S29 -> 54 | X10: ='Step 3 Exposure Parameters'!$P29 -> 2 | Y10: ='Step 3 Exposure Parameters'!$Q29 -> 4 | Z10: ='Step 3 Exposure Parameters'!$T29 -> 10 | AA10: ='Step 3 Exposure Parameters'!$U29 -> 54
A11: IR | B11: Ingestion Rate | C11: mg/day | F11: ='Step 3 Exposure Parameters'!D30 -> 200 | G11: ='Step 3 Exposure Parameters'!E30 -> 200 | H11: ='Step 3 Exposure Parameters'!F30 -> 100 | K11: ='Step 3 Exposure Parameters'!G30 -> 100 | L11: ='Step 3 Exposure Parameters'!H30 -> 50 | M11: ='Step 3 Exposure Parameters'!I30 -> 50 | P11: Hide Row | Q11: Ingestion Rate | R11: mg/day | S11: ='Step 3 Exposure Parameters'!$P30 -> 200 | T11: ='Step 3 Exposure Parameters'!$Q30 -> 200 | U11: ='Step 3 Exposure Parameters'!$R30 -> 100 | V11: ='Step 3 Exposure Parameters'!$S30 -> 100 | X11: ='Step 3 Exposure Parameters'!$P30 -> 200 | Y11: ='Step 3 Exposure Parameters'!$Q30 -> 200 | Z11: ='Step 3 Exposure Parameters'!$T30 -> 50 | AA11: ='Step 3 Exposure Parameters'!$U30 -> 50
A12: SA | B12: Dermal Surface Area | C12: cm2 | F12: ='Step 3 Exposure Parameters'!D31 -> 3835 | G12: ='Step 3 Exposure Parameters'!E31 -> 3835 | H12: ='Step 3 Exposure Parameters'!F31 -> 11813 | K12: ='Step 3 Exposure Parameters'!G31 -> 11813 | L12: ='Step 3 Exposure Parameters'!H31 -> 5590 | M12: ='Step 3 Exposure Parameters'!I31 -> 5590 | P12: Hide Row | Q12: Dermal Surface Area | R12: cm2 | S12: ='Step 3 Exposure Parameters'!$P31 -> 2989 | T12: ='Step 3 Exposure Parameters'!$Q31 -> 4258 | U12: ='Step 3 Exposure Parameters'!$R31 -> 8060 | V12: ='Step 3 Exposure Parameters'!$S31 -> 12508 | X12: ='Step 3 Exposure Parameters'!$P31 -> 2989 | Y12: ='Step 3 Exposure Parameters'!$Q31 -> 4258 | Z12: ='Step 3 Exposure Parameters'!$T31 -> 3749 | AA12: ='Step 3 Exposure Parameters'!$U31 -> 5931
A13: AF | B13: Sediment to Skin Adherence Factor | C13: mg/cm2-day | F13: ='Step 3 Exposure Parameters'!D32 -> 2.6 | G13: ='Step 3 Exposure Parameters'!E32 -> 2.6 | H13: ='Step 3 Exposure Parameters'!F32 -> 0.24 | K13: ='Step 3 Exposure Parameters'!G32 -> 0.24 | L13: ='Step 3 Exposure Parameters'!H32 -> 0.19 | M13: ='Step 3 Exposure Parameters'!I32 -> 0.19 | P13: Hide Row | Q13: Sediment to Skin Adherence Factor | R13: mg/cm2-day | S13: ='Step 3 Exposure Parameters'!$P32 -> 2.6 | T13: ='Step 3 Exposure Parameters'!$Q32 -> 2.6 | U13: ='Step 3 Exposure Parameters'!$R32 -> 0.24 | V13: ='Step 3 Exposure Parameters'!$S32 -> 0.24 | X13: ='Step 3 Exposure Parameters'!$P32 -> 2.6 | Y13: ='Step 3 Exposure Parameters'!$Q32 -> 2.6 | Z13: ='Step 3 Exposure Parameters'!$T32 -> 0.19 | AA13: ='Step 3 Exposure Parameters'!$U32 -> 0.19
P14: Hide Row | Q14: Age-Dependent Adjuatment Factor | R14: unitless | S14: ='Step 3 Exposure Parameters'!$P33 -> 10 | T14: ='Step 3 Exposure Parameters'!$Q33 -> 3 | U14: ='Step 3 Exposure Parameters'!$R33 -> 3 | V14: ='Step 3 Exposure Parameters'!$S33 -> 1 | X14: ='Step 3 Exposure Parameters'!$P33 -> 10 | Y14: ='Step 3 Exposure Parameters'!$Q33 -> 3 | Z14: ='Step 3 Exposure Parameters'!$T33 -> 3 | AA14: ='Step 3 Exposure Parameters'!$U33 -> 1
P15: Hide Row | R15: age-dependent calculations, beach play and clam digging
P16: Hide Row | R16: IRF | S16: =(S11*S10*S9*S14)/S6 -> 16400 | T16: =(T11*T10*T9*T14)/T6 -> 5788.235294 | U16: =(U11*U10*U9*U14)/U6 -> 8181.818182 | V16: =(V11*V10*V9*V14)/V6 -> 8000 | W16: IRF | X16: =(X11*X10*X9*X14)/X6 -> 16400 | Y16: =(Y11*Y10*Y9*Y14)/Y6 -> 5788.235294 | Z16: =(Z11*Z10*Z9*Z14)/Z6 -> 4056.818182 | AA16: =(AA11*AA10*AA9*AA14)/AA6 -> 3966.666667
P17: Hide Row | R17: DF | S17: =(S12*S10*S9*S13*S14)/S6 -> 637254.8 | T17: =(T12*T10*T9*T13*T14)/T6 -> 320401.9765 | U17: =(U12*U10*U9*U13*U14)/U6 -> 158269.0909 | V17: =(V12*V10*V9*V13*V14)/V6 -> 240153.6 | W17: DF | X17: =(X12*X10*X9*X13*X14)/X6 -> 637254.8 | Y17: =(Y12*Y10*Y9*Y13*Y14)/Y6 -> 320401.9765 | Z17: =(Z12*Z10*Z9*Z13*Z14)/Z6 -> 57794.24318 | AA17: =(AA12*AA10*AA9*AA13*AA14)/AA6 -> 89399.94
P18: Hide Row
D19: hide col | E19: hide col | I19: hide col | J19: hide col | N19: hide col | O19: hide col | P19: Hide Row
C20: Equation 9-1: Risk-Based Sediment Concentrations Based on Ingestion and Dermal Contact with Sediment (Cancer):
C24: Equation 9-3: Risk-Based Sediment Concentrations Based on Ingestion and Dermal Contact with Sediment (Noncancer):
C29: See SCUM Chapter 9 (Equation 9-2) for Early Life Stage (ELS) calculation formulas. Applicable for mutagens (e.g., cPAHS).
D31: Beach Play Child | F31: Beach Play Child | I31: Tribal Clam Adult | K31: Subs. Clam Digging Adult | N31: Tribal Net Fish Adult | P31: Subs. Net Fishing Adult | S31: All Pathways | T31: Mutagen (M)
D32: Equation 9-1 | E32: Equation 9-3 | F32: Cancer | G32: Noncancer | H32: Sediment Concentration | I32: Equation 9-1 | J32: Equation 9-3 | K32: Cancer | L32: Noncancer | M32: Sediment Concentration | N32: Equation 9-1 | O32: Equation 9-3 | P32: Cancer | Q32: Noncancer | R32: Sediment Concentration | S32: Lowest Risk-Based Sediment Concentration | V32: Data from Worksheet Step 1 | Y32: Early Life Stage incorporation
B33: CAS Number | C33: Contaminant of Concern | F33: mg/kg | G33: mg/kg | H33: mg/kg | K33: =F33 -> mg/kg | L33: =G33 -> mg/kg | M33: mg/kg | P33: mg/kg | Q33: mg/kg | R33: mg/kg | S33: mg/kg | V33: CAS Number | W33: Contaminant of Concern | Y33: Child Beach | Z33: Child Beach/Adult Clam | AA33: Child Beach/Adult Net Fish
B34: =V34 -> 7440-38-2 | C34: =W34 -> arsenic, inorganic | D34: =IF(ISERROR(($F$5*$F$6*$F$7)/($F$9*$F$10*(($F$11*'Step 2 Chemical_Parameters'!E12*'Step 1 Toxicity_Values'!$D12/$F$8)+($F$12*$F$13*'Step 2 Chemical_Parameters'!F12*'Step 1 Toxicity_Values'!G12/$F$8)))),"--",($F$5*$F$6*$F$7)/($F$9*$F$10*(($F$11*'Step 2 Chemical_Parameters'!E12*'Step 1 Toxicity_Values'!$D12/$F$8)+($F$12*$F$13*'Step 2 Chemical_Parameters'!F12*'Step 1 Toxicity_Values'!G12/$F$8)))) -> 0.09754014668 | E34: =IF(ISERROR(($G$5*$G$6*$G$7)/($G$9*$G$10*(((1/'Step 1 Toxicity_Values'!$E12)*($G$11*'Step 2 Chemical_Parameters'!$E12/$G$8))+((1/'Step 1 Toxicity_Values'!$I12)*($G$12*$G$13*'Step 2 Chemical_Parameters'!$F12/$G$8))))),"--",($G$5*$G$6*$G$7)/($G$9*$G$10*(((1/'Step 1 Toxicity_Values'!$E12)*($G$11*'Step 2 Chemical_Parameters'!$E12/$G$8))+((1/'Step 1 Toxicity_Values'!$I12)*($G$12*$G$13*'Step 2 Chemical_Parameters'!$F12/$G$8))))) -> 16.05232128 | F34: =IF(T34="M",Y34,D34) -> 0.09754014668 | G34: =IF(E34="--","--",E34) -> 16.05232128 | H34: =IF(MIN(F34:G34)>0,MIN(F34:G34),"--") -> 0.09754014668 | I34: =IF(ISERROR(($H$5*$H$6*$H$7)/($H$9*$H$10*(($H$11*'Step 2 Chemical_Parameters'!$E12*'Step 1 Toxicity_Values'!$D12/$H$8)+($H$12*$H$13*'Step 2 Chemical_Parameters'!$F12*'Step 1 Toxicity_Values'!$G12/$H$8)))),"--",($H$5*$H$6*$H$7)/($H$9*$H$10*(($H$11*'Step 2 Chemical_Parameters'!$E12*'Step 1 Toxicity_Values'!$D12/$H$8)+($H$12*$H$13*'Step 2 Chemical_Parameters'!$F12*'Step 1 Toxicity_Values'!$G12/$H$8)))) -> 0.03852346698 | J34: =IF(ISERROR(($K$5*$K$6*$K$7)/($K$9*$K$10*(((1/'Step 1 Toxicity_Values'!$E12)*$K$11*'Step 2 Chemical_Parameters'!$E12/$K$8)+((1/'Step 1 Toxicity_Values'!$I12)*$K$12*$K$13*'Step 2 Chemical_Parameters'!$F12/$K$8)))),"--",($K$5*$K$6*$K$7)/($K$9*$K$10*(((1/'Step 1 Toxicity_Values'!$E12)*$K$11*'Step 2 Chemical_Parameters'!$E12/$K$8)+((1/'Step 1 Toxicity_Values'!$I12)*$K$12*$K$13*'Step 2 Chemical_Parameters'!$F12/$K$8)))) -> 73.96505661 | K34: =IF(T34="M",Z34,I34) -> 0.03852346698 | L34: =IF(J34="--","--",J34) -> 73.96505661 | M34: =IF(MIN(K34:L34)>0, MIN(K34:L34), "--") -> 0.03852346698 | N34: =IF(ISERROR(($L$5*$L$6*$L$7)/($L$9*$L$10*(($L$11*'Step 2 Chemical_Parameters'!$E12*'Step 1 Toxicity_Values'!$D12/$L$8)+($L$12*$L$13*'Step 2 Chemical_Parameters'!$F12*'Step 1 Toxicity_Values'!$G12/$L$8)))),"--",($L$5*$L$6*$L$7)/($L$9*$L$10*(($L$11*'Step 2 Chemical_Parameters'!$E12*'Step 1 Toxicity_Values'!$D12/$L$8)+($L$12*$L$13*'Step 2 Chemical_Parameters'!$F12*'Step 1 Toxicity_Values'!$G12/$L$8)))) -> 0.08781516711 | O34: =IF(ISERROR(($M$5*$M$6*$M$7)/($M$9*$M$10*(((1/'Step 1 Toxicity_Values'!$E12)*$M$11*'Step 2 Chemical_Parameters'!$E12/$M$8)+((1/'Step 1 Toxicity_Values'!$I12)*$M$12*$M$13*'Step 2 Chemical_Parameters'!$F12/$M$8)))),"--",($M$5*$M$6*$M$7)/($M$9*$M$10*(((1/'Step 1 Toxicity_Values'!$E12)*$M$11*'Step 2 Chemical_Parameters'!$E12/$M$8)+((1/'Step 1 Toxicity_Values'!$I12)*$M$12*$M$13*'Step 2 Chemical_Parameters'!$F12/$M$8)))) -> 168.6051209 | P34: =IF(T34="M",AA34,N34) -> 0.08781516711 | Q34: =IF(O34="--","--",O34) -> 168.6051209 | R34: =IF(MIN(P34:Q34)>0, MIN(P34:Q34), "--") -> 0.08781516711 | S34: =IF(MIN(H34,M34,R34)>0,MIN(H34,M34,R34),"--") -> 0.03852346698 | T34: =IF(B34="--","--",IF(VLOOKUP(B34,chemical,8,FALSE)="","--",VLOOKUP(B34,chemical,8,FALSE))) -> -- | V34: ='Step 2 Chemical_Parameters'!A12 -> 7440-38-2 | W34: ='Step 2 Chemical_Parameters'!B12 -> arsenic, inorganic | Y34: =IF(B34="--","--",IF(VLOOKUP(B34,chemical,8,FALSE)="M",IF(ISERROR(($S$5*$S$7*$S$8)/((($S$16+$T$16)*'Step 2 Chemical_Parameters'!E12*'Step 1 Toxicity_Values'!D12)+(($S$17+$T$17)*'Step 2 Chemical_Parameters'!F12*'Step 1 Toxicity_Values'!G12))),"--",($S$5*$S$7*$S$8)/((($S$16+$T$16)*'Step 2 Chemical_Parameters'!E12*'Step 1 Toxicity_Values'!D12)+(($S$17+$T$17)*'Step 2 Chemical_Parameters'!F12*'Step 1 Toxicity_Values'!G12))),"--")) -> -- | Z34: =IF(B34="--","--",IF(VLOOKUP(B34,chemical,8,FALSE)="M",IF(ISERROR(($S$5*$S$7*$S$8)/((($S$16+$T$16+$U$16+$V$16)*'Step 2 Chemical_Parameters'!E12*'Step 1 Toxicity_Values'!D12)+(($S$17+$T$17+$U$17+$V$17)*'Step 2 Chemical_Parameters'!F12*'Step 1 Toxicity_Values'!G12))),"--",($S$5*$S$7*$S$8)/((($S$16+$T$16+$U$16+$V$16)*'Step 2 Chemical_Parameters'!E12*'Step 1 Toxicity_Values'!D12)+(($S$17+$T$17+$U$17+$V$17)*'Step 2 Chemical_Parameters'!F12*'Step 1 Toxicity_Values'!G12))),"--")) -> -- | AA34: =IF(B34="--","--",IF(VLOOKUP(B34,chemical,8,FALSE)="M",IF(ISERROR(($X$5*$X$7*$X$8)/((($X$16+$Y$16+$Z$16+$AA$16)*'Step 2 Chemical_Parameters'!E12*'Step 1 Toxicity_Values'!D12)+(($X$17+$Y$17+$Z$17+$AA$17)*'Step 2 Chemical_Parameters'!F12*'Step 1 Toxicity_Values'!G12))),"--",($X$5*$X$7*$X$8)/((($X$16+$Y$16+$Z$16+$AA$16)*'Step 2 Chemical_Parameters'!E12*'Step 1 Toxicity_Values'!D12)+(($X$17+$Y$17+$Z$17+$AA$17)*'Step 2 Chemical_Parameters'!F12*'Step 1 Toxicity_Values'!G12))),"--")) -> -- | AB34: Abbrev | AC34: Definition
B35: =V35 -> 7440-43-9 | C35: Cadmium | D35: =IF(ISERROR(($F$5*$F$6*$F$7)/($F$9*$F$10*(($F$11*'Step 2 Chemical_Parameters'!E13*'Step 1 Toxicity_Values'!$D13/$F$8)+($F$12*$F$13*'Step 2 Chemical_Parameters'!F13*'Step 1 Toxicity_Values'!G13/$F$8)))),"--",($F$5*$F$6*$F$7)/($F$9*$F$10*(($F$11*'Step 2 Chemical_Parameters'!E13*'Step 1 Toxicity_Values'!$D13/$F$8)+($F$12*$F$13*'Step 2 Chemical_Parameters'!F13*'Step 1 Toxicity_Values'!G13/$F$8)))) -> -- | E35: =IF(ISERROR(($G$5*$G$6*$G$7)/($G$9*$G$10*(((1/'Step 1 Toxicity_Values'!$E13)*($G$11*'Step 2 Chemical_Parameters'!$E13/$G$8))+((1/'Step 1 Toxicity_Values'!$I13)*($G$12*$G$13*'Step 2 Chemical_Parameters'!$F13/$G$8))))),"--",($G$5*$G$6*$G$7)/($G$9*$G$10*(((1/'Step 1 Toxicity_Values'!$E13)*($G$11*'Step 2 Chemical_Parameters'!$E13/$G$8))+((1/'Step 1 Toxicity_Values'!$I13)*($G$12*$G$13*'Step 2 Chemical_Parameters'!$F13/$G$8))))) -> 222.9920937 | F35: =IF(T35="M",Y35,D35) -> -- | G35: 222.9920937 | H35: =IF(MIN(F35:G35)>0,MIN(F35:G35),"--") -> 222.9920937 | I35: =IF(ISERROR(($H$5*$H$6*$H$7)/($H$9*$H$10*(($H$11*'Step 2 Chemical_Parameters'!$E13*'Step 1 Toxicity_Values'!$D13/$H$8)+($H$12*$H$13*'Step 2 Chemical_Parameters'!$F13*'Step 1 Toxicity_Values'!$G13/$H$8)))),"--",($H$5*$H$6*$H$7)/($H$9*$H$10*(($H$11*'Step 2 Chemical_Parameters'!$E13*'Step 1 Toxicity_Values'!$D13/$H$8)+($H$12*$H$13*'Step 2 Chemical_Parameters'!$F13*'Step 1 Toxicity_Values'!$G13/$H$8)))) -> -- | J35: =IF(ISERROR(($K$5*$K$6*$K$7)/($K$9*$K$10*(((1/'Step 1 Toxicity_Values'!$E13)*$K$11*'Step 2 Chemical_Parameters'!$E13/$K$8)+((1/'Step 1 Toxicity_Values'!$I13)*$K$12*$K$13*'Step 2 Chemical_Parameters'!$F13/$K$8)))),"--",($K$5*$K$6*$K$7)/($K$9*$K$10*(((1/'Step 1 Toxicity_Values'!$E13)*$K$11*'Step 2 Chemical_Parameters'!$E13/$K$8)+((1/'Step 1 Toxicity_Values'!$I13)*$K$12*$K$13*'Step 2 Chemical_Parameters'!$F13/$K$8)))) -> 1068.97783 | K35: =IF(T35="M",Z35,I35) -> -- | L35: 1068.97783 | M35: 1068.97783 | N35: =IF(ISERROR(($L$5*$L$6*$L$7)/($L$9*$L$10*(($L$11*'Step 2 Chemical_Parameters'!$E13*'Step 1 Toxicity_Values'!$D13/$L$8)+($L$12*$L$13*'Step 2 Chemical_Parameters'!$F13*'Step 1 Toxicity_Values'!$G13/$L$8)))),"--",($L$5*$L$6*$L$7)/($L$9*$L$10*(($L$11*'Step 2 Chemical_Parameters'!$E13*'Step 1 Toxicity_Values'!$D13/$L$8)+($L$12*$L$13*'Step 2 Chemical_Parameters'!$F13*'Step 1 Toxicity_Values'!$G13/$L$8)))) -> -- | O35: =IF(ISERROR(($M$5*$M$6*$M$7)/($M$9*$M$10*(((1/'Step 1 Toxicity_Values'!$E13)*$M$11*'Step 2 Chemical_Parameters'!$E13/$M$8)+((1/'Step 1 Toxicity_Values'!$I13)*$M$12*$M$13*'Step 2 Chemical_Parameters'!$F13/$M$8)))),"--",($M$5*$M$6*$M$7)/($M$9*$M$10*(((1/'Step 1 Toxicity_Values'!$E13)*$M$11*'Step 2 Chemical_Parameters'!$E13/$M$8)+((1/'Step 1 Toxicity_Values'!$I13)*$M$12*$M$13*'Step 2 Chemical_Parameters'!$F13/$M$8)))) -> 2487.37097 | P35: =IF(T35="M",AA35,N35) -> -- | Q35: 2487.37097 | R35: 2487.37097 | S35: =IF(MIN(H35,M35,R35)>0,MIN(H35,M35,R35),"--") -> 222.9920937 | T35: -- | V35: ='Step 2 Chemical_Parameters'!A13 -> 7440-43-9 | W35: ='Step 2 Chemical_Parameters'!B13 -> Cadmium | Y35: =IF(B35="--","--",IF(VLOOKUP(B35,chemical,8,FALSE)="M",IF(ISERROR(($S$5*$S$7*$S$8)/((($S$16+$T$16)*'Step 2 Chemical_Parameters'!E13*'Step 1 Toxicity_Values'!D13)+(($S$17+$T$17)*'Step 2 Chemical_Parameters'!F13*'Step 1 Toxicity_Values'!G13))),"--",($S$5*$S$7*$S$8)/((($S$16+$T$16)*'Step 2 Chemical_Parameters'!E13*'Step 1 Toxicity_Values'!D13)+(($S$17+$T$17)*'Step 2 Chemical_Parameters'!F13*'Step 1 Toxicity_Values'!G13))),"--")) -> -- | Z35: =IF(B35="--","--",IF(VLOOKUP(B35,chemical,8,FALSE)="M",IF(ISERROR(($S$5*$S$7*$S$8)/((($S$16+$T$16+$U$16+$V$16)*'Step 2 Chemical_Parameters'!E13*'Step 1 Toxicity_Values'!D13)+(($S$17+$T$17+$U$17+$V$17)*'Step 2 Chemical_Parameters'!F13*'Step 1 Toxicity_Values'!G13))),"--",($S$5*$S$7*$S$8)/((($S$16+$T$16+$U$16+$V$16)*'Step 2 Chemical_Parameters'!E13*'Step 1 Toxicity_Values'!D13)+(($S$17+$T$17+$U$17+$V$17)*'Step 2 Chemical_Parameters'!F13*'Step 1 Toxicity_Values'!G13))),"--")) -> -- | AA35: =IF(B35="--","--",IF(VLOOKUP(B35,chemical,8,FALSE)="M",IF(ISERROR(($X$5*$X$7*$X$8)/((($X$16+$Y$16+$Z$16+$AA$16)*'Step 2 Chemical_Parameters'!E13*'Step 1 Toxicity_Values'!D13)+(($X$17+$Y$17+$Z$17+$AA$17)*'Step 2 Chemical_Parameters'!F13*'Step 1 Toxicity_Values'!G13))),"--",($X$5*$X$7*$X$8)/((($X$16+$Y$16+$Z$16+$AA$16)*'Step 2 Chemical_Parameters'!E13*'Step 1 Toxicity_Values'!D13)+(($X$17+$Y$17+$Z$17+$AA$17)*'Step 2 Chemical_Parameters'!F13*'Step 1 Toxicity_Values'!G13))),"--")) -> -- | AB35: 2,3,7,8-TCDD | AC35: 2,3,7,8-Tetrachlorodibenzo-p-dioxin
B36: 50-32-8 | C36: BENZO[a]PYRENE | D36: =IF(ISERROR(($F$5*$F$6*$F$7)/($F$9*$F$10*(($F$11*'Step 2 Chemical_Parameters'!E14*'Step 1 Toxicity_Values'!$D14/$F$8)+($F$12*$F$13*'Step 2 Chemical_Parameters'!F14*'Step 1 Toxicity_Values'!G14/$F$8)))),"--",($F$5*$F$6*$F$7)/($F$9*$F$10*(($F$11*'Step 2 Chemical_Parameters'!E14*'Step 1 Toxicity_Values'!$D14/$F$8)+($F$12*$F$13*'Step 2 Chemical_Parameters'!F14*'Step 1 Toxicity_Values'!G14/$F$8)))) -> 1.041234856 | E36: =IF(ISERROR(($G$5*$G$6*$G$7)/($G$9*$G$10*(((1/'Step 1 Toxicity_Values'!$E14)*($G$11*'Step 2 Chemical_Parameters'!$E14/$G$8))+((1/'Step 1 Toxicity_Values'!$I14)*($G$12*$G$13*'Step 2 Chemical_Parameters'!$F14/$G$8))))),"--",($G$5*$G$6*$G$7)/($G$9*$G$10*(((1/'Step 1 Toxicity_Values'!$E14)*($G$11*'Step 2 Chemical_Parameters'!$E14/$G$8))+((1/'Step 1 Toxicity_Values'!$I14)*($G$12*$G$13*'Step 2 Chemical_Parameters'!$F14/$G$8))))) -> 26.77461059 | F36: =IF(T36="M",Y36,D36) -> 0.1741844158 | G36: 26.77461059 | H36: 0.1741844158 | I36: =IF(ISERROR(($H$5*$H$6*$H$7)/($H$9*$H$10*(($H$11*'Step 2 Chemical_Parameters'!$E14*'Step 1 Toxicity_Values'!$D14/$H$8)+($H$12*$H$13*'Step 2 Chemical_Parameters'!$F14*'Step 1 Toxicity_Values'!$G14/$H$8)))),"--",($H$5*$H$6*$H$7)/($H$9*$H$10*(($H$11*'Step 2 Chemical_Parameters'!$E14*'Step 1 Toxicity_Values'!$D14/$H$8)+($H$12*$H$13*'Step 2 Chemical_Parameters'!$F14*'Step 1 Toxicity_Values'!$G14/$H$8)))) -> 0.4868581902 | J36: =IF(ISERROR(($K$5*$K$6*$K$7)/($K$9*$K$10*(((1/'Step 1 Toxicity_Values'!$E14)*$K$11*'Step 2 Chemical_Parameters'!$E14/$K$8)+((1/'Step 1 Toxicity_Values'!$I14)*$K$12*$K$13*'Step 2 Chemical_Parameters'!$F14/$K$8)))),"--",($K$5*$K$6*$K$7)/($K$9*$K$10*(((1/'Step 1 Toxicity_Values'!$E14)*$K$11*'Step 2 Chemical_Parameters'!$E14/$K$8)+((1/'Step 1 Toxicity_Values'!$I14)*$K$12*$K$13*'Step 2 Chemical_Parameters'!$F14/$K$8)))) -> 146.0574571 | K36: =IF(T36="M",Z36,I36) -> 0.1190252225 | L36: 146.0574571 | M36: 0.1190252225 | N36: =IF(ISERROR(($L$5*$L$6*$L$7)/($L$9*$L$10*(($L$11*'Step 2 Chemical_Parameters'!$E14*'Step 1 Toxicity_Values'!$D14/$L$8)+($L$12*$L$13*'Step 2 Chemical_Parameters'!$F14*'Step 1 Toxicity_Values'!$G14/$L$8)))),"--",($L$5*$L$6*$L$7)/($L$9*$L$10*(($L$11*'Step 2 Chemical_Parameters'!$E14*'Step 1 Toxicity_Values'!$D14/$L$8)+($L$12*$L$13*'Step 2 Chemical_Parameters'!$F14*'Step 1 Toxicity_Values'!$G14/$L$8)))) -> 1.223152801 | O36: =IF(ISERROR(($M$5*$M$6*$M$7)/($M$9*$M$10*(((1/'Step 1 Toxicity_Values'!$E14)*$M$11*'Step 2 Chemical_Parameters'!$E14/$M$8)+((1/'Step 1 Toxicity_Values'!$I14)*$M$12*$M$13*'Step 2 Chemical_Parameters'!$F14/$M$8)))),"--",($M$5*$M$6*$M$7)/($M$9*$M$10*(((1/'Step 1 Toxicity_Values'!$E14)*$M$11*'Step 2 Chemical_Parameters'!$E14/$M$8)+((1/'Step 1 Toxicity_Values'!$I14)*$M$12*$M$13*'Step 2 Chemical_Parameters'!$F14/$M$8)))) -> 366.9458404 | P36: =IF(T36="M",AA36,N36) -> 0.1469722467 | Q36: 366.9458404 | R36: 0.1469722467 | S36: 0.1190252225 | T36: M | V36: ='Step 2 Chemical_Parameters'!A14 -> 50-32-8 | W36: ='Step 2 Chemical_Parameters'!B14 -> BENZO[a]PYRENE | Y36: =IF(B36="--","--",IF(VLOOKUP(B36,chemical,8,FALSE)="M",IF(ISERROR(($S$5*$S$7*$S$8)/((($S$16+$T$16)*'Step 2 Chemical_Parameters'!E14*'Step 1 Toxicity_Values'!D14)+(($S$17+$T$17)*'Step 2 Chemical_Parameters'!F14*'Step 1 Toxicity_Values'!G14))),"--",($S$5*$S$7*$S$8)/((($S$16+$T$16)*'Step 2 Chemical_Parameters'!E14*'Step 1 Toxicity_Values'!D14)+(($S$17+$T$17)*'Step 2 Chemical_Parameters'!F14*'Step 1 Toxicity_Values'!G14))),"--")) -> 0.1741844158 | Z36: =IF(B36="--","--",IF(VLOOKUP(B36,chemical,8,FALSE)="M",IF(ISERROR(($S$5*$S$7*$S$8)/((($S$16+$T$16+$U$16+$V$16)*'Step 2 Chemical_Parameters'!E14*'Step 1 Toxicity_Values'!D14)+(($S$17+$T$17+$U$17+$V$17)*'Step 2 Chemical_Parameters'!F14*'Step 1 Toxicity_Values'!G14))),"--",($S$5*$S$7*$S$8)/((($S$16+$T$16+$U$16+$V$16)*'Step 2 Chemical_Parameters'!E14*'Step 1 Toxicity_Values'!D14)+(($S$17+$T$17+$U$17+$V$17)*'Step 2 Chemical_Parameters'!F14*'Step 1 Toxicity_Values'!G14))),"--")) -> 0.1190252225 | AA36: =IF(B36="--","--",IF(VLOOKUP(B36,chemical,8,FALSE)="M",IF(ISERROR(($X$5*$X$7*$X$8)/((($X$16+$Y$16+$Z$16+$AA$16)*'Step 2 Chemical_Parameters'!E14*'Step 1 Toxicity_Values'!D14)+(($X$17+$Y$17+$Z$17+$AA$17)*'Step 2 Chemical_Parameters'!F14*'Step 1 Toxicity_Values'!G14))),"--",($X$5*$X$7*$X$8)/((($X$16+$Y$16+$Z$16+$AA$16)*'Step 2 Chemical_Parameters'!E14*'Step 1 Toxicity_Values'!D14)+(($X$17+$Y$17+$Z$17+$AA$17)*'Step 2 Chemical_Parameters'!F14*'Step 1 Toxicity_Values'!G14))),"--")) -> 0.1469722467 | AB36: cPAHs | AC36: Carcinogenic PAHs
B37: 1746-01-6 | C37: TCDD;2,3,7,8 (DIOXIN) | D37: =IF(ISERROR(($F$5*$F$6*$F$7)/($F$9*$F$10*(($F$11*'Step 2 Chemical_Parameters'!E15*'Step 1 Toxicity_Values'!$D15/$F$8)+($F$12*$F$13*'Step 2 Chemical_Parameters'!F15*'Step 1 Toxicity_Values'!G15/$F$8)))),"--",($F$5*$F$6*$F$7)/($F$9*$F$10*(($F$11*'Step 2 Chemical_Parameters'!E15*'Step 1 Toxicity_Values'!$D15/$F$8)+($F$12*$F$13*'Step 2 Chemical_Parameters'!F15*'Step 1 Toxicity_Values'!G15/$F$8)))) -> 2.859268612e-05 | E37: =IF(ISERROR(($G$5*$G$6*$G$7)/($G$9*$G$10*(((1/'Step 1 Toxicity_Values'!$E15)*($G$11*'Step 2 Chemical_Parameters'!$E15/$G$8))+((1/'Step 1 Toxicity_Values'!$I15)*($G$12*$G$13*'Step 2 Chemical_Parameters'!$F15/$G$8))))),"--",($G$5*$G$6*$G$7)/($G$9*$G$10*(((1/'Step 1 Toxicity_Values'!$E15)*($G$11*'Step 2 Chemical_Parameters'!$E15/$G$8))+((1/'Step 1 Toxicity_Values'!$I15)*($G$12*$G$13*'Step 2 Chemical_Parameters'!$F15/$G$8))))) -> 0.0002230229517 | F37: =IF(T37="M",Y37,D37) -> 2.859268612e-05 | G37: 0.0002230229517 | H37: 2.859268612e-05 | I37: =IF(ISERROR(($H$5*$H$6*$H$7)/($H$9*$H$10*(($H$11*'Step 2 Chemical_Parameters'!$E15*'Step 1 Toxicity_Values'!$D15/$H$8)+($H$12*$H$13*'Step 2 Chemical_Parameters'!$F15*'Step 1 Toxicity_Values'!$G15/$H$8)))),"--",($H$5*$H$6*$H$7)/($H$9*$H$10*(($H$11*'Step 2 Chemical_Parameters'!$E15*'Step 1 Toxicity_Values'!$D15/$H$8)+($H$12*$H$13*'Step 2 Chemical_Parameters'!$F15*'Step 1 Toxicity_Values'!$G15/$H$8)))) -> 1.209765006e-05 | J37: =IF(ISERROR(($K$5*$K$6*$K$7)/($K$9*$K$10*(((1/'Step 1 Toxicity_Values'!$E15)*$K$11*'Step 2 Chemical_Parameters'!$E15/$K$8)+((1/'Step 1 Toxicity_Values'!$I15)*$K$12*$K$13*'Step 2 Chemical_Parameters'!$F15/$K$8)))),"--",($K$5*$K$6*$K$7)/($K$9*$K$10*(((1/'Step 1 Toxicity_Values'!$E15)*$K$11*'Step 2 Chemical_Parameters'!$E15/$K$8)+((1/'Step 1 Toxicity_Values'!$I15)*$K$12*$K$13*'Step 2 Chemical_Parameters'!$F15/$K$8)))) -> 0.001100886155 | K37: =IF(T37="M",Z37,I37) -> 1.209765006e-05 | L37: 0.001100886155 | M37: 1.209765006e-05 | N37: =IF(ISERROR(($L$5*$L$6*$L$7)/($L$9*$L$10*(($L$11*'Step 2 Chemical_Parameters'!$E15*'Step 1 Toxicity_Values'!$D15/$L$8)+($L$12*$L$13*'Step 2 Chemical_Parameters'!$F15*'Step 1 Toxicity_Values'!$G15/$L$8)))),"--",($L$5*$L$6*$L$7)/($L$9*$L$10*(($L$11*'Step 2 Chemical_Parameters'!$E15*'Step 1 Toxicity_Values'!$D15/$L$8)+($L$12*$L$13*'Step 2 Chemical_Parameters'!$F15*'Step 1 Toxicity_Values'!$G15/$L$8)))) -> 2.860439965e-05 | O37: =IF(ISERROR(($M$5*$M$6*$M$7)/($M$9*$M$10*(((1/'Step 1 Toxicity_Values'!$E15)*$M$11*'Step 2 Chemical_Parameters'!$E15/$M$8)+((1/'Step 1 Toxicity_Values'!$I15)*$M$12*$M$13*'Step 2 Chemical_Parameters'!$F15/$M$8)))),"--",($M$5*$M$6*$M$7)/($M$9*$M$10*(((1/'Step 1 Toxicity_Values'!$E15)*$M$11*'Step 2 Chemical_Parameters'!$E15/$M$8)+((1/'Step 1 Toxicity_Values'!$I15)*$M$12*$M$13*'Step 2 Chemical_Parameters'!$F15/$M$8)))) -> 0.002603000368 | P37: =IF(T37="M",AA37,N37) -> 2.860439965e-05 | Q37: 0.002603000368 | R37: 2.860439965e-05 | S37: 1.209765006e-05 | T37: -- | V37: ='Step 2 Chemical_Parameters'!A15 -> 1746-01-6 | W37: ='Step 2 Chemical_Parameters'!B15 -> TCDD;2,3,7,8 (DIOXIN) | Y37: =IF(B37="--","--",IF(VLOOKUP(B37,chemical,8,FALSE)="M",IF(ISERROR(($S$5*$S$7*$S$8)/((($S$16+$T$16)*'Step 2 Chemical_Parameters'!E15*'Step 1 Toxicity_Values'!D15)+(($S$17+$T$17)*'Step 2 Chemical_Parameters'!F15*'Step 1 Toxicity_Values'!G15))),"--",($S$5*$S$7*$S$8)/((($S$16+$T$16)*'Step 2 Chemical_Parameters'!E15*'Step 1 Toxicity_Values'!D15)+(($S$17+$T$17)*'Step 2 Chemical_Parameters'!F15*'Step 1 Toxicity_Values'!G15))),"--")) -> -- | Z37: =IF(B37="--","--",IF(VLOOKUP(B37,chemical,8,FALSE)="M",IF(ISERROR(($S$5*$S$7*$S$8)/((($S$16+$T$16+$U$16+$V$16)*'Step 2 Chemical_Parameters'!E15*'Step 1 Toxicity_Values'!D15)+(($S$17+$T$17+$U$17+$V$17)*'Step 2 Chemical_Parameters'!F15*'Step 1 Toxicity_Values'!G15))),"--",($S$5*$S$7*$S$8)/((($S$16+$T$16+$U$16+$V$16)*'Step 2 Chemical_Parameters'!E15*'Step 1 Toxicity_Values'!D15)+(($S$17+$T$17+$U$17+$V$17)*'Step 2 Chemical_Parameters'!F15*'Step 1 Toxicity_Values'!G15))),"--")) -> -- | AA37: =IF(B37="--","--",IF(VLOOKUP(B37,chemical,8,FALSE)="M",IF(ISERROR(($X$5*$X$7*$X$8)/((($X$16+$Y$16+$Z$16+$AA$16)*'Step 2 Chemical_Parameters'!E15*'Step 1 Toxicity_Values'!D15)+(($X$17+$Y$17+$Z$17+$AA$17)*'Step 2 Chemical_Parameters'!F15*'Step 1 Toxicity_Values'!G15))),"--",($X$5*$X$7*$X$8)/((($X$16+$Y$16+$Z$16+$AA$16)*'Step 2 Chemical_Parameters'!E15*'Step 1 Toxicity_Values'!D15)+(($X$17+$Y$17+$Z$17+$AA$17)*'Step 2 Chemical_Parameters'!F15*'Step 1 Toxicity_Values'!G15))),"--")) -> -- | AB37: ELS | AC37: Early Life Stage
B38: 7439-92-1 | C38: LEAD | D38: =IF(ISERROR(($F$5*$F$6*$F$7)/($F$9*$F$10*(($F$11*'Step 2 Chemical_Parameters'!E16*'Step 1 Toxicity_Values'!$D16/$F$8)+($F$12*$F$13*'Step 2 Chemical_Parameters'!F16*'Step 1 Toxicity_Values'!G16/$F$8)))),"--",($F$5*$F$6*$F$7)/($F$9*$F$10*(($F$11*'Step 2 Chemical_Parameters'!E16*'Step 1 Toxicity_Values'!$D16/$F$8)+($F$12*$F$13*'Step 2 Chemical_Parameters'!F16*'Step 1 Toxicity_Values'!G16/$F$8)))) -> -- | E38: =IF(ISERROR(($G$5*$G$6*$G$7)/($G$9*$G$10*(((1/'Step 1 Toxicity_Values'!$E16)*($G$11*'Step 2 Chemical_Parameters'!$E16/$G$8))+((1/'Step 1 Toxicity_Values'!$I16)*($G$12*$G$13*'Step 2 Chemical_Parameters'!$F16/$G$8))))),"--",($G$5*$G$6*$G$7)/($G$9*$G$10*(((1/'Step 1 Toxicity_Values'!$E16)*($G$11*'Step 2 Chemical_Parameters'!$E16/$G$8))+((1/'Step 1 Toxicity_Values'!$I16)*($G$12*$G$13*'Step 2 Chemical_Parameters'!$F16/$G$8))))) -> -- | F38: =IF(T38="M",Y38,D38) -> -- | G38: -- | H38: -- | I38: =IF(ISERROR(($H$5*$H$6*$H$7)/($H$9*$H$10*(($H$11*'Step 2 Chemical_Parameters'!$E16*'Step 1 Toxicity_Values'!$D16/$H$8)+($H$12*$H$13*'Step 2 Chemical_Parameters'!$F16*'Step 1 Toxicity_Values'!$G16/$H$8)))),"--",($H$5*$H$6*$H$7)/($H$9*$H$10*(($H$11*'Step 2 Chemical_Parameters'!$E16*'Step 1 Toxicity_Values'!$D16/$H$8)+($H$12*$H$13*'Step 2 Chemical_Parameters'!$F16*'Step 1 Toxicity_Values'!$G16/$H$8)))) -> -- | J38: =IF(ISERROR(($K$5*$K$6*$K$7)/($K$9*$K$10*(((1/'Step 1 Toxicity_Values'!$E16)*$K$11*'Step 2 Chemical_Parameters'!$E16/$K$8)+((1/'Step 1 Toxicity_Values'!$I16)*$K$12*$K$13*'Step 2 Chemical_Parameters'!$F16/$K$8)))),"--",($K$5*$K$6*$K$7)/($K$9*$K$10*(((1/'Step 1 Toxicity_Values'!$E16)*$K$11*'Step 2 Chemical_Parameters'!$E16/$K$8)+((1/'Step 1 Toxicity_Values'!$I16)*$K$12*$K$13*'Step 2 Chemical_Parameters'!$F16/$K$8)))) -> -- | K38: =IF(T38="M",Z38,I38) -> -- | L38: -- | M38: -- | N38: =IF(ISERROR(($L$5*$L$6*$L$7)/($L$9*$L$10*(($L$11*'Step 2 Chemical_Parameters'!$E16*'Step 1 Toxicity_Values'!$D16/$L$8)+($L$12*$L$13*'Step 2 Chemical_Parameters'!$F16*'Step 1 Toxicity_Values'!$G16/$L$8)))),"--",($L$5*$L$6*$L$7)/($L$9*$L$10*(($L$11*'Step 2 Chemical_Parameters'!$E16*'Step 1 Toxicity_Values'!$D16/$L$8)+($L$12*$L$13*'Step 2 Chemical_Parameters'!$F16*'Step 1 Toxicity_Values'!$G16/$L$8)))) -> -- | O38: =IF(ISERROR(($M$5*$M$6*$M$7)/($M$9*$M$10*(((1/'Step 1 Toxicity_Values'!$E16)*$M$11*'Step 2 Chemical_Parameters'!$E16/$M$8)+((1/'Step 1 Toxicity_Values'!$I16)*$M$12*$M$13*'Step 2 Chemical_Parameters'!$F16/$M$8)))),"--",($M$5*$M$6*$M$7)/($M$9*$M$10*(((1/'Step 1 Toxicity_Values'!$E16)*$M$11*'Step 2 Chemical_Parameters'!$E16/$M$8)+((1/'Step 1 Toxicity_Values'!$I16)*$M$12*$M$13*'Step 2 Chemical_Parameters'!$F16/$M$8)))) -> -- | P38: =IF(T38="M",AA38,N38) -> -- | Q38: -- | R38: -- | S38: -- | T38: -- | V38: ='Step 2 Chemical_Parameters'!A16 -> 7439-92-1 | W38: ='Step 2 Chemical_Parameters'!B16 -> LEAD | Y38: =IF(B38="--","--",IF(VLOOKUP(B38,chemical,8,FALSE)="M",IF(ISERROR(($S$5*$S$7*$S$8)/((($S$16+$T$16)*'Step 2 Chemical_Parameters'!E16*'Step 1 Toxicity_Values'!D16)+(($S$17+$T$17)*'Step 2 Chemical_Parameters'!F16*'Step 1 Toxicity_Values'!G16))),"--",($S$5*$S$7*$S$8)/((($S$16+$T$16)*'Step 2 Chemical_Parameters'!E16*'Step 1 Toxicity_Values'!D16)+(($S$17+$T$17)*'Step 2 Chemical_Parameters'!F16*'Step 1 Toxicity_Values'!G16))),"--")) -> -- | Z38: =IF(B38="--","--",IF(VLOOKUP(B38,chemical,8,FALSE)="M",IF(ISERROR(($S$5*$S$7*$S$8)/((($S$16+$T$16+$U$16+$V$16)*'Step 2 Chemical_Parameters'!E16*'Step 1 Toxicity_Values'!D16)+(($S$17+$T$17+$U$17+$V$17)*'Step 2 Chemical_Parameters'!F16*'Step 1 Toxicity_Values'!G16))),"--",($S$5*$S$7*$S$8)/((($S$16+$T$16+$U$16+$V$16)*'Step 2 Chemical_Parameters'!E16*'Step 1 Toxicity_Values'!D16)+(($S$17+$T$17+$U$17+$V$17)*'Step 2 Chemical_Parameters'!F16*'Step 1 Toxicity_Values'!G16))),"--")) -> -- | AA38: =IF(B38="--","--",IF(VLOOKUP(B38,chemical,8,FALSE)="M",IF(ISERROR(($X$5*$X$7*$X$8)/((($X$16+$Y$16+$Z$16+$AA$16)*'Step 2 Chemical_Parameters'!E16*'Step 1 Toxicity_Values'!D16)+(($X$17+$Y$17+$Z$17+$AA$17)*'Step 2 Chemical_Parameters'!F16*'Step 1 Toxicity_Values'!G16))),"--",($X$5*$X$7*$X$8)/((($X$16+$Y$16+$Z$16+$AA$16)*'Step 2 Chemical_Parameters'!E16*'Step 1 Toxicity_Values'!D16)+(($X$17+$Y$17+$Z$17+$AA$17)*'Step 2 Chemical_Parameters'!F16*'Step 1 Toxicity_Values'!G16))),"--")) -> -- | AB38: M | AC38: Carcinogen with a mutagenic mode of action
B39: 22967-92-6 | C39: METHYL MERCURY | D39: =IF(ISERROR(($F$5*$F$6*$F$7)/($F$9*$F$10*(($F$11*'Step 2 Chemical_Parameters'!E17*'Step 1 Toxicity_Values'!$D17/$F$8)+($F$12*$F$13*'Step 2 Chemical_Parameters'!F17*'Step 1 Toxicity_Values'!G17/$F$8)))),"--",($F$5*$F$6*$F$7)/($F$9*$F$10*(($F$11*'Step 2 Chemical_Parameters'!E17*'Step 1 Toxicity_Values'!$D17/$F$8)+($F$12*$F$13*'Step 2 Chemical_Parameters'!F17*'Step 1 Toxicity_Values'!G17/$F$8)))) -> -- | E39: =IF(ISERROR(($G$5*$G$6*$G$7)/($G$9*$G$10*(((1/'Step 1 Toxicity_Values'!$E17)*($G$11*'Step 2 Chemical_Parameters'!$E17/$G$8))+((1/'Step 1 Toxicity_Values'!$I17)*($G$12*$G$13*'Step 2 Chemical_Parameters'!$F17/$G$8))))),"--",($G$5*$G$6*$G$7)/($G$9*$G$10*(((1/'Step 1 Toxicity_Values'!$E17)*($G$11*'Step 2 Chemical_Parameters'!$E17/$G$8))+((1/'Step 1 Toxicity_Values'!$I17)*($G$12*$G$13*'Step 2 Chemical_Parameters'!$F17/$G$8))))) -> 66.76829268 | F39: -- | G39: 66.76829268 | H39: 66.76829268 | I39: =IF(ISERROR(($H$5*$H$6*$H$7)/($H$9*$H$10*(($H$11*'Step 2 Chemical_Parameters'!$E17*'Step 1 Toxicity_Values'!$D17/$H$8)+($H$12*$H$13*'Step 2 Chemical_Parameters'!$F17*'Step 1 Toxicity_Values'!$G17/$H$8)))),"--",($H$5*$H$6*$H$7)/($H$9*$H$10*(($H$11*'Step 2 Chemical_Parameters'!$E17*'Step 1 Toxicity_Values'!$D17/$H$8)+($H$12*$H$13*'Step 2 Chemical_Parameters'!$F17*'Step 1 Toxicity_Values'!$G17/$H$8)))) -> -- | J39: =IF(ISERROR(($K$5*$K$6*$K$7)/($K$9*$K$10*(((1/'Step 1 Toxicity_Values'!$E17)*$K$11*'Step 2 Chemical_Parameters'!$E17/$K$8)+((1/'Step 1 Toxicity_Values'!$I17)*$K$12*$K$13*'Step 2 Chemical_Parameters'!$F17/$K$8)))),"--",($K$5*$K$6*$K$7)/($K$9*$K$10*(((1/'Step 1 Toxicity_Values'!$E17)*$K$11*'Step 2 Chemical_Parameters'!$E17/$K$8)+((1/'Step 1 Toxicity_Values'!$I17)*$K$12*$K$13*'Step 2 Chemical_Parameters'!$F17/$K$8)))) -> 228.125 | K39: -- | L39: 228.125 | M39: 228.125 | N39: =IF(ISERROR(($L$5*$L$6*$L$7)/($L$9*$L$10*(($L$11*'Step 2 Chemical_Parameters'!$E17*'Step 1 Toxicity_Values'!$D17/$L$8)+($L$12*$L$13*'Step 2 Chemical_Parameters'!$F17*'Step 1 Toxicity_Values'!$G17/$L$8)))),"--",($L$5*$L$6*$L$7)/($L$9*$L$10*(($L$11*'Step 2 Chemical_Parameters'!$E17*'Step 1 Toxicity_Values'!$D17/$L$8)+($L$12*$L$13*'Step 2 Chemical_Parameters'!$F17*'Step 1 Toxicity_Values'!$G17/$L$8)))) -> -- | O39: =IF(ISERROR(($M$5*$M$6*$M$7)/($M$9*$M$10*(((1/'Step 1 Toxicity_Values'!$E17)*$M$11*'Step 2 Chemical_Parameters'!$E17/$M$8)+((1/'Step 1 Toxicity_Values'!$I17)*$M$12*$M$13*'Step 2 Chemical_Parameters'!$F17/$M$8)))),"--",($M$5*$M$6*$M$7)/($M$9*$M$10*(((1/'Step 1 Toxicity_Values'!$E17)*$M$11*'Step 2 Chemical_Parameters'!$E17/$M$8)+((1/'Step 1 Toxicity_Values'!$I17)*$M$12*$M$13*'Step 2 Chemical_Parameters'!$F17/$M$8)))) -> 460.0840336 | P39: -- | Q39: 460.0840336 | R39: 460.0840336 | S39: 66.76829268 | T39: -- | V39: ='Step 2 Chemical_Parameters'!A17 -> 22967-92-6 | W39: ='Step 2 Chemical_Parameters'!B17 -> METHYL MERCURY | Y39: =IF(B39="--","--",IF(VLOOKUP(B39,chemical,8,FALSE)="M",IF(ISERROR(($S$5*$S$7*$S$8)/((($S$16+$T$16)*'Step 2 Chemical_Parameters'!E17*'Step 1 Toxicity_Values'!D17)+(($S$17+$T$17)*'Step 2 Chemical_Parameters'!F17*'Step 1 Toxicity_Values'!G17))),"--",($S$5*$S$7*$S$8)/((($S$16+$T$16)*'Step 2 Chemical_Parameters'!E17*'Step 1 Toxicity_Values'!D17)+(($S$17+$T$17)*'Step 2 Chemical_Parameters'!F17*'Step 1 Toxicity_Values'!G17))),"--")) -> -- | Z39: =IF(B39="--","--",IF(VLOOKUP(B39,chemical,8,FALSE)="M",IF(ISERROR(($S$5*$S$7*$S$8)/((($S$16+$T$16+$U$16+$V$16)*'Step 2 Chemical_Parameters'!E17*'Step 1 Toxicity_Values'!D17)+(($S$17+$T$17+$U$17+$V$17)*'Step 2 Chemical_Parameters'!F17*'Step 1 Toxicity_Values'!G17))),"--",($S$5*$S$7*$S$8)/((($S$16+$T$16+$U$16+$V$16)*'Step 2 Chemical_Parameters'!E17*'Step 1 Toxicity_Values'!D17)+(($S$17+$T$17+$U$17+$V$17)*'Step 2 Chemical_Parameters'!F17*'Step 1 Toxicity_Values'!G17))),"--")) -> -- | AA39: =IF(B39="--","--",IF(VLOOKUP(B39,chemical,8,FALSE)="M",IF(ISERROR(($X$5*$X$7*$X$8)/((($X$16+$Y$16+$Z$16+$AA$16)*'Step 2 Chemical_Parameters'!E17*'Step 1 Toxicity_Values'!D17)+(($X$17+$Y$17+$Z$17+$AA$17)*'Step 2 Chemical_Parameters'!F17*'Step 1 Toxicity_Values'!G17))),"--",($X$5*$X$7*$X$8)/((($X$16+$Y$16+$Z$16+$AA$16)*'Step 2 Chemical_Parameters'!E17*'Step 1 Toxicity_Values'!D17)+(($X$17+$Y$17+$Z$17+$AA$17)*'Step 2 Chemical_Parameters'!F17*'Step 1 Toxicity_Values'!G17))),"--")) -> -- | AB39: PCB | AC39: Polychlorinated Biphenyls
B40: 1336-36-3a | C40: Dioxin-like PCBs | D40: =IF(ISERROR(($F$5*$F$6*$F$7)/($F$9*$F$10*(($F$11*'Step 2 Chemical_Parameters'!E18*'Step 1 Toxicity_Values'!$D18/$F$8)+($F$12*$F$13*'Step 2 Chemical_Parameters'!F18*'Step 1 Toxicity_Values'!G18/$F$8)))),"--",($F$5*$F$6*$F$7)/($F$9*$F$10*(($F$11*'Step 2 Chemical_Parameters'!E18*'Step 1 Toxicity_Values'!$D18/$F$8)+($F$12*$F$13*'Step 2 Chemical_Parameters'!F18*'Step 1 Toxicity_Values'!G18/$F$8)))) -> 2.859268612e-05 | E40: =IF(ISERROR(($G$5*$G$6*$G$7)/($G$9*$G$10*(((1/'Step 1 Toxicity_Values'!$E18)*($G$11*'Step 2 Chemical_Parameters'!$E18/$G$8))+((1/'Step 1 Toxicity_Values'!$I18)*($G$12*$G$13*'Step 2 Chemical_Parameters'!$F18/$G$8))))),"--",($G$5*$G$6*$G$7)/($G$9*$G$10*(((1/'Step 1 Toxicity_Values'!$E18)*($G$11*'Step 2 Chemical_Parameters'!$E18/$G$8))+((1/'Step 1 Toxicity_Values'!$I18)*($G$12*$G$13*'Step 2 Chemical_Parameters'!$F18/$G$8))))) -> 0.0002230229517 | F40: 2.859268612e-05 | G40: 0.0002230229517 | H40: 2.859268612e-05 | I40: =IF(ISERROR(($H$5*$H$6*$H$7)/($H$9*$H$10*(($H$11*'Step 2 Chemical_Parameters'!$E18*'Step 1 Toxicity_Values'!$D18/$H$8)+($H$12*$H$13*'Step 2 Chemical_Parameters'!$F18*'Step 1 Toxicity_Values'!$G18/$H$8)))),"--",($H$5*$H$6*$H$7)/($H$9*$H$10*(($H$11*'Step 2 Chemical_Parameters'!$E18*'Step 1 Toxicity_Values'!$D18/$H$8)+($H$12*$H$13*'Step 2 Chemical_Parameters'!$F18*'Step 1 Toxicity_Values'!$G18/$H$8)))) -> 1.209765006e-05 | J40: =IF(ISERROR(($K$5*$K$6*$K$7)/($K$9*$K$10*(((1/'Step 1 Toxicity_Values'!$E18)*$K$11*'Step 2 Chemical_Parameters'!$E18/$K$8)+((1/'Step 1 Toxicity_Values'!$I18)*$K$12*$K$13*'Step 2 Chemical_Parameters'!$F18/$K$8)))),"--",($K$5*$K$6*$K$7)/($K$9*$K$10*(((1/'Step 1 Toxicity_Values'!$E18)*$K$11*'Step 2 Chemical_Parameters'!$E18/$K$8)+((1/'Step 1 Toxicity_Values'!$I18)*$K$12*$K$13*'Step 2 Chemical_Parameters'!$F18/$K$8)))) -> 0.001100886155 | K40: 1.209765006e-05 | L40: 0.001100886155 | M40: 1.209765006e-05 | N40: =IF(ISERROR(($L$5*$L$6*$L$7)/($L$9*$L$10*(($L$11*'Step 2 Chemical_Parameters'!$E18*'Step 1 Toxicity_Values'!$D18/$L$8)+($L$12*$L$13*'Step 2 Chemical_Parameters'!$F18*'Step 1 Toxicity_Values'!$G18/$L$8)))),"--",($L$5*$L$6*$L$7)/($L$9*$L$10*(($L$11*'Step 2 Chemical_Parameters'!$E18*'Step 1 Toxicity_Values'!$D18/$L$8)+($L$12*$L$13*'Step 2 Chemical_Parameters'!$F18*'Step 1 Toxicity_Values'!$G18/$L$8)))) -> 2.860439965e-05 | O40: =IF(ISERROR(($M$5*$M$6*$M$7)/($M$9*$M$10*(((1/'Step 1 Toxicity_Values'!$E18)*$M$11*'Step 2 Chemical_Parameters'!$E18/$M$8)+((1/'Step 1 Toxicity_Values'!$I18)*$M$12*$M$13*'Step 2 Chemical_Parameters'!$F18/$M$8)))),"--",($M$5*$M$6*$M$7)/($M$9*$M$10*(((1/'Step 1 Toxicity_Values'!$E18)*$M$11*'Step 2 Chemical_Parameters'!$E18/$M$8)+((1/'Step 1 Toxicity_Values'!$I18)*$M$12*$M$13*'Step 2 Chemical_Parameters'!$F18/$M$8)))) -> 0.002603000368 | P40: 2.860439965e-05 | Q40: 0.002603000368 | R40: 2.860439965e-05 | S40: 1.209765006e-05 | T40: -- | V40: ='Step 2 Chemical_Parameters'!A18 -> 1336-36-3a | W40: ='Step 2 Chemical_Parameters'!B18 -> Dioxin-like PCBs | Y40: =IF(B40="--","--",IF(VLOOKUP(B40,chemical,8,FALSE)="M",IF(ISERROR(($S$5*$S$7*$S$8)/((($S$16+$T$16)*'Step 2 Chemical_Parameters'!E18*'Step 1 Toxicity_Values'!D18)+(($S$17+$T$17)*'Step 2 Chemical_Parameters'!F18*'Step 1 Toxicity_Values'!G18))),"--",($S$5*$S$7*$S$8)/((($S$16+$T$16)*'Step 2 Chemical_Parameters'!E18*'Step 1 Toxicity_Values'!D18)+(($S$17+$T$17)*'Step 2 Chemical_Parameters'!F18*'Step 1 Toxicity_Values'!G18))),"--")) -> -- | Z40: =IF(B40="--","--",IF(VLOOKUP(B40,chemical,8,FALSE)="M",IF(ISERROR(($S$5*$S$7*$S$8)/((($S$16+$T$16+$U$16+$V$16)*'Step 2 Chemical_Parameters'!E18*'Step 1 Toxicity_Values'!D18)+(($S$17+$T$17+$U$17+$V$17)*'Step 2 Chemical_Parameters'!F18*'Step 1 Toxicity_Values'!G18))),"--",($S$5*$S$7*$S$8)/((($S$16+$T$16+$U$16+$V$16)*'Step 2 Chemical_Parameters'!E18*'Step 1 Toxicity_Values'!D18)+(($S$17+$T$17+$U$17+$V$17)*'Step 2 Chemical_Parameters'!F18*'Step 1 Toxicity_Values'!G18))),"--")) -> -- | AA40: =IF(B40="--","--",IF(VLOOKUP(B40,chemical,8,FALSE)="M",IF(ISERROR(($X$5*$X$7*$X$8)/((($X$16+$Y$16+$Z$16+$AA$16)*'Step 2 Chemical_Parameters'!E18*'Step 1 Toxicity_Values'!D18)+(($X$17+$Y$17+$Z$17+$AA$17)*'Step 2 Chemical_Parameters'!F18*'Step 1 Toxicity_Values'!G18))),"--",($X$5*$X$7*$X$8)/((($X$16+$Y$16+$Z$16+$AA$16)*'Step 2 Chemical_Parameters'!E18*'Step 1 Toxicity_Values'!D18)+(($X$17+$Y$17+$Z$17+$AA$17)*'Step 2 Chemical_Parameters'!F18*'Step 1 Toxicity_Values'!G18))),"--")) -> -- | AB40: RBC | AC40: Risk-Based Concentration
B41: 56-35-9 | C41: tributyltin oxide | D41: =IF(ISERROR(($F$5*$F$6*$F$7)/($F$9*$F$10*(($F$11*'Step 2 Chemical_Parameters'!E19*'Step 1 Toxicity_Values'!$D19/$F$8)+($F$12*$F$13*'Step 2 Chemical_Parameters'!F19*'Step 1 Toxicity_Values'!G19/$F$8)))),"--",($F$5*$F$6*$F$7)/($F$9*$F$10*(($F$11*'Step 2 Chemical_Parameters'!E19*'Step 1 Toxicity_Values'!$D19/$F$8)+($F$12*$F$13*'Step 2 Chemical_Parameters'!F19*'Step 1 Toxicity_Values'!G19/$F$8)))) -> -- | E41: =IF(ISERROR(($G$5*$G$6*$G$7)/($G$9*$G$10*(((1/'Step 1 Toxicity_Values'!$E19)*($G$11*'Step 2 Chemical_Parameters'!$E19/$G$8))+((1/'Step 1 Toxicity_Values'!$I19)*($G$12*$G$13*'Step 2 Chemical_Parameters'!$F19/$G$8))))),"--",($G$5*$G$6*$G$7)/($G$9*$G$10*(((1/'Step 1 Toxicity_Values'!$E19)*($G$11*'Step 2 Chemical_Parameters'!$E19/$G$8))+((1/'Step 1 Toxicity_Values'!$I19)*($G$12*$G$13*'Step 2 Chemical_Parameters'!$F19/$G$8))))) -> 33.46502014 | F41: -- | G41: 33.46502014 | H41: 33.46502014 | I41: =IF(ISERROR(($H$5*$H$6*$H$7)/($H$9*$H$10*(($H$11*'Step 2 Chemical_Parameters'!$E19*'Step 1 Toxicity_Values'!$D19/$H$8)+($H$12*$H$13*'Step 2 Chemical_Parameters'!$F19*'Step 1 Toxicity_Values'!$G19/$H$8)))),"--",($H$5*$H$6*$H$7)/($H$9*$H$10*(($H$11*'Step 2 Chemical_Parameters'!$E19*'Step 1 Toxicity_Values'!$D19/$H$8)+($H$12*$H$13*'Step 2 Chemical_Parameters'!$F19*'Step 1 Toxicity_Values'!$G19/$H$8)))) -> -- | J41: =IF(ISERROR(($K$5*$K$6*$K$7)/($K$9*$K$10*(((1/'Step 1 Toxicity_Values'!$E19)*$K$11*'Step 2 Chemical_Parameters'!$E19/$K$8)+((1/'Step 1 Toxicity_Values'!$I19)*$K$12*$K$13*'Step 2 Chemical_Parameters'!$F19/$K$8)))),"--",($K$5*$K$6*$K$7)/($K$9*$K$10*(((1/'Step 1 Toxicity_Values'!$E19)*$K$11*'Step 2 Chemical_Parameters'!$E19/$K$8)+((1/'Step 1 Toxicity_Values'!$I19)*$K$12*$K$13*'Step 2 Chemical_Parameters'!$F19/$K$8)))) -> 178.4494357 | K41: -- | L41: 178.4494357 | M41: 178.4494357 | N41: =IF(ISERROR(($L$5*$L$6*$L$7)/($L$9*$L$10*(($L$11*'Step 2 Chemical_Parameters'!$E19*'Step 1 Toxicity_Values'!$D19/$L$8)+($L$12*$L$13*'Step 2 Chemical_Parameters'!$F19*'Step 1 Toxicity_Values'!$G19/$L$8)))),"--",($L$5*$L$6*$L$7)/($L$9*$L$10*(($L$11*'Step 2 Chemical_Parameters'!$E19*'Step 1 Toxicity_Values'!$D19/$L$8)+($L$12*$L$13*'Step 2 Chemical_Parameters'!$F19*'Step 1 Toxicity_Values'!$G19/$L$8)))) -> -- | O41: =IF(ISERROR(($M$5*$M$6*$M$7)/($M$9*$M$10*(((1/'Step 1 Toxicity_Values'!$E19)*$M$11*'Step 2 Chemical_Parameters'!$E19/$M$8)+((1/'Step 1 Toxicity_Values'!$I19)*$M$12*$M$13*'Step 2 Chemical_Parameters'!$F19/$M$8)))),"--",($M$5*$M$6*$M$7)/($M$9*$M$10*(((1/'Step 1 Toxicity_Values'!$E19)*$M$11*'Step 2 Chemical_Parameters'!$E19/$M$8)+((1/'Step 1 Toxicity_Values'!$I19)*$M$12*$M$13*'Step 2 Chemical_Parameters'!$F19/$M$8)))) -> 441.7937715 | P41: -- | Q41: 441.7937715 | R41: 441.7937715 | S41: 33.46502014 | T41: -- | V41: ='Step 2 Chemical_Parameters'!A19 -> 56-35-9 | W41: ='Step 2 Chemical_Parameters'!B19 -> tributyltin oxide | Y41: =IF(B41="--","--",IF(VLOOKUP(B41,chemical,8,FALSE)="M",IF(ISERROR(($S$5*$S$7*$S$8)/((($S$16+$T$16)*'Step 2 Chemical_Parameters'!E19*'Step 1 Toxicity_Values'!D19)+(($S$17+$T$17)*'Step 2 Chemical_Parameters'!F19*'Step 1 Toxicity_Values'!G19))),"--",($S$5*$S$7*$S$8)/((($S$16+$T$16)*'Step 2 Chemical_Parameters'!E19*'Step 1 Toxicity_Values'!D19)+(($S$17+$T$17)*'Step 2 Chemical_Parameters'!F19*'Step 1 Toxicity_Values'!G19))),"--")) -> -- | Z41: =IF(B41="--","--",IF(VLOOKUP(B41,chemical,8,FALSE)="M",IF(ISERROR(($S$5*$S$7*$S$8)/((($S$16+$T$16+$U$16+$V$16)*'Step 2 Chemical_Parameters'!E19*'Step 1 Toxicity_Values'!D19)+(($S$17+$T$17+$U$17+$V$17)*'Step 2 Chemical_Parameters'!F19*'Step 1 Toxicity_Values'!G19))),"--",($S$5*$S$7*$S$8)/((($S$16+$T$16+$U$16+$V$16)*'Step 2 Chemical_Parameters'!E19*'Step 1 Toxicity_Values'!D19)+(($S$17+$T$17+$U$17+$V$17)*'Step 2 Chemical_Parameters'!F19*'Step 1 Toxicity_Values'!G19))),"--")) -> -- | AA41: =IF(B41="--","--",IF(VLOOKUP(B41,chemical,8,FALSE)="M",IF(ISERROR(($X$5*$X$7*$X$8)/((($X$16+$Y$16+$Z$16+$AA$16)*'Step 2 Chemical_Parameters'!E19*'Step 1 Toxicity_Values'!D19)+(($X$17+$Y$17+$Z$17+$AA$17)*'Step 2 Chemical_Parameters'!F19*'Step 1 Toxicity_Values'!G19))),"--",($X$5*$X$7*$X$8)/((($X$16+$Y$16+$Z$16+$AA$16)*'Step 2 Chemical_Parameters'!E19*'Step 1 Toxicity_Values'!D19)+(($X$17+$Y$17+$Z$17+$AA$17)*'Step 2 Chemical_Parameters'!F19*'Step 1 Toxicity_Values'!G19))),"--")) -> -- | AB41: RBCcancer | AC41: Risk-based sediment concentration - cancer endpoint
B42: 50-29-3 | C42: DDT | D42: =IF(ISERROR(($F$5*$F$6*$F$7)/($F$9*$F$10*(($F$11*'Step 2 Chemical_Parameters'!E20*'Step 1 Toxicity_Values'!$D20/$F$8)+($F$12*$F$13*'Step 2 Chemical_Parameters'!F20*'Step 1 Toxicity_Values'!G20/$F$8)))),"--",($F$5*$F$6*$F$7)/($F$9*$F$10*(($F$11*'Step 2 Chemical_Parameters'!E20*'Step 1 Toxicity_Values'!$D20/$F$8)+($F$12*$F$13*'Step 2 Chemical_Parameters'!F20*'Step 1 Toxicity_Values'!G20/$F$8)))) -> 9.1802491 | E42: =IF(ISERROR(($G$5*$G$6*$G$7)/($G$9*$G$10*(((1/'Step 1 Toxicity_Values'!$E20)*($G$11*'Step 2 Chemical_Parameters'!$E20/$G$8))+((1/'Step 1 Toxicity_Values'!$I20)*($G$12*$G$13*'Step 2 Chemical_Parameters'!$F20/$G$8))))),"--",($G$5*$G$6*$G$7)/($G$9*$G$10*(((1/'Step 1 Toxicity_Values'!$E20)*($G$11*'Step 2 Chemical_Parameters'!$E20/$G$8))+((1/'Step 1 Toxicity_Values'!$I20)*($G$12*$G$13*'Step 2 Chemical_Parameters'!$F20/$G$8))))) -> 133.769344 | F42: 9.1802491 | G42: 133.769344 | H42: 9.1802491 | I42: =IF(ISERROR(($H$5*$H$6*$H$7)/($H$9*$H$10*(($H$11*'Step 2 Chemical_Parameters'!$E20*'Step 1 Toxicity_Values'!$D20/$H$8)+($H$12*$H$13*'Step 2 Chemical_Parameters'!$F20*'Step 1 Toxicity_Values'!$G20/$H$8)))),"--",($H$5*$H$6*$H$7)/($H$9*$H$10*(($H$11*'Step 2 Chemical_Parameters'!$E20*'Step 1 Toxicity_Values'!$D20/$H$8)+($H$12*$H$13*'Step 2 Chemical_Parameters'!$F20*'Step 1 Toxicity_Values'!$G20/$H$8)))) -> 3.625738069 | J42: =IF(ISERROR(($K$5*$K$6*$K$7)/($K$9*$K$10*(((1/'Step 1 Toxicity_Values'!$E20)*$K$11*'Step 2 Chemical_Parameters'!$E20/$K$8)+((1/'Step 1 Toxicity_Values'!$I20)*$K$12*$K$13*'Step 2 Chemical_Parameters'!$F20/$K$8)))),"--",($K$5*$K$6*$K$7)/($K$9*$K$10*(((1/'Step 1 Toxicity_Values'!$E20)*$K$11*'Step 2 Chemical_Parameters'!$E20/$K$8)+((1/'Step 1 Toxicity_Values'!$I20)*$K$12*$K$13*'Step 2 Chemical_Parameters'!$F20/$K$8)))) -> 616.3754718 | K42: 3.625738069 | L42: 616.3754718 | M42: 3.625738069 | N42: =IF(ISERROR(($L$5*$L$6*$L$7)/($L$9*$L$10*(($L$11*'Step 2 Chemical_Parameters'!$E20*'Step 1 Toxicity_Values'!$D20/$L$8)+($L$12*$L$13*'Step 2 Chemical_Parameters'!$F20*'Step 1 Toxicity_Values'!$G20/$L$8)))),"--",($L$5*$L$6*$L$7)/($L$9*$L$10*(($L$11*'Step 2 Chemical_Parameters'!$E20*'Step 1 Toxicity_Values'!$D20/$L$8)+($L$12*$L$13*'Step 2 Chemical_Parameters'!$F20*'Step 1 Toxicity_Values'!$G20/$L$8)))) -> 8.264956905 | O42: =IF(ISERROR(($M$5*$M$6*$M$7)/($M$9*$M$10*(((1/'Step 1 Toxicity_Values'!$E20)*$M$11*'Step 2 Chemical_Parameters'!$E20/$M$8)+((1/'Step 1 Toxicity_Values'!$I20)*$M$12*$M$13*'Step 2 Chemical_Parameters'!$F20/$M$8)))),"--",($M$5*$M$6*$M$7)/($M$9*$M$10*(((1/'Step 1 Toxicity_Values'!$E20)*$M$11*'Step 2 Chemical_Parameters'!$E20/$M$8)+((1/'Step 1 Toxicity_Values'!$I20)*$M$12*$M$13*'Step 2 Chemical_Parameters'!$F20/$M$8)))) -> 1405.042674 | P42: 8.264956905 | Q42: 1405.042674 | R42: 8.264956905 | S42: 3.625738069 | T42: -- | V42: ='Step 2 Chemical_Parameters'!A20 -> 50-29-3 | W42: ='Step 2 Chemical_Parameters'!B20 -> DDT | Y42: =IF(B42="--","--",IF(VLOOKUP(B42,chemical,8,FALSE)="M",IF(ISERROR(($S$5*$S$7*$S$8)/((($S$16+$T$16)*'Step 2 Chemical_Parameters'!E20*'Step 1 Toxicity_Values'!D20)+(($S$17+$T$17)*'Step 2 Chemical_Parameters'!F20*'Step 1 Toxicity_Values'!G20))),"--",($S$5*$S$7*$S$8)/((($S$16+$T$16)*'Step 2 Chemical_Parameters'!E20*'Step 1 Toxicity_Values'!D20)+(($S$17+$T$17)*'Step 2 Chemical_Parameters'!F20*'Step 1 Toxicity_Values'!G20))),"--")) -> -- | Z42: =IF(B42="--","--",IF(VLOOKUP(B42,chemical,8,FALSE)="M",IF(ISERROR(($S$5*$S$7*$S$8)/((($S$16+$T$16+$U$16+$V$16)*'Step 2 Chemical_Parameters'!E20*'Step 1 Toxicity_Values'!D20)+(($S$17+$T$17+$U$17+$V$17)*'Step 2 Chemical_Parameters'!F20*'Step 1 Toxicity_Values'!G20))),"--",($S$5*$S$7*$S$8)/((($S$16+$T$16+$U$16+$V$16)*'Step 2 Chemical_Parameters'!E20*'Step 1 Toxicity_Values'!D20)+(($S$17+$T$17+$U$17+$V$17)*'Step 2 Chemical_Parameters'!F20*'Step 1 Toxicity_Values'!G20))),"--")) -> -- | AA42: =IF(B42="--","--",IF(VLOOKUP(B42,chemical,8,FALSE)="M",IF(ISERROR(($X$5*$X$7*$X$8)/((($X$16+$Y$16+$Z$16+$AA$16)*'Step 2 Chemical_Parameters'!E20*'Step 1 Toxicity_Values'!D20)+(($X$17+$Y$17+$Z$17+$AA$17)*'Step 2 Chemical_Parameters'!F20*'Step 1 Toxicity_Values'!G20))),"--",($X$5*$X$7*$X$8)/((($X$16+$Y$16+$Z$16+$AA$16)*'Step 2 Chemical_Parameters'!E20*'Step 1 Toxicity_Values'!D20)+(($X$17+$Y$17+$Z$17+$AA$17)*'Step 2 Chemical_Parameters'!F20*'Step 1 Toxicity_Values'!G20))),"--")) -> -- | AB42: RBCnoncancer | AC42: Risk-based sediment concentration - noncancer endpoint
B43: 71-43-2 | C43: BENZENE | D43: =IF(ISERROR(($F$5*$F$6*$F$7)/($F$9*$F$10*(($F$11*'Step 2 Chemical_Parameters'!E21*'Step 1 Toxicity_Values'!$D21/$F$8)+($F$12*$F$13*'Step 2 Chemical_Parameters'!F21*'Step 1 Toxicity_Values'!G21/$F$8)))),"--",($F$5*$F$6*$F$7)/($F$9*$F$10*(($F$11*'Step 2 Chemical_Parameters'!E21*'Step 1 Toxicity_Values'!$D21/$F$8)+($F$12*$F$13*'Step 2 Chemical_Parameters'!F21*'Step 1 Toxicity_Values'!G21/$F$8)))) -> 141.6297118 | E43: =IF(ISERROR(($G$5*$G$6*$G$7)/($G$9*$G$10*(((1/'Step 1 Toxicity_Values'!$E21)*($G$11*'Step 2 Chemical_Parameters'!$E21/$G$8))+((1/'Step 1 Toxicity_Values'!$I21)*($G$12*$G$13*'Step 2 Chemical_Parameters'!$F21/$G$8))))),"--",($G$5*$G$6*$G$7)/($G$9*$G$10*(((1/'Step 1 Toxicity_Values'!$E21)*($G$11*'Step 2 Chemical_Parameters'!$E21/$G$8))+((1/'Step 1 Toxicity_Values'!$I21)*($G$12*$G$13*'Step 2 Chemical_Parameters'!$F21/$G$8))))) -> 2670.731707 | F43: 141.6297118 | G43: 2670.731707 | H43: 141.6297118 | I43: =IF(ISERROR(($H$5*$H$6*$H$7)/($H$9*$H$10*(($H$11*'Step 2 Chemical_Parameters'!$E21*'Step 1 Toxicity_Values'!$D21/$H$8)+($H$12*$H$13*'Step 2 Chemical_Parameters'!$F21*'Step 1 Toxicity_Values'!$G21/$H$8)))),"--",($H$5*$H$6*$H$7)/($H$9*$H$10*(($H$11*'Step 2 Chemical_Parameters'!$E21*'Step 1 Toxicity_Values'!$D21/$H$8)+($H$12*$H$13*'Step 2 Chemical_Parameters'!$F21*'Step 1 Toxicity_Values'!$G21/$H$8)))) -> 41.47727273 | J43: =IF(ISERROR(($K$5*$K$6*$K$7)/($K$9*$K$10*(((1/'Step 1 Toxicity_Values'!$E21)*$K$11*'Step 2 Chemical_Parameters'!$E21/$K$8)+((1/'Step 1 Toxicity_Values'!$I21)*$K$12*$K$13*'Step 2 Chemical_Parameters'!$F21/$K$8)))),"--",($K$5*$K$6*$K$7)/($K$9*$K$10*(((1/'Step 1 Toxicity_Values'!$E21)*$K$11*'Step 2 Chemical_Parameters'!$E21/$K$8)+((1/'Step 1 Toxicity_Values'!$I21)*$K$12*$K$13*'Step 2 Chemical_Parameters'!$F21/$K$8)))) -> 9125 | K43: 41.47727273 | L43: 9125 | M43: 41.47727273 | N43: =IF(ISERROR(($L$5*$L$6*$L$7)/($L$9*$L$10*(($L$11*'Step 2 Chemical_Parameters'!$E21*'Step 1 Toxicity_Values'!$D21/$L$8)+($L$12*$L$13*'Step 2 Chemical_Parameters'!$F21*'Step 1 Toxicity_Values'!$G21/$L$8)))),"--",($L$5*$L$6*$L$7)/($L$9*$L$10*(($L$11*'Step 2 Chemical_Parameters'!$E21*'Step 1 Toxicity_Values'!$D21/$L$8)+($L$12*$L$13*'Step 2 Chemical_Parameters'!$F21*'Step 1 Toxicity_Values'!$G21/$L$8)))) -> 83.65164248 | O43: =IF(ISERROR(($M$5*$M$6*$M$7)/($M$9*$M$10*(((1/'Step 1 Toxicity_Values'!$E21)*$M$11*'Step 2 Chemical_Parameters'!$E21/$M$8)+((1/'Step 1 Toxicity_Values'!$I21)*$M$12*$M$13*'Step 2 Chemical_Parameters'!$F21/$M$8)))),"--",($M$5*$M$6*$M$7)/($M$9*$M$10*(((1/'Step 1 Toxicity_Values'!$E21)*$M$11*'Step 2 Chemical_Parameters'!$E21/$M$8)+((1/'Step 1 Toxicity_Values'!$I21)*$M$12*$M$13*'Step 2 Chemical_Parameters'!$F21/$M$8)))) -> 18403.36134 | P43: 83.65164248 | Q43: 18403.36134 | R43: 83.65164248 | S43: 41.47727273 | T43: -- | V43: ='Step 2 Chemical_Parameters'!A21 -> 71-43-2 | W43: ='Step 2 Chemical_Parameters'!B21 -> BENZENE | Y43: =IF(B43="--","--",IF(VLOOKUP(B43,chemical,8,FALSE)="M",IF(ISERROR(($S$5*$S$7*$S$8)/((($S$16+$T$16)*'Step 2 Chemical_Parameters'!E21*'Step 1 Toxicity_Values'!D21)+(($S$17+$T$17)*'Step 2 Chemical_Parameters'!F21*'Step 1 Toxicity_Values'!G21))),"--",($S$5*$S$7*$S$8)/((($S$16+$T$16)*'Step 2 Chemical_Parameters'!E21*'Step 1 Toxicity_Values'!D21)+(($S$17+$T$17)*'Step 2 Chemical_Parameters'!F21*'Step 1 Toxicity_Values'!G21))),"--")) -> -- | Z43: =IF(B43="--","--",IF(VLOOKUP(B43,chemical,8,FALSE)="M",IF(ISERROR(($S$5*$S$7*$S$8)/((($S$16+$T$16+$U$16+$V$16)*'Step 2 Chemical_Parameters'!E21*'Step 1 Toxicity_Values'!D21)+(($S$17+$T$17+$U$17+$V$17)*'Step 2 Chemical_Parameters'!F21*'Step 1 Toxicity_Values'!G21))),"--",($S$5*$S$7*$S$8)/((($S$16+$T$16+$U$16+$V$16)*'Step 2 Chemical_Parameters'!E21*'Step 1 Toxicity_Values'!D21)+(($S$17+$T$17+$U$17+$V$17)*'Step 2 Chemical_Parameters'!F21*'Step 1 Toxicity_Values'!G21))),"--")) -> -- | AA43: =IF(B43="--","--",IF(VLOOKUP(B43,chemical,8,FALSE)="M",IF(ISERROR(($X$5*$X$7*$X$8)/((($X$16+$Y$16+$Z$16+$AA$16)*'Step 2 Chemical_Parameters'!E21*'Step 1 Toxicity_Values'!D21)+(($X$17+$Y$17+$Z$17+$AA$17)*'Step 2 Chemical_Parameters'!F21*'Step 1 Toxicity_Values'!G21))),"--",($X$5*$X$7*$X$8)/((($X$16+$Y$16+$Z$16+$AA$16)*'Step 2 Chemical_Parameters'!E21*'Step 1 Toxicity_Values'!D21)+(($X$17+$Y$17+$Z$17+$AA$17)*'Step 2 Chemical_Parameters'!F21*'Step 1 Toxicity_Values'!G21))),"--")) -> -- | AB43: Subs. | AC43: Tribal substistence user
B44: -- | C44: -- | D44: =IF(ISERROR(($F$5*$F$6*$F$7)/($F$9*$F$10*(($F$11*'Step 2 Chemical_Parameters'!E22*'Step 1 Toxicity_Values'!$D22/$F$8)+($F$12*$F$13*'Step 2 Chemical_Parameters'!F22*'Step 1 Toxicity_Values'!G22/$F$8)))),"--",($F$5*$F$6*$F$7)/($F$9*$F$10*(($F$11*'Step 2 Chemical_Parameters'!E22*'Step 1 Toxicity_Values'!$D22/$F$8)+($F$12*$F$13*'Step 2 Chemical_Parameters'!F22*'Step 1 Toxicity_Values'!G22/$F$8)))) -> -- | E44: =IF(ISERROR(($G$5*$G$6*$G$7)/($G$9*$G$10*(((1/'Step 1 Toxicity_Values'!$E22)*($G$11*'Step 2 Chemical_Parameters'!$E22/$G$8))+((1/'Step 1 Toxicity_Values'!$I22)*($G$12*$G$13*'Step 2 Chemical_Parameters'!$F22/$G$8))))),"--",($G$5*$G$6*$G$7)/($G$9*$G$10*(((1/'Step 1 Toxicity_Values'!$E22)*($G$11*'Step 2 Chemical_Parameters'!$E22/$G$8))+((1/'Step 1 Toxicity_Values'!$I22)*($G$12*$G$13*'Step 2 Chemical_Parameters'!$F22/$G$8))))) -> -- | F44: -- | G44: -- | H44: -- | I44: =IF(ISERROR(($H$5*$H$6*$H$7)/($H$9*$H$10*(($H$11*'Step 2 Chemical_Parameters'!$E22*'Step 1 Toxicity_Values'!$D22/$H$8)+($H$12*$H$13*'Step 2 Chemical_Parameters'!$F22*'Step 1 Toxicity_Values'!$G22/$H$8)))),"--",($H$5*$H$6*$H$7)/($H$9*$H$10*(($H$11*'Step 2 Chemical_Parameters'!$E22*'Step 1 Toxicity_Values'!$D22/$H$8)+($H$12*$H$13*'Step 2 Chemical_Parameters'!$F22*'Step 1 Toxicity_Values'!$G22/$H$8)))) -> -- | J44: =IF(ISERROR(($K$5*$K$6*$K$7)/($K$9*$K$10*(((1/'Step 1 Toxicity_Values'!$E22)*$K$11*'Step 2 Chemical_Parameters'!$E22/$K$8)+((1/'Step 1 Toxicity_Values'!$I22)*$K$12*$K$13*'Step 2 Chemical_Parameters'!$F22/$K$8)))),"--",($K$5*$K$6*$K$7)/($K$9*$K$10*(((1/'Step 1 Toxicity_Values'!$E22)*$K$11*'Step 2 Chemical_Parameters'!$E22/$K$8)+((1/'Step 1 Toxicity_Values'!$I22)*$K$12*$K$13*'Step 2 Chemical_Parameters'!$F22/$K$8)))) -> -- | K44: -- | L44: -- | M44: -- | N44: =IF(ISERROR(($L$5*$L$6*$L$7)/($L$9*$L$10*(($L$11*'Step 2 Chemical_Parameters'!$E22*'Step 1 Toxicity_Values'!$D22/$L$8)+($L$12*$L$13*'Step 2 Chemical_Parameters'!$F22*'Step 1 Toxicity_Values'!$G22/$L$8)))),"--",($L$5*$L$6*$L$7)/($L$9*$L$10*(($L$11*'Step 2 Chemical_Parameters'!$E22*'Step 1 Toxicity_Values'!$D22/$L$8)+($L$12*$L$13*'Step 2 Chemical_Parameters'!$F22*'Step 1 Toxicity_Values'!$G22/$L$8)))) -> -- | O44: =IF(ISERROR(($M$5*$M$6*$M$7)/($M$9*$M$10*(((1/'Step 1 Toxicity_Values'!$E22)*$M$11*'Step 2 Chemical_Parameters'!$E22/$M$8)+((1/'Step 1 Toxicity_Values'!$I22)*$M$12*$M$13*'Step 2 Chemical_Parameters'!$F22/$M$8)))),"--",($M$5*$M$6*$M$7)/($M$9*$M$10*(((1/'Step 1 Toxicity_Values'!$E22)*$M$11*'Step 2 Chemical_Parameters'!$E22/$M$8)+((1/'Step 1 Toxicity_Values'!$I22)*$M$12*$M$13*'Step 2 Chemical_Parameters'!$F22/$M$8)))) -> -- | P44: -- | Q44: -- | R44: -- | S44: -- | T44: -- | V44: ='Step 2 Chemical_Parameters'!A22 -> -- | W44: ='Step 2 Chemical_Parameters'!B22 -> -- | Y44: =IF(B44="--","--",IF(VLOOKUP(B44,chemical,8,FALSE)="M",IF(ISERROR(($S$5*$S$7*$S$8)/((($S$16+$T$16)*'Step 2 Chemical_Parameters'!E22*'Step 1 Toxicity_Values'!D22)+(($S$17+$T$17)*'Step 2 Chemical_Parameters'!F22*'Step 1 Toxicity_Values'!G22))),"--",($S$5*$S$7*$S$8)/((($S$16+$T$16)*'Step 2 Chemical_Parameters'!E22*'Step 1 Toxicity_Values'!D22)+(($S$17+$T$17)*'Step 2 Chemical_Parameters'!F22*'Step 1 Toxicity_Values'!G22))),"--")) -> -- | Z44: =IF(B44="--","--",IF(VLOOKUP(B44,chemical,8,FALSE)="M",IF(ISERROR(($S$5*$S$7*$S$8)/((($S$16+$T$16+$U$16+$V$16)*'Step 2 Chemical_Parameters'!E22*'Step 1 Toxicity_Values'!D22)+(($S$17+$T$17+$U$17+$V$17)*'Step 2 Chemical_Parameters'!F22*'Step 1 Toxicity_Values'!G22))),"--",($S$5*$S$7*$S$8)/((($S$16+$T$16+$U$16+$V$16)*'Step 2 Chemical_Parameters'!E22*'Step 1 Toxicity_Values'!D22)+(($S$17+$T$17+$U$17+$V$17)*'Step 2 Chemical_Parameters'!F22*'Step 1 Toxicity_Values'!G22))),"--")) -> -- | AA44: =IF(B44="--","--",IF(VLOOKUP(B44,chemical,8,FALSE)="M",IF(ISERROR(($X$5*$X$7*$X$8)/((($X$16+$Y$16+$Z$16+$AA$16)*'Step 2 Chemical_Parameters'!E22*'Step 1 Toxicity_Values'!D22)+(($X$17+$Y$17+$Z$17+$AA$17)*'Step 2 Chemical_Parameters'!F22*'Step 1 Toxicity_Values'!G22))),"--",($X$5*$X$7*$X$8)/((($X$16+$Y$16+$Z$16+$AA$16)*'Step 2 Chemical_Parameters'!E22*'Step 1 Toxicity_Values'!D22)+(($X$17+$Y$17+$Z$17+$AA$17)*'Step 2 Chemical_Parameters'!F22*'Step 1 Toxicity_Values'!G22))),"--")) -> --
B45: -- | C45: -- | D45: =IF(ISERROR(($F$5*$F$6*$F$7)/($F$9*$F$10*(($F$11*'Step 2 Chemical_Parameters'!E23*'Step 1 Toxicity_Values'!$D23/$F$8)+($F$12*$F$13*'Step 2 Chemical_Parameters'!F23*'Step 1 Toxicity_Values'!G23/$F$8)))),"--",($F$5*$F$6*$F$7)/($F$9*$F$10*(($F$11*'Step 2 Chemical_Parameters'!E23*'Step 1 Toxicity_Values'!$D23/$F$8)+($F$12*$F$13*'Step 2 Chemical_Parameters'!F23*'Step 1 Toxicity_Values'!G23/$F$8)))) -> -- | E45: =IF(ISERROR(($G$5*$G$6*$G$7)/($G$9*$G$10*(((1/'Step 1 Toxicity_Values'!$E23)*($G$11*'Step 2 Chemical_Parameters'!$E23/$G$8))+((1/'Step 1 Toxicity_Values'!$I23)*($G$12*$G$13*'Step 2 Chemical_Parameters'!$F23/$G$8))))),"--",($G$5*$G$6*$G$7)/($G$9*$G$10*(((1/'Step 1 Toxicity_Values'!$E23)*($G$11*'Step 2 Chemical_Parameters'!$E23/$G$8))+((1/'Step 1 Toxicity_Values'!$I23)*($G$12*$G$13*'Step 2 Chemical_Parameters'!$F23/$G$8))))) -> -- | F45: =IF(T45="M",Y45,D45) -> -- | G45: -- | H45: -- | I45: =IF(ISERROR(($H$5*$H$6*$H$7)/($H$9*$H$10*(($H$11*'Step 2 Chemical_Parameters'!$E23*'Step 1 Toxicity_Values'!$D23/$H$8)+($H$12*$H$13*'Step 2 Chemical_Parameters'!$F23*'Step 1 Toxicity_Values'!$G23/$H$8)))),"--",($H$5*$H$6*$H$7)/($H$9*$H$10*(($H$11*'Step 2 Chemical_Parameters'!$E23*'Step 1 Toxicity_Values'!$D23/$H$8)+($H$12*$H$13*'Step 2 Chemical_Parameters'!$F23*'Step 1 Toxicity_Values'!$G23/$H$8)))) -> -- | J45: =IF(ISERROR(($K$5*$K$6*$K$7)/($K$9*$K$10*(((1/'Step 1 Toxicity_Values'!$E23)*$K$11*'Step 2 Chemical_Parameters'!$E23/$K$8)+((1/'Step 1 Toxicity_Values'!$I23)*$K$12*$K$13*'Step 2 Chemical_Parameters'!$F23/$K$8)))),"--",($K$5*$K$6*$K$7)/($K$9*$K$10*(((1/'Step 1 Toxicity_Values'!$E23)*$K$11*'Step 2 Chemical_Parameters'!$E23/$K$8)+((1/'Step 1 Toxicity_Values'!$I23)*$K$12*$K$13*'Step 2 Chemical_Parameters'!$F23/$K$8)))) -> -- | K45: -- | L45: =IF(J45="--","--",J45) -> -- | M45: -- | N45: =IF(ISERROR(($L$5*$L$6*$L$7)/($L$9*$L$10*(($L$11*'Step 2 Chemical_Parameters'!$E23*'Step 1 Toxicity_Values'!$D23/$L$8)+($L$12*$L$13*'Step 2 Chemical_Parameters'!$F23*'Step 1 Toxicity_Values'!$G23/$L$8)))),"--",($L$5*$L$6*$L$7)/($L$9*$L$10*(($L$11*'Step 2 Chemical_Parameters'!$E23*'Step 1 Toxicity_Values'!$D23/$L$8)+($L$12*$L$13*'Step 2 Chemical_Parameters'!$F23*'Step 1 Toxicity_Values'!$G23/$L$8)))) -> -- | O45: =IF(ISERROR(($M$5*$M$6*$M$7)/($M$9*$M$10*(((1/'Step 1 Toxicity_Values'!$E23)*$M$11*'Step 2 Chemical_Parameters'!$E23/$M$8)+((1/'Step 1 Toxicity_Values'!$I23)*$M$12*$M$13*'Step 2 Chemical_Parameters'!$F23/$M$8)))),"--",($M$5*$M$6*$M$7)/($M$9*$M$10*(((1/'Step 1 Toxicity_Values'!$E23)*$M$11*'Step 2 Chemical_Parameters'!$E23/$M$8)+((1/'Step 1 Toxicity_Values'!$I23)*$M$12*$M$13*'Step 2 Chemical_Parameters'!$F23/$M$8)))) -> -- | P45: -- | Q45: =IF(O45="--","--",O45) -> -- | R45: -- | S45: -- | T45: -- | V45: ='Step 2 Chemical_Parameters'!A23 -> -- | W45: ='Step 2 Chemical_Parameters'!B23 -> -- | Y45: =IF(B45="--","--",IF(VLOOKUP(B45,chemical,8,FALSE)="M",IF(ISERROR(($S$5*$S$7*$S$8)/((($S$16+$T$16)*'Step 2 Chemical_Parameters'!E23*'Step 1 Toxicity_Values'!D23)+(($S$17+$T$17)*'Step 2 Chemical_Parameters'!F23*'Step 1 Toxicity_Values'!G23))),"--",($S$5*$S$7*$S$8)/((($S$16+$T$16)*'Step 2 Chemical_Parameters'!E23*'Step 1 Toxicity_Values'!D23)+(($S$17+$T$17)*'Step 2 Chemical_Parameters'!F23*'Step 1 Toxicity_Values'!G23))),"--")) -> -- | Z45: =IF(B45="--","--",IF(VLOOKUP(B45,chemical,8,FALSE)="M",IF(ISERROR(($S$5*$S$7*$S$8)/((($S$16+$T$16+$U$16+$V$16)*'Step 2 Chemical_Parameters'!E23*'Step 1 Toxicity_Values'!D23)+(($S$17+$T$17+$U$17+$V$17)*'Step 2 Chemical_Parameters'!F23*'Step 1 Toxicity_Values'!G23))),"--",($S$5*$S$7*$S$8)/((($S$16+$T$16+$U$16+$V$16)*'Step 2 Chemical_Parameters'!E23*'Step 1 Toxicity_Values'!D23)+(($S$17+$T$17+$U$17+$V$17)*'Step 2 Chemical_Parameters'!F23*'Step 1 Toxicity_Values'!G23))),"--")) -> -- | AA45: =IF(B45="--","--",IF(VLOOKUP(B45,chemical,8,FALSE)="M",IF(ISERROR(($X$5*$X$7*$X$8)/((($X$16+$Y$16+$Z$16+$AA$16)*'Step 2 Chemical_Parameters'!E23*'Step 1 Toxicity_Values'!D23)+(($X$17+$Y$17+$Z$17+$AA$17)*'Step 2 Chemical_Parameters'!F23*'Step 1 Toxicity_Values'!G23))),"--",($X$5*$X$7*$X$8)/((($X$16+$Y$16+$Z$16+$AA$16)*'Step 2 Chemical_Parameters'!E23*'Step 1 Toxicity_Values'!D23)+(($X$17+$Y$17+$Z$17+$AA$17)*'Step 2 Chemical_Parameters'!F23*'Step 1 Toxicity_Values'!G23))),"--")) -> --
B46: -- | C46: -- | D46: =IF(ISERROR(($F$5*$F$6*$F$7)/($F$9*$F$10*(($F$11*'Step 2 Chemical_Parameters'!E24*'Step 1 Toxicity_Values'!$D24/$F$8)+($F$12*$F$13*'Step 2 Chemical_Parameters'!F24*'Step 1 Toxicity_Values'!G24/$F$8)))),"--",($F$5*$F$6*$F$7)/($F$9*$F$10*(($F$11*'Step 2 Chemical_Parameters'!E24*'Step 1 Toxicity_Values'!$D24/$F$8)+($F$12*$F$13*'Step 2 Chemical_Parameters'!F24*'Step 1 Toxicity_Values'!G24/$F$8)))) -> -- | E46: =IF(ISERROR(($G$5*$G$6*$G$7)/($G$9*$G$10*(((1/'Step 1 Toxicity_Values'!$E24)*($G$11*'Step 2 Chemical_Parameters'!$E24/$G$8))+((1/'Step 1 Toxicity_Values'!$I24)*($G$12*$G$13*'Step 2 Chemical_Parameters'!$F24/$G$8))))),"--",($G$5*$G$6*$G$7)/($G$9*$G$10*(((1/'Step 1 Toxicity_Values'!$E24)*($G$11*'Step 2 Chemical_Parameters'!$E24/$G$8))+((1/'Step 1 Toxicity_Values'!$I24)*($G$12*$G$13*'Step 2 Chemical_Parameters'!$F24/$G$8))))) -> -- | F46: -- | G46: -- | H46: -- | I46: =IF(ISERROR(($H$5*$H$6*$H$7)/($H$9*$H$10*(($H$11*'Step 2 Chemical_Parameters'!$E24*'Step 1 Toxicity_Values'!$D24/$H$8)+($H$12*$H$13*'Step 2 Chemical_Parameters'!$F24*'Step 1 Toxicity_Values'!$G24/$H$8)))),"--",($H$5*$H$6*$H$7)/($H$9*$H$10*(($H$11*'Step 2 Chemical_Parameters'!$E24*'Step 1 Toxicity_Values'!$D24/$H$8)+($H$12*$H$13*'Step 2 Chemical_Parameters'!$F24*'Step 1 Toxicity_Values'!$G24/$H$8)))) -> -- | J46: =IF(ISERROR(($K$5*$K$6*$K$7)/($K$9*$K$10*(((1/'Step 1 Toxicity_Values'!$E24)*$K$11*'Step 2 Chemical_Parameters'!$E24/$K$8)+((1/'Step 1 Toxicity_Values'!$I24)*$K$12*$K$13*'Step 2 Chemical_Parameters'!$F24/$K$8)))),"--",($K$5*$K$6*$K$7)/($K$9*$K$10*(((1/'Step 1 Toxicity_Values'!$E24)*$K$11*'Step 2 Chemical_Parameters'!$E24/$K$8)+((1/'Step 1 Toxicity_Values'!$I24)*$K$12*$K$13*'Step 2 Chemical_Parameters'!$F24/$K$8)))) -> -- | K46: -- | L46: -- | M46: -- | N46: =IF(ISERROR(($L$5*$L$6*$L$7)/($L$9*$L$10*(($L$11*'Step 2 Chemical_Parameters'!$E24*'Step 1 Toxicity_Values'!$D24/$L$8)+($L$12*$L$13*'Step 2 Chemical_Parameters'!$F24*'Step 1 Toxicity_Values'!$G24/$L$8)))),"--",($L$5*$L$6*$L$7)/($L$9*$L$10*(($L$11*'Step 2 Chemical_Parameters'!$E24*'Step 1 Toxicity_Values'!$D24/$L$8)+($L$12*$L$13*'Step 2 Chemical_Parameters'!$F24*'Step 1 Toxicity_Values'!$G24/$L$8)))) -> -- | O46: =IF(ISERROR(($M$5*$M$6*$M$7)/($M$9*$M$10*(((1/'Step 1 Toxicity_Values'!$E24)*$M$11*'Step 2 Chemical_Parameters'!$E24/$M$8)+((1/'Step 1 Toxicity_Values'!$I24)*$M$12*$M$13*'Step 2 Chemical_Parameters'!$F24/$M$8)))),"--",($M$5*$M$6*$M$7)/($M$9*$M$10*(((1/'Step 1 Toxicity_Values'!$E24)*$M$11*'Step 2 Chemical_Parameters'!$E24/$M$8)+((1/'Step 1 Toxicity_Values'!$I24)*$M$12*$M$13*'Step 2 Chemical_Parameters'!$F24/$M$8)))) -> -- | P46: -- | Q46: -- | R46: -- | S46: -- | T46: -- | V46: ='Step 2 Chemical_Parameters'!A24 -> -- | W46: ='Step 2 Chemical_Parameters'!B24 -> -- | Y46: =IF(B46="--","--",IF(VLOOKUP(B46,chemical,8,FALSE)="M",IF(ISERROR(($S$5*$S$7*$S$8)/((($S$16+$T$16)*'Step 2 Chemical_Parameters'!E24*'Step 1 Toxicity_Values'!D24)+(($S$17+$T$17)*'Step 2 Chemical_Parameters'!F24*'Step 1 Toxicity_Values'!G24))),"--",($S$5*$S$7*$S$8)/((($S$16+$T$16)*'Step 2 Chemical_Parameters'!E24*'Step 1 Toxicity_Values'!D24)+(($S$17+$T$17)*'Step 2 Chemical_Parameters'!F24*'Step 1 Toxicity_Values'!G24))),"--")) -> -- | Z46: =IF(B46="--","--",IF(VLOOKUP(B46,chemical,8,FALSE)="M",IF(ISERROR(($S$5*$S$7*$S$8)/((($S$16+$T$16+$U$16+$V$16)*'Step 2 Chemical_Parameters'!E24*'Step 1 Toxicity_Values'!D24)+(($S$17+$T$17+$U$17+$V$17)*'Step 2 Chemical_Parameters'!F24*'Step 1 Toxicity_Values'!G24))),"--",($S$5*$S$7*$S$8)/((($S$16+$T$16+$U$16+$V$16)*'Step 2 Chemical_Parameters'!E24*'Step 1 Toxicity_Values'!D24)+(($S$17+$T$17+$U$17+$V$17)*'Step 2 Chemical_Parameters'!F24*'Step 1 Toxicity_Values'!G24))),"--")) -> -- | AA46: =IF(B46="--","--",IF(VLOOKUP(B46,chemical,8,FALSE)="M",IF(ISERROR(($X$5*$X$7*$X$8)/((($X$16+$Y$16+$Z$16+$AA$16)*'Step 2 Chemical_Parameters'!E24*'Step 1 Toxicity_Values'!D24)+(($X$17+$Y$17+$Z$17+$AA$17)*'Step 2 Chemical_Parameters'!F24*'Step 1 Toxicity_Values'!G24))),"--",($X$5*$X$7*$X$8)/((($X$16+$Y$16+$Z$16+$AA$16)*'Step 2 Chemical_Parameters'!E24*'Step 1 Toxicity_Values'!D24)+(($X$17+$Y$17+$Z$17+$AA$17)*'Step 2 Chemical_Parameters'!F24*'Step 1 Toxicity_Values'!G24))),"--")) -> --
B47: -- | C47: -- | D47: =IF(ISERROR(($F$5*$F$6*$F$7)/($F$9*$F$10*(($F$11*'Step 2 Chemical_Parameters'!E25*'Step 1 Toxicity_Values'!$D25/$F$8)+($F$12*$F$13*'Step 2 Chemical_Parameters'!F25*'Step 1 Toxicity_Values'!G25/$F$8)))),"--",($F$5*$F$6*$F$7)/($F$9*$F$10*(($F$11*'Step 2 Chemical_Parameters'!E25*'Step 1 Toxicity_Values'!$D25/$F$8)+($F$12*$F$13*'Step 2 Chemical_Parameters'!F25*'Step 1 Toxicity_Values'!G25/$F$8)))) -> -- | E47: =IF(ISERROR(($G$5*$G$6*$G$7)/($G$9*$G$10*(((1/'Step 1 Toxicity_Values'!$E25)*($G$11*'Step 2 Chemical_Parameters'!$E25/$G$8))+((1/'Step 1 Toxicity_Values'!$I25)*($G$12*$G$13*'Step 2 Chemical_Parameters'!$F25/$G$8))))),"--",($G$5*$G$6*$G$7)/($G$9*$G$10*(((1/'Step 1 Toxicity_Values'!$E25)*($G$11*'Step 2 Chemical_Parameters'!$E25/$G$8))+((1/'Step 1 Toxicity_Values'!$I25)*($G$12*$G$13*'Step 2 Chemical_Parameters'!$F25/$G$8))))) -> -- | F47: -- | G47: -- | H47: -- | I47: =IF(ISERROR(($H$5*$H$6*$H$7)/($H$9*$H$10*(($H$11*'Step 2 Chemical_Parameters'!$E25*'Step 1 Toxicity_Values'!$D25/$H$8)+($H$12*$H$13*'Step 2 Chemical_Parameters'!$F25*'Step 1 Toxicity_Values'!$G25/$H$8)))),"--",($H$5*$H$6*$H$7)/($H$9*$H$10*(($H$11*'Step 2 Chemical_Parameters'!$E25*'Step 1 Toxicity_Values'!$D25/$H$8)+($H$12*$H$13*'Step 2 Chemical_Parameters'!$F25*'Step 1 Toxicity_Values'!$G25/$H$8)))) -> -- | J47: =IF(ISERROR(($K$5*$K$6*$K$7)/($K$9*$K$10*(((1/'Step 1 Toxicity_Values'!$E25)*$K$11*'Step 2 Chemical_Parameters'!$E25/$K$8)+((1/'Step 1 Toxicity_Values'!$I25)*$K$12*$K$13*'Step 2 Chemical_Parameters'!$F25/$K$8)))),"--",($K$5*$K$6*$K$7)/($K$9*$K$10*(((1/'Step 1 Toxicity_Values'!$E25)*$K$11*'Step 2 Chemical_Parameters'!$E25/$K$8)+((1/'Step 1 Toxicity_Values'!$I25)*$K$12*$K$13*'Step 2 Chemical_Parameters'!$F25/$K$8)))) -> -- | K47: -- | L47: -- | M47: -- | N47: =IF(ISERROR(($L$5*$L$6*$L$7)/($L$9*$L$10*(($L$11*'Step 2 Chemical_Parameters'!$E25*'Step 1 Toxicity_Values'!$D25/$L$8)+($L$12*$L$13*'Step 2 Chemical_Parameters'!$F25*'Step 1 Toxicity_Values'!$G25/$L$8)))),"--",($L$5*$L$6*$L$7)/($L$9*$L$10*(($L$11*'Step 2 Chemical_Parameters'!$E25*'Step 1 Toxicity_Values'!$D25/$L$8)+($L$12*$L$13*'Step 2 Chemical_Parameters'!$F25*'Step 1 Toxicity_Values'!$G25/$L$8)))) -> -- | O47: =IF(ISERROR(($M$5*$M$6*$M$7)/($M$9*$M$10*(((1/'Step 1 Toxicity_Values'!$E25)*$M$11*'Step 2 Chemical_Parameters'!$E25/$M$8)+((1/'Step 1 Toxicity_Values'!$I25)*$M$12*$M$13*'Step 2 Chemical_Parameters'!$F25/$M$8)))),"--",($M$5*$M$6*$M$7)/($M$9*$M$10*(((1/'Step 1 Toxicity_Values'!$E25)*$M$11*'Step 2 Chemical_Parameters'!$E25/$M$8)+((1/'Step 1 Toxicity_Values'!$I25)*$M$12*$M$13*'Step 2 Chemical_Parameters'!$F25/$M$8)))) -> -- | P47: -- | Q47: -- | R47: -- | S47: -- | T47: -- | V47: ='Step 2 Chemical_Parameters'!A25 -> -- | W47: ='Step 2 Chemical_Parameters'!B25 -> -- | Y47: =IF(B47="--","--",IF(VLOOKUP(B47,chemical,8,FALSE)="M",IF(ISERROR(($S$5*$S$7*$S$8)/((($S$16+$T$16)*'Step 2 Chemical_Parameters'!E25*'Step 1 Toxicity_Values'!D25)+(($S$17+$T$17)*'Step 2 Chemical_Parameters'!F25*'Step 1 Toxicity_Values'!G25))),"--",($S$5*$S$7*$S$8)/((($S$16+$T$16)*'Step 2 Chemical_Parameters'!E25*'Step 1 Toxicity_Values'!D25)+(($S$17+$T$17)*'Step 2 Chemical_Parameters'!F25*'Step 1 Toxicity_Values'!G25))),"--")) -> -- | Z47: =IF(B47="--","--",IF(VLOOKUP(B47,chemical,8,FALSE)="M",IF(ISERROR(($S$5*$S$7*$S$8)/((($S$16+$T$16+$U$16+$V$16)*'Step 2 Chemical_Parameters'!E25*'Step 1 Toxicity_Values'!D25)+(($S$17+$T$17+$U$17+$V$17)*'Step 2 Chemical_Parameters'!F25*'Step 1 Toxicity_Values'!G25))),"--",($S$5*$S$7*$S$8)/((($S$16+$T$16+$U$16+$V$16)*'Step 2 Chemical_Parameters'!E25*'Step 1 Toxicity_Values'!D25)+(($S$17+$T$17+$U$17+$V$17)*'Step 2 Chemical_Parameters'!F25*'Step 1 Toxicity_Values'!G25))),"--")) -> -- | AA47: =IF(B47="--","--",IF(VLOOKUP(B47,chemical,8,FALSE)="M",IF(ISERROR(($X$5*$X$7*$X$8)/((($X$16+$Y$16+$Z$16+$AA$16)*'Step 2 Chemical_Parameters'!E25*'Step 1 Toxicity_Values'!D25)+(($X$17+$Y$17+$Z$17+$AA$17)*'Step 2 Chemical_Parameters'!F25*'Step 1 Toxicity_Values'!G25))),"--",($X$5*$X$7*$X$8)/((($X$16+$Y$16+$Z$16+$AA$16)*'Step 2 Chemical_Parameters'!E25*'Step 1 Toxicity_Values'!D25)+(($X$17+$Y$17+$Z$17+$AA$17)*'Step 2 Chemical_Parameters'!F25*'Step 1 Toxicity_Values'!G25))),"--")) -> --
B48: -- | C48: -- | D48: =IF(ISERROR(($F$5*$F$6*$F$7)/($F$9*$F$10*(($F$11*'Step 2 Chemical_Parameters'!E26*'Step 1 Toxicity_Values'!$D26/$F$8)+($F$12*$F$13*'Step 2 Chemical_Parameters'!F26*'Step 1 Toxicity_Values'!G26/$F$8)))),"--",($F$5*$F$6*$F$7)/($F$9*$F$10*(($F$11*'Step 2 Chemical_Parameters'!E26*'Step 1 Toxicity_Values'!$D26/$F$8)+($F$12*$F$13*'Step 2 Chemical_Parameters'!F26*'Step 1 Toxicity_Values'!G26/$F$8)))) -> -- | E48: =IF(ISERROR(($G$5*$G$6*$G$7)/($G$9*$G$10*(((1/'Step 1 Toxicity_Values'!$E26)*($G$11*'Step 2 Chemical_Parameters'!$E26/$G$8))+((1/'Step 1 Toxicity_Values'!$I26)*($G$12*$G$13*'Step 2 Chemical_Parameters'!$F26/$G$8))))),"--",($G$5*$G$6*$G$7)/($G$9*$G$10*(((1/'Step 1 Toxicity_Values'!$E26)*($G$11*'Step 2 Chemical_Parameters'!$E26/$G$8))+((1/'Step 1 Toxicity_Values'!$I26)*($G$12*$G$13*'Step 2 Chemical_Parameters'!$F26/$G$8))))) -> -- | F48: -- | G48: -- | H48: -- | I48: =IF(ISERROR(($H$5*$H$6*$H$7)/($H$9*$H$10*(($H$11*'Step 2 Chemical_Parameters'!$E26*'Step 1 Toxicity_Values'!$D26/$H$8)+($H$12*$H$13*'Step 2 Chemical_Parameters'!$F26*'Step 1 Toxicity_Values'!$G26/$H$8)))),"--",($H$5*$H$6*$H$7)/($H$9*$H$10*(($H$11*'Step 2 Chemical_Parameters'!$E26*'Step 1 Toxicity_Values'!$D26/$H$8)+($H$12*$H$13*'Step 2 Chemical_Parameters'!$F26*'Step 1 Toxicity_Values'!$G26/$H$8)))) -> -- | J48: =IF(ISERROR(($K$5*$K$6*$K$7)/($K$9*$K$10*(((1/'Step 1 Toxicity_Values'!$E26)*$K$11*'Step 2 Chemical_Parameters'!$E26/$K$8)+((1/'Step 1 Toxicity_Values'!$I26)*$K$12*$K$13*'Step 2 Chemical_Parameters'!$F26/$K$8)))),"--",($K$5*$K$6*$K$7)/($K$9*$K$10*(((1/'Step 1 Toxicity_Values'!$E26)*$K$11*'Step 2 Chemical_Parameters'!$E26/$K$8)+((1/'Step 1 Toxicity_Values'!$I26)*$K$12*$K$13*'Step 2 Chemical_Parameters'!$F26/$K$8)))) -> -- | K48: -- | L48: -- | M48: -- | N48: =IF(ISERROR(($L$5*$L$6*$L$7)/($L$9*$L$10*(($L$11*'Step 2 Chemical_Parameters'!$E26*'Step 1 Toxicity_Values'!$D26/$L$8)+($L$12*$L$13*'Step 2 Chemical_Parameters'!$F26*'Step 1 Toxicity_Values'!$G26/$L$8)))),"--",($L$5*$L$6*$L$7)/($L$9*$L$10*(($L$11*'Step 2 Chemical_Parameters'!$E26*'Step 1 Toxicity_Values'!$D26/$L$8)+($L$12*$L$13*'Step 2 Chemical_Parameters'!$F26*'Step 1 Toxicity_Values'!$G26/$L$8)))) -> -- | O48: =IF(ISERROR(($M$5*$M$6*$M$7)/($M$9*$M$10*(((1/'Step 1 Toxicity_Values'!$E26)*$M$11*'Step 2 Chemical_Parameters'!$E26/$M$8)+((1/'Step 1 Toxicity_Values'!$I26)*$M$12*$M$13*'Step 2 Chemical_Parameters'!$F26/$M$8)))),"--",($M$5*$M$6*$M$7)/($M$9*$M$10*(((1/'Step 1 Toxicity_Values'!$E26)*$M$11*'Step 2 Chemical_Parameters'!$E26/$M$8)+((1/'Step 1 Toxicity_Values'!$I26)*$M$12*$M$13*'Step 2 Chemical_Parameters'!$F26/$M$8)))) -> -- | P48: -- | Q48: -- | R48: -- | S48: -- | T48: -- | V48: ='Step 2 Chemical_Parameters'!A26 -> -- | W48: ='Step 2 Chemical_Parameters'!B26 -> -- | Y48: =IF(B48="--","--",IF(VLOOKUP(B48,chemical,8,FALSE)="M",IF(ISERROR(($S$5*$S$7*$S$8)/((($S$16+$T$16)*'Step 2 Chemical_Parameters'!E26*'Step 1 Toxicity_Values'!D26)+(($S$17+$T$17)*'Step 2 Chemical_Parameters'!F26*'Step 1 Toxicity_Values'!G26))),"--",($S$5*$S$7*$S$8)/((($S$16+$T$16)*'Step 2 Chemical_Parameters'!E26*'Step 1 Toxicity_Values'!D26)+(($S$17+$T$17)*'Step 2 Chemical_Parameters'!F26*'Step 1 Toxicity_Values'!G26))),"--")) -> -- | Z48: =IF(B48="--","--",IF(VLOOKUP(B48,chemical,8,FALSE)="M",IF(ISERROR(($S$5*$S$7*$S$8)/((($S$16+$T$16+$U$16+$V$16)*'Step 2 Chemical_Parameters'!E26*'Step 1 Toxicity_Values'!D26)+(($S$17+$T$17+$U$17+$V$17)*'Step 2 Chemical_Parameters'!F26*'Step 1 Toxicity_Values'!G26))),"--",($S$5*$S$7*$S$8)/((($S$16+$T$16+$U$16+$V$16)*'Step 2 Chemical_Parameters'!E26*'Step 1 Toxicity_Values'!D26)+(($S$17+$T$17+$U$17+$V$17)*'Step 2 Chemical_Parameters'!F26*'Step 1 Toxicity_Values'!G26))),"--")) -> -- | AA48: =IF(B48="--","--",IF(VLOOKUP(B48,chemical,8,FALSE)="M",IF(ISERROR(($X$5*$X$7*$X$8)/((($X$16+$Y$16+$Z$16+$AA$16)*'Step 2 Chemical_Parameters'!E26*'Step 1 Toxicity_Values'!D26)+(($X$17+$Y$17+$Z$17+$AA$17)*'Step 2 Chemical_Parameters'!F26*'Step 1 Toxicity_Values'!G26))),"--",($X$5*$X$7*$X$8)/((($X$16+$Y$16+$Z$16+$AA$16)*'Step 2 Chemical_Parameters'!E26*'Step 1 Toxicity_Values'!D26)+(($X$17+$Y$17+$Z$17+$AA$17)*'Step 2 Chemical_Parameters'!F26*'Step 1 Toxicity_Values'!G26))),"--")) -> --
B49: -- | C49: -- | D49: =IF(ISERROR(($F$5*$F$6*$F$7)/($F$9*$F$10*(($F$11*'Step 2 Chemical_Parameters'!E27*'Step 1 Toxicity_Values'!$D27/$F$8)+($F$12*$F$13*'Step 2 Chemical_Parameters'!F27*'Step 1 Toxicity_Values'!G27/$F$8)))),"--",($F$5*$F$6*$F$7)/($F$9*$F$10*(($F$11*'Step 2 Chemical_Parameters'!E27*'Step 1 Toxicity_Values'!$D27/$F$8)+($F$12*$F$13*'Step 2 Chemical_Parameters'!F27*'Step 1 Toxicity_Values'!G27/$F$8)))) -> -- | E49: =IF(ISERROR(($G$5*$G$6*$G$7)/($G$9*$G$10*(((1/'Step 1 Toxicity_Values'!$E27)*($G$11*'Step 2 Chemical_Parameters'!$E27/$G$8))+((1/'Step 1 Toxicity_Values'!$I27)*($G$12*$G$13*'Step 2 Chemical_Parameters'!$F27/$G$8))))),"--",($G$5*$G$6*$G$7)/($G$9*$G$10*(((1/'Step 1 Toxicity_Values'!$E27)*($G$11*'Step 2 Chemical_Parameters'!$E27/$G$8))+((1/'Step 1 Toxicity_Values'!$I27)*($G$12*$G$13*'Step 2 Chemical_Parameters'!$F27/$G$8))))) -> -- | F49: -- | G49: -- | H49: -- | I49: =IF(ISERROR(($H$5*$H$6*$H$7)/($H$9*$H$10*(($H$11*'Step 2 Chemical_Parameters'!$E27*'Step 1 Toxicity_Values'!$D27/$H$8)+($H$12*$H$13*'Step 2 Chemical_Parameters'!$F27*'Step 1 Toxicity_Values'!$G27/$H$8)))),"--",($H$5*$H$6*$H$7)/($H$9*$H$10*(($H$11*'Step 2 Chemical_Parameters'!$E27*'Step 1 Toxicity_Values'!$D27/$H$8)+($H$12*$H$13*'Step 2 Chemical_Parameters'!$F27*'Step 1 Toxicity_Values'!$G27/$H$8)))) -> -- | J49: =IF(ISERROR(($K$5*$K$6*$K$7)/($K$9*$K$10*(((1/'Step 1 Toxicity_Values'!$E27)*$K$11*'Step 2 Chemical_Parameters'!$E27/$K$8)+((1/'Step 1 Toxicity_Values'!$I27)*$K$12*$K$13*'Step 2 Chemical_Parameters'!$F27/$K$8)))),"--",($K$5*$K$6*$K$7)/($K$9*$K$10*(((1/'Step 1 Toxicity_Values'!$E27)*$K$11*'Step 2 Chemical_Parameters'!$E27/$K$8)+((1/'Step 1 Toxicity_Values'!$I27)*$K$12*$K$13*'Step 2 Chemical_Parameters'!$F27/$K$8)))) -> -- | K49: -- | L49: -- | M49: -- | N49: =IF(ISERROR(($L$5*$L$6*$L$7)/($L$9*$L$10*(($L$11*'Step 2 Chemical_Parameters'!$E27*'Step 1 Toxicity_Values'!$D27/$L$8)+($L$12*$L$13*'Step 2 Chemical_Parameters'!$F27*'Step 1 Toxicity_Values'!$G27/$L$8)))),"--",($L$5*$L$6*$L$7)/($L$9*$L$10*(($L$11*'Step 2 Chemical_Parameters'!$E27*'Step 1 Toxicity_Values'!$D27/$L$8)+($L$12*$L$13*'Step 2 Chemical_Parameters'!$F27*'Step 1 Toxicity_Values'!$G27/$L$8)))) -> -- | O49: =IF(ISERROR(($M$5*$M$6*$M$7)/($M$9*$M$10*(((1/'Step 1 Toxicity_Values'!$E27)*$M$11*'Step 2 Chemical_Parameters'!$E27/$M$8)+((1/'Step 1 Toxicity_Values'!$I27)*$M$12*$M$13*'Step 2 Chemical_Parameters'!$F27/$M$8)))),"--",($M$5*$M$6*$M$7)/($M$9*$M$10*(((1/'Step 1 Toxicity_Values'!$E27)*$M$11*'Step 2 Chemical_Parameters'!$E27/$M$8)+((1/'Step 1 Toxicity_Values'!$I27)*$M$12*$M$13*'Step 2 Chemical_Parameters'!$F27/$M$8)))) -> -- | P49: -- | Q49: -- | R49: -- | S49: -- | T49: -- | V49: ='Step 2 Chemical_Parameters'!A27 -> -- | W49: ='Step 2 Chemical_Parameters'!B27 -> -- | Y49: =IF(B49="--","--",IF(VLOOKUP(B49,chemical,8,FALSE)="M",IF(ISERROR(($S$5*$S$7*$S$8)/((($S$16+$T$16)*'Step 2 Chemical_Parameters'!E27*'Step 1 Toxicity_Values'!D27)+(($S$17+$T$17)*'Step 2 Chemical_Parameters'!F27*'Step 1 Toxicity_Values'!G27))),"--",($S$5*$S$7*$S$8)/((($S$16+$T$16)*'Step 2 Chemical_Parameters'!E27*'Step 1 Toxicity_Values'!D27)+(($S$17+$T$17)*'Step 2 Chemical_Parameters'!F27*'Step 1 Toxicity_Values'!G27))),"--")) -> -- | Z49: =IF(B49="--","--",IF(VLOOKUP(B49,chemical,8,FALSE)="M",IF(ISERROR(($S$5*$S$7*$S$8)/((($S$16+$T$16+$U$16+$V$16)*'Step 2 Chemical_Parameters'!E27*'Step 1 Toxicity_Values'!D27)+(($S$17+$T$17+$U$17+$V$17)*'Step 2 Chemical_Parameters'!F27*'Step 1 Toxicity_Values'!G27))),"--",($S$5*$S$7*$S$8)/((($S$16+$T$16+$U$16+$V$16)*'Step 2 Chemical_Parameters'!E27*'Step 1 Toxicity_Values'!D27)+(($S$17+$T$17+$U$17+$V$17)*'Step 2 Chemical_Parameters'!F27*'Step 1 Toxicity_Values'!G27))),"--")) -> -- | AA49: =IF(B49="--","--",IF(VLOOKUP(B49,chemical,8,FALSE)="M",IF(ISERROR(($X$5*$X$7*$X$8)/((($X$16+$Y$16+$Z$16+$AA$16)*'Step 2 Chemical_Parameters'!E27*'Step 1 Toxicity_Values'!D27)+(($X$17+$Y$17+$Z$17+$AA$17)*'Step 2 Chemical_Parameters'!F27*'Step 1 Toxicity_Values'!G27))),"--",($X$5*$X$7*$X$8)/((($X$16+$Y$16+$Z$16+$AA$16)*'Step 2 Chemical_Parameters'!E27*'Step 1 Toxicity_Values'!D27)+(($X$17+$Y$17+$Z$17+$AA$17)*'Step 2 Chemical_Parameters'!F27*'Step 1 Toxicity_Values'!G27))),"--")) -> --
B50: -- | C50: -- | D50: =IF(ISERROR(($F$5*$F$6*$F$7)/($F$9*$F$10*(($F$11*'Step 2 Chemical_Parameters'!E28*'Step 1 Toxicity_Values'!$D28/$F$8)+($F$12*$F$13*'Step 2 Chemical_Parameters'!F28*'Step 1 Toxicity_Values'!G28/$F$8)))),"--",($F$5*$F$6*$F$7)/($F$9*$F$10*(($F$11*'Step 2 Chemical_Parameters'!E28*'Step 1 Toxicity_Values'!$D28/$F$8)+($F$12*$F$13*'Step 2 Chemical_Parameters'!F28*'Step 1 Toxicity_Values'!G28/$F$8)))) -> -- | E50: =IF(ISERROR(($G$5*$G$6*$G$7)/($G$9*$G$10*(((1/'Step 1 Toxicity_Values'!$E28)*($G$11*'Step 2 Chemical_Parameters'!$E28/$G$8))+((1/'Step 1 Toxicity_Values'!$I28)*($G$12*$G$13*'Step 2 Chemical_Parameters'!$F28/$G$8))))),"--",($G$5*$G$6*$G$7)/($G$9*$G$10*(((1/'Step 1 Toxicity_Values'!$E28)*($G$11*'Step 2 Chemical_Parameters'!$E28/$G$8))+((1/'Step 1 Toxicity_Values'!$I28)*($G$12*$G$13*'Step 2 Chemical_Parameters'!$F28/$G$8))))) -> -- | F50: -- | G50: -- | H50: -- | I50: =IF(ISERROR(($H$5*$H$6*$H$7)/($H$9*$H$10*(($H$11*'Step 2 Chemical_Parameters'!$E28*'Step 1 Toxicity_Values'!$D28/$H$8)+($H$12*$H$13*'Step 2 Chemical_Parameters'!$F28*'Step 1 Toxicity_Values'!$G28/$H$8)))),"--",($H$5*$H$6*$H$7)/($H$9*$H$10*(($H$11*'Step 2 Chemical_Parameters'!$E28*'Step 1 Toxicity_Values'!$D28/$H$8)+($H$12*$H$13*'Step 2 Chemical_Parameters'!$F28*'Step 1 Toxicity_Values'!$G28/$H$8)))) -> -- | J50: =IF(ISERROR(($K$5*$K$6*$K$7)/($K$9*$K$10*(((1/'Step 1 Toxicity_Values'!$E28)*$K$11*'Step 2 Chemical_Parameters'!$E28/$K$8)+((1/'Step 1 Toxicity_Values'!$I28)*$K$12*$K$13*'Step 2 Chemical_Parameters'!$F28/$K$8)))),"--",($K$5*$K$6*$K$7)/($K$9*$K$10*(((1/'Step 1 Toxicity_Values'!$E28)*$K$11*'Step 2 Chemical_Parameters'!$E28/$K$8)+((1/'Step 1 Toxicity_Values'!$I28)*$K$12*$K$13*'Step 2 Chemical_Parameters'!$F28/$K$8)))) -> -- | K50: -- | L50: -- | M50: -- | N50: =IF(ISERROR(($L$5*$L$6*$L$7)/($L$9*$L$10*(($L$11*'Step 2 Chemical_Parameters'!$E28*'Step 1 Toxicity_Values'!$D28/$L$8)+($L$12*$L$13*'Step 2 Chemical_Parameters'!$F28*'Step 1 Toxicity_Values'!$G28/$L$8)))),"--",($L$5*$L$6*$L$7)/($L$9*$L$10*(($L$11*'Step 2 Chemical_Parameters'!$E28*'Step 1 Toxicity_Values'!$D28/$L$8)+($L$12*$L$13*'Step 2 Chemical_Parameters'!$F28*'Step 1 Toxicity_Values'!$G28/$L$8)))) -> -- | O50: =IF(ISERROR(($M$5*$M$6*$M$7)/($M$9*$M$10*(((1/'Step 1 Toxicity_Values'!$E28)*$M$11*'Step 2 Chemical_Parameters'!$E28/$M$8)+((1/'Step 1 Toxicity_Values'!$I28)*$M$12*$M$13*'Step 2 Chemical_Parameters'!$F28/$M$8)))),"--",($M$5*$M$6*$M$7)/($M$9*$M$10*(((1/'Step 1 Toxicity_Values'!$E28)*$M$11*'Step 2 Chemical_Parameters'!$E28/$M$8)+((1/'Step 1 Toxicity_Values'!$I28)*$M$12*$M$13*'Step 2 Chemical_Parameters'!$F28/$M$8)))) -> -- | P50: -- | Q50: -- | R50: -- | S50: -- | T50: -- | V50: ='Step 2 Chemical_Parameters'!A28 -> -- | W50: ='Step 2 Chemical_Parameters'!B28 -> -- | Y50: =IF(B50="--","--",IF(VLOOKUP(B50,chemical,8,FALSE)="M",IF(ISERROR(($S$5*$S$7*$S$8)/((($S$16+$T$16)*'Step 2 Chemical_Parameters'!E28*'Step 1 Toxicity_Values'!D28)+(($S$17+$T$17)*'Step 2 Chemical_Parameters'!F28*'Step 1 Toxicity_Values'!G28))),"--",($S$5*$S$7*$S$8)/((($S$16+$T$16)*'Step 2 Chemical_Parameters'!E28*'Step 1 Toxicity_Values'!D28)+(($S$17+$T$17)*'Step 2 Chemical_Parameters'!F28*'Step 1 Toxicity_Values'!G28))),"--")) -> -- | Z50: =IF(B50="--","--",IF(VLOOKUP(B50,chemical,8,FALSE)="M",IF(ISERROR(($S$5*$S$7*$S$8)/((($S$16+$T$16+$U$16+$V$16)*'Step 2 Chemical_Parameters'!E28*'Step 1 Toxicity_Values'!D28)+(($S$17+$T$17+$U$17+$V$17)*'Step 2 Chemical_Parameters'!F28*'Step 1 Toxicity_Values'!G28))),"--",($S$5*$S$7*$S$8)/((($S$16+$T$16+$U$16+$V$16)*'Step 2 Chemical_Parameters'!E28*'Step 1 Toxicity_Values'!D28)+(($S$17+$T$17+$U$17+$V$17)*'Step 2 Chemical_Parameters'!F28*'Step 1 Toxicity_Values'!G28))),"--")) -> -- | AA50: =IF(B50="--","--",IF(VLOOKUP(B50,chemical,8,FALSE)="M",IF(ISERROR(($X$5*$X$7*$X$8)/((($X$16+$Y$16+$Z$16+$AA$16)*'Step 2 Chemical_Parameters'!E28*'Step 1 Toxicity_Values'!D28)+(($X$17+$Y$17+$Z$17+$AA$17)*'Step 2 Chemical_Parameters'!F28*'Step 1 Toxicity_Values'!G28))),"--",($X$5*$X$7*$X$8)/((($X$16+$Y$16+$Z$16+$AA$16)*'Step 2 Chemical_Parameters'!E28*'Step 1 Toxicity_Values'!D28)+(($X$17+$Y$17+$Z$17+$AA$17)*'Step 2 Chemical_Parameters'!F28*'Step 1 Toxicity_Values'!G28))),"--")) -> --
B51: -- | C51: -- | D51: =IF(ISERROR(($F$5*$F$6*$F$7)/($F$9*$F$10*(($F$11*'Step 2 Chemical_Parameters'!E29*'Step 1 Toxicity_Values'!$D29/$F$8)+($F$12*$F$13*'Step 2 Chemical_Parameters'!F29*'Step 1 Toxicity_Values'!G29/$F$8)))),"--",($F$5*$F$6*$F$7)/($F$9*$F$10*(($F$11*'Step 2 Chemical_Parameters'!E29*'Step 1 Toxicity_Values'!$D29/$F$8)+($F$12*$F$13*'Step 2 Chemical_Parameters'!F29*'Step 1 Toxicity_Values'!G29/$F$8)))) -> -- | E51: =IF(ISERROR(($G$5*$G$6*$G$7)/($G$9*$G$10*(((1/'Step 1 Toxicity_Values'!$E29)*($G$11*'Step 2 Chemical_Parameters'!$E29/$G$8))+((1/'Step 1 Toxicity_Values'!$I29)*($G$12*$G$13*'Step 2 Chemical_Parameters'!$F29/$G$8))))),"--",($G$5*$G$6*$G$7)/($G$9*$G$10*(((1/'Step 1 Toxicity_Values'!$E29)*($G$11*'Step 2 Chemical_Parameters'!$E29/$G$8))+((1/'Step 1 Toxicity_Values'!$I29)*($G$12*$G$13*'Step 2 Chemical_Parameters'!$F29/$G$8))))) -> -- | F51: -- | G51: -- | H51: -- | I51: =IF(ISERROR(($H$5*$H$6*$H$7)/($H$9*$H$10*(($H$11*'Step 2 Chemical_Parameters'!$E29*'Step 1 Toxicity_Values'!$D29/$H$8)+($H$12*$H$13*'Step 2 Chemical_Parameters'!$F29*'Step 1 Toxicity_Values'!$G29/$H$8)))),"--",($H$5*$H$6*$H$7)/($H$9*$H$10*(($H$11*'Step 2 Chemical_Parameters'!$E29*'Step 1 Toxicity_Values'!$D29/$H$8)+($H$12*$H$13*'Step 2 Chemical_Parameters'!$F29*'Step 1 Toxicity_Values'!$G29/$H$8)))) -> -- | J51: =IF(ISERROR(($K$5*$K$6*$K$7)/($K$9*$K$10*(((1/'Step 1 Toxicity_Values'!$E29)*$K$11*'Step 2 Chemical_Parameters'!$E29/$K$8)+((1/'Step 1 Toxicity_Values'!$I29)*$K$12*$K$13*'Step 2 Chemical_Parameters'!$F29/$K$8)))),"--",($K$5*$K$6*$K$7)/($K$9*$K$10*(((1/'Step 1 Toxicity_Values'!$E29)*$K$11*'Step 2 Chemical_Parameters'!$E29/$K$8)+((1/'Step 1 Toxicity_Values'!$I29)*$K$12*$K$13*'Step 2 Chemical_Parameters'!$F29/$K$8)))) -> -- | K51: -- | L51: -- | M51: -- | N51: =IF(ISERROR(($L$5*$L$6*$L$7)/($L$9*$L$10*(($L$11*'Step 2 Chemical_Parameters'!$E29*'Step 1 Toxicity_Values'!$D29/$L$8)+($L$12*$L$13*'Step 2 Chemical_Parameters'!$F29*'Step 1 Toxicity_Values'!$G29/$L$8)))),"--",($L$5*$L$6*$L$7)/($L$9*$L$10*(($L$11*'Step 2 Chemical_Parameters'!$E29*'Step 1 Toxicity_Values'!$D29/$L$8)+($L$12*$L$13*'Step 2 Chemical_Parameters'!$F29*'Step 1 Toxicity_Values'!$G29/$L$8)))) -> -- | O51: =IF(ISERROR(($M$5*$M$6*$M$7)/($M$9*$M$10*(((1/'Step 1 Toxicity_Values'!$E29)*$M$11*'Step 2 Chemical_Parameters'!$E29/$M$8)+((1/'Step 1 Toxicity_Values'!$I29)*$M$12*$M$13*'Step 2 Chemical_Parameters'!$F29/$M$8)))),"--",($M$5*$M$6*$M$7)/($M$9*$M$10*(((1/'Step 1 Toxicity_Values'!$E29)*$M$11*'Step 2 Chemical_Parameters'!$E29/$M$8)+((1/'Step 1 Toxicity_Values'!$I29)*$M$12*$M$13*'Step 2 Chemical_Parameters'!$F29/$M$8)))) -> -- | P51: -- | Q51: -- | R51: -- | S51: -- | T51: -- | V51: ='Step 2 Chemical_Parameters'!A29 -> -- | W51: ='Step 2 Chemical_Parameters'!B29 -> -- | Y51: =IF(B51="--","--",IF(VLOOKUP(B51,chemical,8,FALSE)="M",IF(ISERROR(($S$5*$S$7*$S$8)/((($S$16+$T$16)*'Step 2 Chemical_Parameters'!E29*'Step 1 Toxicity_Values'!D29)+(($S$17+$T$17)*'Step 2 Chemical_Parameters'!F29*'Step 1 Toxicity_Values'!G29))),"--",($S$5*$S$7*$S$8)/((($S$16+$T$16)*'Step 2 Chemical_Parameters'!E29*'Step 1 Toxicity_Values'!D29)+(($S$17+$T$17)*'Step 2 Chemical_Parameters'!F29*'Step 1 Toxicity_Values'!G29))),"--")) -> -- | Z51: =IF(B51="--","--",IF(VLOOKUP(B51,chemical,8,FALSE)="M",IF(ISERROR(($S$5*$S$7*$S$8)/((($S$16+$T$16+$U$16+$V$16)*'Step 2 Chemical_Parameters'!E29*'Step 1 Toxicity_Values'!D29)+(($S$17+$T$17+$U$17+$V$17)*'Step 2 Chemical_Parameters'!F29*'Step 1 Toxicity_Values'!G29))),"--",($S$5*$S$7*$S$8)/((($S$16+$T$16+$U$16+$V$16)*'Step 2 Chemical_Parameters'!E29*'Step 1 Toxicity_Values'!D29)+(($S$17+$T$17+$U$17+$V$17)*'Step 2 Chemical_Parameters'!F29*'Step 1 Toxicity_Values'!G29))),"--")) -> -- | AA51: =IF(B51="--","--",IF(VLOOKUP(B51,chemical,8,FALSE)="M",IF(ISERROR(($X$5*$X$7*$X$8)/((($X$16+$Y$16+$Z$16+$AA$16)*'Step 2 Chemical_Parameters'!E29*'Step 1 Toxicity_Values'!D29)+(($X$17+$Y$17+$Z$17+$AA$17)*'Step 2 Chemical_Parameters'!F29*'Step 1 Toxicity_Values'!G29))),"--",($X$5*$X$7*$X$8)/((($X$16+$Y$16+$Z$16+$AA$16)*'Step 2 Chemical_Parameters'!E29*'Step 1 Toxicity_Values'!D29)+(($X$17+$Y$17+$Z$17+$AA$17)*'Step 2 Chemical_Parameters'!F29*'Step 1 Toxicity_Values'!G29))),"--")) -> --
B52: -- | C52: -- | D52: =IF(ISERROR(($F$5*$F$6*$F$7)/($F$9*$F$10*(($F$11*'Step 2 Chemical_Parameters'!E30*'Step 1 Toxicity_Values'!$D30/$F$8)+($F$12*$F$13*'Step 2 Chemical_Parameters'!F30*'Step 1 Toxicity_Values'!G30/$F$8)))),"--",($F$5*$F$6*$F$7)/($F$9*$F$10*(($F$11*'Step 2 Chemical_Parameters'!E30*'Step 1 Toxicity_Values'!$D30/$F$8)+($F$12*$F$13*'Step 2 Chemical_Parameters'!F30*'Step 1 Toxicity_Values'!G30/$F$8)))) -> -- | E52: =IF(ISERROR(($G$5*$G$6*$G$7)/($G$9*$G$10*(((1/'Step 1 Toxicity_Values'!$E30)*($G$11*'Step 2 Chemical_Parameters'!$E30/$G$8))+((1/'Step 1 Toxicity_Values'!$I30)*($G$12*$G$13*'Step 2 Chemical_Parameters'!$F30/$G$8))))),"--",($G$5*$G$6*$G$7)/($G$9*$G$10*(((1/'Step 1 Toxicity_Values'!$E30)*($G$11*'Step 2 Chemical_Parameters'!$E30/$G$8))+((1/'Step 1 Toxicity_Values'!$I30)*($G$12*$G$13*'Step 2 Chemical_Parameters'!$F30/$G$8))))) -> -- | F52: -- | G52: -- | H52: -- | I52: =IF(ISERROR(($H$5*$H$6*$H$7)/($H$9*$H$10*(($H$11*'Step 2 Chemical_Parameters'!$E30*'Step 1 Toxicity_Values'!$D30/$H$8)+($H$12*$H$13*'Step 2 Chemical_Parameters'!$F30*'Step 1 Toxicity_Values'!$G30/$H$8)))),"--",($H$5*$H$6*$H$7)/($H$9*$H$10*(($H$11*'Step 2 Chemical_Parameters'!$E30*'Step 1 Toxicity_Values'!$D30/$H$8)+($H$12*$H$13*'Step 2 Chemical_Parameters'!$F30*'Step 1 Toxicity_Values'!$G30/$H$8)))) -> -- | J52: =IF(ISERROR(($K$5*$K$6*$K$7)/($K$9*$K$10*(((1/'Step 1 Toxicity_Values'!$E30)*$K$11*'Step 2 Chemical_Parameters'!$E30/$K$8)+((1/'Step 1 Toxicity_Values'!$I30)*$K$12*$K$13*'Step 2 Chemical_Parameters'!$F30/$K$8)))),"--",($K$5*$K$6*$K$7)/($K$9*$K$10*(((1/'Step 1 Toxicity_Values'!$E30)*$K$11*'Step 2 Chemical_Parameters'!$E30/$K$8)+((1/'Step 1 Toxicity_Values'!$I30)*$K$12*$K$13*'Step 2 Chemical_Parameters'!$F30/$K$8)))) -> -- | K52: -- | L52: -- | M52: -- | N52: =IF(ISERROR(($L$5*$L$6*$L$7)/($L$9*$L$10*(($L$11*'Step 2 Chemical_Parameters'!$E30*'Step 1 Toxicity_Values'!$D30/$L$8)+($L$12*$L$13*'Step 2 Chemical_Parameters'!$F30*'Step 1 Toxicity_Values'!$G30/$L$8)))),"--",($L$5*$L$6*$L$7)/($L$9*$L$10*(($L$11*'Step 2 Chemical_Parameters'!$E30*'Step 1 Toxicity_Values'!$D30/$L$8)+($L$12*$L$13*'Step 2 Chemical_Parameters'!$F30*'Step 1 Toxicity_Values'!$G30/$L$8)))) -> -- | O52: =IF(ISERROR(($M$5*$M$6*$M$7)/($M$9*$M$10*(((1/'Step 1 Toxicity_Values'!$E30)*$M$11*'Step 2 Chemical_Parameters'!$E30/$M$8)+((1/'Step 1 Toxicity_Values'!$I30)*$M$12*$M$13*'Step 2 Chemical_Parameters'!$F30/$M$8)))),"--",($M$5*$M$6*$M$7)/($M$9*$M$10*(((1/'Step 1 Toxicity_Values'!$E30)*$M$11*'Step 2 Chemical_Parameters'!$E30/$M$8)+((1/'Step 1 Toxicity_Values'!$I30)*$M$12*$M$13*'Step 2 Chemical_Parameters'!$F30/$M$8)))) -> -- | P52: -- | Q52: -- | R52: -- | S52: -- | T52: -- | V52: ='Step 2 Chemical_Parameters'!A30 -> -- | W52: ='Step 2 Chemical_Parameters'!B30 -> -- | Y52: =IF(B52="--","--",IF(VLOOKUP(B52,chemical,8,FALSE)="M",IF(ISERROR(($S$5*$S$7*$S$8)/((($S$16+$T$16)*'Step 2 Chemical_Parameters'!E30*'Step 1 Toxicity_Values'!D30)+(($S$17+$T$17)*'Step 2 Chemical_Parameters'!F30*'Step 1 Toxicity_Values'!G30))),"--",($S$5*$S$7*$S$8)/((($S$16+$T$16)*'Step 2 Chemical_Parameters'!E30*'Step 1 Toxicity_Values'!D30)+(($S$17+$T$17)*'Step 2 Chemical_Parameters'!F30*'Step 1 Toxicity_Values'!G30))),"--")) -> -- | Z52: =IF(B52="--","--",IF(VLOOKUP(B52,chemical,8,FALSE)="M",IF(ISERROR(($S$5*$S$7*$S$8)/((($S$16+$T$16+$U$16+$V$16)*'Step 2 Chemical_Parameters'!E30*'Step 1 Toxicity_Values'!D30)+(($S$17+$T$17+$U$17+$V$17)*'Step 2 Chemical_Parameters'!F30*'Step 1 Toxicity_Values'!G30))),"--",($S$5*$S$7*$S$8)/((($S$16+$T$16+$U$16+$V$16)*'Step 2 Chemical_Parameters'!E30*'Step 1 Toxicity_Values'!D30)+(($S$17+$T$17+$U$17+$V$17)*'Step 2 Chemical_Parameters'!F30*'Step 1 Toxicity_Values'!G30))),"--")) -> -- | AA52: =IF(B52="--","--",IF(VLOOKUP(B52,chemical,8,FALSE)="M",IF(ISERROR(($X$5*$X$7*$X$8)/((($X$16+$Y$16+$Z$16+$AA$16)*'Step 2 Chemical_Parameters'!E30*'Step 1 Toxicity_Values'!D30)+(($X$17+$Y$17+$Z$17+$AA$17)*'Step 2 Chemical_Parameters'!F30*'Step 1 Toxicity_Values'!G30))),"--",($X$5*$X$7*$X$8)/((($X$16+$Y$16+$Z$16+$AA$16)*'Step 2 Chemical_Parameters'!E30*'Step 1 Toxicity_Values'!D30)+(($X$17+$Y$17+$Z$17+$AA$17)*'Step 2 Chemical_Parameters'!F30*'Step 1 Toxicity_Values'!G30))),"--")) -> --
B53: -- | C53: -- | D53: =IF(ISERROR(($F$5*$F$6*$F$7)/($F$9*$F$10*(($F$11*'Step 2 Chemical_Parameters'!E31*'Step 1 Toxicity_Values'!$D31/$F$8)+($F$12*$F$13*'Step 2 Chemical_Parameters'!F31*'Step 1 Toxicity_Values'!G31/$F$8)))),"--",($F$5*$F$6*$F$7)/($F$9*$F$10*(($F$11*'Step 2 Chemical_Parameters'!E31*'Step 1 Toxicity_Values'!$D31/$F$8)+($F$12*$F$13*'Step 2 Chemical_Parameters'!F31*'Step 1 Toxicity_Values'!G31/$F$8)))) -> -- | E53: =IF(ISERROR(($G$5*$G$6*$G$7)/($G$9*$G$10*(((1/'Step 1 Toxicity_Values'!$E31)*($G$11*'Step 2 Chemical_Parameters'!$E31/$G$8))+((1/'Step 1 Toxicity_Values'!$I31)*($G$12*$G$13*'Step 2 Chemical_Parameters'!$F31/$G$8))))),"--",($G$5*$G$6*$G$7)/($G$9*$G$10*(((1/'Step 1 Toxicity_Values'!$E31)*($G$11*'Step 2 Chemical_Parameters'!$E31/$G$8))+((1/'Step 1 Toxicity_Values'!$I31)*($G$12*$G$13*'Step 2 Chemical_Parameters'!$F31/$G$8))))) -> -- | F53: -- | G53: -- | H53: -- | I53: =IF(ISERROR(($H$5*$H$6*$H$7)/($H$9*$H$10*(($H$11*'Step 2 Chemical_Parameters'!$E31*'Step 1 Toxicity_Values'!$D31/$H$8)+($H$12*$H$13*'Step 2 Chemical_Parameters'!$F31*'Step 1 Toxicity_Values'!$G31/$H$8)))),"--",($H$5*$H$6*$H$7)/($H$9*$H$10*(($H$11*'Step 2 Chemical_Parameters'!$E31*'Step 1 Toxicity_Values'!$D31/$H$8)+($H$12*$H$13*'Step 2 Chemical_Parameters'!$F31*'Step 1 Toxicity_Values'!$G31/$H$8)))) -> -- | J53: =IF(ISERROR(($K$5*$K$6*$K$7)/($K$9*$K$10*(((1/'Step 1 Toxicity_Values'!$E31)*$K$11*'Step 2 Chemical_Parameters'!$E31/$K$8)+((1/'Step 1 Toxicity_Values'!$I31)*$K$12*$K$13*'Step 2 Chemical_Parameters'!$F31/$K$8)))),"--",($K$5*$K$6*$K$7)/($K$9*$K$10*(((1/'Step 1 Toxicity_Values'!$E31)*$K$11*'Step 2 Chemical_Parameters'!$E31/$K$8)+((1/'Step 1 Toxicity_Values'!$I31)*$K$12*$K$13*'Step 2 Chemical_Parameters'!$F31/$K$8)))) -> -- | K53: -- | L53: -- | M53: -- | N53: =IF(ISERROR(($L$5*$L$6*$L$7)/($L$9*$L$10*(($L$11*'Step 2 Chemical_Parameters'!$E31*'Step 1 Toxicity_Values'!$D31/$L$8)+($L$12*$L$13*'Step 2 Chemical_Parameters'!$F31*'Step 1 Toxicity_Values'!$G31/$L$8)))),"--",($L$5*$L$6*$L$7)/($L$9*$L$10*(($L$11*'Step 2 Chemical_Parameters'!$E31*'Step 1 Toxicity_Values'!$D31/$L$8)+($L$12*$L$13*'Step 2 Chemical_Parameters'!$F31*'Step 1 Toxicity_Values'!$G31/$L$8)))) -> -- | O53: =IF(ISERROR(($M$5*$M$6*$M$7)/($M$9*$M$10*(((1/'Step 1 Toxicity_Values'!$E31)*$M$11*'Step 2 Chemical_Parameters'!$E31/$M$8)+((1/'Step 1 Toxicity_Values'!$I31)*$M$12*$M$13*'Step 2 Chemical_Parameters'!$F31/$M$8)))),"--",($M$5*$M$6*$M$7)/($M$9*$M$10*(((1/'Step 1 Toxicity_Values'!$E31)*$M$11*'Step 2 Chemical_Parameters'!$E31/$M$8)+((1/'Step 1 Toxicity_Values'!$I31)*$M$12*$M$13*'Step 2 Chemical_Parameters'!$F31/$M$8)))) -> -- | P53: -- | Q53: -- | R53: -- | S53: -- | T53: -- | V53: ='Step 2 Chemical_Parameters'!A31 -> -- | W53: ='Step 2 Chemical_Parameters'!B31 -> -- | Y53: =IF(B53="--","--",IF(VLOOKUP(B53,chemical,8,FALSE)="M",IF(ISERROR(($S$5*$S$7*$S$8)/((($S$16+$T$16)*'Step 2 Chemical_Parameters'!E31*'Step 1 Toxicity_Values'!D31)+(($S$17+$T$17)*'Step 2 Chemical_Parameters'!F31*'Step 1 Toxicity_Values'!G31))),"--",($S$5*$S$7*$S$8)/((($S$16+$T$16)*'Step 2 Chemical_Parameters'!E31*'Step 1 Toxicity_Values'!D31)+(($S$17+$T$17)*'Step 2 Chemical_Parameters'!F31*'Step 1 Toxicity_Values'!G31))),"--")) -> -- | Z53: =IF(B53="--","--",IF(VLOOKUP(B53,chemical,8,FALSE)="M",IF(ISERROR(($S$5*$S$7*$S$8)/((($S$16+$T$16+$U$16+$V$16)*'Step 2 Chemical_Parameters'!E31*'Step 1 Toxicity_Values'!D31)+(($S$17+$T$17+$U$17+$V$17)*'Step 2 Chemical_Parameters'!F31*'Step 1 Toxicity_Values'!G31))),"--",($S$5*$S$7*$S$8)/((($S$16+$T$16+$U$16+$V$16)*'Step 2 Chemical_Parameters'!E31*'Step 1 Toxicity_Values'!D31)+(($S$17+$T$17+$U$17+$V$17)*'Step 2 Chemical_Parameters'!F31*'Step 1 Toxicity_Values'!G31))),"--")) -> -- | AA53: =IF(B53="--","--",IF(VLOOKUP(B53,chemical,8,FALSE)="M",IF(ISERROR(($X$5*$X$7*$X$8)/((($X$16+$Y$16+$Z$16+$AA$16)*'Step 2 Chemical_Parameters'!E31*'Step 1 Toxicity_Values'!D31)+(($X$17+$Y$17+$Z$17+$AA$17)*'Step 2 Chemical_Parameters'!F31*'Step 1 Toxicity_Values'!G31))),"--",($X$5*$X$7*$X$8)/((($X$16+$Y$16+$Z$16+$AA$16)*'Step 2 Chemical_Parameters'!E31*'Step 1 Toxicity_Values'!D31)+(($X$17+$Y$17+$Z$17+$AA$17)*'Step 2 Chemical_Parameters'!F31*'Step 1 Toxicity_Values'!G31))),"--")) -> --
B54: -- | C54: -- | D54: =IF(ISERROR(($F$5*$F$6*$F$7)/($F$9*$F$10*(($F$11*'Step 2 Chemical_Parameters'!E32*'Step 1 Toxicity_Values'!$D32/$F$8)+($F$12*$F$13*'Step 2 Chemical_Parameters'!F32*'Step 1 Toxicity_Values'!G32/$F$8)))),"--",($F$5*$F$6*$F$7)/($F$9*$F$10*(($F$11*'Step 2 Chemical_Parameters'!E32*'Step 1 Toxicity_Values'!$D32/$F$8)+($F$12*$F$13*'Step 2 Chemical_Parameters'!F32*'Step 1 Toxicity_Values'!G32/$F$8)))) -> -- | E54: =IF(ISERROR(($G$5*$G$6*$G$7)/($G$9*$G$10*(((1/'Step 1 Toxicity_Values'!$E32)*($G$11*'Step 2 Chemical_Parameters'!$E32/$G$8))+((1/'Step 1 Toxicity_Values'!$I32)*($G$12*$G$13*'Step 2 Chemical_Parameters'!$F32/$G$8))))),"--",($G$5*$G$6*$G$7)/($G$9*$G$10*(((1/'Step 1 Toxicity_Values'!$E32)*($G$11*'Step 2 Chemical_Parameters'!$E32/$G$8))+((1/'Step 1 Toxicity_Values'!$I32)*($G$12*$G$13*'Step 2 Chemical_Parameters'!$F32/$G$8))))) -> -- | F54: -- | G54: -- | H54: -- | I54: =IF(ISERROR(($H$5*$H$6*$H$7)/($H$9*$H$10*(($H$11*'Step 2 Chemical_Parameters'!$E32*'Step 1 Toxicity_Values'!$D32/$H$8)+($H$12*$H$13*'Step 2 Chemical_Parameters'!$F32*'Step 1 Toxicity_Values'!$G32/$H$8)))),"--",($H$5*$H$6*$H$7)/($H$9*$H$10*(($H$11*'Step 2 Chemical_Parameters'!$E32*'Step 1 Toxicity_Values'!$D32/$H$8)+($H$12*$H$13*'Step 2 Chemical_Parameters'!$F32*'Step 1 Toxicity_Values'!$G32/$H$8)))) -> -- | J54: =IF(ISERROR(($K$5*$K$6*$K$7)/($K$9*$K$10*(((1/'Step 1 Toxicity_Values'!$E32)*$K$11*'Step 2 Chemical_Parameters'!$E32/$K$8)+((1/'Step 1 Toxicity_Values'!$I32)*$K$12*$K$13*'Step 2 Chemical_Parameters'!$F32/$K$8)))),"--",($K$5*$K$6*$K$7)/($K$9*$K$10*(((1/'Step 1 Toxicity_Values'!$E32)*$K$11*'Step 2 Chemical_Parameters'!$E32/$K$8)+((1/'Step 1 Toxicity_Values'!$I32)*$K$12*$K$13*'Step 2 Chemical_Parameters'!$F32/$K$8)))) -> -- | K54: -- | L54: -- | M54: -- | N54: =IF(ISERROR(($L$5*$L$6*$L$7)/($L$9*$L$10*(($L$11*'Step 2 Chemical_Parameters'!$E32*'Step 1 Toxicity_Values'!$D32/$L$8)+($L$12*$L$13*'Step 2 Chemical_Parameters'!$F32*'Step 1 Toxicity_Values'!$G32/$L$8)))),"--",($L$5*$L$6*$L$7)/($L$9*$L$10*(($L$11*'Step 2 Chemical_Parameters'!$E32*'Step 1 Toxicity_Values'!$D32/$L$8)+($L$12*$L$13*'Step 2 Chemical_Parameters'!$F32*'Step 1 Toxicity_Values'!$G32/$L$8)))) -> -- | O54: =IF(ISERROR(($M$5*$M$6*$M$7)/($M$9*$M$10*(((1/'Step 1 Toxicity_Values'!$E32)*$M$11*'Step 2 Chemical_Parameters'!$E32/$M$8)+((1/'Step 1 Toxicity_Values'!$I32)*$M$12*$M$13*'Step 2 Chemical_Parameters'!$F32/$M$8)))),"--",($M$5*$M$6*$M$7)/($M$9*$M$10*(((1/'Step 1 Toxicity_Values'!$E32)*$M$11*'Step 2 Chemical_Parameters'!$E32/$M$8)+((1/'Step 1 Toxicity_Values'!$I32)*$M$12*$M$13*'Step 2 Chemical_Parameters'!$F32/$M$8)))) -> -- | P54: -- | Q54: -- | R54: -- | S54: -- | T54: -- | V54: ='Step 2 Chemical_Parameters'!A32 -> -- | W54: ='Step 2 Chemical_Parameters'!B32 -> -- | Y54: =IF(B54="--","--",IF(VLOOKUP(B54,chemical,8,FALSE)="M",IF(ISERROR(($S$5*$S$7*$S$8)/((($S$16+$T$16)*'Step 2 Chemical_Parameters'!E32*'Step 1 Toxicity_Values'!D32)+(($S$17+$T$17)*'Step 2 Chemical_Parameters'!F32*'Step 1 Toxicity_Values'!G32))),"--",($S$5*$S$7*$S$8)/((($S$16+$T$16)*'Step 2 Chemical_Parameters'!E32*'Step 1 Toxicity_Values'!D32)+(($S$17+$T$17)*'Step 2 Chemical_Parameters'!F32*'Step 1 Toxicity_Values'!G32))),"--")) -> -- | Z54: =IF(B54="--","--",IF(VLOOKUP(B54,chemical,8,FALSE)="M",IF(ISERROR(($S$5*$S$7*$S$8)/((($S$16+$T$16+$U$16+$V$16)*'Step 2 Chemical_Parameters'!E32*'Step 1 Toxicity_Values'!D32)+(($S$17+$T$17+$U$17+$V$17)*'Step 2 Chemical_Parameters'!F32*'Step 1 Toxicity_Values'!G32))),"--",($S$5*$S$7*$S$8)/((($S$16+$T$16+$U$16+$V$16)*'Step 2 Chemical_Parameters'!E32*'Step 1 Toxicity_Values'!D32)+(($S$17+$T$17+$U$17+$V$17)*'Step 2 Chemical_Parameters'!F32*'Step 1 Toxicity_Values'!G32))),"--")) -> -- | AA54: =IF(B54="--","--",IF(VLOOKUP(B54,chemical,8,FALSE)="M",IF(ISERROR(($X$5*$X$7*$X$8)/((($X$16+$Y$16+$Z$16+$AA$16)*'Step 2 Chemical_Parameters'!E32*'Step 1 Toxicity_Values'!D32)+(($X$17+$Y$17+$Z$17+$AA$17)*'Step 2 Chemical_Parameters'!F32*'Step 1 Toxicity_Values'!G32))),"--",($X$5*$X$7*$X$8)/((($X$16+$Y$16+$Z$16+$AA$16)*'Step 2 Chemical_Parameters'!E32*'Step 1 Toxicity_Values'!D32)+(($X$17+$Y$17+$Z$17+$AA$17)*'Step 2 Chemical_Parameters'!F32*'Step 1 Toxicity_Values'!G32))),"--")) -> --
B55: -- | C55: -- | D55: =IF(ISERROR(($F$5*$F$6*$F$7)/($F$9*$F$10*(($F$11*'Step 2 Chemical_Parameters'!E33*'Step 1 Toxicity_Values'!$D33/$F$8)+($F$12*$F$13*'Step 2 Chemical_Parameters'!F33*'Step 1 Toxicity_Values'!G33/$F$8)))),"--",($F$5*$F$6*$F$7)/($F$9*$F$10*(($F$11*'Step 2 Chemical_Parameters'!E33*'Step 1 Toxicity_Values'!$D33/$F$8)+($F$12*$F$13*'Step 2 Chemical_Parameters'!F33*'Step 1 Toxicity_Values'!G33/$F$8)))) -> -- | E55: =IF(ISERROR(($G$5*$G$6*$G$7)/($G$9*$G$10*(((1/'Step 1 Toxicity_Values'!$E33)*($G$11*'Step 2 Chemical_Parameters'!$E33/$G$8))+((1/'Step 1 Toxicity_Values'!$I33)*($G$12*$G$13*'Step 2 Chemical_Parameters'!$F33/$G$8))))),"--",($G$5*$G$6*$G$7)/($G$9*$G$10*(((1/'Step 1 Toxicity_Values'!$E33)*($G$11*'Step 2 Chemical_Parameters'!$E33/$G$8))+((1/'Step 1 Toxicity_Values'!$I33)*($G$12*$G$13*'Step 2 Chemical_Parameters'!$F33/$G$8))))) -> -- | F55: -- | G55: -- | H55: -- | I55: =IF(ISERROR(($H$5*$H$6*$H$7)/($H$9*$H$10*(($H$11*'Step 2 Chemical_Parameters'!$E33*'Step 1 Toxicity_Values'!$D33/$H$8)+($H$12*$H$13*'Step 2 Chemical_Parameters'!$F33*'Step 1 Toxicity_Values'!$G33/$H$8)))),"--",($H$5*$H$6*$H$7)/($H$9*$H$10*(($H$11*'Step 2 Chemical_Parameters'!$E33*'Step 1 Toxicity_Values'!$D33/$H$8)+($H$12*$H$13*'Step 2 Chemical_Parameters'!$F33*'Step 1 Toxicity_Values'!$G33/$H$8)))) -> -- | J55: =IF(ISERROR(($K$5*$K$6*$K$7)/($K$9*$K$10*(((1/'Step 1 Toxicity_Values'!$E33)*$K$11*'Step 2 Chemical_Parameters'!$E33/$K$8)+((1/'Step 1 Toxicity_Values'!$I33)*$K$12*$K$13*'Step 2 Chemical_Parameters'!$F33/$K$8)))),"--",($K$5*$K$6*$K$7)/($K$9*$K$10*(((1/'Step 1 Toxicity_Values'!$E33)*$K$11*'Step 2 Chemical_Parameters'!$E33/$K$8)+((1/'Step 1 Toxicity_Values'!$I33)*$K$12*$K$13*'Step 2 Chemical_Parameters'!$F33/$K$8)))) -> -- | K55: -- | L55: -- | M55: -- | N55: =IF(ISERROR(($L$5*$L$6*$L$7)/($L$9*$L$10*(($L$11*'Step 2 Chemical_Parameters'!$E33*'Step 1 Toxicity_Values'!$D33/$L$8)+($L$12*$L$13*'Step 2 Chemical_Parameters'!$F33*'Step 1 Toxicity_Values'!$G33/$L$8)))),"--",($L$5*$L$6*$L$7)/($L$9*$L$10*(($L$11*'Step 2 Chemical_Parameters'!$E33*'Step 1 Toxicity_Values'!$D33/$L$8)+($L$12*$L$13*'Step 2 Chemical_Parameters'!$F33*'Step 1 Toxicity_Values'!$G33/$L$8)))) -> -- | O55: =IF(ISERROR(($M$5*$M$6*$M$7)/($M$9*$M$10*(((1/'Step 1 Toxicity_Values'!$E33)*$M$11*'Step 2 Chemical_Parameters'!$E33/$M$8)+((1/'Step 1 Toxicity_Values'!$I33)*$M$12*$M$13*'Step 2 Chemical_Parameters'!$F33/$M$8)))),"--",($M$5*$M$6*$M$7)/($M$9*$M$10*(((1/'Step 1 Toxicity_Values'!$E33)*$M$11*'Step 2 Chemical_Parameters'!$E33/$M$8)+((1/'Step 1 Toxicity_Values'!$I33)*$M$12*$M$13*'Step 2 Chemical_Parameters'!$F33/$M$8)))) -> -- | P55: -- | Q55: -- | R55: -- | S55: -- | T55: -- | V55: ='Step 2 Chemical_Parameters'!A33 -> -- | W55: ='Step 2 Chemical_Parameters'!B33 -> -- | Y55: =IF(B55="--","--",IF(VLOOKUP(B55,chemical,8,FALSE)="M",IF(ISERROR(($S$5*$S$7*$S$8)/((($S$16+$T$16)*'Step 2 Chemical_Parameters'!E33*'Step 1 Toxicity_Values'!D33)+(($S$17+$T$17)*'Step 2 Chemical_Parameters'!F33*'Step 1 Toxicity_Values'!G33))),"--",($S$5*$S$7*$S$8)/((($S$16+$T$16)*'Step 2 Chemical_Parameters'!E33*'Step 1 Toxicity_Values'!D33)+(($S$17+$T$17)*'Step 2 Chemical_Parameters'!F33*'Step 1 Toxicity_Values'!G33))),"--")) -> -- | Z55: =IF(B55="--","--",IF(VLOOKUP(B55,chemical,8,FALSE)="M",IF(ISERROR(($S$5*$S$7*$S$8)/((($S$16+$T$16+$U$16+$V$16)*'Step 2 Chemical_Parameters'!E33*'Step 1 Toxicity_Values'!D33)+(($S$17+$T$17+$U$17+$V$17)*'Step 2 Chemical_Parameters'!F33*'Step 1 Toxicity_Values'!G33))),"--",($S$5*$S$7*$S$8)/((($S$16+$T$16+$U$16+$V$16)*'Step 2 Chemical_Parameters'!E33*'Step 1 Toxicity_Values'!D33)+(($S$17+$T$17+$U$17+$V$17)*'Step 2 Chemical_Parameters'!F33*'Step 1 Toxicity_Values'!G33))),"--")) -> -- | AA55: =IF(B55="--","--",IF(VLOOKUP(B55,chemical,8,FALSE)="M",IF(ISERROR(($X$5*$X$7*$X$8)/((($X$16+$Y$16+$Z$16+$AA$16)*'Step 2 Chemical_Parameters'!E33*'Step 1 Toxicity_Values'!D33)+(($X$17+$Y$17+$Z$17+$AA$17)*'Step 2 Chemical_Parameters'!F33*'Step 1 Toxicity_Values'!G33))),"--",($X$5*$X$7*$X$8)/((($X$16+$Y$16+$Z$16+$AA$16)*'Step 2 Chemical_Parameters'!E33*'Step 1 Toxicity_Values'!D33)+(($X$17+$Y$17+$Z$17+$AA$17)*'Step 2 Chemical_Parameters'!F33*'Step 1 Toxicity_Values'!G33))),"--")) -> --
B56: -- | C56: -- | D56: =IF(ISERROR(($F$5*$F$6*$F$7)/($F$9*$F$10*(($F$11*'Step 2 Chemical_Parameters'!E34*'Step 1 Toxicity_Values'!$D34/$F$8)+($F$12*$F$13*'Step 2 Chemical_Parameters'!F34*'Step 1 Toxicity_Values'!G34/$F$8)))),"--",($F$5*$F$6*$F$7)/($F$9*$F$10*(($F$11*'Step 2 Chemical_Parameters'!E34*'Step 1 Toxicity_Values'!$D34/$F$8)+($F$12*$F$13*'Step 2 Chemical_Parameters'!F34*'Step 1 Toxicity_Values'!G34/$F$8)))) -> -- | E56: =IF(ISERROR(($G$5*$G$6*$G$7)/($G$9*$G$10*(((1/'Step 1 Toxicity_Values'!$E34)*($G$11*'Step 2 Chemical_Parameters'!$E34/$G$8))+((1/'Step 1 Toxicity_Values'!$I34)*($G$12*$G$13*'Step 2 Chemical_Parameters'!$F34/$G$8))))),"--",($G$5*$G$6*$G$7)/($G$9*$G$10*(((1/'Step 1 Toxicity_Values'!$E34)*($G$11*'Step 2 Chemical_Parameters'!$E34/$G$8))+((1/'Step 1 Toxicity_Values'!$I34)*($G$12*$G$13*'Step 2 Chemical_Parameters'!$F34/$G$8))))) -> -- | F56: -- | G56: -- | H56: -- | I56: =IF(ISERROR(($H$5*$H$6*$H$7)/($H$9*$H$10*(($H$11*'Step 2 Chemical_Parameters'!$E34*'Step 1 Toxicity_Values'!$D34/$H$8)+($H$12*$H$13*'Step 2 Chemical_Parameters'!$F34*'Step 1 Toxicity_Values'!$G34/$H$8)))),"--",($H$5*$H$6*$H$7)/($H$9*$H$10*(($H$11*'Step 2 Chemical_Parameters'!$E34*'Step 1 Toxicity_Values'!$D34/$H$8)+($H$12*$H$13*'Step 2 Chemical_Parameters'!$F34*'Step 1 Toxicity_Values'!$G34/$H$8)))) -> -- | J56: =IF(ISERROR(($K$5*$K$6*$K$7)/($K$9*$K$10*(((1/'Step 1 Toxicity_Values'!$E34)*$K$11*'Step 2 Chemical_Parameters'!$E34/$K$8)+((1/'Step 1 Toxicity_Values'!$I34)*$K$12*$K$13*'Step 2 Chemical_Parameters'!$F34/$K$8)))),"--",($K$5*$K$6*$K$7)/($K$9*$K$10*(((1/'Step 1 Toxicity_Values'!$E34)*$K$11*'Step 2 Chemical_Parameters'!$E34/$K$8)+((1/'Step 1 Toxicity_Values'!$I34)*$K$12*$K$13*'Step 2 Chemical_Parameters'!$F34/$K$8)))) -> -- | K56: -- | L56: -- | M56: -- | N56: =IF(ISERROR(($L$5*$L$6*$L$7)/($L$9*$L$10*(($L$11*'Step 2 Chemical_Parameters'!$E34*'Step 1 Toxicity_Values'!$D34/$L$8)+($L$12*$L$13*'Step 2 Chemical_Parameters'!$F34*'Step 1 Toxicity_Values'!$G34/$L$8)))),"--",($L$5*$L$6*$L$7)/($L$9*$L$10*(($L$11*'Step 2 Chemical_Parameters'!$E34*'Step 1 Toxicity_Values'!$D34/$L$8)+($L$12*$L$13*'Step 2 Chemical_Parameters'!$F34*'Step 1 Toxicity_Values'!$G34/$L$8)))) -> -- | O56: =IF(ISERROR(($M$5*$M$6*$M$7)/($M$9*$M$10*(((1/'Step 1 Toxicity_Values'!$E34)*$M$11*'Step 2 Chemical_Parameters'!$E34/$M$8)+((1/'Step 1 Toxicity_Values'!$I34)*$M$12*$M$13*'Step 2 Chemical_Parameters'!$F34/$M$8)))),"--",($M$5*$M$6*$M$7)/($M$9*$M$10*(((1/'Step 1 Toxicity_Values'!$E34)*$M$11*'Step 2 Chemical_Parameters'!$E34/$M$8)+((1/'Step 1 Toxicity_Values'!$I34)*$M$12*$M$13*'Step 2 Chemical_Parameters'!$F34/$M$8)))) -> -- | P56: -- | Q56: -- | R56: -- | S56: -- | T56: -- | V56: ='Step 2 Chemical_Parameters'!A34 -> -- | W56: ='Step 2 Chemical_Parameters'!B34 -> -- | Y56: =IF(B56="--","--",IF(VLOOKUP(B56,chemical,8,FALSE)="M",IF(ISERROR(($S$5*$S$7*$S$8)/((($S$16+$T$16)*'Step 2 Chemical_Parameters'!E34*'Step 1 Toxicity_Values'!D34)+(($S$17+$T$17)*'Step 2 Chemical_Parameters'!F34*'Step 1 Toxicity_Values'!G34))),"--",($S$5*$S$7*$S$8)/((($S$16+$T$16)*'Step 2 Chemical_Parameters'!E34*'Step 1 Toxicity_Values'!D34)+(($S$17+$T$17)*'Step 2 Chemical_Parameters'!F34*'Step 1 Toxicity_Values'!G34))),"--")) -> -- | Z56: =IF(B56="--","--",IF(VLOOKUP(B56,chemical,8,FALSE)="M",IF(ISERROR(($S$5*$S$7*$S$8)/((($S$16+$T$16+$U$16+$V$16)*'Step 2 Chemical_Parameters'!E34*'Step 1 Toxicity_Values'!D34)+(($S$17+$T$17+$U$17+$V$17)*'Step 2 Chemical_Parameters'!F34*'Step 1 Toxicity_Values'!G34))),"--",($S$5*$S$7*$S$8)/((($S$16+$T$16+$U$16+$V$16)*'Step 2 Chemical_Parameters'!E34*'Step 1 Toxicity_Values'!D34)+(($S$17+$T$17+$U$17+$V$17)*'Step 2 Chemical_Parameters'!F34*'Step 1 Toxicity_Values'!G34))),"--")) -> -- | AA56: =IF(B56="--","--",IF(VLOOKUP(B56,chemical,8,FALSE)="M",IF(ISERROR(($X$5*$X$7*$X$8)/((($X$16+$Y$16+$Z$16+$AA$16)*'Step 2 Chemical_Parameters'!E34*'Step 1 Toxicity_Values'!D34)+(($X$17+$Y$17+$Z$17+$AA$17)*'Step 2 Chemical_Parameters'!F34*'Step 1 Toxicity_Values'!G34))),"--",($X$5*$X$7*$X$8)/((($X$16+$Y$16+$Z$16+$AA$16)*'Step 2 Chemical_Parameters'!E34*'Step 1 Toxicity_Values'!D34)+(($X$17+$Y$17+$Z$17+$AA$17)*'Step 2 Chemical_Parameters'!F34*'Step 1 Toxicity_Values'!G34))),"--")) -> --
B57: -- | C57: -- | D57: =IF(ISERROR(($F$5*$F$6*$F$7)/($F$9*$F$10*(($F$11*'Step 2 Chemical_Parameters'!E35*'Step 1 Toxicity_Values'!$D35/$F$8)+($F$12*$F$13*'Step 2 Chemical_Parameters'!F35*'Step 1 Toxicity_Values'!G35/$F$8)))),"--",($F$5*$F$6*$F$7)/($F$9*$F$10*(($F$11*'Step 2 Chemical_Parameters'!E35*'Step 1 Toxicity_Values'!$D35/$F$8)+($F$12*$F$13*'Step 2 Chemical_Parameters'!F35*'Step 1 Toxicity_Values'!G35/$F$8)))) -> -- | E57: =IF(ISERROR(($G$5*$G$6*$G$7)/($G$9*$G$10*(((1/'Step 1 Toxicity_Values'!$E35)*($G$11*'Step 2 Chemical_Parameters'!$E35/$G$8))+((1/'Step 1 Toxicity_Values'!$I35)*($G$12*$G$13*'Step 2 Chemical_Parameters'!$F35/$G$8))))),"--",($G$5*$G$6*$G$7)/($G$9*$G$10*(((1/'Step 1 Toxicity_Values'!$E35)*($G$11*'Step 2 Chemical_Parameters'!$E35/$G$8))+((1/'Step 1 Toxicity_Values'!$I35)*($G$12*$G$13*'Step 2 Chemical_Parameters'!$F35/$G$8))))) -> -- | F57: -- | G57: -- | H57: -- | I57: =IF(ISERROR(($H$5*$H$6*$H$7)/($H$9*$H$10*(($H$11*'Step 2 Chemical_Parameters'!$E35*'Step 1 Toxicity_Values'!$D35/$H$8)+($H$12*$H$13*'Step 2 Chemical_Parameters'!$F35*'Step 1 Toxicity_Values'!$G35/$H$8)))),"--",($H$5*$H$6*$H$7)/($H$9*$H$10*(($H$11*'Step 2 Chemical_Parameters'!$E35*'Step 1 Toxicity_Values'!$D35/$H$8)+($H$12*$H$13*'Step 2 Chemical_Parameters'!$F35*'Step 1 Toxicity_Values'!$G35/$H$8)))) -> -- | J57: =IF(ISERROR(($K$5*$K$6*$K$7)/($K$9*$K$10*(((1/'Step 1 Toxicity_Values'!$E35)*$K$11*'Step 2 Chemical_Parameters'!$E35/$K$8)+((1/'Step 1 Toxicity_Values'!$I35)*$K$12*$K$13*'Step 2 Chemical_Parameters'!$F35/$K$8)))),"--",($K$5*$K$6*$K$7)/($K$9*$K$10*(((1/'Step 1 Toxicity_Values'!$E35)*$K$11*'Step 2 Chemical_Parameters'!$E35/$K$8)+((1/'Step 1 Toxicity_Values'!$I35)*$K$12*$K$13*'Step 2 Chemical_Parameters'!$F35/$K$8)))) -> -- | K57: -- | L57: -- | M57: -- | N57: =IF(ISERROR(($L$5*$L$6*$L$7)/($L$9*$L$10*(($L$11*'Step 2 Chemical_Parameters'!$E35*'Step 1 Toxicity_Values'!$D35/$L$8)+($L$12*$L$13*'Step 2 Chemical_Parameters'!$F35*'Step 1 Toxicity_Values'!$G35/$L$8)))),"--",($L$5*$L$6*$L$7)/($L$9*$L$10*(($L$11*'Step 2 Chemical_Parameters'!$E35*'Step 1 Toxicity_Values'!$D35/$L$8)+($L$12*$L$13*'Step 2 Chemical_Parameters'!$F35*'Step 1 Toxicity_Values'!$G35/$L$8)))) -> -- | O57: =IF(ISERROR(($M$5*$M$6*$M$7)/($M$9*$M$10*(((1/'Step 1 Toxicity_Values'!$E35)*$M$11*'Step 2 Chemical_Parameters'!$E35/$M$8)+((1/'Step 1 Toxicity_Values'!$I35)*$M$12*$M$13*'Step 2 Chemical_Parameters'!$F35/$M$8)))),"--",($M$5*$M$6*$M$7)/($M$9*$M$10*(((1/'Step 1 Toxicity_Values'!$E35)*$M$11*'Step 2 Chemical_Parameters'!$E35/$M$8)+((1/'Step 1 Toxicity_Values'!$I35)*$M$12*$M$13*'Step 2 Chemical_Parameters'!$F35/$M$8)))) -> -- | P57: -- | Q57: -- | R57: -- | S57: -- | T57: -- | V57: ='Step 2 Chemical_Parameters'!A35 -> -- | W57: ='Step 2 Chemical_Parameters'!B35 -> -- | Y57: =IF(B57="--","--",IF(VLOOKUP(B57,chemical,8,FALSE)="M",IF(ISERROR(($S$5*$S$7*$S$8)/((($S$16+$T$16)*'Step 2 Chemical_Parameters'!E35*'Step 1 Toxicity_Values'!D35)+(($S$17+$T$17)*'Step 2 Chemical_Parameters'!F35*'Step 1 Toxicity_Values'!G35))),"--",($S$5*$S$7*$S$8)/((($S$16+$T$16)*'Step 2 Chemical_Parameters'!E35*'Step 1 Toxicity_Values'!D35)+(($S$17+$T$17)*'Step 2 Chemical_Parameters'!F35*'Step 1 Toxicity_Values'!G35))),"--")) -> -- | Z57: =IF(B57="--","--",IF(VLOOKUP(B57,chemical,8,FALSE)="M",IF(ISERROR(($S$5*$S$7*$S$8)/((($S$16+$T$16+$U$16+$V$16)*'Step 2 Chemical_Parameters'!E35*'Step 1 Toxicity_Values'!D35)+(($S$17+$T$17+$U$17+$V$17)*'Step 2 Chemical_Parameters'!F35*'Step 1 Toxicity_Values'!G35))),"--",($S$5*$S$7*$S$8)/((($S$16+$T$16+$U$16+$V$16)*'Step 2 Chemical_Parameters'!E35*'Step 1 Toxicity_Values'!D35)+(($S$17+$T$17+$U$17+$V$17)*'Step 2 Chemical_Parameters'!F35*'Step 1 Toxicity_Values'!G35))),"--")) -> -- | AA57: =IF(B57="--","--",IF(VLOOKUP(B57,chemical,8,FALSE)="M",IF(ISERROR(($X$5*$X$7*$X$8)/((($X$16+$Y$16+$Z$16+$AA$16)*'Step 2 Chemical_Parameters'!E35*'Step 1 Toxicity_Values'!D35)+(($X$17+$Y$17+$Z$17+$AA$17)*'Step 2 Chemical_Parameters'!F35*'Step 1 Toxicity_Values'!G35))),"--",($X$5*$X$7*$X$8)/((($X$16+$Y$16+$Z$16+$AA$16)*'Step 2 Chemical_Parameters'!E35*'Step 1 Toxicity_Values'!D35)+(($X$17+$Y$17+$Z$17+$AA$17)*'Step 2 Chemical_Parameters'!F35*'Step 1 Toxicity_Values'!G35))),"--")) -> --
B58: -- | C58: -- | D58: =IF(ISERROR(($F$5*$F$6*$F$7)/($F$9*$F$10*(($F$11*'Step 2 Chemical_Parameters'!E36*'Step 1 Toxicity_Values'!$D36/$F$8)+($F$12*$F$13*'Step 2 Chemical_Parameters'!F36*'Step 1 Toxicity_Values'!G36/$F$8)))),"--",($F$5*$F$6*$F$7)/($F$9*$F$10*(($F$11*'Step 2 Chemical_Parameters'!E36*'Step 1 Toxicity_Values'!$D36/$F$8)+($F$12*$F$13*'Step 2 Chemical_Parameters'!F36*'Step 1 Toxicity_Values'!G36/$F$8)))) -> -- | E58: =IF(ISERROR(($G$5*$G$6*$G$7)/($G$9*$G$10*(((1/'Step 1 Toxicity_Values'!$E36)*($G$11*'Step 2 Chemical_Parameters'!$E36/$G$8))+((1/'Step 1 Toxicity_Values'!$I36)*($G$12*$G$13*'Step 2 Chemical_Parameters'!$F36/$G$8))))),"--",($G$5*$G$6*$G$7)/($G$9*$G$10*(((1/'Step 1 Toxicity_Values'!$E36)*($G$11*'Step 2 Chemical_Parameters'!$E36/$G$8))+((1/'Step 1 Toxicity_Values'!$I36)*($G$12*$G$13*'Step 2 Chemical_Parameters'!$F36/$G$8))))) -> -- | F58: -- | G58: -- | H58: -- | I58: =IF(ISERROR(($H$5*$H$6*$H$7)/($H$9*$H$10*(($H$11*'Step 2 Chemical_Parameters'!$E36*'Step 1 Toxicity_Values'!$D36/$H$8)+($H$12*$H$13*'Step 2 Chemical_Parameters'!$F36*'Step 1 Toxicity_Values'!$G36/$H$8)))),"--",($H$5*$H$6*$H$7)/($H$9*$H$10*(($H$11*'Step 2 Chemical_Parameters'!$E36*'Step 1 Toxicity_Values'!$D36/$H$8)+($H$12*$H$13*'Step 2 Chemical_Parameters'!$F36*'Step 1 Toxicity_Values'!$G36/$H$8)))) -> -- | J58: =IF(ISERROR(($K$5*$K$6*$K$7)/($K$9*$K$10*(((1/'Step 1 Toxicity_Values'!$E36)*$K$11*'Step 2 Chemical_Parameters'!$E36/$K$8)+((1/'Step 1 Toxicity_Values'!$I36)*$K$12*$K$13*'Step 2 Chemical_Parameters'!$F36/$K$8)))),"--",($K$5*$K$6*$K$7)/($K$9*$K$10*(((1/'Step 1 Toxicity_Values'!$E36)*$K$11*'Step 2 Chemical_Parameters'!$E36/$K$8)+((1/'Step 1 Toxicity_Values'!$I36)*$K$12*$K$13*'Step 2 Chemical_Parameters'!$F36/$K$8)))) -> -- | K58: -- | L58: -- | M58: -- | N58: =IF(ISERROR(($L$5*$L$6*$L$7)/($L$9*$L$10*(($L$11*'Step 2 Chemical_Parameters'!$E36*'Step 1 Toxicity_Values'!$D36/$L$8)+($L$12*$L$13*'Step 2 Chemical_Parameters'!$F36*'Step 1 Toxicity_Values'!$G36/$L$8)))),"--",($L$5*$L$6*$L$7)/($L$9*$L$10*(($L$11*'Step 2 Chemical_Parameters'!$E36*'Step 1 Toxicity_Values'!$D36/$L$8)+($L$12*$L$13*'Step 2 Chemical_Parameters'!$F36*'Step 1 Toxicity_Values'!$G36/$L$8)))) -> -- | O58: =IF(ISERROR(($M$5*$M$6*$M$7)/($M$9*$M$10*(((1/'Step 1 Toxicity_Values'!$E36)*$M$11*'Step 2 Chemical_Parameters'!$E36/$M$8)+((1/'Step 1 Toxicity_Values'!$I36)*$M$12*$M$13*'Step 2 Chemical_Parameters'!$F36/$M$8)))),"--",($M$5*$M$6*$M$7)/($M$9*$M$10*(((1/'Step 1 Toxicity_Values'!$E36)*$M$11*'Step 2 Chemical_Parameters'!$E36/$M$8)+((1/'Step 1 Toxicity_Values'!$I36)*$M$12*$M$13*'Step 2 Chemical_Parameters'!$F36/$M$8)))) -> -- | P58: -- | Q58: -- | R58: -- | S58: -- | T58: -- | V58: ='Step 2 Chemical_Parameters'!A36 -> -- | W58: ='Step 2 Chemical_Parameters'!B36 -> -- | Y58: =IF(B58="--","--",IF(VLOOKUP(B58,chemical,8,FALSE)="M",IF(ISERROR(($S$5*$S$7*$S$8)/((($S$16+$T$16)*'Step 2 Chemical_Parameters'!E36*'Step 1 Toxicity_Values'!D36)+(($S$17+$T$17)*'Step 2 Chemical_Parameters'!F36*'Step 1 Toxicity_Values'!G36))),"--",($S$5*$S$7*$S$8)/((($S$16+$T$16)*'Step 2 Chemical_Parameters'!E36*'Step 1 Toxicity_Values'!D36)+(($S$17+$T$17)*'Step 2 Chemical_Parameters'!F36*'Step 1 Toxicity_Values'!G36))),"--")) -> -- | Z58: =IF(B58="--","--",IF(VLOOKUP(B58,chemical,8,FALSE)="M",IF(ISERROR(($S$5*$S$7*$S$8)/((($S$16+$T$16+$U$16+$V$16)*'Step 2 Chemical_Parameters'!E36*'Step 1 Toxicity_Values'!D36)+(($S$17+$T$17+$U$17+$V$17)*'Step 2 Chemical_Parameters'!F36*'Step 1 Toxicity_Values'!G36))),"--",($S$5*$S$7*$S$8)/((($S$16+$T$16+$U$16+$V$16)*'Step 2 Chemical_Parameters'!E36*'Step 1 Toxicity_Values'!D36)+(($S$17+$T$17+$U$17+$V$17)*'Step 2 Chemical_Parameters'!F36*'Step 1 Toxicity_Values'!G36))),"--")) -> -- | AA58: =IF(B58="--","--",IF(VLOOKUP(B58,chemical,8,FALSE)="M",IF(ISERROR(($X$5*$X$7*$X$8)/((($X$16+$Y$16+$Z$16+$AA$16)*'Step 2 Chemical_Parameters'!E36*'Step 1 Toxicity_Values'!D36)+(($X$17+$Y$17+$Z$17+$AA$17)*'Step 2 Chemical_Parameters'!F36*'Step 1 Toxicity_Values'!G36))),"--",($X$5*$X$7*$X$8)/((($X$16+$Y$16+$Z$16+$AA$16)*'Step 2 Chemical_Parameters'!E36*'Step 1 Toxicity_Values'!D36)+(($X$17+$Y$17+$Z$17+$AA$17)*'Step 2 Chemical_Parameters'!F36*'Step 1 Toxicity_Values'!G36))),"--")) -> --
